Workbook

Sheet 00000 (hidden)

Sheet XXXXX (hidden)

Sheet 10000 (hidden)

Sheet เมนู
C2: โปรแกรมประมาณราคางานทาง Sv.1

Sheet ข้อมูลเริ่มต้น
E1: ข้อมูลเริ่มต้น โปรแกรมประมาณราคางานทาง
E2: ป้อนข้อมูลในแถม สีเหลือง เท่านั้น
E3: ชื่อโครงการ | F3: โครงการก่อสร้างถนน คสล. บ้านหนองลาดใต้ หมู่ที่ 8
E4: สถานที่ก่อสร้าง | F4: บ้านหนองลาดใต้ หมู่ที่ 8 ต.หนองลาด อ.เมือง จ.สกลนคร | M4: ราคาน้ำมันดีเซล | N4: บาท / ลิตร | P4: บาท / ลิตร | T4: 1 | U4: =IF(V8>2," ",IF($V$8=1,"ไม่มี","ไม่มี")) -> ไม่มี | V4: 3 | W4: =IF(V4=1," ",IF(V4=2,U5,IF(V4=3,U6,IF(V4=4,U7)))) -> งานรองพื้นทางดินซีเมนต์ | X4: 1 | Y4: =IF(V8>2," ",IF($V$8=1,"ไม่มี","ไม่มี ")) -> ไม่มี | Z4: 2 | AA4: =IF(Z4=1," ",IF(Z4=2,Y5,IF(Z4=3,Y6,IF(Z4=4,Y7)))) -> งานพื้นทางหินคลุก | AC4: 1 | AD4: =IF(V8>2," ",IF($V$8=1,"ไม่มี","ไม่มี")) -> ไม่มี | AE4: 2 | AF4: =IF(AE4=1," ",IF(AE4=2,AD5)) -> งานวัสดุคัดเลือกเป็นลูกรัง | AG4: 1 | AH4: ไม่มี | AI4: 2 | AJ4: =IF(AI4=1,AH4,IF(AI4=2,AH5,IF(AI4=3,AH6,IF(AI4=4,AH7,IF(AI4=5,AH8))))) -> งานปรับเกลี่ยแต่งคันทางเดิม
E5: หน่วยงานเจ้าของโครงการ | F5: สำนักงานเทศบาลตำบลหนอลาด | M5: พื้นที่ฝนชุก | T5: 2 | U5: =IF(V8>2," ",IF($V$8=1,"งานรองพื้นทางลูกรัง","งานรองพื้นทางลูกรัง")) -> งานรองพื้นทางลูกรัง | X5: 2 | Y5: =IF(V8>2," ",IF($V$8=1,"งานพื้นทางหินคลุก","งานทรายรองใต้ผิวคอนกรีต")) -> งานพื้นทางหินคลุก | AC5: 2 | AD5: =IF(V8>2," ",IF($V$8=1,"งานวัสดุคัดเลือกเป็นลูกรัง","งานวัสดุคัดเลือกเป็นลูกรัง")) -> งานวัสดุคัดเลือกเป็นลูกรัง | AG5: 2 | AH5: งานปรับเกลี่ยแต่งคันทางเดิม
E6: แบบเลขที่ | F6: 85 / 2555 ลงวันที่ 30 กรกฏาคม 2555 | M6: จังหวัด | T6: 3 | U6: =IF(V8>2," ",IF($V$8=1,"งานรองพื้นทางดินซีเมนต์","งานรองพื้นทางดินซีเมนต์")) -> งานรองพื้นทางดินซีเมนต์ | X6: 3 | Y6: =IF(V8>2," ",IF($V$8=1,"งานพื้นทางหินคลุกผสมซีเมนต์"," ")) -> งานพื้นทางหินคลุกผสมซีเมนต์ | AG6: 3 | AH6: งานขุดรื้อพื้นทางลูกรังเดิม หนา 10 ซม. แล้วบดทับ
E7: คำนวณราคากลางเมื่อวันที่ | F7: 30 กรกฏาคม 2555 | M7: ฝนชุก | N7: =AB44 -> ปกติ | T7: 4 | U7: =IF(V8>2," ",IF($V$8=1," ","งานหินคลุกรองใต้ผิวทางคอนกรีต")) ->  | X7: 4 | Y7: =IF(V8>2," ",IF($V$8=1,"งานพื้นทางดินซีเมนต์"," ")) -> งานพื้นทางดินซีเมนต์ | AG7: 4 | AH7: งานขุดรื้อพื้นทางหินคลุกเดิม หนา 10 ซม. แล้วบดทับ
E8: เงินล่วงหน้าจ่าย | G8: % | H8: ดอกเบี้ยเงินกู้ | K8: % | L8: งานถางป่าและขุดตอ | T8: 1 | U8: แอสฟัลต์คอนกรีต | V8: 1 | W8: =IF(V8=1,U8,IF(V8=2,U9,IF(V8=3,U10,IF(V8=4,U11)))) -> แอสฟัลต์คอนกรีต | X8: 1 | Y8: =IF(V8>2," ","ไม่มี") -> ไม่มี | Z8: 2 | AA8: =IF(Z8=1,Y8,IF(Z8=2,Y13,IF(Z8=3,Y13,IF(Z8=4,Y13)))) -> ไหล่ทางกว้างข้างละ | AB8: =IF(Z8=1," ",IF(Z8=2,Y9,IF(Z8=3,Y10,IF(Z8=4,Y11)))) ->  | AC8: 1 | AD8: =IF(V8>2," ","ไม่มี") -> ไม่มี | AE8: 2 | AF8: =IF(AE8=1," ",IF(AE8=2,AD9,IF(AE8=3,AD10))) -> ตีเส้นจราจรผิวทางแอสฟัลต์ | AG8: 5 | AH8: งานขุดรื้อผิวทาง AC เดิม หนา 10 ซม. แล้วบดทับ
E9: เงินประกันผลงานหัก | G9: % | H9: ค่าภาษีมูลค่าเพิ่ม (VAT) | K9: % | L9: ค่าดำเนินการและค่าเสื่อมราคา | N9: =AB40 -> 1.29 | T9: 2 | U9: คอนกรีตเสริมเหล็ก | X9: 2 | Y9: =IF(V8=2,"ลูกรัง"," ") ->  | AC9: 2 | AD9: =IF(V8=1,"ตีเส้นจราจรผิวทางแอสฟัลต์"," ") -> ตีเส้นจราจรผิวทางแอสฟัลต์
F10: ป้อนข้อมูลโครงสร้างทาง | T10: 3 | U10: ลูกรัง บดอัดแน่น | X10: 3 | Y10: =IF(V8=1,"แอสฟัลต์คอนกรีต"," ") -> แอสฟัลต์คอนกรีต | AC10: 3 | AD10: =IF(V8=2,"ตีเส้นจราจรผิวทางคอนกรีต"," ") -> 
E11: ชนิดของผิวทาง | H11: หนา | I11: 20 | J11: ซม. | K11: =IF($V$8>2," ","ชนิดของไหล่ทาง") -> ชนิดของไหล่ทาง | T11: 4 | U11: ลูกรัง ปรับเกลี่ยแต่ง | X11: 4 | Y11: =IF(V8=2," "," ") -> 
E12: =W12 -> งานพื้นทาง | H12: =IF(E12=" "," ","หนา") -> หนา | I12: 20 | J12: =IF(E12=" "," "," ซม.") -> ซม. | K12: =IF($V$8>2," ","งานตีเส้นจราจร") -> งานตีเส้นจราจร | N12: =IF(K12=" "," ","กว้าง") -> กว้าง | O12: 10 | P12: =IF(N12=" "," "," ซม.") -> ซม. | T12: 1 | U12: งานพื้นทาง | W12: =IF(V8=1,U12,IF(V8=2,U13," ")) -> งานพื้นทาง
E13: =IF(V8>2," ","งานรองพื้นทาง") -> งานรองพื้นทาง | H13: =IF(E13=" "," ","หนา") -> หนา | I13: 20 | J13: =IF(E13=" "," "," ซม.") -> ซม. | K13: ราคาประเมินที่ดิน | L13: 30000 | N13: บาท / ไร่ | T13: 2 | U13: งานทรายรองพื้น | Y13: ไหล่ทางกว้างข้างละ
E14: =IF($V$8>2," ","งานวัสดุคัดเลือก ก.") -> งานวัสดุคัดเลือก ก. | H14: =IF(E14=" "," ","หนา") -> หนา | I14: 20 | J14: =IF(E14=" "," "," ซม.") -> ซม. | L14: ค่าดินถมที่แหล่ง | T14: 1 | U14: มี | V14: 1 | W14: =IF(V14=1," ",IF(V14=2,U14)) -> 
E15: งานดินตัด , ดินถมคันทาง | L15: =ROUNDDOWN((L13/2)/4800,0) -> 3 | M15: บาท / ลบ.ม. | T15: 2 | U15: ไม่มี
E16: งานปรับเกลี่ยแต่งคันทางเดิม | W16: =IF(T23=" ",0,T23*Y23) -> 6000 | X16: =IF(X23=" ",0,X23*AA23) -> 1000 | Y16: =W20+X20 -> 8350
E17: ช่วงที่ 1 จาก กม. ที่ | F17: 0 | G17: ถึง กม. ที่ | H17: 1000 | I17: ผิวจราจรกว้าง | K17: 6 | L17: ม. | M17: =AA8 -> ไหล่ทางกว้างข้างละ | N17: 1 | O17: ม. | P17: ลาดถมคันทาง | W17: =IF(T24=" ",0,T24*Y24) -> 1200 | X17: =IF(X24=" ",0,X24*AA24) -> 150
E18: ช่วงที่ 2 จาก กม. ที่ | F18: 0 | G18: ถึง กม. ที่ | H18: 300 | I18: ผิวจราจรกว้าง | K18: 4 | L18: ม. | M18: =AA8 -> ไหล่ทางกว้างข้างละ | N18: 0.5 | O18: ม. | P18: (Side Slope) | U18: =N103 -> 1300 | V18: =(U18*U19)/2.5 -> 52 | W18: =IF(T25=" ",0,T25*Y25) -> 0 | X18: =IF(X25=" ",0,X25*AA25) -> 0
E19: ช่วงที่ 3 จาก กม. ที่ | G19: ถึง กม. ที่ | I19: ผิวจราจรกว้าง | L19: ม. | M19: =AA8 -> ไหล่ทางกว้างข้างละ | O19: ม. | U19: =O12/100 -> 0.1 | V19: =U18*U19*2 -> 260 | W19: =IF(T26=" ",0,T26*Y26) -> 0 | X19: =IF(X26=" ",0,X26*AA26) -> 0
E20: ช่วงที่ 4 จาก กม. ที่ | G20: ถึง กม. ที่ | I20: ผิวจราจรกว้าง | L20: ม. | M20: =AA8 -> ไหล่ทางกว้างข้างละ | O20: ม. | W20: =SUM(W16:W19) -> 7200 | X20: =SUM(X16:X19) -> 1150
U21: 1 | V21: 1 : 1 | W21: 2 | X21: =IF(W21=1,1,IF(W21=2,1.5,IF(W21=3,2))) -> 1.5
F22: ป้อนข้อมูล ท่อกลม คสล. กำแพงปากท่อกลมคอนกรีต บ่อพัก คสล. และท่อเหลี่ยม คสล. | U22: 2 | V22: 1 : 1.5 | Z22: ระยะทาง | AB22: ไหล่ทาง
F23: งานท่อกลม คสล. ชั้น 3 | T23: =IF(K17=0," ",IF(K17>0,K17)) -> 6 | U23: 3 | V23: 1 : 2 | X23: =IF(N17=0," ",IF(N17>0,N17)) -> 1 | Y23: =IF(K17=0,0,(H17-F17)) -> 1000 | Z23: =Y23+Y24+Y25+Y26 -> 1300 | AA23: =IF(N17=0,0,(H17-F17)) -> 1000 | AB23: =AA23+AA24+AA25+AA26 -> 1300
F24: ท่อกลมขนาด ø 0.30 ม. ชั้น 3 | H24: 1 | I24: เมตร | K24: ท่อกลมขนาด ø 1.00 ม. ชั้น 3 | M24: 1 | N24: เมตร | T24: =IF(K18=0," ",IF(K18>0,K18)) -> 4 | U24: =MAX(T23:T26) -> 6 | V24: =MAX(X23:X26) -> 1 | X24: =IF(N18=0," ",IF(N18>0,N18)) -> 0.5 | Y24: =IF(K18=0,0,(H18-F18)) -> 300 | AA24: =IF(N18=0,0,(H18-F18)) -> 300
F25: ท่อกลมขนาด ø 0.40 ม. ชั้น 3 | H25: 1 | I25: เมตร | K25: ท่อกลมขนาด ø 1.20 ม. ชั้น 3 | M25: 1 | N25: เมตร | U25: =MIN(T23:T26) -> 4 | V25: =MIN(X23:X26) -> 0.5 | Y25: =IF(K19=0,0,(H19-F19)) -> 0 | AA25: =IF(N19=0,0,(H19-F19)) -> 0
F26: ท่อกลมขนาด ø 0.60 ม. ชั้น 3 | H26: 1 | I26: เมตร | K26: ท่อกลมขนาด ø 1.50 ม. ชั้น 3 | M26: 1 | N26: เมตร | Y26: =IF(K20=0,0,(H20-F20)) -> 0 | AA26: =IF(N20=0,0,(H20-F20)) -> 0
F27: ท่อกลมขนาด ø 0.80 ม. ชั้น 3 | H27: 1 | I27: เมตร | W27: =IF(K104=0," ",IF(N18=0,(H17-F17),IF(N17=0,H18-F18,(H17-F17)+(H18-F18)))) -> 1300
A28: ราคาน้ำมัน | B28: =V29 -> 30 | C28: บาท/ลิตร | AQ28: กรอกระยะทาง
F29: งานกำแพงปากท่อกลมคอนกรีต | T29: 1 | U29: 25.5 | V29: =IF($W$29=T29,U29-0.5,V30) -> 30 | W29: 6 | Y29: 1 | Z29: 0 | AA29: 1 | AB29: =IF(AA29=1,Z29,IF(AA29=2,Z30,IF(AA29=3,Z31,IF(AA29=4,Z32)))) -> 0 | AC29: 1 | AD29: 0 | AE29: 1 | AF29: =IF(AE29=1,AD29,IF(AE29=2,AD30,IF(AE29=3,AD31))) -> 0 | AG29: 1 | AH29: 6 | AI29: 2 | AJ29: =IF(AI29=1,AH29,IF(AI29=2,AH30,IF(AI29=3,AH31))) -> 7 | AK29: 1 | AL29: 7 | AM29: 1 | AN29: =IF(AM29=1,AL29,IF(AM29=2,AL30)) -> 7 | AQ29: ระยะทางขนส่ง กรณีไม่เกิน 200 กม. | AV29: 30 | AW29: กม. | AY29: =H50 -> 30 | AZ29: =H51 -> 30 | BA29: =H52 -> 30 | BB29: =H53 -> 30 | BC29: =H54 -> 30 | BD29: =H55 -> 30 | BE29: =H56 -> 30 | BF29: =H57 -> 30 | BG29: =H58 -> 30 | BH29: =H59 -> 30 | BI29: =H60 -> 30 | BJ29: =H61 -> 30 | BK29: =H62 -> 700 | BL29: =H63 -> 700 | BM29: =H64 -> 250 | BN29: =H65 -> 250 | BO29: =H66 -> 250 | BP29: =H67 -> 30 | BQ29: =H68 -> 30 | BR29: =H69 -> 3 | BS29: =H70 -> 3 | BT29: =H71 -> 53 | BU29: =H72 -> 2 | BW29: =IF(H73>200,H73*'10ล้อ'!$H$208,VLOOKUP(H73,'10ล้อ'!$B$6:$D$205,2)) -> 60.45
A30: ฝนตก | B30: =Z44 -> 0 | C30: (ปกติ=0 , ชุก=1) | F30: ขนาด 1 - ø 0.60 ม. (= 2 ด้าน) | H30: 1 | I30: แห่ง | K30: ขนาด 1 - ø 1.00 ม. (= 2 ด้าน) | M30: 1 | N30: แห่ง | T30: 2 | U30: 26.5 | V30: 30 | Y30: 2 | Z30: 5 | AC30: 2 | AD30: 5 | AG30: 2 | AH30: 7 | AK30: 2 | AL30: 10 | AQ30: รถบรรทุก 6 ล้อ(กรณีน้ำหนักไม่เกิน 15 ตัน) | BW30: =IF(H74>200,H74*'10ล้อ'!$H$208,VLOOKUP(H74,'10ล้อ'!$B$6:$D$205,2)) -> 60.45
F31: ขนาด 2 - ø 0.60 ม. (= 2 ด้าน) | H31: 1 | I31: แห่ง | K31: ขนาด 2 - ø 1.00 ม. (= 2 ด้าน) | M31: 1 | N31: แห่ง | T31: 3 | U31: 27.5 | V31: 30 | Y31: 3 | Z31: 10 | AC31: 3 | AD31: 10 | AG31: 3 | AH31: 8 | AQ31: ค่าบรรทุก | AV31: =IF(AV29>200,AV29*'6ล้อ'!$H$208,VLOOKUP(AV29,'6ล้อ'!$B$6:$D$205,2)) -> 78.67 | AW31: บาท/ตัน | AY31: =IF(AY29>200,AY29*'6ล้อ'!$H$208,VLOOKUP(AY29,'6ล้อ'!$B$6:$D$205,2)) -> 78.67 | AZ31: =IF(AZ29>200,AZ29*'6ล้อ'!$H$208,VLOOKUP(AZ29,'6ล้อ'!$B$6:$D$205,2)) -> 78.67 | BA31: =IF(BA29>200,BA29*'6ล้อ'!$H$208,VLOOKUP(BA29,'6ล้อ'!$B$6:$D$205,2)) -> 78.67 | BB31: =IF(BB29>200,BB29*'6ล้อ'!$H$208,VLOOKUP(BB29,'6ล้อ'!$B$6:$D$205,2)) -> 78.67 | BC31: =IF(BC29>200,BC29*'6ล้อ'!$H$208,VLOOKUP(BC29,'6ล้อ'!$B$6:$D$205,2)) -> 78.67 | BD31: =IF(BD29>200,BD29*'6ล้อ'!$H$208,VLOOKUP(BD29,'6ล้อ'!$B$6:$D$205,2)) -> 78.67 | BE31: =IF(BE29>200,BE29*'6ล้อ'!$H$208,VLOOKUP(BE29,'6ล้อ'!$B$6:$D$205,2)) -> 78.67 | BF31: =IF(BF29>200,BF29*'6ล้อ'!$H$208,VLOOKUP(BF29,'6ล้อ'!$B$6:$D$205,2)) -> 78.67 | BG31: =IF(BG29>200,BG29*'6ล้อ'!$H$208,VLOOKUP(BG29,'6ล้อ'!$B$6:$D$205,2)) -> 78.67 | BH31: =IF(BH29>200,BH29*'6ล้อ'!$H$208,VLOOKUP(BH29,'6ล้อ'!$B$6:$D$205,2))/1000*1.316 -> 0.10352972 | BI31: =IF(BI29>200,BI29*'6ล้อ'!$H$208,VLOOKUP(BI29,'6ล้อ'!$B$6:$D$205,2))/1000 -> 0.07867 | BJ31: =IF(BJ29>200,BJ29*'6ล้อ'!$H$208,VLOOKUP(BJ29,'6ล้อ'!$B$6:$D$205,2)) -> 78.67 | BK31: =IF(BK29>200,BK29*'6ล้อ'!$H$208,VLOOKUP(BK29,'6ล้อ'!$B$6:$D$205,2)) -> 1806 | BL31: =IF(BL29>200,BL29*'6ล้อ'!$H$208,VLOOKUP(BL29,'6ล้อ'!$B$6:$D$205,2)) -> 1806 | BM31: =IF(BM29>200,BM29*'6ล้อ'!$H$209,VLOOKUP(BM29,'6ล้อ'!$B$6:$D$205,3)) -> 902.5 | BN31: =IF(BN29>200,BN29*'6ล้อ'!$H$209,VLOOKUP(BN29,'6ล้อ'!$B$6:$D$205,3)) -> 902.5 | BO31: =IF(BO29>200,BO29*'6ล้อ'!$H$209,VLOOKUP(BO29,'6ล้อ'!$B$6:$D$205,3)) -> 902.5 | BP31: =IF(BP29>200,BP29*'6ล้อ'!$H$209,VLOOKUP(BP29,'6ล้อ'!$B$6:$D$205,3)) -> 110.13 | BQ31: =IF(BQ29>200,BQ29*'6ล้อ'!$H$209,VLOOKUP(BQ29,'6ล้อ'!$B$6:$D$205,3)) -> 110.13 | BR31: =IF(BR29>200,BR29*'6ล้อ'!$H$209,VLOOKUP(BR29,'6ล้อ'!$B$6:$D$205,3)) -> 17.18 | BS31: =IF(BS29>200,BS29*'6ล้อ'!$H$209,VLOOKUP(BS29,'6ล้อ'!$B$6:$D$205,3)) -> 17.18 | BT31: =IF(BT29>200,BT29*'6ล้อ'!$H$209,VLOOKUP(BT29,'6ล้อ'!$B$6:$D$205,3)) -> 193.03 | BU31: =IF(BU29>200,BU29*'6ล้อ'!$H$209,VLOOKUP(BU29,'6ล้อ'!$B$6:$D$205,3)) -> 14.8 | BW31: =IF(H75>200,H75*'10ล้อ'!$H$208,VLOOKUP(H75,'10ล้อ'!$B$6:$D$205,2)) -> 60.45
F32: ขนาด 3 - ø 0.60 ม. (= 2 ด้าน) | H32: 1 | I32: แห่ง | K32: ขนาด 3 - ø 1.00 ม. (= 2 ด้าน) | M32: 1 | N32: แห่ง | T32: 4 | U32: 28.5 | V32: 30 | Y32: 4 | Z32: 15 | AQ32: ค่าบรรทุก | AV32: =IF(AV29>200,AV29*'6ล้อ'!$H$209,VLOOKUP(AV29,'6ล้อ'!$B$6:$D$205,3)) -> 110.13 | AW32: บาท/ลบ.ม. | BW32: =IF(H76>200,H76*'10ล้อ'!$H$208,VLOOKUP(H76,'10ล้อ'!$B$6:$D$205,2)) -> 60.45
F33: ขนาด 1 - ø 0.80 ม. (= 2 ด้าน) | H33: 1 | I33: แห่ง | T33: 5 | U33: 29.5 | V33: 30 | AY33: =H50 -> 30 | AZ33: =H51 -> 30 | BA33: =H52 -> 30 | BB33: =H53 -> 30 | BC33: =H54 -> 30 | BD33: =H55 -> 30 | BE33: =H56 -> 30 | BF33: =H57 -> 30 | BG33: =H58 -> 30 | BH33: =H59 -> 30 | BI33: =H60 -> 30 | BJ33: =H61 -> 30 | BK33: =H62 -> 700 | BL33: =H63 -> 700 | BM33: =H64 -> 250 | BN33: =H65 -> 250 | BO33: =H66 -> 250 | BP33: =H67 -> 30 | BQ33: =H68 -> 30 | BR33: =H69 -> 3 | BS33: =H70 -> 3 | BT33: =H71 -> 53 | BU33: =H72 -> 2 | BW33: =IF(H77>200,H77*'10ล้อ'!$H$208,VLOOKUP(H77,'10ล้อ'!$B$6:$D$205,2)) -> 60.45
F34: ขนาด 2 - ø 0.80 ม. (= 2 ด้าน) | H34: 1 | I34: แห่ง | T34: 6 | U34: 30.5 | V34: 30 | AQ34: รถบรรทุก 10 ล้อ(กรณีน้ำหนักไม่เกิน 25 ตัน) | BW34: =IF(H78>200,H78*'10ล้อ'!$H$208,VLOOKUP(H78,'10ล้อ'!$B$6:$D$205,2)) -> 60.45
F35: ขนาด 3 - ø 0.80 ม. (= 2 ด้าน) | H35: 1 | I35: แห่ง | T35: 7 | U35: 31.5 | V35: 0 | AQ35: ค่าบรรทุก | AV35: =IF(AV29>200,AV29*'10ล้อ'!$H$208,VLOOKUP(AV29,'10ล้อ'!$B$6:$D$205,2)) -> 60.45 | AW35: บาท/ตัน | AY35: =IF(AY33>200,AY33*'10ล้อ'!$H$208,VLOOKUP(AY33,'10ล้อ'!$B$6:$D$205,2)) -> 60.45 | AZ35: =IF(AZ33>200,AZ33*'10ล้อ'!$H$208,VLOOKUP(AZ33,'10ล้อ'!$B$6:$D$205,2)) -> 60.45 | BA35: =IF(BA33>200,BA33*'10ล้อ'!$H$208,VLOOKUP(BA33,'10ล้อ'!$B$6:$D$205,2)) -> 60.45 | BB35: =IF(BB33>200,BB33*'10ล้อ'!$H$208,VLOOKUP(BB33,'10ล้อ'!$B$6:$D$205,2)) -> 60.45 | BC35: =IF(BC33>200,BC33*'10ล้อ'!$H$208,VLOOKUP(BC33,'10ล้อ'!$B$6:$D$205,2)) -> 60.45 | BD35: =IF(BD33>200,BD33*'10ล้อ'!$H$208,VLOOKUP(BD33,'10ล้อ'!$B$6:$D$205,2)) -> 60.45 | BE35: =IF(BE33>200,BE33*'10ล้อ'!$H$208,VLOOKUP(BE33,'10ล้อ'!$B$6:$D$205,2)) -> 60.45 | BF35: =IF(BF33>200,BF33*'10ล้อ'!$H$208,VLOOKUP(BF33,'10ล้อ'!$B$6:$D$205,2)) -> 60.45 | BG35: =IF(BG33>200,BG33*'10ล้อ'!$H$208,VLOOKUP(BG33,'10ล้อ'!$B$6:$D$205,2)) -> 60.45 | BH35: =IF(BH33>200,BH33*'10ล้อ'!$H$208,VLOOKUP(BH33,'10ล้อ'!$B$6:$D$205,2))/1000*1.316 -> 0.0795522 | BI35: =IF(BI33>200,BI33*'10ล้อ'!$H$208,VLOOKUP(BI33,'10ล้อ'!$B$6:$D$205,2))/1000 -> 0.06045 | BJ35: =IF(BJ33>200,BJ33*'10ล้อ'!$H$208,VLOOKUP(BJ33,'10ล้อ'!$B$6:$D$205,2)) -> 60.45 | BK35: =IF(BK33>200,BK33*'10ล้อ'!$H$208,VLOOKUP(BK33,'10ล้อ'!$B$6:$D$205,2)) -> 1400 | BL35: =IF(BL33>200,BL33*'10ล้อ'!$H$208,VLOOKUP(BL33,'10ล้อ'!$B$6:$D$205,2)) -> 1400 | BM35: =IF(BM33>200,BM33*'10ล้อ'!$H$209,VLOOKUP(BM33,'10ล้อ'!$B$6:$D$205,3)) -> 697.5 | BN35: =IF(BN33>200,BN33*'10ล้อ'!$H$209,VLOOKUP(BN33,'10ล้อ'!$B$6:$D$205,3)) -> 697.5 | BO35: =IF(BO33>200,BO33*'10ล้อ'!$H$209,VLOOKUP(BO33,'10ล้อ'!$B$6:$D$205,3)) -> 697.5 | BP35: =IF(BP33>200,BP33*'10ล้อ'!$H$209,VLOOKUP(BP33,'10ล้อ'!$B$6:$D$205,3)) -> 84.64 | BQ35: =IF(BQ33>200,BQ33*'10ล้อ'!$H$209,VLOOKUP(BQ33,'10ล้อ'!$B$6:$D$205,3)) -> 84.64 | BR35: =IF(BR33>200,BR33*'10ล้อ'!$H$209,VLOOKUP(BR33,'10ล้อ'!$B$6:$D$205,3)) -> 11.89 | BS35: =IF(BS33>200,BS33*'10ล้อ'!$H$209,VLOOKUP(BS33,'10ล้อ'!$B$6:$D$205,3)) -> 11.89 | BT35: =IF(BT33>200,BT33*'10ล้อ'!$H$209,VLOOKUP(BT33,'10ล้อ'!$B$6:$D$205,3)) -> 148.73 | BU35: =IF(BU33>200,BU33*'10ล้อ'!$H$209,VLOOKUP(BU33,'10ล้อ'!$B$6:$D$205,3)) -> 9.65 | BW35: =IF(H79>200,H79*'10ล้อ'!$H$208,VLOOKUP(H79,'10ล้อ'!$B$6:$D$205,2)) -> 60.45
T36: 8 | U36: 32.5 | V36: =IF($W$29=T36,U36-0.5,V37) -> 0 | X36: 1 | AQ36: ค่าบรรทุก | AV36: =IF(AV29>200,AV29*'10ล้อ'!$H$209,VLOOKUP(AV29,'10ล้อ'!$B$6:$D$205,3)) -> 84.64 | AW36: บาท/ลบ.ม.
F37: งานบ่อพัก คสล. | T37: 9 | U37: 33.5 | V37: =IF($W$29=T37,U37-0.5,V38) -> 0 | AY37: =H50 -> 30 | AZ37: =H51 -> 30 | BA37: =H52 -> 30 | BB37: =H53 -> 30 | BC37: =H54 -> 30 | BD37: =H55 -> 30 | BE37: =H56 -> 30 | BF37: =H57 -> 30 | BG37: =H58 -> 30 | BH37: =H59 -> 30 | BI37: =H60 -> 30 | BJ37: =H61 -> 30 | BK37: =H62 -> 700 | BL37: =H63 -> 700 | BM37: =H64 -> 250 | BN37: =H65 -> 250 | BO37: =H66 -> 250 | BP37: =H67 -> 30 | BQ37: =H68 -> 30 | BR37: =H69 -> 3 | BS37: =H70 -> 3 | BT37: =H71 -> 53 | BU37: =H72 -> 2
F38: บ่อพัก สำหรับท่อกลม ø 0.30 ม. | H38: 1 | I38: แห่ง | K38: บ่อพัก สำหรับท่อกลม ø 0.40 ม. | M38: 1 | N38: แห่ง | T38: 10 | U38: 34.5 | V38: =IF($W$29=T38,U38-0.5,V39) -> 0 | AQ38: รถบรรทุก 10 ล้อและรถลากพ่วง(กรณีน้ำหนักไม่เกิน 47 ตัน)
K39: บ่อพัก สำหรับท่อกลม ø 0.60 ม. | M39: 1 | N39: แห่ง | T39: 11 | U39: 35.5 | V39: 0 | AQ39: ค่าบรรทุก | AV39: =IF(AV29>200,AV29*'10ล้อ+พ่วง'!$H$208,VLOOKUP(AV29,'10ล้อ+พ่วง'!$B$6:$D$205,2)) -> 39.47 | AW39: บาท/ตัน | AY39: =IF(AY37>200,AY37*'10ล้อ+พ่วง'!$H$208,VLOOKUP(AY37,'10ล้อ+พ่วง'!$B$6:$D$205,2)) -> 39.47 | AZ39: =IF(AZ37>200,AZ37*'10ล้อ+พ่วง'!$H$208,VLOOKUP(AZ37,'10ล้อ+พ่วง'!$B$6:$D$205,2)) -> 39.47 | BA39: =IF(BA37>200,BA37*'10ล้อ+พ่วง'!$H$208,VLOOKUP(BA37,'10ล้อ+พ่วง'!$B$6:$D$205,2)) -> 39.47 | BB39: =IF(BB37>200,BB37*'10ล้อ+พ่วง'!$H$208,VLOOKUP(BB37,'10ล้อ+พ่วง'!$B$6:$D$205,2)) -> 39.47 | BC39: =IF(BC37>200,BC37*'10ล้อ+พ่วง'!$H$208,VLOOKUP(BC37,'10ล้อ+พ่วง'!$B$6:$D$205,2)) -> 39.47 | BD39: =IF(BD37>200,BD37*'10ล้อ+พ่วง'!$H$208,VLOOKUP(BD37,'10ล้อ+พ่วง'!$B$6:$D$205,2)) -> 39.47 | BE39: =IF(BE37>200,BE37*'10ล้อ+พ่วง'!$H$208,VLOOKUP(BE37,'10ล้อ+พ่วง'!$B$6:$D$205,2)) -> 39.47 | BF39: =IF(BF37>200,BF37*'10ล้อ+พ่วง'!$H$208,VLOOKUP(BF37,'10ล้อ+พ่วง'!$B$6:$D$205,2)) -> 39.47 | BG39: =IF(BG37>200,BG37*'10ล้อ+พ่วง'!$H$208,VLOOKUP(BG37,'10ล้อ+พ่วง'!$B$6:$D$205,2)) -> 39.47 | BH39: =IF(BH37>200,BH37*'10ล้อ+พ่วง'!$H$208,VLOOKUP(BH37,'10ล้อ+พ่วง'!$B$6:$D$205,2))/1000*1.316 -> 0.05194252 | BI39: =IF(BI37>200,BI37*'10ล้อ+พ่วง'!$H$208,VLOOKUP(BI37,'10ล้อ+พ่วง'!$B$6:$D$205,2))/1000 -> 0.03947 | BJ39: =IF(BJ37>200,BJ37*'10ล้อ+พ่วง'!$H$208,VLOOKUP(BJ37,'10ล้อ+พ่วง'!$B$6:$D$205,2)) -> 39.47 | BK39: =IF(BK37>200,BK37*'10ล้อ+พ่วง'!$H$208,VLOOKUP(BK37,'10ล้อ+พ่วง'!$B$6:$D$205,2)) -> 910 | BL39: =IF(BL37>200,BL37*'10ล้อ+พ่วง'!$H$208,VLOOKUP(BL37,'10ล้อ+พ่วง'!$B$6:$D$205,2)) -> 910 | BM39: =IF(BM37>200,BM37*'10ล้อ+พ่วง'!$H$209,VLOOKUP(BM37,'10ล้อ+พ่วง'!$B$6:$D$205,3)) -> 457.5 | BN39: =IF(BN37>200,BN37*'10ล้อ+พ่วง'!$H$209,VLOOKUP(BN37,'10ล้อ+พ่วง'!$B$6:$D$205,3)) -> 457.5 | BO39: =IF(BO37>200,BO37*'10ล้อ+พ่วง'!$H$209,VLOOKUP(BO37,'10ล้อ+พ่วง'!$B$6:$D$205,3)) -> 457.5 | BP39: =IF(BP37>200,BP37*'10ล้อ+พ่วง'!$H$209,VLOOKUP(BP37,'10ล้อ+พ่วง'!$B$6:$D$205,3)) -> 55.26 | BQ39: =IF(BQ37>200,BQ37*'10ล้อ+พ่วง'!$H$209,VLOOKUP(BQ37,'10ล้อ+พ่วง'!$B$6:$D$205,3)) -> 55.26 | BR39: =IF(BR37>200,BR37*'10ล้อ+พ่วง'!$H$209,VLOOKUP(BR37,'10ล้อ+พ่วง'!$B$6:$D$205,3)) -> 7.75 | BS39: =IF(BS37>200,BS37*'10ล้อ+พ่วง'!$H$209,VLOOKUP(BS37,'10ล้อ+พ่วง'!$B$6:$D$205,3)) -> 7.75 | BT39: =IF(BT37>200,BT37*'10ล้อ+พ่วง'!$H$209,VLOOKUP(BT37,'10ล้อ+พ่วง'!$B$6:$D$205,3)) -> 97.2 | BU39: =IF(BU37>200,BU37*'10ล้อ+พ่วง'!$H$209,VLOOKUP(BU37,'10ล้อ+พ่วง'!$B$6:$D$205,3)) -> 6.07
F40: งานท่อเหลี่ยม คสล. New R.C. Box Culverts | T40: 12 | U40: 36.5 | V40: 0 | X40: 1 | Y40: ขนาดเบา | Z40: =IF(AA40=1,Y40,IF(AA40=2,Y41,IF(AA40=3,Y42,IF(AA40=4,Y43)))) -> ขนาดเบา | AA40: 1 | AB40: =IF(AA40=1,'ค่าดำเนินการ+ค่าเสื่อมราคา'!G7,IF(AA40=2,'ค่าดำเนินการ+ค่าเสื่อมราคา'!G8,IF(AA40=3,'ค่าดำเนินการ+ค่าเสื่อมราคา'!G9,IF(AA40=4," ")))) -> 1.29 | AC40: 1 | AD40: รถบรรทุก 6 ล้อ | AE40: 2 | AF40: =IF(AE40=1,AD40,IF(AE40=2,AD41,IF(AE40=3,AD42,))) -> รถบรรทุก 10 ล้อ | AQ40: ค่าบรรทุก | AV40: =IF(AV29>200,AV29*'10ล้อ+พ่วง'!$H$209,VLOOKUP(AV29,'10ล้อ+พ่วง'!$B$6:$D$205,3)) -> 55.26 | AW40: บาท/ลบ.ม.
F41: กม. | H41: 100 | J41: ขนาด | M41: =สรุปตารางกำแพงbox!A3 -> 1-1.80x1.80 | T41: 13 | U41: 37.5 | V41: 0 | X41: 2 | Y41: ขนาดกลาง | AA41: 1 | AC41: 2 | AD41: รถบรรทุก 10 ล้อ
F42: ความยาว | H42: 10 | J42: ม. | T42: 14 | U42: 38.5 | V42: 0 | X42: 3 | Y42: ขนาดหนัก | AA42: 1 | AC42: 3 | AD42: รถบรรทุก 10 ล้อ + ลากพ่วง
F43: ราคาต้นทุนต่อแห่ง | H43: =ค่างานต้นทุนต่อหน่วย!$P$554 -> 213810.96 | J43: บาท(ไม่รวม Factor F ) | T43: 15 | U43: 39.5 | V43: 0 | X43: 4 | Y43: ไม่มี | AA43: 1
F44: จำนวน | H44: 1 | J44: แห่ง | T44: 16 | U44: 40.5 | V44: 0 | W44: =IF(AA44=1,Y44,IF(AA44=2,Y45,IF(AA44=3,Y46,IF(AA44=4,Y47,IF(AA44=5,Y48,IF(AA44=6,Y49,IF(AA44=7,Y50,IF(AA44=8,Y51,IF(AA44=9,Y52,IF(AA44=10,Y53,IF(AA44=11,Y54,IF(AA44=12,Y55,IF(AA44=13,Y56,IF(AA44=14,Y57,IF(AA44=15,Y58,IF(AA44=16,Y59,IF(AA44=17,Y60,IF(AA44=18,Y61,IF(AA44=19,Y62,IF(AA44=20,Y63)))))))))))))))))))) -> อื่นๆ | X44: 1 | Y44: อื่นๆ | Z44: =IF(AA44=1,0,IF(AA44>=2,1)) -> 0 | AA44: 1 | AB44: =IF($Z$44=0,"ปกติ","ฝนชุก") -> ปกติ | AC44: 1 | AD44: รถบรรทุก 6 ล้อ | AE44: 2 | AF44: =IF(AE44=1,AD44,IF(AE44=2,AD45,IF(AE44=3,AD46,))) -> รถบรรทุก 10 ล้อ
T45: 17 | U45: 41.5 | V45: 0 | X45: 2 | Y45: จันทบุรี | AC45: 2 | AD45: รถบรรทุก 10 ล้อ
T46: 18 | U46: 42.5 | V46: 0 | X46: 3 | Y46: ชุมพร | AC46: 3 | AD46: รถบรรทุก 10 ล้อ + ลากพ่วง
E47: ป้อนข้อมูลวัสดุ และค่าดำเนินการ | T47: 19 | U47: 43.5 | V47: 0 | X47: 4 | Y47: เชียงราย | AA47: 1
E48: ชนิดของวัสดุ | F48: หน่วย | G48: ค่าวัสดุ | H48: ระยะขนส่ง | I48: ค่าขนส่ง | J48: ค่าขนขึ้นลง | K48: ค่าตัด / ดัดเหล็ก | L48: รวม | M48: ขนส่งด้วยรถบรรทุก | O48: หมายเหตุ | T48: 20 | U48: 44.5 | V48: 0 | X48: 5 | Y48: ตรัง | AC48: 1 | AD48: รถบรรทุก 6 ล้อ | AE48: 3 | AF48: =IF(AE48=1,AD48,IF(AE48=2,AD49,IF(AE48=3,AD50,))) -> รถบรรทุก 10 ล้อ + ลากพ่วง
G49: (บาท) | H49: (กม.) | I49: (บาท) | J49: (บาท) | K49: (บาท) | L49: (บาท) | T49: 21 | U49: 45.5 | V49: 0 | X49: 6 | Y49: นครพนม | AC49: 2 | AD49: รถบรรทุก 10 ล้อ
E50: เหล็ก RB ø 6 มม. | F50: บ./ตัน | G50: 25865.11 | H50: 30 | I50: =IF($AE$40=1,AY31,IF($AE$40=2,AY35,IF($AE$40=3,AY39))) -> 60.45 | J50: 80 | K50: 1980 | L50: =ROUND((G50+I50+J50+K50),2) -> 27985.56 | O50: จาก แหล่ง อ.เมือง จ.สกลนคร | T50: 22 | U50: 46.5 | V50: 0 | X50: 7 | Y50: นครศรีธรรมราช | AC50: 3 | AD50: รถบรรทุก 10 ล้อ + ลากพ่วง
E51: เหล็ก RB ø 9 มม. | F51: บ./ตัน | G51: 26660.56 | H51: 30 | I51: =IF($AE$40=1,AZ31,IF($AE$40=2,AZ35,IF($AE$40=3,AZ39))) -> 60.45 | J51: 80 | K51: 1980 | L51: =ROUND((G51+I51+J51+K51),2) -> 28781.01 | M51: =AF40 -> รถบรรทุก 10 ล้อ | O51: จาก แหล่ง อ.เมือง จ.สกลนคร | T51: 23 | U51: 47.5 | V51: 0 | X51: 8 | Y51: ปราจีนบุรี
E52: เหล็ก RB ø 12 มม. | F52: บ./ตัน | G52: 26255.39 | H52: 30 | I52: =IF($AE$40=1,BA31,IF($AE$40=2,BA35,IF($AE$40=3,BA39))) -> 60.45 | J52: 80 | K52: 1980 | L52: =ROUND((G52+I52+J52+K52),2) -> 28375.84 | M52: =$M$51 -> รถบรรทุก 10 ล้อ | O52: จาก แหล่ง อ.เมือง จ.สกลนคร | T52: 24 | U52: 48.5 | V52: 0 | X52: 9 | Y52: ปัตตานี | AC52: 1 | AD52: รถบรรทุก 6 ล้อ | AE52: 3 | AF52: =IF(AE52=1,AD52,IF(AE52=2,AD53,IF(AE52=3,AD54,))) -> รถบรรทุก 10 ล้อ + ลากพ่วง
E53: เหล็ก RB ø 15 มม. | F53: บ./ตัน | G53: 25854.21 | H53: 30 | I53: =IF($AE$40=1,BB31,IF($AE$40=2,BB35,IF($AE$40=3,BB39))) -> 60.45 | J53: 80 | K53: 1980 | L53: 27974.66 | M53: รถบรรทุก 10 ล้อ | O53: จาก แหล่ง อ.เมือง จ.สกลนคร | T53: 25 | U53: 49.5 | V53: 0 | X53: 10 | Y53: พัทลุง | AC53: 2 | AD53: รถบรรทุก 10 ล้อ
E54: เหล็ก RB ø 19 มม. | F54: บ./ตัน | G54: 25906.55 | H54: 30 | I54: =IF($AE$40=1,BC31,IF($AE$40=2,BC35,IF($AE$40=3,BC39))) -> 60.45 | J54: 80 | K54: 1980 | L54: 28027 | M54: รถบรรทุก 10 ล้อ | O54: จาก แหล่ง อ.เมือง จ.สกลนคร | T54: 26 | U54: 50.5 | V54: 0 | X54: 11 | Y54: สงขลา | AC54: 3 | AD54: รถบรรทุก 10 ล้อ + ลากพ่วง
E55: เหล็ก DB ø 12 มม. | F55: บ./ตัน | G55: 25167.97 | H55: 30 | I55: =IF($AE$40=1,BD31,IF($AE$40=2,BD35,IF($AE$40=3,BD39))) -> 60.45 | J55: 80 | K55: 1980 | L55: 27288.42 | M55: รถบรรทุก 10 ล้อ | O55: จาก แหล่ง อ.เมือง จ.สกลนคร | X55: 12 | Y55: สตูล
E56: เหล็ก DB ø 16 มม. | F56: บ./ตัน | G56: 24230.47 | H56: 30 | I56: =IF($AE$40=1,BE31,IF($AE$40=2,BE35,IF($AE$40=3,BE39))) -> 60.45 | J56: 80 | K56: 1980 | L56: 26350.92 | M56: รถบรรทุก 10 ล้อ | O56: จาก แหล่ง อ.เมือง จ.สกลนคร | X56: 13 | Y56: สุราษฎร์ธานี | AC56: 1 | AD56: รถบรรทุก 6 ล้อ | AE56: 2 | AF56: =IF(AE56=1,AD56,IF(AE56=2,AD57,IF(AE56=3,AD58,))) -> รถบรรทุก 10 ล้อ
E57: เหล็ก DB ø 20 มม. | F57: บ./ตัน | G57: 24967.98 | H57: 30 | I57: =IF($AE$40=1,BF31,IF($AE$40=2,BF35,IF($AE$40=3,BF39))) -> 60.45 | J57: 80 | K57: 1980 | L57: 27088.43 | M57: รถบรรทุก 10 ล้อ | O57: จาก แหล่ง อ.เมือง จ.สกลนคร | X57: 14 | Y57: หนองคาย | AC57: 2 | AD57: รถบรรทุก 10 ล้อ
E58: เหล็ก DB ø 25 มม. | F58: บ./ตัน | G58: 25090.03 | H58: 30 | I58: =IF($AE$40=1,BG31,IF($AE$40=2,BG35,IF($AE$40=3,BG39))) -> 60.45 | J58: 80 | K58: 1980 | L58: 27210.48 | M58: รถบรรทุก 10 ล้อ | O58: จาก แหล่ง อ.เมือง จ.สกลนคร | X58: 15 | Y58: ตราด | AC58: 3 | AD58: รถบรรทุก 10 ล้อ + ลากพ่วง
E59: Wire Mesh ø 4 มม. @ 10 x 30 cm. | F59: บ./ตร.ม. | G59: 35 | H59: 30 | I59: =IF($AE$40=1,BH31,IF($AE$40=2,BH35,IF($AE$40=3,BH39))) -> 0.0795522 | J59: =(J50/1000)*1.31 -> 0.1048 | L59: 35.18 | M59: รถบรรทุก 10 ล้อ | O59: จาก แหล่ง อ.เมือง จ.สกลนคร | X59: 16 | Y59: นราธิวาส
E60: ลวดผูกเหล็ก | F60: บ./กก. | G60: 33.8 | H60: 30 | I60: =IF($AE$40=1,BI31,IF($AE$40=2,BI35,IF($AE$40=3,BI39))) -> 0.06045 | J60: =J50/1000 -> 0.08 | L60: 33.94 | M60: รถบรรทุก 10 ล้อ | O60: จาก แหล่ง อ.เมือง จ.สกลนคร | X60: 17 | Y60: พังงา | AC60: 1 | AD60: รถบรรทุก 6 ล้อ | AE60: 2 | AF60: =IF(AE60=1,AD60,IF(AE60=2,AD61,IF(AE60=3,AD62,))) -> รถบรรทุก 10 ล้อ
E61: ปูนซีเมนต์ประเภท 1 | F61: บ./ตัน | G61: 2093.46 | H61: 30 | I61: =IF($AE$44=1,BJ31,IF($AE$44=2,BJ35,IF($AE$44=3,BJ39))) -> 60.45 | J61: 50 | L61: 2203.91 | O61: จาก แหล่ง อ.เมือง จ.สกลนคร | X61: 18 | Y61: ภูเก็ต | AC61: 2 | AD61: รถบรรทุก 10 ล้อ
E62: ยาง Asphalt Cement | F62: บ./ตัน | G62: 29883.33 | H62: 700 | I62: =IF($AE$48=1,BK31,IF($AE$48=2,BK35,IF($AE$48=3,BK39))) -> 910 | J62: 35 | L62: 30828.33 | O62: จาก แหล่ง อ.ศรีราชา จ.ชลบุรี | X62: 19 | Y62: ยะลา | AC62: 3 | AD62: รถบรรทุก 10 ล้อ + ลากพ่วง
E63: ยาง Cut-Back Asphalt | F63: บ./ตัน | G63: 36675 | H63: 700 | I63: =IF($AE$48=1,BL31,IF($AE$48=2,BL35,IF($AE$48=3,BL39))) -> 910 | J63: 25 | L63: 37610 | M63: =AF48 -> รถบรรทุก 10 ล้อ + ลากพ่วง | O63: ทางหลวงหมายเลข 2 กม.230+800 | X63: 20 | Y63: ระนอง
E64: หิน Single Size | F64: บ./ลบ.ม. | H64: 250 | I64: =IF($AE$52=1,BM31,IF($AE$52=2,BM35,IF($AE$52=3,BM39))) -> 457.5 | L64: 457.5 | O64: จาก แหล่ง อ.นากลาง จ.หนองบัวลำภู
E65: หินผสมแอสฟัลท์คอนกรีต | F65: บ./ลบ.ม. | G65: 220.56 | H65: 250 | I65: =IF($AE$52=1,BN31,IF($AE$52=2,BN35,IF($AE$52=3,BN39))) -> 457.5 | L65: 678.06 | M65: =AF52 -> รถบรรทุก 10 ล้อ + ลากพ่วง | O65: จาก แหล่ง อ.นากลาง จ.หนองบัวลำภู
E66: หินคลุก | F66: บ./ลบ.ม. | G66: 120.56 | H66: 250 | I66: =IF($AE$52=1,BO31,IF($AE$52=2,BO35,IF($AE$52=3,BO39))) -> 457.5 | L66: 578.06 | M66: =AF52 -> รถบรรทุก 10 ล้อ + ลากพ่วง | O66: จาก แหล่ง อ.นากลาง จ.หนองบัวลำภู | V66: 1 | W66: 2
E67: กรวดผสมคอนกรีต | F67: บ./ลบ.ม. | G67: 654.21 | H67: 30 | I67: =IF($AE$56=1,BP31,IF($AE$56=2,BP35,IF($AE$56=3,BP39))) -> 84.64 | L67: 738.85 | O67: จาก แหล่ง อ.เมือง จ.สกลนคร | V67: 2 | Y67: กองช่าง / ส่วนโยธา
E68: ทรายผสมคอนกรีต | F68: บ./ลบ.ม. | G68: 420.56 | H68: 30 | I68: =IF($AE$56=1,BQ31,IF($AE$56=2,BQ35,IF($AE$56=3,BQ39))) -> 84.64 | L68: 505.2 | M68: =AF56 -> รถบรรทุก 10 ล้อ | O68: จาก แหล่ง อ.เมือง จ.สกลนคร | W68: คณะกรรมการกำหนดราคากลาง | Y68: ผู้ประมาณราคา
E69: วัสดุลูกรัง | F69: บ./ลบ.ม. | G69: 9 | H69: 3 | I69: =IF($AE$60=1,BR31,IF($AE$60=2,BR35,IF($AE$60=3,BR39))) -> 11.89 | L69: 20.89 | O69: จาก แหล่ง ต.หนองลาด อ.เมือง | W69: ตามคำสั่งที่ | Y69: ตำแหน่ง
E70: วัสดุคัดเลือก " ก " | F70: บ./ลบ.ม. | G70: 6 | H70: 3 | I70: =IF($AE$60=1,BS31,IF($AE$60=2,BS35,IF($AE$60=3,BS39))) -> 11.89 | L70: 17.89 | M70: =AF60 -> รถบรรทุก 10 ล้อ | O70: จาก แหล่ง ต.หนองลาด อ.เมือง | W70: ประธานกรรมการ | Y70: ผู้ตรวจ
E71: ทรายถมคันทาง | F71: บ./ลบ.ม. | G71: 80 | H71: 53 | I71: =IF($AE$60=1,BT31,IF($AE$60=2,BT35,IF($AE$60=3,BT39))) -> 148.73 | L71: 228.73 | M71: =AF60 -> รถบรรทุก 10 ล้อ | O71: จากแหล่ง ต.ตองโขบ อ.โคกศรีสุพรรณ | W71: ตำแหน่ง | Y71: ตำแหน่ง
E72: ดินถมคันทาง | F72: บ./ลบ.ม. | G72: =L15 -> 3 | H72: 2 | I72: =IF($AE$60=1,BU31,IF($AE$60=2,BU35,IF($AE$60=3,BU39))) -> 9.65 | L72: 12.65 | M72: =AF60 -> รถบรรทุก 10 ล้อ | O72: จาก แหล่ง ต.หนองลาด อ.เมือง | W72: กรรมการ | Y72: ผู้เห็นชอบ
E73: ท่อกลมขนาด ø 0.30 ม. ชั้น 3 | F73: ท่อน | G73: 340.19 | H73: 30 | I73: =((BW29*13)+300)/48 -> 22.621875 | L73: 362.81 | M73: รถบรรทุก 10 ล้อ | O73: จาก แหล่ง อ.เมือง จ.สกลนคร | W73: ตำแหน่ง | Y73: ตำแหน่ง
E74: ท่อกลมขนาด ø 0.40 ม. ชั้น 3 | F74: ท่อน | G74: 387.85 | H74: 30 | I74: =((BW30*13)+300)/32 -> 33.9328125 | L74: 421.78 | M74: รถบรรทุก 10 ล้อ | O74: จาก แหล่ง อ.เมือง จ.สกลนคร | W74: กรรมการ | Y74: ผู้อนุมัติ
E75: ท่อกลมขนาด ø 0.60 ม. ชั้น 3 | F75: ท่อน | G75: 485.98 | H75: 30 | I75: =((BW31*13)+300)/24 -> 45.24375 | L75: 531.22 | M75: รถบรรทุก 10 ล้อ | O75: จาก แหล่ง อ.เมือง จ.สกลนคร | W75: ตำแหน่ง | Y75: ตำแหน่ง
E76: ท่อกลมขนาด ø 0.80 ม. ชั้น 3 | F76: ท่อน | G76: 1168.22 | H76: 30 | I76: =((BW32*13)+300)/18 -> 60.325 | L76: 1228.55 | M76: รถบรรทุก 10 ล้อ | O76: จาก แหล่ง อ.เมือง จ.สกลนคร
E77: ท่อกลมขนาด ø 1.00 ม. ชั้น 3 | F77: ท่อน | G77: 1635.51 | H77: 30 | I77: =((BW33*13)+300)/10 -> 108.585 | L77: 1744.1 | M77: รถบรรทุก 10 ล้อ | O77: จาก แหล่ง อ.เมือง จ.สกลนคร
E78: ท่อกลมขนาด ø 1.20 ม. ชั้น 3 | F78: ท่อน | G78: 2289.72 | H78: 30 | I78: =((BW34*13)+300)/8 -> 135.73125 | L78: 2425.45 | M78: รถบรรทุก 10 ล้อ | O78: จาก แหล่ง อ.เมือง จ.สกลนคร
E79: ท่อกลมขนาด ø 1.50 ม. ชั้น 3 | F79: ท่อน | G79: 4439.25 | H79: 30 | I79: =((BW35*13)+300)/5 -> 217.17 | L79: 4656.42 | M79: รถบรรทุก 10 ล้อ | O79: จาก แหล่ง อ.เมือง จ.สกลนคร
E80: ไม้กระบาก 1" x 8" | F80: ลบ.ฟ. | G80: 485.98 | L80: 485.98 | O80: จาก แหล่ง อ.เมือง จ.สกลนคร
E81: ไม้อัดยาง หนา 4 มม. | F81: แผ่น | G81: 278.97 | L81: 278.97 | O81: จาก แหล่ง อ.เมือง จ.สกลนคร
E82: ไม้คร่าว 1 1"/2 x 3" | F82: ลบ.ฟ. | G82: 532.71 | L82: 532.71 | O82: จาก แหล่ง อ.เมือง จ.สกลนคร
E83: ไม้ค้ำยัน ø 3" x 3.00 ม. | F83: ต้น | G83: 30 | L83: 30 | O83: จาก แหล่ง อ.เมือง จ.สกลนคร
E84: ไม้ค้ำยัน ø 4" x 3.00 ม. | F84: ต้น | G84: 35 | L84: 35 | O84: จาก แหล่ง อ.เมือง จ.สกลนคร
E85: เหล็กฉาก L 50 x 50 x 3 มม. | F85: ท่อน | G85: 425 | L85: 425 | O85: จาก แหล่ง อ.เมือง จ.สกลนคร
E86: แผ่นเหล็ก 4 มม. x 5 ซม. | F86: ท่อน | G86: 275 | L86: 275 | O86: จาก แหล่ง อ.เมือง จ.สกลนคร
E87: แผ่นเหล็ก 6 มม. x 5 ซม. | F87: ท่อน | G87: 410 | L87: 410 | O87: จาก แหล่ง อ.เมือง จ.สกลนคร
E88: ตะปู | F88: กก. | G88: 40.19 | L88: 40.19 | O88: จาก แหล่ง อ.เมือง จ.สกลนคร
F90: ป้อนข้อมูลผู้ประมาณราคา | X90: ขยาย | Z90: หด | AB90: ตามยาว
V91: =IF(T23=" ",0,T23) -> 6 | W91: =Y23 -> 1000 | X91: =ROUNDDOWN(W91/30,) -> 33 | Y91: =ROUNDDOWN(W91/10,) -> 100 | Z91: =Y91-X91 -> 67 | AB91: =IF(V91<4,0,W91) -> 1000 | AC91: =AB91 -> 1000
F92: คณะกรรมการกำหนดราคากลาง | H92: =IF($W$66=1,W68,Y67) -> กองช่าง / ส่วนโยธา | V92: =IF(T24=" ",0,T24) -> 4 | W92: =Y24 -> 300 | X92: =ROUNDDOWN(W92/30,) -> 10 | Y92: =ROUNDDOWN(W92/10,) -> 30 | Z92: =Y92-X92 -> 20 | AB92: =IF(V92<4,0,W92) -> 300 | AC92: =AB92 -> 300
H93: ผู้ประมาณราคา | K93: นายศิวกร พงษ์สิทธิศักดิ์ | V93: 0 | W93: =Y25 -> 0 | X93: 0 | Y93: 0 | Z93: 0 | AB93: 0 | AC93: 0
F94: กองช่าง / ส่วนโยธา | H94: ตำแหน่ง | K94: นายช่างโยธา 4 | V94: 0 | W94: =Y26 -> 0 | X94: 0 | Y94: 0 | Z94: 0 | AB94: 0 | AC94: 0
H95: ผู้ตรวจ | K95: นายคมกฤษ เทียมโคกกรวด | X95: =X91*V91 -> 198 | Z95: =Z91*V91 -> 402
H96: ตำแหน่ง | K96: ผู้อำนวยการกองช่าง | X96: =X92*V92 -> 40 | Z96: =Z92*V92 -> 80
H97: ผู้เห็นชอบ | K97: นายประสิทธิ์ สกนธรัตน์ | X97: 0 | Z97: 0
H98: ตำแหน่ง | K98: ปลัดเทศบาล | X98: 0 | Z98: 0
H99: ผู้อนุมัติ | K99: นายสุริยะ แก้ววิรัตน์ | W99: รวม (ม.) | X99: =IF(V8=2,X95+X96+X97+X98," ") ->  | Y99: รวม (ม.) | Z99: =IF(V8=2,Z95+Z96+Z97+Z98," ") ->  | AA99: รวม (ม.) | AC99: =IF(V8=2,AC91+AC92+AC93+AC94," ") -> 
H100: ตำแหน่ง | K100: นายกเทศมนตรีตำบลหนองลาด
F102: สรุปผลการคำนวณ
E103: ผิวจราจร | F103: =W8 -> แอสฟัลต์คอนกรีต | H103: กว้าง | I103: =IF(U25=K103," ",IF(U25=0," ",IF(U25>0,U25))) -> 4 | J103: - | K103: =U24 -> 6 | L103: ม. | M103: ระยะทาง | N103: =$Z$23 -> 1300 | O103: ม.
E104: =IF(Z8=1," ",IF(Z8>=2,"ไหล่ทาง ")) -> ไหล่ทาง | F104: =AB8 ->  | H104: =IF(Z8=1," ",IF(Z8>=2,"กว้างข้างละ")) -> กว้างข้างละ | I104: =IF(H104=" "," ",IF(V25=K104," ",IF(V25=0," ",IF(V25>0,V25)))) -> 0.5 | J104: =IF(I104=" "," ",IF(I104<>0," -")) -> - | K104: =IF(H104=" "," ",V24) -> 1 | L104: =IF(Z8=1," ",IF(Z8>=2," ม.")) -> ม. | M104: =IF(Z8=1," ",IF(Z8>=2,"ระยะทาง")) -> ระยะทาง | N104: =IF(M104=" "," ",$AB$23) -> 1300 | O104: =IF(Z8=1," ",IF(Z8>=2," ม.")) -> ม.
E105: งานผิวทาง | F105: =W8 -> แอสฟัลต์คอนกรีต | I105: =IF(V8>2,'สรุปโครงสร้างทาง ช่วง 1'!AQ13,'สรุปโครงสร้างทาง ช่วง 1'!AC13) -> 7200 | J105: =IF(V8<=2," ตร.ม.",IF(V8>2," ลบ.ม.")) -> ตร.ม. | K105: =AA4 -> งานพื้นทางหินคลุก | N105: =IF(K105=" "," ",IF(V8=2,'สรุปโครงสร้างทาง ช่วง 1'!AK13,'สรุปโครงสร้างทาง ช่วง 1'!AA13)) -> 1978 | O105: =IF(V8>2," ",IF(Z4=1," ",IF(Z4>=2," ลบ.ม."))) -> ลบ.ม.
E106: =IF(V8>2," ",IF(Z8=1," ",IF(Z8>=2,"งานไหล่ทาง "))) -> งานไหล่ทาง | F106: =AB8 ->  | I106: =IF(V8>2," ",IF(F106=" ",0,IF(Z8=2,'สรุปโครงสร้างทาง ช่วง 1'!AM13,'สรุปโครงสร้างทาง ช่วง 1'!AD13))) -> 0 | J106: =IF(V8>2," ",IF(Z8=1," ",IF(Z8=2," ลบ.ม.",IF(Z8>2," ตร.ม.")))) -> ลบ.ม. | K106: =W4 -> งานรองพื้นทางดินซีเมนต์ | N106: =IF(K106=" "," ",'สรุปโครงสร้างทาง ช่วง 1'!V13) -> 2134 | O106: =IF(V8>2," ",IF(V4=1," ",IF(V4>=2," ลบ.ม."))) -> ลบ.ม.
F107: =IF(V8=1,"งานลาดแอสฟัลต์ไพร์มโค้ต (Prime Coat)",IF(V8>=2," ")) -> งานลาดแอสฟัลต์ไพร์มโค้ต (Prime Coat) | I107: =IF(F107=" "," ",$I$105+$I$106) -> 7200 | J107: =IF(V8=1," ตร.ม.",IF(V8>=2," ")) -> ตร.ม. | K107: =AF4 -> งานวัสดุคัดเลือกเป็นลูกรัง | N107: =IF(K107=" "," ",'สรุปโครงสร้างทาง ช่วง 1'!U13) -> 2290 | O107: =IF(V8>2," ",IF(AE4=1," ",IF(AE4=2," ลบ.ม."))) -> ลบ.ม.
F108: =IF(V8=1,"งานลาดแอสฟัลต์แทคโค้ต (Tack Coat)",IF(V8>=2," ")) -> งานลาดแอสฟัลต์แทคโค้ต (Tack Coat) | I108: =IF(F108=" "," ",$I$105+$I$106) -> 7200 | J108: =IF(V8=1," ตร.ม.",IF(V8>=2," ")) -> ตร.ม. | K108: =IF(V14=1,"งานดินถมคันทาง"," ") -> งานดินถมคันทาง | N108: =IF(K108=" "," ",'ดินตัด , ดินถม+ถางป่า ช่วง 1'!G291) -> 0 | O108: =IF(N108=" "," "," ลบ.ม.") -> ลบ.ม.
F109: =IF(AE8=1," ",IF(V8=1,"งานตีเส้นจราจร ( สีเหลือง )",IF(V8=2,"งานตีเส้นจราจร ( สีเหลือง )"," "))) -> งานตีเส้นจราจร ( สีเหลือง ) | H109: =IF(V8=1," ",IF(V8>2," ",IF(AE8=3,"(เฉพาะ Center Line)"," "))) ->  | I109: =IF(N103=" "," ",IF(F109=" "," ",V18)) -> 52 | J109: =IF(I109=" "," ",IF(AE8=1," ",IF(V8=1," ตร.ม.",IF(V8=2," ตร.ม.")))) -> ตร.ม. | K109: =IF(V14=1,"งานดินตัด"," ") -> งานดินตัด | N109: =IF(K109=" "," ",'ดินตัด , ดินถม+ถางป่า ช่วง 1'!F291) -> 0 | O109: =IF(N109=" "," "," ลบ.ม.") -> ลบ.ม.
F110: =IF(AE8=1," ",IF(V8=1,"งานตีเส้นจราจร ( สีขาว )",IF(V8>=2," "))) -> งานตีเส้นจราจร ( สีขาว ) | I110: =IF(N103=" "," ",IF(F110=" "," ",V19)) -> 260 | J110: =IF(I110=" "," ",IF(AE8=1," ",IF(V8=1," ตร.ม.",IF(V8=2," ")))) -> ตร.ม. | K110: =IF(N110=" "," ",AJ4) -> งานปรับเกลี่ยแต่งคันทางเดิม | N110: =IF(V8>2," ",IF(AI4=1," ",IF(V8=2,'สรุปโครงสร้างทาง ช่วง 1'!AO13,IF(Z4=1,'สรุปโครงสร้างทาง ช่วง 1'!AO13,'สรุปโครงสร้างทาง ช่วง 1'!T13)))) -> 10280 | O110: =IF(N110=" "," "," ตร.ม.") -> ตร.ม.
F111: =IF(I111=" "," ","งานรอยต่อเผื่อขยายตามขวาง (Expansion Joint)") ->  | I111: =X99 ->  | J111: =IF(X99=" "," "," ม.") ->  | K111: =IF(N111=" "," "," งานถางป่าและขุดตอ") -> งานถางป่าและขุดตอ | N111: =IF(AA40=4," ",'ดินตัด , ดินถม+ถางป่า ช่วง 1'!I291) -> 0 | O111: =IF(N111=" "," "," ตร.ม.") -> ตร.ม.
F112: =IF(I112= " "," ","งานรอยต่อเผื่อหดตามขวาง (Contraction Joint)") ->  | I112: =Z99 ->  | J112: =IF(Z99=" "," "," ม.") ->  | K112: =IF(H38=0," ","งานบ่อพัก คสล. สำหรับท่อกลม ø 0.30 ม.") -> งานบ่อพัก คสล. สำหรับท่อกลม ø 0.30 ม. | N112: =IF(K112=" "," ",H38) -> 1 | O112: =IF(H38=0," "," แห่ง") -> แห่ง
F113: =IF(I113=" "," ","งานรอยต่อตามยาว (Longitudinal Joint)") ->  | I113: =AC99 ->  | J113: =IF(AC99=" "," "," ม.") ->  | K113: =IF(M38=0," ","งานบ่อพัก คสล. สำหรับท่อกลม ø 0.40 ม.") -> งานบ่อพัก คสล. สำหรับท่อกลม ø 0.40 ม. | N113: =IF(K113=" "," ",M38) -> 1 | O113: =IF(M38=0," "," แห่ง") -> แห่ง
F114: =IF(H24=0," ","งานท่อกลมคอนกรีตเสริมเหล็ก ø 0.30 ม. ชั้น 3") -> งานท่อกลมคอนกรีตเสริมเหล็ก ø 0.30 ม. ชั้น 3 | I114: =IF(F114=" "," ",H24) -> 1 | J114: =IF(H24=0," "," ม.") -> ม. | K114: =IF(M39=0," ","งานบ่อพัก คสล. สำหรับท่อกลม ø 0.60 ม.") -> งานบ่อพัก คสล. สำหรับท่อกลม ø 0.60 ม. | N114: =IF(K114=" "," ",M39) -> 1 | O114: =IF(M39=0," "," แห่ง") -> แห่ง
F115: =IF(H25=0," ","งานท่อกลมคอนกรีตเสริมเหล็ก ø 0.40 ม. ชั้น 3") -> งานท่อกลมคอนกรีตเสริมเหล็ก ø 0.40 ม. ชั้น 3 | I115: =IF(F115=" "," ",H25) -> 1 | J115: =IF(H25=0," "," ม.") -> ม. | K115: =IF(H44=0," ","งานท่อเหลี่ยม คสล. ขนาด") -> งานท่อเหลี่ยม คสล. ขนาด | M115: =IF(H44=0," ",M41) -> 1-1.80x1.80 | N115: =IF(K115=" "," ",H44) -> 1 | O115: =IF(H44=0," "," แห่ง") -> แห่ง
F116: =IF(H26=0," ","งานท่อกลมคอนกรีตเสริมเหล็ก ø 0.60 ม. ชั้น 3") -> งานท่อกลมคอนกรีตเสริมเหล็ก ø 0.60 ม. ชั้น 3 | I116: =IF(F116=" "," ",H26) -> 1 | J116: =IF(H26=0," "," ม.") -> ม.
F117: =IF(H27=0," ","งานท่อกลมคอนกรีตเสริมเหล็ก ø 0.80 ม. ชั้น 3") -> งานท่อกลมคอนกรีตเสริมเหล็ก ø 0.80 ม. ชั้น 3 | I117: =IF(F117=" "," ",H27) -> 1 | J117: =IF(H27=0," "," ม.") -> ม.
F118: =IF(M24=0," ","งานท่อกลมคอนกรีตเสริมเหล็ก ø 1.00 ม. ชั้น 3") -> งานท่อกลมคอนกรีตเสริมเหล็ก ø 1.00 ม. ชั้น 3 | I118: =IF(F118=" "," ",M24) -> 1 | J118: =IF(M24=0," "," ม.") -> ม.
F119: =IF(M25=0," ","งานท่อกลมคอนกรีตเสริมเหล็ก ø 1.20 ม. ชั้น 3") -> งานท่อกลมคอนกรีตเสริมเหล็ก ø 1.20 ม. ชั้น 3 | I119: =IF(F119=" "," ",M25) -> 1 | J119: =IF(M25=0," "," ม.") -> ม.
F120: =IF(M26=0," ","งานท่อกลมคอนกรีตเสริมเหล็ก ø 1.50 ม. ชั้น 3") -> งานท่อกลมคอนกรีตเสริมเหล็ก ø 1.50 ม. ชั้น 3 | I120: =IF(F120=" "," ",M26) -> 1 | J120: =IF(M26=0," "," ม.") -> ม.
F121: =IF(H30=0," ","งานกำแพงปากท่อสำหรับท่อกลมคอนกรีต 1 - ø 0.60 ม.") -> งานกำแพงปากท่อสำหรับท่อกลมคอนกรีต 1 - ø 0.60 ม. | J121: =IF(F121=" "," ",H30) -> 1 | K121: =IF(H30=0," "," แห่ง") -> แห่ง
F122: =IF(H31=0," ","งานกำแพงปากท่อสำหรับท่อกลมคอนกรีต 2 - ø 0.60 ม.") -> งานกำแพงปากท่อสำหรับท่อกลมคอนกรีต 2 - ø 0.60 ม. | J122: 1 | K122: แห่ง
F123: =IF(H32=0," ","งานกำแพงปากท่อสำหรับท่อกลมคอนกรีต 3 - ø 0.60 ม.") -> งานกำแพงปากท่อสำหรับท่อกลมคอนกรีต 3 - ø 0.60 ม. | J123: 1 | K123: แห่ง
F124: =IF(H33=0," ","งานกำแพงปากท่อสำหรับท่อกลมคอนกรีต 1 - ø 0.80 ม.") -> งานกำแพงปากท่อสำหรับท่อกลมคอนกรีต 1 - ø 0.80 ม. | J124: 1 | K124: แห่ง
F125: =IF(H34=0," ","งานกำแพงปากท่อสำหรับท่อกลมคอนกรีต 2 - ø 0.80 ม.") -> งานกำแพงปากท่อสำหรับท่อกลมคอนกรีต 2 - ø 0.80 ม. | J125: 1 | K125: แห่ง
F126: =IF(H35=0," ","งานกำแพงปากท่อสำหรับท่อกลมคอนกรีต 3 - ø 0.80 ม.") -> งานกำแพงปากท่อสำหรับท่อกลมคอนกรีต 3 - ø 0.80 ม. | J126: 1 | K126: แห่ง
F127: =IF(M30=0," ","งานกำแพงปากท่อสำหรับท่อกลมคอนกรีต 1 - ø 1.00 ม.") -> งานกำแพงปากท่อสำหรับท่อกลมคอนกรีต 1 - ø 1.00 ม. | J127: =IF(F127=" "," ",M30) -> 1 | K127: =IF(M30=0," "," แห่ง") -> แห่ง
F128: =IF(M31=0," ","งานกำแพงปากท่อสำหรับท่อกลมคอนกรีต 2 - ø 1.00 ม.") -> งานกำแพงปากท่อสำหรับท่อกลมคอนกรีต 2 - ø 1.00 ม. | J128: 1 | K128: แห่ง
F129: =IF(M32=0," ","งานกำแพงปากท่อสำหรับท่อกลมคอนกรีต 3 - ø 1.00 ม.") -> งานกำแพงปากท่อสำหรับท่อกลมคอนกรีต 3 - ø 1.00 ม. | J129: 1 | K129: แห่ง

Sheet ข้อมูลวัสดุ และค่าดำเนินการ
B1: ป้อนข้อมูลในแถบ สีเหลือง เท่านั้น
B2: แบบสรุปข้อมูลวัสดุ และค่าดำเนินการ
B3: งานก่อสร้างทาง สะพาน และท่อเหลี่ยม
C4: ชื่อโครงการ | G4: =ข้อมูลเริ่มต้น!F3 -> โครงการก่อสร้างถนน คสล. บ้านหนองลาดใต้ หมู่ที่ 8
C5: สถานที่ก่อสร้าง | G5: =ข้อมูลเริ่มต้น!F4 -> บ้านหนองลาดใต้ หมู่ที่ 8 ต.หนองลาด อ.เมือง จ.สกลนคร
C6: หน่วยงานเจ้าของโครงการ | G6: =ข้อมูลเริ่มต้น!F5 -> สำนักงานเทศบาลตำบลหนอลาด
C7: อยู่ในท้องที่จังหวัด | E7: สกลนคร | G7: เขตฝนตก | I7: =ข้อมูลเริ่มต้น!$N$7 -> ปกติ | P7: ราคาน้ำมันโซล่า | R7: =ข้อมูลเริ่มต้น!$V$29+0.5 -> 30.5 | S7: บาท /ลิตร
C8: เงินล่วงหน้าจ่าย | G8: =ข้อมูลเริ่มต้น!$AB$29 -> 0 | I8: % | P8: ดอกเบี้ยเงินกู้ | S8: =ข้อมูลเริ่มต้น!$AJ$29 -> 7 | T8: %
C9: เงินประกันผลงานหัก | G9: =ข้อมูลเริ่มต้น!$AF$29 -> 0 | I9: % | P9: ค่าภาษีมูลค่าเพิ่ม (VAT) | S9: =ข้อมูลเริ่มต้น!$AN$29 -> 7 | T9: %
B11: ลำดับที่ | C11: =ข้อมูลเริ่มต้น!E48 -> ชนิดของวัสดุ | G11: =ข้อมูลเริ่มต้น!F48 -> หน่วย | I11: =ข้อมูลเริ่มต้น!G48 -> ค่าวัสดุ | K11: =ข้อมูลเริ่มต้น!H48 -> ระยะขนส่ง | M11: =ข้อมูลเริ่มต้น!I48 -> ค่าขนส่ง | O11: =ข้อมูลเริ่มต้น!J48 -> ค่าขนขึ้นลง | P11: =ข้อมูลเริ่มต้น!K48 -> ค่าตัด / ดัดเหล็ก | Q11: =ข้อมูลเริ่มต้น!L48 -> รวม | R11: =ข้อมูลเริ่มต้น!M48 -> ขนส่งด้วยรถบรรทุก | T11: =ข้อมูลเริ่มต้น!O48 -> หมายเหตุ
I12: =ข้อมูลเริ่มต้น!G49 -> (บาท) | K12: =ข้อมูลเริ่มต้น!H49 -> (กม.) | M12: =ข้อมูลเริ่มต้น!I49 -> (บาท) | O12: =ข้อมูลเริ่มต้น!J49 -> (บาท) | P12: =ข้อมูลเริ่มต้น!K49 -> (บาท) | Q12: =ข้อมูลเริ่มต้น!L49 -> (บาท)
B13: 1 | C13: =ข้อมูลเริ่มต้น!E50 -> เหล็ก RB ø 6 มม. | G13: =ข้อมูลเริ่มต้น!F50 -> บ./ตัน | I13: =ข้อมูลเริ่มต้น!G50 -> 25865.11 | K13: =ข้อมูลเริ่มต้น!H50 -> 30 | M13: =ข้อมูลเริ่มต้น!I50 -> 60.45 | O13: =ข้อมูลเริ่มต้น!J50 -> 80 | P13: =ข้อมูลเริ่มต้น!K50 -> 1980 | Q13: =ข้อมูลเริ่มต้น!L50 -> 27985.56 | R13: =ข้อมูลเริ่มต้น!$AF$40 -> รถบรรทุก 10 ล้อ | T13: =ข้อมูลเริ่มต้น!O50 -> จาก แหล่ง อ.เมือง จ.สกลนคร
B14: 2 | C14: =ข้อมูลเริ่มต้น!E51 -> เหล็ก RB ø 9 มม. | G14: =ข้อมูลเริ่มต้น!F51 -> บ./ตัน | I14: =ข้อมูลเริ่มต้น!G51 -> 26660.56 | K14: =ข้อมูลเริ่มต้น!H51 -> 30 | M14: =ข้อมูลเริ่มต้น!I51 -> 60.45 | O14: =ข้อมูลเริ่มต้น!J51 -> 80 | P14: =ข้อมูลเริ่มต้น!K51 -> 1980 | Q14: =ข้อมูลเริ่มต้น!L51 -> 28781.01 | R14: =ข้อมูลเริ่มต้น!$AF$40 -> รถบรรทุก 10 ล้อ | T14: =ข้อมูลเริ่มต้น!O51 -> จาก แหล่ง อ.เมือง จ.สกลนคร
B15: 3 | C15: =ข้อมูลเริ่มต้น!E52 -> เหล็ก RB ø 12 มม. | G15: =ข้อมูลเริ่มต้น!F52 -> บ./ตัน | I15: =ข้อมูลเริ่มต้น!G52 -> 26255.39 | K15: =ข้อมูลเริ่มต้น!H52 -> 30 | M15: =ข้อมูลเริ่มต้น!I52 -> 60.45 | O15: =ข้อมูลเริ่มต้น!J52 -> 80 | P15: =ข้อมูลเริ่มต้น!K52 -> 1980 | Q15: =ข้อมูลเริ่มต้น!L52 -> 28375.84 | R15: =ข้อมูลเริ่มต้น!$AF$40 -> รถบรรทุก 10 ล้อ | T15: =ข้อมูลเริ่มต้น!O52 -> จาก แหล่ง อ.เมือง จ.สกลนคร
B16: 4 | C16: =ข้อมูลเริ่มต้น!E53 -> เหล็ก RB ø 15 มม. | G16: =ข้อมูลเริ่มต้น!F53 -> บ./ตัน | I16: =ข้อมูลเริ่มต้น!G53 -> 25854.21 | K16: =ข้อมูลเริ่มต้น!H53 -> 30 | M16: =ข้อมูลเริ่มต้น!I53 -> 60.45 | O16: =ข้อมูลเริ่มต้น!J53 -> 80 | P16: =ข้อมูลเริ่มต้น!K53 -> 1980 | Q16: =ข้อมูลเริ่มต้น!L53 -> 27974.66 | R16: =ข้อมูลเริ่มต้น!$AF$40 -> รถบรรทุก 10 ล้อ | T16: =ข้อมูลเริ่มต้น!O53 -> จาก แหล่ง อ.เมือง จ.สกลนคร
B17: 5 | C17: =ข้อมูลเริ่มต้น!E54 -> เหล็ก RB ø 19 มม. | G17: =ข้อมูลเริ่มต้น!F54 -> บ./ตัน | I17: =ข้อมูลเริ่มต้น!G54 -> 25906.55 | K17: =ข้อมูลเริ่มต้น!H54 -> 30 | M17: =ข้อมูลเริ่มต้น!I54 -> 60.45 | O17: =ข้อมูลเริ่มต้น!J54 -> 80 | P17: =ข้อมูลเริ่มต้น!K54 -> 1980 | Q17: =ข้อมูลเริ่มต้น!L54 -> 28027 | R17: =ข้อมูลเริ่มต้น!$AF$40 -> รถบรรทุก 10 ล้อ | T17: =ข้อมูลเริ่มต้น!O54 -> จาก แหล่ง อ.เมือง จ.สกลนคร
B18: 6 | C18: =ข้อมูลเริ่มต้น!E55 -> เหล็ก DB ø 12 มม. | G18: =ข้อมูลเริ่มต้น!F55 -> บ./ตัน | I18: =ข้อมูลเริ่มต้น!G55 -> 25167.97 | K18: =ข้อมูลเริ่มต้น!H55 -> 30 | M18: =ข้อมูลเริ่มต้น!I55 -> 60.45 | O18: =ข้อมูลเริ่มต้น!J55 -> 80 | P18: =ข้อมูลเริ่มต้น!K55 -> 1980 | Q18: =ข้อมูลเริ่มต้น!L55 -> 27288.42 | R18: =ข้อมูลเริ่มต้น!$AF$40 -> รถบรรทุก 10 ล้อ | T18: =ข้อมูลเริ่มต้น!O55 -> จาก แหล่ง อ.เมือง จ.สกลนคร
B19: 7 | C19: =ข้อมูลเริ่มต้น!E56 -> เหล็ก DB ø 16 มม. | G19: =ข้อมูลเริ่มต้น!F56 -> บ./ตัน | I19: =ข้อมูลเริ่มต้น!G56 -> 24230.47 | K19: =ข้อมูลเริ่มต้น!H56 -> 30 | M19: =ข้อมูลเริ่มต้น!I56 -> 60.45 | O19: =ข้อมูลเริ่มต้น!J56 -> 80 | P19: =ข้อมูลเริ่มต้น!K56 -> 1980 | Q19: =ข้อมูลเริ่มต้น!L56 -> 26350.92 | R19: =ข้อมูลเริ่มต้น!$AF$40 -> รถบรรทุก 10 ล้อ | T19: =ข้อมูลเริ่มต้น!O56 -> จาก แหล่ง อ.เมือง จ.สกลนคร
B20: 8 | C20: =ข้อมูลเริ่มต้น!E57 -> เหล็ก DB ø 20 มม. | G20: =ข้อมูลเริ่มต้น!F57 -> บ./ตัน | I20: =ข้อมูลเริ่มต้น!G57 -> 24967.98 | K20: =ข้อมูลเริ่มต้น!H57 -> 30 | M20: =ข้อมูลเริ่มต้น!I57 -> 60.45 | O20: =ข้อมูลเริ่มต้น!J57 -> 80 | P20: =ข้อมูลเริ่มต้น!K57 -> 1980 | Q20: =ข้อมูลเริ่มต้น!L57 -> 27088.43 | R20: =ข้อมูลเริ่มต้น!$AF$40 -> รถบรรทุก 10 ล้อ | T20: =ข้อมูลเริ่มต้น!O57 -> จาก แหล่ง อ.เมือง จ.สกลนคร
B21: 9 | C21: =ข้อมูลเริ่มต้น!E58 -> เหล็ก DB ø 25 มม. | G21: =ข้อมูลเริ่มต้น!F58 -> บ./ตัน | I21: =ข้อมูลเริ่มต้น!G58 -> 25090.03 | K21: =ข้อมูลเริ่มต้น!H58 -> 30 | M21: =ข้อมูลเริ่มต้น!I58 -> 60.45 | O21: =ข้อมูลเริ่มต้น!J58 -> 80 | P21: =ข้อมูลเริ่มต้น!K58 -> 1980 | Q21: =ข้อมูลเริ่มต้น!L58 -> 27210.48 | R21: =ข้อมูลเริ่มต้น!$AF$40 -> รถบรรทุก 10 ล้อ | T21: =ข้อมูลเริ่มต้น!O58 -> จาก แหล่ง อ.เมือง จ.สกลนคร
B22: 10 | C22: =ข้อมูลเริ่มต้น!E59 -> Wire Mesh ø 4 มม. @ 10 x 30 cm. | G22: =ข้อมูลเริ่มต้น!F59 -> บ./ตร.ม. | I22: =ข้อมูลเริ่มต้น!G59 -> 35 | K22: =ข้อมูลเริ่มต้น!H59 -> 30 | M22: =ข้อมูลเริ่มต้น!I59 -> 0.0795522 | O22: =ข้อมูลเริ่มต้น!J59 -> 0.1048 | P22: =ข้อมูลเริ่มต้น!K59 -> 0 | Q22: =ข้อมูลเริ่มต้น!L59 -> 35.18 | R22: =ข้อมูลเริ่มต้น!$AF$40 -> รถบรรทุก 10 ล้อ | T22: =ข้อมูลเริ่มต้น!O59 -> จาก แหล่ง อ.เมือง จ.สกลนคร
B23: 11 | C23: =ข้อมูลเริ่มต้น!E60 -> ลวดผูกเหล็ก | G23: =ข้อมูลเริ่มต้น!F60 -> บ./กก. | I23: =ข้อมูลเริ่มต้น!G60 -> 33.8 | K23: =ข้อมูลเริ่มต้น!H60 -> 30 | M23: =ข้อมูลเริ่มต้น!I60 -> 0.06045 | O23: =ข้อมูลเริ่มต้น!J60 -> 0.08 | P23: =ข้อมูลเริ่มต้น!K60 -> 0 | Q23: =ข้อมูลเริ่มต้น!L60 -> 33.94 | R23: =ข้อมูลเริ่มต้น!$AF$40 -> รถบรรทุก 10 ล้อ | T23: =ข้อมูลเริ่มต้น!O60 -> จาก แหล่ง อ.เมือง จ.สกลนคร
B24: 12 | C24: =ข้อมูลเริ่มต้น!E61 -> ปูนซีเมนต์ประเภท 1 | G24: =ข้อมูลเริ่มต้น!F61 -> บ./ตัน | I24: =ข้อมูลเริ่มต้น!G61 -> 2093.46 | K24: =ข้อมูลเริ่มต้น!H61 -> 30 | M24: =ข้อมูลเริ่มต้น!I61 -> 60.45 | O24: =ข้อมูลเริ่มต้น!J61 -> 50 | P24: =ข้อมูลเริ่มต้น!K61 -> 0 | Q24: =ข้อมูลเริ่มต้น!L61 -> 2203.91 | R24: =ข้อมูลเริ่มต้น!AF44 -> รถบรรทุก 10 ล้อ | T24: =ข้อมูลเริ่มต้น!O61 -> จาก แหล่ง อ.เมือง จ.สกลนคร
B25: 13 | C25: =ข้อมูลเริ่มต้น!E62 -> ยาง Asphalt Cement | G25: =ข้อมูลเริ่มต้น!F62 -> บ./ตัน | I25: =ข้อมูลเริ่มต้น!G62 -> 29883.33 | K25: =ข้อมูลเริ่มต้น!H62 -> 700 | M25: =ข้อมูลเริ่มต้น!I62 -> 910 | O25: =ข้อมูลเริ่มต้น!J62 -> 35 | P25: =ข้อมูลเริ่มต้น!K62 -> 0 | Q25: =ข้อมูลเริ่มต้น!L62 -> 30828.33 | R25: =ข้อมูลเริ่มต้น!$AF$48 -> รถบรรทุก 10 ล้อ + ลากพ่วง | T25: =ข้อมูลเริ่มต้น!O62 -> จาก แหล่ง อ.ศรีราชา จ.ชลบุรี
B26: 14 | C26: =ข้อมูลเริ่มต้น!E63 -> ยาง Cut-Back Asphalt | G26: =ข้อมูลเริ่มต้น!F63 -> บ./ตัน | I26: =ข้อมูลเริ่มต้น!G63 -> 36675 | K26: =ข้อมูลเริ่มต้น!H63 -> 700 | M26: =ข้อมูลเริ่มต้น!I63 -> 910 | O26: =ข้อมูลเริ่มต้น!J63 -> 25 | P26: =ข้อมูลเริ่มต้น!K63 -> 0 | Q26: =ข้อมูลเริ่มต้น!L63 -> 37610 | R26: =ข้อมูลเริ่มต้น!$AF$48 -> รถบรรทุก 10 ล้อ + ลากพ่วง | T26: =ข้อมูลเริ่มต้น!O63 -> ทางหลวงหมายเลข 2 กม.230+800
B27: 15 | C27: =ข้อมูลเริ่มต้น!E64 -> หิน Single Size | G27: =ข้อมูลเริ่มต้น!F64 -> บ./ลบ.ม. | I27: =ข้อมูลเริ่มต้น!G64 -> 0 | K27: =ข้อมูลเริ่มต้น!H64 -> 250 | M27: =ข้อมูลเริ่มต้น!I64 -> 457.5 | O27: =ข้อมูลเริ่มต้น!J64 -> 0 | P27: =ข้อมูลเริ่มต้น!K64 -> 0 | Q27: =ข้อมูลเริ่มต้น!L64 -> 457.5 | R27: =ข้อมูลเริ่มต้น!$AF$52 -> รถบรรทุก 10 ล้อ + ลากพ่วง | T27: =ข้อมูลเริ่มต้น!O64 -> จาก แหล่ง อ.นากลาง จ.หนองบัวลำภู
B28: 16 | C28: =ข้อมูลเริ่มต้น!E65 -> หินผสมแอสฟัลท์คอนกรีต | G28: =ข้อมูลเริ่มต้น!F65 -> บ./ลบ.ม. | I28: =ข้อมูลเริ่มต้น!G65 -> 220.56 | K28: =ข้อมูลเริ่มต้น!H65 -> 250 | M28: =ข้อมูลเริ่มต้น!I65 -> 457.5 | O28: =ข้อมูลเริ่มต้น!J65 -> 0 | P28: =ข้อมูลเริ่มต้น!K65 -> 0 | Q28: =ข้อมูลเริ่มต้น!L65 -> 678.06 | R28: =ข้อมูลเริ่มต้น!$AF$52 -> รถบรรทุก 10 ล้อ + ลากพ่วง | T28: =ข้อมูลเริ่มต้น!O65 -> จาก แหล่ง อ.นากลาง จ.หนองบัวลำภู
B29: 17 | C29: =ข้อมูลเริ่มต้น!E66 -> หินคลุก | G29: =ข้อมูลเริ่มต้น!F66 -> บ./ลบ.ม. | I29: =ข้อมูลเริ่มต้น!G66 -> 120.56 | K29: =ข้อมูลเริ่มต้น!H66 -> 250 | M29: =ข้อมูลเริ่มต้น!I66 -> 457.5 | O29: =ข้อมูลเริ่มต้น!J66 -> 0 | P29: =ข้อมูลเริ่มต้น!K66 -> 0 | Q29: =ข้อมูลเริ่มต้น!L66 -> 578.06 | R29: =ข้อมูลเริ่มต้น!$AF$52 -> รถบรรทุก 10 ล้อ + ลากพ่วง | T29: =ข้อมูลเริ่มต้น!O66 -> จาก แหล่ง อ.นากลาง จ.หนองบัวลำภู
B30: 18 | C30: =ข้อมูลเริ่มต้น!E67 -> กรวดผสมคอนกรีต | G30: =ข้อมูลเริ่มต้น!F67 -> บ./ลบ.ม. | I30: =ข้อมูลเริ่มต้น!G67 -> 654.21 | K30: =ข้อมูลเริ่มต้น!H67 -> 30 | M30: =ข้อมูลเริ่มต้น!I67 -> 84.64 | O30: =ข้อมูลเริ่มต้น!J67 -> 0 | P30: =ข้อมูลเริ่มต้น!K67 -> 0 | Q30: =ข้อมูลเริ่มต้น!L67 -> 738.85 | R30: =ข้อมูลเริ่มต้น!$AF$56 -> รถบรรทุก 10 ล้อ | T30: =ข้อมูลเริ่มต้น!O67 -> จาก แหล่ง อ.เมือง จ.สกลนคร
B31: 19 | C31: =ข้อมูลเริ่มต้น!E68 -> ทรายผสมคอนกรีต | G31: =ข้อมูลเริ่มต้น!F68 -> บ./ลบ.ม. | I31: =ข้อมูลเริ่มต้น!G68 -> 420.56 | K31: =ข้อมูลเริ่มต้น!H68 -> 30 | M31: =ข้อมูลเริ่มต้น!I68 -> 84.64 | O31: =ข้อมูลเริ่มต้น!J68 -> 0 | P31: =ข้อมูลเริ่มต้น!K68 -> 0 | Q31: =ข้อมูลเริ่มต้น!L68 -> 505.2 | R31: =ข้อมูลเริ่มต้น!$AF$56 -> รถบรรทุก 10 ล้อ | T31: =ข้อมูลเริ่มต้น!O68 -> จาก แหล่ง อ.เมือง จ.สกลนคร
B32: 20 | C32: =ข้อมูลเริ่มต้น!E69 -> วัสดุลูกรัง | G32: =ข้อมูลเริ่มต้น!F69 -> บ./ลบ.ม. | I32: =ข้อมูลเริ่มต้น!G69 -> 9 | K32: =ข้อมูลเริ่มต้น!H69 -> 3 | M32: =ข้อมูลเริ่มต้น!I69 -> 11.89 | O32: =ข้อมูลเริ่มต้น!J69 -> 0 | P32: =ข้อมูลเริ่มต้น!K69 -> 0 | Q32: =ข้อมูลเริ่มต้น!L69 -> 20.89 | R32: =ข้อมูลเริ่มต้น!$AF$60 -> รถบรรทุก 10 ล้อ | T32: =ข้อมูลเริ่มต้น!O69 -> จาก แหล่ง ต.หนองลาด อ.เมือง
B33: 21 | C33: =ข้อมูลเริ่มต้น!E70 -> วัสดุคัดเลือก " ก " | G33: =ข้อมูลเริ่มต้น!F70 -> บ./ลบ.ม. | I33: =ข้อมูลเริ่มต้น!G70 -> 6 | K33: =ข้อมูลเริ่มต้น!H70 -> 3 | M33: =ข้อมูลเริ่มต้น!I70 -> 11.89 | O33: =ข้อมูลเริ่มต้น!J70 -> 0 | P33: =ข้อมูลเริ่มต้น!K70 -> 0 | Q33: =ข้อมูลเริ่มต้น!L70 -> 17.89 | R33: =ข้อมูลเริ่มต้น!$AF$60 -> รถบรรทุก 10 ล้อ | T33: =ข้อมูลเริ่มต้น!O70 -> จาก แหล่ง ต.หนองลาด อ.เมือง
B34: 22 | C34: =ข้อมูลเริ่มต้น!E71 -> ทรายถมคันทาง | G34: =ข้อมูลเริ่มต้น!F71 -> บ./ลบ.ม. | I34: =ข้อมูลเริ่มต้น!G71 -> 80 | K34: =ข้อมูลเริ่มต้น!H71 -> 53 | M34: =ข้อมูลเริ่มต้น!I71 -> 148.73 | O34: =ข้อมูลเริ่มต้น!J71 -> 0 | P34: =ข้อมูลเริ่มต้น!K71 -> 0 | Q34: =ข้อมูลเริ่มต้น!L71 -> 228.73 | R34: =ข้อมูลเริ่มต้น!$AF$60 -> รถบรรทุก 10 ล้อ | T34: =ข้อมูลเริ่มต้น!O71 -> จากแหล่ง ต.ตองโขบ อ.โคกศรีสุพรรณ
B35: 23 | C35: =ข้อมูลเริ่มต้น!E72 -> ดินถมคันทาง | G35: =ข้อมูลเริ่มต้น!F72 -> บ./ลบ.ม. | I35: =ข้อมูลเริ่มต้น!G72 -> 3 | K35: =ข้อมูลเริ่มต้น!H72 -> 2 | M35: =ข้อมูลเริ่มต้น!I72 -> 9.65 | O35: =ข้อมูลเริ่มต้น!J72 -> 0 | P35: =ข้อมูลเริ่มต้น!K72 -> 0 | Q35: =ข้อมูลเริ่มต้น!L72 -> 12.65 | R35: =ข้อมูลเริ่มต้น!$AF$60 -> รถบรรทุก 10 ล้อ | T35: =ข้อมูลเริ่มต้น!O72 -> จาก แหล่ง ต.หนองลาด อ.เมือง
B36: 24 | C36: =ข้อมูลเริ่มต้น!E73 -> ท่อกลมขนาด ø 0.30 ม. ชั้น 3 | G36: =ข้อมูลเริ่มต้น!F73 -> ท่อน | I36: =ข้อมูลเริ่มต้น!G73 -> 340.19 | K36: =ข้อมูลเริ่มต้น!H73 -> 30 | M36: =ข้อมูลเริ่มต้น!I73 -> 22.621875 | O36: =ข้อมูลเริ่มต้น!J73 -> 0 | P36: =ข้อมูลเริ่มต้น!K73 -> 0 | Q36: =ข้อมูลเริ่มต้น!L73 -> 362.81 | R36: =ข้อมูลเริ่มต้น!M70 -> รถบรรทุก 10 ล้อ | T36: =ข้อมูลเริ่มต้น!O73 -> จาก แหล่ง อ.เมือง จ.สกลนคร
B37: 25 | C37: =ข้อมูลเริ่มต้น!E74 -> ท่อกลมขนาด ø 0.40 ม. ชั้น 3 | G37: =ข้อมูลเริ่มต้น!F74 -> ท่อน | I37: =ข้อมูลเริ่มต้น!G74 -> 387.85 | K37: =ข้อมูลเริ่มต้น!H74 -> 30 | M37: =ข้อมูลเริ่มต้น!I74 -> 33.9328125 | O37: =ข้อมูลเริ่มต้น!J74 -> 0 | P37: =ข้อมูลเริ่มต้น!K74 -> 0 | Q37: =ข้อมูลเริ่มต้น!L74 -> 421.78 | R37: =ข้อมูลเริ่มต้น!M71 -> รถบรรทุก 10 ล้อ | T37: =ข้อมูลเริ่มต้น!O74 -> จาก แหล่ง อ.เมือง จ.สกลนคร
B38: 26 | C38: =ข้อมูลเริ่มต้น!E75 -> ท่อกลมขนาด ø 0.60 ม. ชั้น 3 | G38: =ข้อมูลเริ่มต้น!F75 -> ท่อน | I38: =ข้อมูลเริ่มต้น!G75 -> 485.98 | K38: =ข้อมูลเริ่มต้น!H75 -> 30 | M38: =ข้อมูลเริ่มต้น!I75 -> 45.24375 | O38: =ข้อมูลเริ่มต้น!J75 -> 0 | P38: =ข้อมูลเริ่มต้น!K75 -> 0 | Q38: =ข้อมูลเริ่มต้น!L75 -> 531.22 | R38: =ข้อมูลเริ่มต้น!M72 -> รถบรรทุก 10 ล้อ | T38: =ข้อมูลเริ่มต้น!O75 -> จาก แหล่ง อ.เมือง จ.สกลนคร
B39: 27 | C39: =ข้อมูลเริ่มต้น!E76 -> ท่อกลมขนาด ø 0.80 ม. ชั้น 3 | G39: =ข้อมูลเริ่มต้น!F76 -> ท่อน | I39: =ข้อมูลเริ่มต้น!G76 -> 1168.22 | K39: =ข้อมูลเริ่มต้น!H76 -> 30 | M39: =ข้อมูลเริ่มต้น!I76 -> 60.325 | O39: =ข้อมูลเริ่มต้น!J76 -> 0 | P39: =ข้อมูลเริ่มต้น!K76 -> 0 | Q39: =ข้อมูลเริ่มต้น!L76 -> 1228.55 | R39: =ข้อมูลเริ่มต้น!M73 -> รถบรรทุก 10 ล้อ | T39: =ข้อมูลเริ่มต้น!O76 -> จาก แหล่ง อ.เมือง จ.สกลนคร
B40: 28 | C40: =ข้อมูลเริ่มต้น!E77 -> ท่อกลมขนาด ø 1.00 ม. ชั้น 3 | G40: =ข้อมูลเริ่มต้น!F77 -> ท่อน | I40: =ข้อมูลเริ่มต้น!G77 -> 1635.51 | K40: =ข้อมูลเริ่มต้น!H77 -> 30 | M40: =ข้อมูลเริ่มต้น!I77 -> 108.585 | O40: =ข้อมูลเริ่มต้น!J77 -> 0 | P40: =ข้อมูลเริ่มต้น!K77 -> 0 | Q40: =ข้อมูลเริ่มต้น!L77 -> 1744.1 | R40: =ข้อมูลเริ่มต้น!M74 -> รถบรรทุก 10 ล้อ | T40: =ข้อมูลเริ่มต้น!O77 -> จาก แหล่ง อ.เมือง จ.สกลนคร
B41: 29 | C41: =ข้อมูลเริ่มต้น!E78 -> ท่อกลมขนาด ø 1.20 ม. ชั้น 3 | G41: =ข้อมูลเริ่มต้น!F78 -> ท่อน | I41: =ข้อมูลเริ่มต้น!G78 -> 2289.72 | K41: =ข้อมูลเริ่มต้น!H78 -> 30 | M41: =ข้อมูลเริ่มต้น!I78 -> 135.73125 | O41: =ข้อมูลเริ่มต้น!J78 -> 0 | P41: =ข้อมูลเริ่มต้น!K78 -> 0 | Q41: =ข้อมูลเริ่มต้น!L78 -> 2425.45 | R41: =ข้อมูลเริ่มต้น!M75 -> รถบรรทุก 10 ล้อ | T41: =ข้อมูลเริ่มต้น!O78 -> จาก แหล่ง อ.เมือง จ.สกลนคร
B42: 30 | C42: =ข้อมูลเริ่มต้น!E79 -> ท่อกลมขนาด ø 1.50 ม. ชั้น 3 | G42: =ข้อมูลเริ่มต้น!F79 -> ท่อน | I42: =ข้อมูลเริ่มต้น!G79 -> 4439.25 | K42: =ข้อมูลเริ่มต้น!H79 -> 30 | M42: =ข้อมูลเริ่มต้น!I79 -> 217.17 | O42: =ข้อมูลเริ่มต้น!J79 -> 0 | P42: =ข้อมูลเริ่มต้น!K79 -> 0 | Q42: =ข้อมูลเริ่มต้น!L79 -> 4656.42 | R42: =ข้อมูลเริ่มต้น!M76 -> รถบรรทุก 10 ล้อ | T42: =ข้อมูลเริ่มต้น!O79 -> จาก แหล่ง อ.เมือง จ.สกลนคร
B43: 31 | C43: =ข้อมูลเริ่มต้น!E80 -> ไม้กระบาก 1" x 8" | G43: =ข้อมูลเริ่มต้น!F80 -> ลบ.ฟ. | I43: =ข้อมูลเริ่มต้น!G80 -> 485.98 | K43: =ข้อมูลเริ่มต้น!H80 -> 0 | M43: =ข้อมูลเริ่มต้น!I80 -> 0 | O43: =ข้อมูลเริ่มต้น!J80 -> 0 | P43: =ข้อมูลเริ่มต้น!K80 -> 0 | Q43: =ข้อมูลเริ่มต้น!L80 -> 485.98 | T43: =ข้อมูลเริ่มต้น!O80 -> จาก แหล่ง อ.เมือง จ.สกลนคร
B44: 32 | C44: =ข้อมูลเริ่มต้น!E81 -> ไม้อัดยาง หนา 4 มม. | G44: =ข้อมูลเริ่มต้น!F81 -> แผ่น | I44: =ข้อมูลเริ่มต้น!G81 -> 278.97 | K44: =ข้อมูลเริ่มต้น!H81 -> 0 | M44: =ข้อมูลเริ่มต้น!I81 -> 0 | O44: =ข้อมูลเริ่มต้น!J81 -> 0 | P44: =ข้อมูลเริ่มต้น!K81 -> 0 | Q44: =ข้อมูลเริ่มต้น!L81 -> 278.97 | T44: =ข้อมูลเริ่มต้น!O81 -> จาก แหล่ง อ.เมือง จ.สกลนคร
B45: 33 | C45: =ข้อมูลเริ่มต้น!E82 -> ไม้คร่าว 1 1"/2 x 3" | G45: =ข้อมูลเริ่มต้น!F82 -> ลบ.ฟ. | I45: =ข้อมูลเริ่มต้น!G82 -> 532.71 | K45: =ข้อมูลเริ่มต้น!H82 -> 0 | M45: =ข้อมูลเริ่มต้น!I82 -> 0 | O45: =ข้อมูลเริ่มต้น!J82 -> 0 | P45: =ข้อมูลเริ่มต้น!K82 -> 0 | Q45: =ข้อมูลเริ่มต้น!L82 -> 532.71 | T45: =ข้อมูลเริ่มต้น!O82 -> จาก แหล่ง อ.เมือง จ.สกลนคร
B46: 34 | C46: =ข้อมูลเริ่มต้น!E83 -> ไม้ค้ำยัน ø 3" x 3.00 ม. | G46: =ข้อมูลเริ่มต้น!F83 -> ต้น | I46: =ข้อมูลเริ่มต้น!G83 -> 30 | K46: =ข้อมูลเริ่มต้น!H83 -> 0 | M46: =ข้อมูลเริ่มต้น!I83 -> 0 | O46: =ข้อมูลเริ่มต้น!J83 -> 0 | P46: =ข้อมูลเริ่มต้น!K83 -> 0 | Q46: =ข้อมูลเริ่มต้น!L83 -> 30 | T46: =ข้อมูลเริ่มต้น!O83 -> จาก แหล่ง อ.เมือง จ.สกลนคร
B47: 35 | C47: =ข้อมูลเริ่มต้น!E84 -> ไม้ค้ำยัน ø 4" x 3.00 ม. | G47: =ข้อมูลเริ่มต้น!F84 -> ต้น | I47: =ข้อมูลเริ่มต้น!G84 -> 35 | K47: =ข้อมูลเริ่มต้น!H84 -> 0 | M47: =ข้อมูลเริ่มต้น!I84 -> 0 | O47: =ข้อมูลเริ่มต้น!J84 -> 0 | P47: =ข้อมูลเริ่มต้น!K84 -> 0 | Q47: =ข้อมูลเริ่มต้น!L84 -> 35 | T47: =ข้อมูลเริ่มต้น!O84 -> จาก แหล่ง อ.เมือง จ.สกลนคร
B48: 36 | C48: =ข้อมูลเริ่มต้น!E85 -> เหล็กฉาก L 50 x 50 x 3 มม. | G48: =ข้อมูลเริ่มต้น!F85 -> ท่อน | I48: =ข้อมูลเริ่มต้น!G85 -> 425 | K48: =ข้อมูลเริ่มต้น!H85 -> 0 | M48: =ข้อมูลเริ่มต้น!I85 -> 0 | O48: =ข้อมูลเริ่มต้น!J85 -> 0 | P48: =ข้อมูลเริ่มต้น!K85 -> 0 | Q48: =ข้อมูลเริ่มต้น!L85 -> 425 | T48: =ข้อมูลเริ่มต้น!O85 -> จาก แหล่ง อ.เมือง จ.สกลนคร
B49: 37 | C49: =ข้อมูลเริ่มต้น!E86 -> แผ่นเหล็ก 4 มม. x 5 ซม. | G49: =ข้อมูลเริ่มต้น!F86 -> ท่อน | I49: =ข้อมูลเริ่มต้น!G86 -> 275 | K49: =ข้อมูลเริ่มต้น!H86 -> 0 | M49: =ข้อมูลเริ่มต้น!I86 -> 0 | O49: =ข้อมูลเริ่มต้น!J86 -> 0 | P49: =ข้อมูลเริ่มต้น!K86 -> 0 | Q49: =ข้อมูลเริ่มต้น!L86 -> 275 | T49: =ข้อมูลเริ่มต้น!O86 -> จาก แหล่ง อ.เมือง จ.สกลนคร
B50: 38 | C50: =ข้อมูลเริ่มต้น!E87 -> แผ่นเหล็ก 6 มม. x 5 ซม. | G50: =ข้อมูลเริ่มต้น!F87 -> ท่อน | I50: =ข้อมูลเริ่มต้น!G87 -> 410 | K50: =ข้อมูลเริ่มต้น!H87 -> 0 | M50: =ข้อมูลเริ่มต้น!I87 -> 0 | O50: =ข้อมูลเริ่มต้น!J87 -> 0 | P50: =ข้อมูลเริ่มต้น!K87 -> 0 | Q50: =ข้อมูลเริ่มต้น!L87 -> 410 | T50: =ข้อมูลเริ่มต้น!O87 -> จาก แหล่ง อ.เมือง จ.สกลนคร
B51: 39 | C51: =ข้อมูลเริ่มต้น!E88 -> ตะปู | G51: =ข้อมูลเริ่มต้น!F88 -> กก. | I51: =ข้อมูลเริ่มต้น!G88 -> 40.19 | K51: =ข้อมูลเริ่มต้น!H88 -> 0 | M51: =ข้อมูลเริ่มต้น!I88 -> 0 | O51: =ข้อมูลเริ่มต้น!J88 -> 0 | P51: =ข้อมูลเริ่มต้น!K88 -> 0 | Q51: =ข้อมูลเริ่มต้น!L88 -> 40.19 | T51: =ข้อมูลเริ่มต้น!O88 -> จาก แหล่ง อ.เมือง จ.สกลนคร
E53: ข้อมูลงานคอนกรีต Class ต่างๆ ตามมาตรฐานกรมทางหลวงชนบท
E54: กรณีทรายและหินมีหน่วยเป็นปริมาตร
E55: Class of Concrete | L55: ค 4 | O55: ค 3 | P55: ค 2 | Q55: ค 1 | R55: Lean 1:3:5
E57: ส่วนผสมคอนกรีต | L57: 400:524:728 | O57: 350:572:736 | P57: 320:596:764 | Q57: 290:620:725 | R57: 240:520:870
E58: 1. ซีเมนต์ | G58: 1.05 | H58: x | I58: =Q24 -> 2203.91 | L58: =ROUND($G$58*$I$58*0.4,2) -> 925.64 | O58: =ROUND($G$58*$I$58*0.35,2) -> 809.94 | P58: =ROUND($G$58*$I$58*0.32,2) -> 740.51 | Q58: =ROUND($G$58*$I$58*0.29,2) -> 671.09 | R58: =ROUND($G$58*$I$58*0.24,2) -> 555.39
E59: 2. ทราย | G59: 1.2 | H59: x | I59: =Q31 -> 505.2 | L59: =ROUND($G$59*$I$59*0.524,2) -> 317.67 | O59: =ROUND($G$59*$I$59*0.572,2) -> 346.77 | P59: =ROUND($G$59*$I$59*0.596,2) -> 361.32 | Q59: =ROUND($G$59*$I$59*0.62,2) -> 375.87 | R59: =ROUND($G$59*$I$59*0.52,2) -> 315.24
E60: 3. หิน | G60: 1.15 | H60: x | I60: =Q30 -> 738.85 | L60: =ROUND($G$60*$I$60*0.728,2) -> 618.57 | O60: =ROUND($G$60*$I$60*0.736,2) -> 625.36 | P60: =ROUND($G$60*$I$60*0.764,2) -> 649.15 | Q60: =ROUND($G$60*$I$60*0.725,2) -> 616.02 | R60: =ROUND($G$60*$I$60*0.87,2) -> 739.22
E61: 4. ค่าแรงผสม - เท | L61: 395 | O61: 395 | P61: 346 | Q61: 346 | R61: 316
E62: รวม | L62: =ROUND(SUM(L58:N61),2) -> 2256.88 | O62: =ROUND(SUM(O58:O61),2) -> 2177.07 | P62: =ROUND(SUM(P58:P61),2) -> 2096.98 | Q62: =ROUND(SUM(Q58:Q61),2) -> 2008.98 | R62: =ROUND(SUM(R58:R61),2) -> 1925.85
G64: ไม้แบบ
E65: ไม้แบบสำหรับงานทั่วไป | I65: = | J65: ไม้แบบ (1) พื้นที่ 1 ตารางเมตร
E66: ไม้กระบากหรือไม้ยาง หรือเทียบเท่า | J66: 1 | K66: ลบ.ฟ. | O66: @ | P66: =Q43 -> 485.98 | R66: = | S66: =J66*P66 -> 485.98 | U66: บาท
E67: ไม้คร่าว | I67: 0.3 | J67: ลบ.ฟ. | O67: @ | P67: =Q45 -> 532.71 | R67: = | S67: =I67*P67 -> 159.813 | U67: บาท
E68: ไม้ค้ำยันไม้แบบ | I68: 0.3 | J68: ต้น | K68: ( ขนาด ø 4" x 4.00 ม.) | O68: @ | P68: =Q47 -> 35 | R68: = | S68: =I68*P68 -> 10.5 | U68: บาท
E69: ตะปู | I69: 0.25 | J69: กก. | O69: @ | P69: =Q51 -> 40.19 | R69: = | S69: =I69*P69 -> 10.0475 | U69: บาท
Q70: รวม | R70: = | S70: =SUM(S66:T69) -> 666.3405 | U70: บาท
E71: เนื่องจากใช้งานได้ประมาณ 4 ครั้ง คิดจาก | L71: =S70 -> 666.3405 | O71: / | P71: 4 | R71: = | S71: =L71/P71 -> 166.585125 | U71: บาท
E72: ค่าแรง | R72: = | S72: 79 | U72: บาท
E73: น้ำมันทาผิวไม้ | R73: = | S73: 10 | U73: บาท
Q74: รวม | R74: = | S74: =ROUND(SUM(S71:T73),2) -> 255.59 | U74: บาท
E76: ไม้แบบสำหรับงานอย่างง่าย | I76: = | J76: ไม้แบบ (2) พื้นที่ 1 ตารางเมตร
E77: รายละเอียดเหมือนไม้แบบ (1)
E78: เนื่องจากใช้งานได้ประมาณ 5 ครั้ง คิดจาก | L78: =S70 -> 666.3405 | O78: / | P78: 5 | R78: = | S78: =L78/P78 -> 133.2681 | U78: บาท
E79: ค่าแรง | R79: = | S79: 79 | U79: บาท
E80: น้ำมันทาผิวไม้ | R80: = | S80: 10 | U80: บาท
Q81: รวม | R81: = | S81: =ROUND(SUM(S78:T80),2) -> 222.27 | U81: บาท
E83: ไม้แบบสำหรับงานสะพานและท่อเหลี่ยม | K83: = | L83: ไม้แบบ (3) พื้นที่ 1 ตารางเมตร
E84: ไม้กระบากหรือไม้ยาง หรือเทียบเท่า | J84: 1 | K84: ลบ.ฟ. | O84: @ | P84: =Q43 -> 485.98 | R84: = | S84: =J84*P84 -> 485.98 | U84: บาท
E85: ไม้อัดยาง หนา 4 มม. | I85: 1 | J85: ตร.ม. | O85: @ | P85: =Q44 -> 278.97 | R85: = | S85: =I85*P85 -> 278.97 | U85: บาท
E86: ไม้คร่าว | I86: 0.3 | J86: ลบ.ฟ. | O86: @ | P86: =Q45 -> 532.71 | R86: = | S86: =I86*P86 -> 159.813 | U86: บาท
E87: ตะปู | I87: 0.25 | J87: กก. | O87: @ | P87: =Q51 -> 40.19 | R87: = | S87: =I87*P87 -> 10.0475 | U87: บาท
Q88: รวม | R88: = | S88: =SUM(S84:T87) -> 934.8105 | U88: บาท
E89: เนื่องจากใช้งานได้ประมาณ 3 ครั้ง คิดจาก | L89: =S88 -> 934.8105 | O89: / | P89: 3 | R89: = | S89: =L89/P89 -> 311.6035 | U89: บาท
E90: ค่าแรง | R90: = | S90: 105 | U90: บาท
E91: น้ำมันทาผิวไม้ | R91: = | S91: 10 | U91: บาท
Q92: รวม | R92: = | S92: =ROUND(SUM(S89:T91),2) -> 426.6 | U92: บาท
E94: ทรายหยาบบดอัดแน่น
E95: ค่าวัสดุจากแหล่งรวมค่าตัก | R95: = | S95: =I31 -> 420.56 | U95: บาท/ลบ.ม.
E96: ค่าขนส่ง | G96: =$K$31 -> 30 | I96: กม. | R96: = | S96: =$M$31 -> 84.64 | U96: บาท/ลบ.ม.
E97: ส่วนยุบตัว | G97: 1.4 | I97: x | J97: =S95+S96 -> 505.2 | R97: = | S97: =G97*J97 -> 707.28 | U97: บาท/ลบ.ม.
E98: ค่าดำเนินการ + ค่าเสื่อมราคาบดอัด 75 % | R98: = | S98: ='ค่าดำเนินการ+ค่าเสื่อมราคา'!$G$12*0.75 -> 27.33 | U98: บาท/ลบ.ม.
Q99: ค่าใช้จ่ายรวม | R99: = | S99: =S97+S98 -> 734.61 | U99: บาท/ลบ.ม.
Q100: ค่างานต้นทุนรวม | R100: = | S100: =ROUND(S99,2) -> 734.61 | U100: บาท/ลบ.ม.
O102: ย้อนกลับ

Sheet ค่างานต้นทุนต่อหน่วย
B1: ป้อนข้อมูลในแถบ สีเหลือง เท่านั้น
B2: รายละเอียดการคำนวณค่างานต้นทุนต่อหน่วย
B3: งานก่อสร้างทาง สะพาน และท่อเหลี่ยม
B5: งานถางป่าและขุดตอ (Clearing and Grubbing)
B6: พิจารณาตามสภาพพื้นที่…………… | G6: ขนาดเบา | J6: ขนาดกลาง | M6: ขนาดหนัก
B7: ค่าดำเนินการ + ค่าเสื่อมราคาเครื่องจักร | N7: = | P7: =ข้อมูลเริ่มต้น!$AB$40 -> 1.29 | Q7: บาท / ตร.ม.
M8: ค่างานต้นทุนรวม | N8: = | P8: =P7 -> 1.29 | Q8: บาท / ตร.ม. | R8: <<< ย้อนกลับ
B9: หมายเหตุ
B10: งานถางป่าขุดตอขนาดเบา | G10: มีเฉพาะการถากถางวัชพืชเท่านั้น
B11: งานถางป่าขุดตอขนาดกลาง | G11: มีการถากถางวัชพืชเท่านั้น และปาดหน้าดินเดิมออกด้วย
B12: งานถางป่าขุดตอขนาดหนัก | G12: มีการตัดโค่นต้นไม้ ขุดตอ ถากถางวัชพืช และ ปาดหน้า
G13: ดินเดิมออกด้วย
B15: งานปรับเกลี่ยแต่งคันทางเดิม
B16: ค่าดำเนินการ + ค่าเสื่อมราคาเครื่องจักร | N16: = | P16: ='ค่าดำเนินการ+ค่าเสื่อมราคา'!$G$7 -> 1.29 | Q16: บาท / ตร.ม.
M17: ค่างานต้นทุนรวม | N17: = | P17: =P16 -> 1.29 | Q17: บาท / ตร.ม. | R17: <<< ย้อนกลับ
B19: งานขุดรื้อคันทางเดิมแล้วบดทับ (ลูกรัง 10 ซม.)
B20: ค่าดำเนินการ + ค่าเสื่อมราคาเครื่องจักร | N20: = | P20: ='ค่าดำเนินการ+ค่าเสื่อมราคา'!$G$32 -> 8.62 | Q20: บาท / ตร.ม.
M21: ค่างานต้นทุนรวม | N21: = | P21: =P20 -> 8.62 | Q21: บาท / ตร.ม. | R21: <<< ย้อนกลับ
B23: งานขุดรื้อคันทางเดิมแล้วบดทับ (หินคลุก 10 ซม.)
B24: ค่าดำเนินการ + ค่าเสื่อมราคาเครื่องจักร | N24: = | P24: ='ค่าดำเนินการ+ค่าเสื่อมราคา'!$G$33 -> 11.14 | Q24: บาท / ตร.ม.
M25: ค่างานต้นทุนรวม | N25: = | P25: =P24 -> 11.14 | Q25: บาท / ตร.ม. | R25: <<< ย้อนกลับ
B27: งานขุดรื้อผิวทาง AC เดิมแล้วบดทับ (ผิว AC 5 ซม.)
B28: ค่าดำเนินการ + ค่าเสื่อมราคาเครื่องจักร | N28: = | P28: ='ค่าดำเนินการ+ค่าเสื่อมราคา'!$G$34 -> 9 | Q28: บาท / ตร.ม.
M29: ค่างานต้นทุนรวม | N29: = | P29: =P28 -> 9 | Q29: บาท / ตร.ม. | R29: <<< ย้อนกลับ
B31: งานรื้อผิวลาดยางเดิม (Removal of Existing Asphalt Concrete Surface)
B32: คิดจากความหนาของผิวทางแอสฟัลท์คอนกรีต = | I32: 5 | K32: ซม.
B33: ="ค่าดำเนินการ + ค่าเสื่อม รื้อผิวทางเดิมหนา"&" "&I32&" ซม." -> ค่าดำเนินการ + ค่าเสื่อม รื้อผิวทางเดิมหนา 5 ซม. | N33: = | P33: ='ค่าดำเนินการ+ค่าเสื่อมราคา'!$G$34 -> 9 | Q33: บาท / ตร.ม.
B34: ปริมาตรวัสดุที่รื้อออก | G34: = | H34: =I32/100 -> 0.05 | I34: ลบ.ม.
B35: ส่วนขยาย = | D35: =H34 -> 0.05 | E35: x | F35: 1.6 | G35: = | H35: =D35*F35 -> 0.08 | I35: ลบ.ม.
B36: ค่าดำเนินการ + ค่าเสื่อมดันและตัก (หินผุ) | G36: = | H36: =H35 -> 0.08 | I36: x | J36: ='ค่าดำเนินการ+ค่าเสื่อมราคา'!$G$17 -> 38.11 | N36: = | P36: =H36*J36 -> 3.0488 | Q36: บาท / ตร.ม.
B37: ขนทิ้ง | C37: 1 | E37: กม. | G37: = | H37: =H36 -> 0.08 | I37: x | J37: =IF(C37<1,0,VLOOKUP(C37,'10ล้อ'!$B$6:$D$205,3)) -> 7.4 | N37: = | P37: =H37*J37 -> 0.592 | Q37: บาท / ตร.ม.
M38: รวม | N38: = | P38: =P33+P36+P37 -> 12.6408 | Q38: บาท / ตร.ม.
M39: ค่างานต้นทุนรวม | N39: = | P39: =ROUND(P38,2) -> 12.64 | Q39: บาท / ตร.ม. | R39: <<< ย้อนกลับ
B41: งานรื้อผิวคอนกรีตเดิม (Removal of Existing Concrete Pavement)
B42: คิดจากความหนาของผิวทางคอนกรีต | G42: = | H42: 15 | J42: ซม.
B43: ปริมาตรคอนกรีต | G43: = | H43: =H42/100 -> 0.15 | I43: ลบ.ม./ ตร.ม.
B44: ส่วนขยาย = | D44: =H43 -> 0.15 | E44: x | F44: 1.7 | G44: = | H44: =D44*F44 -> 0.255 | I44: ลบ.ม.
B45: ค่าทุบคอนกรีตเดิม | G45: = | H45: 400 | I45: บาท/ลบ.ม.
B46: ค่าทุบคอนกรีต = | E46: =H44 -> 0.255 | F46: x | G46: =H45 -> 400 | N46: = | P46: =E46*G46 -> 102 | Q46: บาท / ตร.ม.
B47: ค่าดำเนินการ + ค่าเสื่อมดันและตัก (หินแข็ง) | G47: = | H47: =H44 -> 0.255 | I47: x | J47: ='ค่าดำเนินการ+ค่าเสื่อมราคา'!$G$19 -> 75.52 | N47: = | P47: =H47*J47 -> 19.2576 | Q47: บาท / ตร.ม.
B48: ขนทิ้ง | C48: 1 | E48: กม. | G48: = | H48: =H47 -> 0.255 | I48: x | J48: =IF(C48<1,0,VLOOKUP(C48,'10ล้อ'!$B$6:$D$205,3)) -> 7.4 | N48: = | P48: =H48*J48 -> 1.887 | Q48: บาท / ตร.ม.
M49: รวม | N49: = | P49: =P46+P47+P48 -> 123.1446 | Q49: บาท / ตร.ม.
M50: ค่างานต้นทุนรวม | N50: = | P50: =ROUND(P49,2) -> 123.14 | Q50: บาท / ตร.ม. | R50: <<< ย้อนกลับ
B52: งานรื้อท่อกลมเดิม (Removal of Existing Pipe Culverts)
B53: คิดจากการขุดรื้อท่อเดิมออกกรณีกำหนดให้รักษาสภาพท่อเดิมไว้ใช้งานต่อ
B54: ขุดห่างจากริมท่อด้านนอกข้างละ 0.50 ม.
B55: คิดจากความยาวท่อ 1.00 ม.
B56: ปริมาตรงานขุด | D56: = | E56: 2 | G56: x | H56: 1.5 | J56: ( ความกว้าง X ความลึก) | N56: = | P56: =E56*H56*1 -> 3 | Q56: ลบ.ม.
B57: ค่าขุดดินและรื้อท่อออก | E57: = | F57: =P56 -> 3 | G57: ลบ.ม. | H57: @ | I57: =$P$66 -> 37.51 | N57: = | P57: =ROUND(F57*I57,2) -> 112.53 | Q57: บาท / ม. | R57: <<< ย้อนกลับ
B58: กรณีกำหนดให้ขนท่อไปไว้ที่สำนักงาน คิดค่าขนส่งท่อเพิ่มตามระยะทางขนส่ง
B60: งานตัดดิน (Earth Excavation)
B61: ค่าดำเนินการ + เสื่อมราคา (ตัก) | N61: = | P61: ='ค่าดำเนินการ+ค่าเสื่อมราคา'!$G$15 -> 7.56 | Q61: บาท/ลบ.ม.
B62: ค่าขนทิ้ง ระยะ | D62: 1 | F62: กม. | N62: = | O62: =IF(D62<1,0,VLOOKUP(D62,'10ล้อ'!$B$6:$D$205,3)) -> 7.4 | Q62: บาท/ลบ.ม.
B63: รวม | N63: = | O63: =P61+O62 -> 14.96 | Q63: บาท/ลบ.ม.
B64: ส่วนขยายตัว | D64: =O63 -> 14.96 | F64: x | G64: 1.25 | N64: = | P64: =D64*G64 -> 18.7 | Q64: บาท/ลบ.ม.
B65: ค่าดำเนินการ + ค่าเสื่อมราคา (ขุดตัด) | N65: = | P65: ='ค่าดำเนินการ+ค่าเสื่อมราคา'!$G$14 -> 18.81 | Q65: บาท/ลบ.ม.
M66: ค่างานต้นทุนรวม | N66: = | P66: =ROUND(P64+P65,2) -> 37.51 | Q66: บาท/ลบ.ม. | R66: <<< ย้อนกลับ
B67: หมายเหตุ
B68: ส่วนขยายตัวของทราย | G68: = | H68: 1.15
B69: ส่วนขยายตัวของดิน , ดินปนทราย | G69: = | H69: 1.25
B71: งานดินถมคันทาง (Earth Embankment)
B72: ค่าวัสดุจากแหล่ง | N72: = | O72: =ข้อมูลเริ่มต้น!$L$15 -> 3 | Q72: บาท/ลบ.ม.
B73: ค่าดำเนินการ + ค่าเสื่อมราคา (ขุด-ขน) | N73: = | O73: ='ค่าดำเนินการ+ค่าเสื่อมราคา'!$G$11 -> 19.31 | Q73: บาท/ลบ.ม.
B74: ค่าขนส่ง | D74: =ข้อมูลเริ่มต้น!$H$72 -> 2 | F74: กม. | N74: = | O74: =ข้อมูลเริ่มต้น!$I$72 -> 9.65 | Q74: บาท/ลบ.ม.
B75: รวม | N75: = | O75: =SUM(O72:O74) -> 31.96 | Q75: บาท/ลบ.ม.
B76: ส่วนยุบตัว | D76: =O75 -> 31.96 | F76: x | G76: 1.6 | N76: = | P76: =D76*G76 -> 51.136 | Q76: บาท/ลบ.ม.
B77: ค่าตัดแต่งขั้นบันได = | G77: บาท/ลบ.ม. | N77: = | P77: =IF(E77=0,0,E77) -> 0 | Q77: บาท/ลบ.ม.
B78: ค่าดำเนินการ + ค่าเสื่อมราคา (บดทับ) | N78: = | P78: ='ค่าดำเนินการ+ค่าเสื่อมราคา'!$G$12 -> 36.44 | Q78: บาท/ลบ.ม.
M79: ค่างานต้นทุนรวม | N79: = | P79: =ROUND(SUM(P76:P78),2) -> 87.58 | Q79: บาท/ลบ.ม. | R79: <<< ย้อนกลับ
B80: หมายเหตุ | H80: แนวเก่า | L80: แนวใหม่
B81: ส่วนยุบตัวของทรายถมคันทาง | H81: 1.4 | L81: 1.45
B82: ดิน , ดินปนทราย ถมคันทาง | H82: 1.6 | L82: 1.7
B83: ดินเหนียว ถมคันทาง | H83: 1.85 | L83: 1.9
B84: (ดินเหนียวมีค่า CBR น้อยกว่า 2 )
B85: ค่าดินที่แหล่ง | D85: = | E85: ราคาที่ดิน | G85: บาท / ไร่ x | I85: 1 | J85: x | K85: 1
E86: 2 | I86: 1600 | K86: 3
B88: งานดินถมคันทาง ปรับเกลี่ยแต่ง
B89: ค่าวัสดุจากแหล่ง | N89: = | O89: =ข้อมูลเริ่มต้น!$L$15 -> 3 | Q89: บาท/ลบ.ม.
B90: ค่าดำเนินการ + ค่าเสื่อมราคา (ขุด-ขน) | N90: = | O90: ='ค่าดำเนินการ+ค่าเสื่อมราคา'!$G$11 -> 19.31 | Q90: บาท/ลบ.ม.
B91: ค่าขนส่ง | D91: =ข้อมูลเริ่มต้น!$H$72 -> 2 | F91: กม. | N91: = | O91: =ข้อมูลเริ่มต้น!$I$72 -> 9.65 | Q91: บาท/ลบ.ม.
B92: รวม | N92: = | O92: =SUM(O89:O91) -> 31.96 | Q92: บาท/ลบ.ม.
B93: ค่าดำเนินการปรับเกลี่ยแต่ง = | F93: 8 | G93: บาท / ลบ.ม. | N93: = | P93: =F93 -> 8 | Q93: บาท/ลบ.ม.
L94: ค่าใช้จ่ายรวม | N94: = | P94: =O92+P93 -> 39.96 | Q94: บาท/ลบ.ม.
M95: ค่างานต้นทุนรวม | N95: = | P95: =ROUND(P94,2) -> 39.96 | Q95: บาท/ลบ.ม. | R95: <<< ย้อนกลับ
B97: งานวัสดุคัดเลือก (Selected Material)
B98: ค่าวัสดุจากแหล่ง (วัสดุคัดเลือกเป็นลูกรัง) | N98: = | O98: =ข้อมูลเริ่มต้น!$G$70 -> 6 | Q98: บาท/ลบ.ม.
B99: ค่าดำเนินการ + ค่าเสื่อมราคา (ขุด-ขน) | N99: = | O99: ='ค่าดำเนินการ+ค่าเสื่อมราคา'!$G$21 -> 28.88 | Q99: บาท/ลบ.ม.
B100: ค่าขนส่ง | D100: =ข้อมูลเริ่มต้น!$H$70 -> 3 | F100: กม. | N100: = | O100: =ข้อมูลเริ่มต้น!$I$70 -> 11.89 | Q100: บาท/ลบ.ม.
B101: รวม | N101: = | O101: =SUM(O98:O100) -> 46.77 | Q101: บาท/ลบ.ม.
B102: ส่วนยุบตัว | D102: =O101 -> 46.77 | F102: x | G102: 1.6 | N102: = | P102: =D102*G102 -> 74.832 | Q102: บาท/ลบ.ม.
B103: ค่าดำเนินการ + ค่าเสื่อมราคา (บดทับ ) | N103: = | P103: ='ค่าดำเนินการ+ค่าเสื่อมราคา'!$G$23 -> 43.73 | Q103: บาท/ลบ.ม.
L104: ค่าใช้จ่ายรวม | N104: = | P104: =SUM(P102:P103) -> 118.562 | Q104: บาท/ลบ.ม.
M105: ค่างานต้นทุนรวม | N105: = | P105: =ROUND(P104,2) -> 118.56 | Q105: บาท/ลบ.ม. | R105: <<< ย้อนกลับ
B106: งานรองพื้นทางลูกรัง (Soil Aggregate Subbase)
B107: ค่าวัสดุจากแหล่ง (ลูกรัง) | N107: = | O107: =ข้อมูลเริ่มต้น!$G$69 -> 9 | Q107: บาท/ลบ.ม.
B108: ค่าดำเนินการ + ค่าเสื่อมราคา (ขุด-ขน) | N108: = | O108: ='ค่าดำเนินการ+ค่าเสื่อมราคา'!$G$21 -> 28.88 | Q108: บาท/ลบ.ม.
B109: ค่าขนส่ง | D109: =ข้อมูลเริ่มต้น!$H$69 -> 3 | F109: กม. | N109: = | O109: =ข้อมูลเริ่มต้น!$I$69 -> 11.89 | Q109: บาท/ลบ.ม.
B110: รวม | N110: = | O110: =SUM(O107:O109) -> 49.77 | Q110: บาท/ลบ.ม.
B111: ส่วนยุบตัว | D111: =O110 -> 49.77 | F111: x | G111: 1.6 | N111: = | P111: =D111*G111 -> 79.632 | Q111: บาท/ลบ.ม.
B112: ค่าดำเนินการ + ค่าเสื่อมราคา (บดทับ ) | N112: = | P112: ='ค่าดำเนินการ+ค่าเสื่อมราคา'!$G$23 -> 43.73 | Q112: บาท/ลบ.ม.
L113: ค่าใช้จ่ายรวม | N113: = | P113: =SUM(P111:P112) -> 123.362 | Q113: บาท/ลบ.ม.
M114: ค่างานต้นทุนรวม | N114: = | P114: =ROUND(P113,2) -> 123.36 | Q114: บาท/ลบ.ม. | R114: <<< ย้อนกลับ
B116: งานพื้นทางหินคลุก (Crushed Rock Soil Aggregate Type Base)
B117: ค่าวัสดุจากปากโม่ (รวมค่าตัก) | N117: = | O117: =ข้อมูลเริ่มต้น!$G$66 -> 120.56 | Q117: บาท/ลบ.ม.
B118: ค่าขนส่ง | D118: =ข้อมูลเริ่มต้น!$H$66 -> 250 | F118: กม. | N118: = | O118: =ข้อมูลเริ่มต้น!$I$66 -> 457.5 | Q118: บาท/ลบ.ม.
B119: รวม | N119: = | O119: =O117+O118 -> 578.06 | Q119: บาท/ลบ.ม.
B120: ส่วนยุบตัว | D120: =O119 -> 578.06 | F120: x | G120: 1.5 | N120: = | P120: =D120*G120 -> 867.09 | Q120: บาท/ลบ.ม.
B121: ค่าดำเนินการ + ค่าเสื่อมราคา (ผสม) | N121: = | P121: ='ค่าดำเนินการ+ค่าเสื่อมราคา'!$G$28 -> 17.44 | Q121: บาท/ลบ.ม.
B122: ค่าดำเนินการ + ค่าเสื่อมราคา (บดทับ ) | N122: = | P122: ='ค่าดำเนินการ+ค่าเสื่อมราคา'!$G$29 -> 68.9 | Q122: บาท/ลบ.ม.
L123: ค่าใช้จ่ายรวม | N123: = | P123: =SUM(P120:P122) -> 953.43 | Q123: บาท/ลบ.ม.
M124: ค่างานต้นทุนรวม | N124: = | P124: =ROUND(P123,2) -> 953.43 | Q124: บาท/ลบ.ม. | R124: <<< ย้อนกลับ
B126: งานพื้นทางหินคลุกผสมซีเมนต์ (Cement Modified Crushed Rock Base) | K126: (ปริมาณงาน หินคลุกผสมซีเมนต์ ทั้งโครงการ = | P126: =ข้อมูลเริ่มต้น!$N$105 -> 1978 | Q126: ลบ.ม.)
B127: ค่าวัสดุจากปากโม่ (รวมค่าตัก) | N127: = | O127: =ข้อมูลเริ่มต้น!$G$66 -> 120.56 | Q127: บาท/ลบ.ม.
B128: ค่าขนส่ง | D128: =ข้อมูลเริ่มต้น!$H$66 -> 250 | F128: กม. | N128: = | O128: =ข้อมูลเริ่มต้น!$I$66 -> 457.5 | Q128: บาท/ลบ.ม.
B129: รวม | N129: = | O129: =O127+O128 -> 578.06 | Q129: บาท/ลบ.ม.
B130: ส่วนยุบตัว | D130: =O129 -> 578.06 | F130: x | G130: 1.5 | N130: = | P130: =D130*G130 -> 867.09 | Q130: บาท/ลบ.ม.
B131: ค่าซีเมนต์ 2 % | D131: = | E131: 50 | F131: กก. | G131: @ | H131: =ข้อมูลเริ่มต้น!$L$61/1000 -> 2.20391 | J131: บาท | N131: = | P131: =E131*H131 -> 110.1955 | Q131: บาท/ลบ.ม.
B132: ค่าติดตั้งเครื่องผสม | E132: = | F132: ='ค่าดำเนินการ+ค่าเสื่อมราคา'!$E$55 -> 150000 | H132: / | I132: =IF(P126<28000,28000,P126) -> 28000 | N132: = | P132: =F132/I132 -> 5.357142857 | Q132: บาท/ลบ.ม.
B133: ค่าดำเนินการ + ค่าเสื่อมราคา (ผสมวัสดุ) | N133: = | P133: ='ค่าดำเนินการ+ค่าเสื่อมราคา'!$G$66 -> 47.02 | Q133: บาท/ลบ.ม.
B134: ค่าดำเนินการ + ค่าเสื่อมราคา (บดทับ ) | N134: = | P134: ='ค่าดำเนินการ+ค่าเสื่อมราคา'!$G$29 -> 68.9 | Q134: บาท/ลบ.ม.
B135: ค่าดำเนินการ + ค่าเสื่อมราคา (บ่มวัสดุ ) | N135: = | P135: ='ค่าดำเนินการ+ค่าเสื่อมราคา'!$G$67 -> 37.03 | Q135: บาท/ลบ.ม.
L136: ค่าใช้จ่ายรวม | N136: = | P136: =SUM(P130:P135) -> 1135.592643 | Q136: บาท/ลบ.ม.
M137: ค่างานต้นทุนรวม | N137: = | P137: =ROUND(P136,2) -> 1135.59 | Q137: บาท/ลบ.ม. | R137: <<< ย้อนกลับ
B138: หมายเหตุ | D138: ระยะทางขนส่งวัสดุ = ระยะทางจากแหล่งถึงเครื่องผสม + ระยะทางจากเครื่องผสมถึงหน้างาน
B140: งานพื้นทางดินซีเมนต์ (Soil Cement Base) | I140: (ปริมาณงาน ดินซีเมนต์ ทั้งโครงการ | N140: = | O140: =ข้อมูลเริ่มต้น!$N$105 -> 1978 | P140: ลบ.ม.)
B141: ค่าวัสดุจากแหล่ง (ลูกรัง) | N141: = | O141: =ข้อมูลเริ่มต้น!$G$69 -> 9 | Q141: บาท/ลบ.ม.
B142: ค่าดำเนินการ + ค่าเสื่อมราคา (ขุด - ขน) | N142: = | O142: ='ค่าดำเนินการ+ค่าเสื่อมราคา'!$G$21 -> 28.88 | Q142: บาท/ลบ.ม.
B143: ค่าขนส่ง | D143: =ข้อมูลเริ่มต้น!$H$69 -> 3 | F143: กม. | N143: = | O143: =ข้อมูลเริ่มต้น!$I$69 -> 11.89 | Q143: บาท/ลบ.ม.
B144: รวม | N144: = | O144: =SUM(O141:O143) -> 49.77 | Q144: บาท/ลบ.ม.
B145: ส่วนยุบตัว | D145: =O144 -> 49.77 | F145: x | G145: 1.6 | N145: = | P145: =D145*G145 -> 79.632 | Q145: บาท/ลบ.ม.
B146: ค่าซีเมนต์ 5 % | D146: = | E146: 100 | F146: กก. | G146: @ | H146: =ข้อมูลเริ่มต้น!$L$61/1000 -> 2.20391 | J146: บาท | N146: = | P146: =E146*H146 -> 220.391 | Q146: บาท/ลบ.ม.
B147: ค่าติดตั้งเครื่องผสม | E147: = | F147: ='ค่าดำเนินการ+ค่าเสื่อมราคา'!$E$55 -> 150000 | H147: / | I147: =IF(O140<28000,28000,O140) -> 28000 | N147: = | P147: =F147/I147 -> 5.357142857 | Q147: บาท/ลบ.ม.
B148: ค่าดำเนินการ + ค่าเสื่อมราคา (ผสมวัสดุ) | N148: = | P148: ='ค่าดำเนินการ+ค่าเสื่อมราคา'!$G$64 -> 43.75 | Q148: บาท/ลบ.ม.
B149: ค่าดำเนินการ + ค่าเสื่อมราคา (บดทับ ) | N149: = | P149: ='ค่าดำเนินการ+ค่าเสื่อมราคา'!$G$23 -> 43.73 | Q149: บาท/ลบ.ม.
B150: ค่าดำเนินการ + ค่าเสื่อมราคา (บ่มวัสดุ ) | N150: = | P150: ='ค่าดำเนินการ+ค่าเสื่อมราคา'!$G$65 -> 37.03 | Q150: บาท/ลบ.ม.
L151: ค่าใช้จ่ายรวม | N151: = | P151: =SUM(P145:P150) -> 429.8901429 | Q151: บาท/ลบ.ม.
M152: ค่างานต้นทุนรวม | N152: = | P152: =ROUND(P151,2) -> 429.89 | Q152: บาท/ลบ.ม. | R152: <<< ย้อนกลับ
B153: หมายเหตุ | D153: ระยะทางขนส่งวัสดุ = ระยะทางจากแหล่งถึงเครื่องผสม + ระยะทางจากเครื่องผสมถึงหน้างาน
B155: งานไหล่ทางลูกรัง (Soil Aggregate Shoulder)
B156: ค่าวัสดุจากแหล่ง (ลูกรัง) | N156: = | O156: =ข้อมูลเริ่มต้น!$G$69 -> 9 | Q156: บาท/ลบ.ม.
B157: ค่าดำเนินการ + ค่าเสื่อมราคา (ขุด - ขน) | N157: = | O157: ='ค่าดำเนินการ+ค่าเสื่อมราคา'!$G$21 -> 28.88 | Q157: บาท/ลบ.ม.
B158: ค่าขนส่ง | D158: =ข้อมูลเริ่มต้น!$H$69 -> 3 | F158: กม. | N158: = | O158: =ข้อมูลเริ่มต้น!$I$69 -> 11.89 | Q158: บาท/ลบ.ม.
B159: รวม | N159: = | O159: =SUM(O156:O158) -> 49.77 | Q159: บาท/ลบ.ม.
B160: ส่วนยุบตัว | D160: =O159 -> 49.77 | F160: x | G160: 1.75 | P160: =D160*G160 -> 87.0975 | Q160: บาท/ลบ.ม.
B161: ค่าดำเนินการ + ค่าเสื่อมราคา (บดทับ) | N161: = | P161: ='ค่าดำเนินการ+ค่าเสื่อมราคา'!$G$26 -> 55.58 | Q161: บาท/ลบ.ม.
L162: ค่าใช้จ่ายรวม | N162: = | P162: =P160+P161 -> 142.6775 | Q162: บาท/ลบ.ม.
M163: ค่างานต้นทุนรวม | N163: = | P163: =ROUND(P162,2) -> 142.68 | Q163: บาท/ลบ.ม. | R163: <<< ย้อนกลับ
B165: งานไหล่ทางลูกรังปรับเกลี่ยแต่ง (Soil Aggregate Shoulder)
B166: ค่าวัสดุจากแหล่ง (ลูกรัง) | N166: = | O166: =ข้อมูลเริ่มต้น!$G$69 -> 9 | Q166: บาท/ลบ.ม.
B167: ค่าดำเนินการ + ค่าเสื่อมราคา (ขุด - ขน) | N167: = | O167: ='ค่าดำเนินการ+ค่าเสื่อมราคา'!$G$21 -> 28.88 | Q167: บาท/ลบ.ม.
B168: ค่าขนส่ง | D168: =ข้อมูลเริ่มต้น!$H$69 -> 3 | F168: กม. | N168: = | O168: =ข้อมูลเริ่มต้น!$I$69 -> 11.89 | Q168: บาท/ลบ.ม.
B169: รวม | N169: = | O169: =SUM(O166:O168) -> 49.77 | Q169: บาท/ลบ.ม.
B170: ค่าดำเนินการปรับเกลี่ยแต่ง = | F170: 8 | G170: บาท / ลบ.ม. | N170: = | P170: =F170 -> 8 | Q170: บาท/ลบ.ม.
L171: ค่าใช้จ่ายรวม | N171: = | P171: =O169+P170 -> 57.77 | Q171: บาท/ลบ.ม.
M172: ค่างานต้นทุนรวม | N172: = | P172: =ROUND(P171,2) -> 57.77 | Q172: บาท/ลบ.ม. | R172: <<< ย้อนกลับ
B174: งานผิวทางลูกรัง บดอัดแน่น
B175: ค่าวัสดุจากแหล่ง (ลูกรัง) | N175: = | O175: =ข้อมูลเริ่มต้น!$G$69 -> 9 | Q175: บาท/ลบ.ม.
B176: ค่าดำเนินการ + ค่าเสื่อมราคา (ขุด-ขน) | N176: = | O176: ='ค่าดำเนินการ+ค่าเสื่อมราคา'!$G$21 -> 28.88 | Q176: บาท/ลบ.ม.
B177: ค่าขนส่ง | D177: =ข้อมูลเริ่มต้น!$H$69 -> 3 | F177: กม. | N177: = | O177: =ข้อมูลเริ่มต้น!$I$69 -> 11.89 | Q177: บาท/ลบ.ม.
B178: รวม | N178: = | O178: =SUM(O175:O177) -> 49.77 | Q178: บาท/ลบ.ม.
B179: ส่วนยุบตัว | D179: =O178 -> 49.77 | F179: x | G179: 1.6 | N179: = | P179: =D179*G179 -> 79.632 | Q179: บาท/ลบ.ม.
B180: ค่าดำเนินการ + ค่าเสื่อมราคา (บดทับ ) | N180: = | P180: ='ค่าดำเนินการ+ค่าเสื่อมราคา'!$G$23 -> 43.73 | Q180: บาท/ลบ.ม.
L181: ค่าใช้จ่ายรวม | N181: = | P181: =SUM(P179:P180) -> 123.362 | Q181: บาท/ลบ.ม.
M182: ค่างานต้นทุนรวม | N182: = | P182: =ROUND(P181,2) -> 123.36 | Q182: บาท/ลบ.ม. | R182: <<< ย้อนกลับ
B184: งานผิวทางลูกรัง ปรับเกลี่ยแต่ง
B185: ค่าวัสดุจากแหล่ง (ลูกรัง) | N185: = | O185: =ข้อมูลเริ่มต้น!$G$69 -> 9 | Q185: บาท/ลบ.ม.
B186: ค่าดำเนินการ + ค่าเสื่อมราคา (ขุด - ขน) | N186: = | O186: ='ค่าดำเนินการ+ค่าเสื่อมราคา'!$G$21 -> 28.88 | Q186: บาท/ลบ.ม.
B187: ค่าขนส่ง | D187: =ข้อมูลเริ่มต้น!$H$69 -> 3 | F187: กม. | N187: = | O187: =ข้อมูลเริ่มต้น!$I$69 -> 11.89 | Q187: บาท/ลบ.ม.
B188: รวม | N188: = | O188: =SUM(O185:O187) -> 49.77 | Q188: บาท/ลบ.ม.
B189: ค่าดำเนินการปรับเกลี่ยแต่ง = | F189: 8 | G189: บาท / ลบ.ม. | N189: = | P189: =F189 -> 8 | Q189: บาท/ลบ.ม.
L190: ค่าใช้จ่ายรวม | N190: = | P190: =O188+P189 -> 57.77 | Q190: บาท/ลบ.ม.
M191: ค่างานต้นทุนรวม | N191: = | P191: =ROUND(P190,2) -> 57.77 | Q191: บาท/ลบ.ม. | R191: <<< ย้อนกลับ
B193: งานทรายรองใต้ผิวทางคอนกรีต (Sand Cushion Under Concrete Pavement)
B194: ค่าวัสดุจากแหล่ง ( ใช้ราคา = (ราคาทรายคอนกรีต + ทรายถม) / 2 ) | N194: = | O194: =(ข้อมูลเริ่มต้น!$G$68+ข้อมูลเริ่มต้น!$G$71)/2 -> 250.28 | Q194: บาท/ลบ.ม.
B195: ค่าดำเนินการ + ค่าเสื่อมราคา (ขุด-ขน) | N195: = | Q195: บาท/ลบ.ม.
B196: ค่าขนส่ง | D196: =ข้อมูลเริ่มต้น!$H$68 -> 30 | F196: กม. | N196: = | O196: =ข้อมูลเริ่มต้น!$I$68 -> 84.64 | Q196: บาท/ลบ.ม.
B197: รวม | N197: = | O197: =SUM(O194:O196) -> 334.92 | Q197: บาท/ลบ.ม.
B198: ส่วนยุบตัว | D198: =O197 -> 334.92 | F198: x | G198: 1.4 | N198: = | P198: =D198*G198 -> 468.888 | Q198: บาท/ลบ.ม.
B199: ค่าดำเนินการ + ค่าเสื่อมราคา (บดทับ 75 % ) | N199: = | P199: ='ค่าดำเนินการ+ค่าเสื่อมราคา'!$G$12*0.75 -> 27.33 | Q199: บาท/ลบ.ม.
L200: ค่าใช้จ่ายรวม | N200: = | P200: =P198+P199 -> 496.218 | Q200: บาท/ลบ.ม.
M201: ค่างานต้นทุนรวม | N201: = | P201: =ROUND(P200,2) -> 496.22 | Q201: บาท/ลบ.ม. | R201: <<< ย้อนกลับ
B203: งานหินคลุกรองใต้ผิวทางคอนกรีต (Crushed Rock Soil Aggregate Under Cushion Under Concrete Pavement)
B204: ค่าวัสดุจากปากโม่ (รวมค่าตัก) | N204: = | O204: =ข้อมูลเริ่มต้น!$G$66 -> 120.56 | Q204: บาท/ลบ.ม.
B205: ค่าขนส่ง | D205: =ข้อมูลเริ่มต้น!$H$66 -> 250 | F205: กม. | N205: = | O205: =ข้อมูลเริ่มต้น!$I$66 -> 457.5 | Q205: บาท/ลบ.ม.
B206: รวม | N206: = | O206: =O204+O205 -> 578.06 | Q206: บาท/ลบ.ม.
B207: ส่วนยุบตัว | D207: =O206 -> 578.06 | F207: x | G207: 1.5 | N207: = | P207: =D207*G207 -> 867.09 | Q207: บาท/ลบ.ม.
B208: ค่าดำเนินการ + ค่าเสื่อมราคา (Blend) | N208: = | P208: ='ค่าดำเนินการ+ค่าเสื่อมราคา'!$G$28 -> 17.44 | Q208: บาท/ลบ.ม.
B209: ค่าดำเนินการ + ค่าเสื่อมราคา (บดทับ ) | N209: = | P209: ='ค่าดำเนินการ+ค่าเสื่อมราคา'!$G$29 -> 68.9 | Q209: บาท/ลบ.ม.
L210: ค่าใช้จ่ายรวม | N210: = | P210: =SUM(P207:P209) -> 953.43 | Q210: บาท/ลบ.ม.
M211: ค่างานต้นทุนรวม | N211: = | P211: =ROUND(P210,2) -> 953.43 | Q211: บาท/ลบ.ม. | R211: <<< ย้อนกลับ
B213: งานลาดแอสฟัลต์ไพร์มโค้ต (Prime Coat)
B214: ค่ายาง จากตารางที่ 1 | E214: =IF(ข้อมูลเริ่มต้น!Z4=2,1,IF(ข้อมูลเริ่มต้น!Z4=3,0.8,IF(ข้อมูลเริ่มต้น!Z4=4,0.8,IF(ข้อมูลเริ่มต้น!Z4=1," ")))) -> 1 | F214: ลิตร | G214: @ | H214: =ข้อมูลเริ่มต้น!$L$63 -> 37610 | J214: บาท / ตัน | N214: = | P214: =(H214*E214)/1000 -> 37.61 | Q214: บาท/ตร.ม.
B215: ค่าดำเนินการ + ค่าเสื่อมราคา | N215: = | P215: ='ค่าดำเนินการ+ค่าเสื่อมราคา'!$G$35 -> 6.51 | Q215: บาท/ตร.ม.
L216: ค่าใช้จ่ายรวม | N216: = | P216: =SUM(P214:P215) -> 44.12 | Q216: บาท/ตร.ม.
M217: ค่างานต้นทุนรวม | N217: = | P217: =ROUND(P216,2) -> 44.12 | Q217: บาท/ตร.ม. | R217: <<< ย้อนกลับ
B219: งานลาดแอสฟัลต์แทคโค้ต (Tack Coat)
B220: ค่ายาง | E220: 0.3 | F220: ลิตร | G220: @ | H220: =ข้อมูลเริ่มต้น!$L$63 -> 37610 | J220: บาท / ตัน | N220: = | P220: =(H220*E220)/1000 -> 11.283 | Q220: บาท/ตร.ม.
B221: ค่าดำเนินการ + ค่าเสื่อมราคา | N221: = | P221: ='ค่าดำเนินการ+ค่าเสื่อมราคา'!$G$36 -> 6.2 | Q221: บาท/ตร.ม.
L222: ค่าใช้จ่ายรวม | N222: = | P222: =SUM(P220:P221) -> 17.483 | Q222: บาท/ตร.ม.
M223: ค่างานต้นทุนรวม | N223: = | P223: =ROUND(P222,2) -> 17.48 | Q223: บาท/ตร.ม. | R223: <<< ย้อนกลับ
... 354 more rows

Sheet สรุปโครงสร้างทาง ช่วง 1 (hidden)
B1: กรุณาป้อนข้อมูลในแถบ สีเหลือง
F2: side slope | H2: 1 : | I2: =ข้อมูลเริ่มต้น!$X$21 -> 1.5 | K2: ผิวทางหนา
C3: 1) | D3: =ข้อมูลเริ่มต้น!AF4 -> งานวัสดุคัดเลือกเป็นลูกรัง | G3: หนา | H3: = | I3: =IF(D3=" ",0,ข้อมูลเริ่มต้น!$I$14/100) -> 0.2 | J3: ม. | K3: =(ข้อมูลเริ่มต้น!$I$11)/100 -> 0.2 | L3: =(K3*I2)*2 -> 0.6 | M3: =((K4+L4)/2)*K3 -> 1.26 | P3: =IF($I$5=" ",0,$I$5) -> 0.2
C4: 2) | D4: =ข้อมูลเริ่มต้น!W4 -> งานรองพื้นทางดินซีเมนต์ | G4: หนา | H4: = | I4: =IF(D4=" ",,ข้อมูลเริ่มต้น!$I$13/100) -> 0.2 | J4: ม. | K4: =(H8+H9)/2 -> 6 | L4: =K4+L3 -> 6.6
C5: 3) | D5: =ข้อมูลเริ่มต้น!AA4 -> งานพื้นทางหินคลุก | G5: หนา | H5: = | I5: =IF(D5=" ",0,ข้อมูลเริ่มต้น!$I$12/100) -> 0.2 | J5: ม. | AG5: ถนนคอนกรีตเสริมเหล็ก
B6: STA. | C6: ระยะ | D6: ดินตัด (Cut) | E6: ดินถม (Fill) | F6: cut | G6: fill | H6: ผิวทางกว้าง | I6: ไหล่ทางกว้างข้างละ | J6: งานถางป่าขุดตอ กว้าง | K6: รวมผิว+ไหล่ทาง | L6: งานชั้นวัสดุคัดเลือก | P6: งานรองพื้นทาง | T6: งานปรับเกลียคันทางเดิม | U6: งานวัสดุคัดเลือก | V6: งานรองพื้นทางลูกรัง | W6: งานชั้นพื้นทาง | AA6: งานชั้นพื้นทาง | AB6: งาน prime coat | AC6: งานผิวทาง | AD6: งานไหล่ทาง | AG6: งานทรายรองพื้นใต้คอนกรีต | AK6: งานทรายรองพื้น | AM6: งานลูกรังไหล่ทาง | AN6: งานขุดตอถางป่า | AO6: งานปรับเกลียคันทางเดิม | AQ6: งานผิวทางลูกรัง
B7: (ควรกรอกที่ละ 25 ม.) | D7: ตร.ม. | E7: ตร.ม. | F7: ลบ.ม. | G7: ลบ.ม. | H7: ม. | I7: ม. | J7: ม. | K7: ม. | L7: ระยะผิวบน | M7: ระยะผิวล่าง | N7: กว้างเฉลี่ย | O7: ตร.ม. | P7: ระยะผิวบน | Q7: ระยะผิวล่าง | R7: กว้างเฉลี่ย | S7: ตร.ม. | T7: ตร.ม. | U7: ลบ.ม. | V7: ลบ.ม. | W7: ระยะผิวบน | X7: ระยะผิวล่าง | Y7: กว้างเฉลี่ย | Z7: ตร.ม. | AA7: ลบ.ม. | AB7: ตร.ม. | AC7: ตร.ม. | AD7: ตร.ม. | AG7: ระยะผิวบน | AH7: ระยะผิวล่าง | AI7: กว้างเฉลี่ย | AJ7: ตร.ม. | AK7: ลบ.ม. | AM7: ลบ.ม. | AN7: ตร.ม. | AO7: ตร.ม. | AQ7: ตร.ม.
H8: =IF(ข้อมูลเริ่มต้น!$T$23=" ",0,ข้อมูลเริ่มต้น!$T$23) -> 6 | I8: =IF(ข้อมูลเริ่มต้น!$X$23=" ",0,ข้อมูลเริ่มต้น!$X$23) -> 1 | K8: =+H8+2*I8 -> 8 | L8: =IF(H8=0,0,K8+2*$I$2*$I$4+2*$I$2*$I$5) -> 9.2 | M8: =IF(H8=0,0,K8+2*$I$2*$I$3+2*$I$2*$I$4+2*$I$2*$I$5) -> 9.8 | N8: =(L8+M8)/2 -> 9.5 | O8: =N8*$I$3 -> 1.9 | P8: =IF(K8=0,0,K8+2*$I$5/(1/$I$2)) -> 8.6 | Q8: =IF(K8=0,0,K8+2*($I$5+$I$4)/(1/$I$2)) -> 9.2 | R8: =+(P8+Q8)/2 -> 8.9 | S8: =+R8*$I$4 -> 1.78 | W8: =+K8 -> 8 | X8: =P8 -> 8.6 | Y8: =+(W8+X8)/2 -> 8.3 | Z8: =+Y8*$I$5 -> 1.66 | AG8: =+K8 -> 8 | AH8: =+K8 -> 8 | AI8: =+(AG8+AH8)/2 -> 8 | AJ8: =+AI8*$I$5 -> 1.6
C9: =ข้อมูลเริ่มต้น!$Y$23 -> 1000 | F9: =IF(B9=0," ",(D8+D9)/2*C9) ->  | G9: =IF(B9=0," ",(E8+E9)/2*C9) ->  | H9: =$H$8 -> 6 | I9: =$I$8 -> 1 | K9: =+H9+2*I9 -> 8 | L9: =IF(H9=0,0,K9+2*$I$2*$I$4+2*$I$2*$I$5) -> 9.2 | M9: =IF(H9=0,0,K9+2*$I$2*$I$3+2*$I$2*$I$4+2*$I$2*$I$5) -> 9.8 | N9: =(L9+M9)/2 -> 9.5 | O9: =N9*$I$3 -> 1.9 | P9: =IF(K9=0,0,K9+2*$I$5/(1/$I$2)) -> 8.6 | Q9: =IF(K9=0,0,K9+2*($I$5+$I$4)/(1/$I$2)) -> 9.2 | R9: =+(P9+Q9)/2 -> 8.9 | S9: =+R9*$I$4 -> 1.78 | T9: =IF(H9=0,0,(X8+X9)/2*C9) -> 8600 | U9: =IF(H9=0,0,(O9+O8)/2*C9) -> 1900 | V9: =IF(H9=0,0,(S9+S8)/2*C9) -> 1780 | W9: =+K9 -> 8 | X9: =P9 -> 8.6 | Y9: =+(W9+X9)/2 -> 8.3 | Z9: =+Y9*$I$5 -> 1.66 | AA9: =IF(H9=0,0,(Z9+Z8)/2*C9) -> 1660 | AB9: =IF(H9=0,0,(W8+W9)/2*C9) -> 8000 | AC9: =IF($H$9=0,0,($H$8+$H$9)/2*$C$9) -> 6000 | AD9: =IF(H9=0,0,(2*I8+2*I9)/2*C9) -> 2000 | AE9: =IF(H9>0,C9,0) -> 1000 | AG9: =+K9 -> 8 | AH9: =+K9 -> 8 | AI9: =+(AG9+AH9)/2 -> 8 | AJ9: =+AI9*$I$5 -> 1.6 | AK9: =IF(H9=0,0,(AJ9+AJ8)/2*C9) -> 1600 | AL9: =((ข้อมูลเริ่มต้น!$I$11/100)+$I$5) -> 0.4 | AM9: =AD9*AL9 -> 800 | AO9: =IF(H9=0,0,(AH8+AH9)/2*C9) -> 8000 | AQ9: =IF($H$9=0,0,($M$3*$C$9)) -> 1260
C10: =IF(B10=0," ",(+B10-B9)) ->  | F10: =IF(B10=0," ",(D9+D10)/2*C10) ->  | G10: =IF(B10=0," ",(E9+E10)/2*C10) ->  | K10: =+H10+2*I10 -> 0 | L10: =IF(H10=0,0,K10+2*$I$2*$I$4+2*$I$2*$I$5) -> 0 | M10: =IF(H10=0,0,K10+2*$I$2*$I$3+2*$I$2*$I$4+2*$I$2*$I$5) -> 0 | N10: =(L10+M10)/2 -> 0 | O10: =N10*$I$3 -> 0 | P10: =IF(K10=0,0,K10+2*$I$5/(1/$I$2)) -> 0 | Q10: =IF(K10=0,0,K10+2*($I$5+$I$4)/(1/$I$2)) -> 0 | R10: =+(P10+Q10)/2 -> 0 | S10: =+R10*$I$4 -> 0 | T10: =IF(H10=0,0,(X9+X10)/2*C10) -> 0 | U10: =IF(H10=0,0,(O10+O9)/2*C10) -> 0 | V10: =IF(H10=0,0,(S10+S9)/2*C10) -> 0 | W10: =+K10 -> 0 | X10: =P10 -> 0 | Y10: =+(W10+X10)/2 -> 0 | Z10: =+Y10*$I$5 -> 0 | AA10: =IF(H10=0,0,(Z10+Z9)/2*C10) -> 0 | AB10: =IF(H10=0,0,(W9+W10)/2*C10) -> 0 | AC10: =IF($H$10=0,0,($H$9+$H$10)/2*$C$10) -> 0 | AD10: =IF(H10=0,0,(2*I9+2*I10)/2*C10) -> 0 | AE10: =IF(H10>0,C10,0) -> 0 | AG10: =+K10 -> 0 | AH10: =+K10 -> 0 | AI10: =+(AG10+AH10)/2 -> 0 | AJ10: =+AI10*$I$5 -> 0 | AK10: =IF(H10=0,0,(AJ10+AJ9)/2*C10) -> 0 | AL10: =((ข้อมูลเริ่มต้น!$I$11/100)+$I$5) -> 0.4 | AM10: =AD10*AL10 -> 0 | AO10: =IF(H10=0,0,(AH9+AH10)/2*C10) -> 0 | AQ10: =IF($H$10=0,0,($H$9+$H$10)/2*$C$10) -> 0
B11: รวม | C11: =SUM(C8:C10) -> 1000 | F11: =SUM(F8:F10) -> 0 | G11: =SUM(G8:G10) -> 0 | T11: =SUM(T8:T10) -> 8600 | U11: 1900 | V11: 1780 | W11: 16 | X11: 17.2 | Y11: 16.6 | Z11: 3.32 | AA11: 1660 | AB11: 8000 | AC11: 6000 | AD11: 2000 | AE11: =SUM(AE9:AE10) -> 1000 | AG11: =SUM(AG8:AG10) -> 16 | AH11: =SUM(AH8:AH10) -> 16 | AI11: =SUM(AI8:AI10) -> 16 | AJ11: =SUM(AJ8:AJ10) -> 3.2 | AK11: =SUM(AK8:AK10) -> 1600 | AM11: =SUM(AM8:AM10) -> 800 | AO11: =SUM(AO8:AO10) -> 8000 | AQ11: =SUM(AQ8:AQ10) -> 1260
T13: =ROUND((T11+'สรุปโครงสร้างทาง ช่วง 2'!T11+'สรุปโครงสร้างทาง ช่วง 3'!T11+'สรุปโครงสร้างทาง ช่วง 4'!T11),2) -> 10280 | U13: =ROUND((U11+'สรุปโครงสร้างทาง ช่วง 2'!U11+'สรุปโครงสร้างทาง ช่วง 3'!U11+'สรุปโครงสร้างทาง ช่วง 4'!U11),2) -> 2290 | V13: =ROUND((V11+'สรุปโครงสร้างทาง ช่วง 2'!V11+'สรุปโครงสร้างทาง ช่วง 3'!V11+'สรุปโครงสร้างทาง ช่วง 4'!V11),2) -> 2134 | AA13: =ROUND((AA11+'สรุปโครงสร้างทาง ช่วง 2'!AA11+'สรุปโครงสร้างทาง ช่วง 3'!AA11+'สรุปโครงสร้างทาง ช่วง 4'!AA11),2) -> 1978 | AB13: =ROUND((AB11+'สรุปโครงสร้างทาง ช่วง 2'!AB11+'สรุปโครงสร้างทาง ช่วง 3'!AB11+'สรุปโครงสร้างทาง ช่วง 4'!AB11),2) -> 9500 | AC13: =ROUND(($AC$11+'สรุปโครงสร้างทาง ช่วง 2'!$AC$11+'สรุปโครงสร้างทาง ช่วง 3'!AC11+'สรุปโครงสร้างทาง ช่วง 4'!AC11),2) -> 7200 | AD13: =ROUND((AD11+'สรุปโครงสร้างทาง ช่วง 2'!AD11+'สรุปโครงสร้างทาง ช่วง 3'!AD11+'สรุปโครงสร้างทาง ช่วง 4'!AD11),2) -> 2300 | AK13: =ROUND((AK11+'สรุปโครงสร้างทาง ช่วง 2'!AK11+'สรุปโครงสร้างทาง ช่วง 3'!AK11+'สรุปโครงสร้างทาง ช่วง 4'!AK11),2) -> 1900 | AM13: =ROUND((AM11+'สรุปโครงสร้างทาง ช่วง 2'!AM11+'สรุปโครงสร้างทาง ช่วง 3'!AM11+'สรุปโครงสร้างทาง ช่วง 4'!AM11),2) -> 920 | AO13: =ROUND((AO11+'สรุปโครงสร้างทาง ช่วง 2'!AO11+'สรุปโครงสร้างทาง ช่วง 3'!AO11+'สรุปโครงสร้างทาง ช่วง 4'!AO11),2) -> 9500 | AQ13: =ROUND((AQ11+'สรุปโครงสร้างทาง ช่วง 2'!AQ11+'สรุปโครงสร้างทาง ช่วง 3'!AQ11+'สรุปโครงสร้างทาง ช่วง 4'!AQ11),2) -> 1518

Sheet สรุปโครงสร้างทาง ช่วง 2 (hidden)
B1: กรุณาป้อนข้อมูลในแถบ สีเหลือง
F2: side slope | H2: 1 : | I2: =ข้อมูลเริ่มต้น!$X$21 -> 1.5 | K2: ผิวทางหนา
C3: 1) | D3: =ข้อมูลเริ่มต้น!AF4 -> งานวัสดุคัดเลือกเป็นลูกรัง | G3: หนา | H3: = | I3: =IF(D3=" ",0,ข้อมูลเริ่มต้น!$I$14/100) -> 0.2 | J3: ม. | K3: =(ข้อมูลเริ่มต้น!$I$11)/100 -> 0.2 | L3: =(K3*I2)*2 -> 0.6 | M3: =((K4+L4)/2)*K3 -> 0.86 | P3: =IF($I$5=" ",0,$I$5) -> 0.2
C4: 2) | D4: =ข้อมูลเริ่มต้น!W4 -> งานรองพื้นทางดินซีเมนต์ | G4: หนา | H4: = | I4: =IF(D4=" ",0,ข้อมูลเริ่มต้น!$I$13/100) -> 0.2 | J4: ม. | K4: =(H8+H9)/2 -> 4 | L4: =K4+L3 -> 4.6
C5: 3) | D5: =ข้อมูลเริ่มต้น!AA4 -> งานพื้นทางหินคลุก | G5: หนา | H5: = | I5: =IF(D5=" ",0,ข้อมูลเริ่มต้น!$I$12/100) -> 0.2 | J5: ม. | AG5: ถนนคอนกรีตเสริมเหล็ก
B6: STA. | C6: ระยะ | D6: ดินตัด (Cut) | E6: ดินถม (Fill) | F6: cut | G6: fill | H6: ผิวทางกว้าง | I6: ไหล่ทางกว้างข้างละ | J6: งานถางป่าขุดตอ กว้าง | K6: รวมผิว+ไหล่ทาง | L6: งานชั้นวัสดุคัดเลือก | P6: งานรองพื้นทาง | T6: งานปรับเกลียคันทางเดิม | U6: งานวัสดุคัดเลือก | V6: งานรองพื้นทางลูกรัง | W6: งานชั้นพื้นทาง | AA6: งานชั้นพื้นทาง | AB6: งาน prime coat | AC6: งานผิวทาง | AD6: งานไหล่ทาง | AG6: งานทรายรองพื้นใต้คอนกรีต | AK6: งานทรายรองพื้น | AM6: งานลูกรังไหล่ทาง | AN6: งานขุดตอถางป่า | AO6: งานปรับเกลียคันทางเดิม | AQ6: งานผิวทางลูกรัง
B7: (ควรกรอกที่ละ 25 ม.) | D7: ตร.ม. | E7: ตร.ม. | F7: ลบ.ม. | G7: ลบ.ม. | H7: ม. | I7: ม. | J7: ม. | K7: ม. | L7: ระยะผิวบน | M7: ระยะผิวล่าง | N7: กว้างเฉลี่ย | O7: ตร.ม. | P7: ระยะผิวบน | Q7: ระยะผิวล่าง | R7: กว้างเฉลี่ย | S7: ตร.ม. | T7: ตร.ม. | U7: ลบ.ม. | V7: ลบ.ม. | W7: ระยะผิวบน | X7: ระยะผิวล่าง | Y7: กว้างเฉลี่ย | Z7: ตร.ม. | AA7: ลบ.ม. | AB7: ตร.ม. | AC7: ตร.ม. | AD7: ตร.ม. | AG7: ระยะผิวบน | AH7: ระยะผิวล่าง | AI7: กว้างเฉลี่ย | AJ7: ตร.ม. | AK7: ลบ.ม. | AM7: ลบ.ม. | AN7: ตร.ม. | AO7: ตร.ม. | AQ7: ตร.ม.
H8: =IF(ข้อมูลเริ่มต้น!$T$24=" ",0,ข้อมูลเริ่มต้น!$T$24) -> 4 | I8: =IF(ข้อมูลเริ่มต้น!$X$24=" ",0,ข้อมูลเริ่มต้น!$X$24) -> 0.5 | K8: =+H8+2*I8 -> 5 | L8: =IF(H8=0,0,K8+2*$I$2*$I$4+2*$I$2*$I$5) -> 6.2 | M8: =IF(H8=0,0,K8+2*$I$2*$I$3+2*$I$2*$I$4+2*$I$2*$I$5) -> 6.8 | N8: =(L8+M8)/2 -> 6.5 | O8: =N8*$I$3 -> 1.3 | P8: =IF(K8=0,0,K8+2*$I$5/(1/$I$2)) -> 5.6 | Q8: =IF(K8=0,0,K8+2*($I$5+$I$4)/(1/$I$2)) -> 6.2 | R8: =+(P8+Q8)/2 -> 5.9 | S8: =+R8*$I$4 -> 1.18 | W8: =+K8 -> 5 | X8: =P8 -> 5.6 | Y8: =+(W8+X8)/2 -> 5.3 | Z8: =+Y8*$I$5 -> 1.06 | AG8: =+K8 -> 5 | AH8: =+K8 -> 5 | AI8: =+(AG8+AH8)/2 -> 5 | AJ8: =+AI8*$I$5 -> 1
C9: =ข้อมูลเริ่มต้น!$Y$24 -> 300 | F9: =IF(B9=0," ",(D8+D9)/2*C9) ->  | G9: =IF(B9=0," ",(E8+E9)/2*C9) ->  | H9: =$H$8 -> 4 | I9: =$I$8 -> 0.5 | K9: =+H9+2*I9 -> 5 | L9: =IF(H9=0,0,K9+2*$I$2*$I$4+2*$I$2*$I$5) -> 6.2 | M9: =IF(H9=0,0,K9+2*$I$2*$I$3+2*$I$2*$I$4+2*$I$2*$I$5) -> 6.8 | N9: =(L9+M9)/2 -> 6.5 | O9: =N9*$I$3 -> 1.3 | P9: =IF(K9=0,0,K9+2*$I$5/(1/$I$2)) -> 5.6 | Q9: =IF(K9=0,0,K9+2*($I$5+$I$4)/(1/$I$2)) -> 6.2 | R9: =+(P9+Q9)/2 -> 5.9 | S9: =+R9*$I$4 -> 1.18 | T9: =IF(H9=0,0,(X8+X9)/2*C9) -> 1680 | U9: =IF(H9=0,0,(O9+O8)/2*C9) -> 390 | V9: =IF(H9=0,0,(S9+S8)/2*C9) -> 354 | W9: =+K9 -> 5 | X9: =P9 -> 5.6 | Y9: =+(W9+X9)/2 -> 5.3 | Z9: =+Y9*$I$5 -> 1.06 | AA9: =IF(H9=0,0,(Z9+Z8)/2*C9) -> 318 | AB9: =IF(H9=0,0,(W8+W9)/2*C9) -> 1500 | AC9: =IF(H9=0,0,(H8+H9)/2*C9) -> 1200 | AD9: =IF(H9=0,0,(2*I8+2*I9)/2*C9) -> 300 | AE9: =IF(H9>0,C9,0) -> 300 | AG9: =+K9 -> 5 | AH9: =+K9 -> 5 | AI9: =+(AG9+AH9)/2 -> 5 | AJ9: =+AI9*$I$5 -> 1 | AK9: =IF(H9=0,0,(AJ9+AJ8)/2*C9) -> 300 | AL9: =((ข้อมูลเริ่มต้น!$I$11/100)+$I$5) -> 0.4 | AM9: =AD9*AL9 -> 120 | AO9: =IF(H9=0,0,(AH8+AH9)/2*C9) -> 1500 | AQ9: =IF($H$9=0,0,($M$3*$C$9)) -> 258
C10: =IF(B10=0," ",(+B10-B9)) ->  | F10: =IF(B10=0," ",(D9+D10)/2*C10) ->  | G10: =IF(B10=0," ",(E9+E10)/2*C10) ->  | K10: =+H10+2*I10 -> 0 | L10: =IF(H10=0,0,K10+2*$I$2*$I$4+2*$I$2*$I$5) -> 0 | M10: =IF(H10=0,0,K10+2*$I$2*$I$3+2*$I$2*$I$4+2*$I$2*$I$5) -> 0 | N10: =(L10+M10)/2 -> 0 | O10: =N10*$I$3 -> 0 | P10: =IF(K10=0,0,K10+2*$I$5/(1/$I$2)) -> 0 | Q10: =IF(K10=0,0,K10+2*($I$5+$I$4)/(1/$I$2)) -> 0 | R10: =+(P10+Q10)/2 -> 0 | S10: =+R10*$I$4 -> 0 | T10: =IF(H10=0,0,(X9+X10)/2*C10) -> 0 | U10: =IF(H10=0,0,(O10+O9)/2*C10) -> 0 | V10: =IF(H10=0,0,(S10+S9)/2*C10) -> 0 | W10: =+K10 -> 0 | X10: =P10 -> 0 | Y10: =+(W10+X10)/2 -> 0 | Z10: =+Y10*$I$5 -> 0 | AA10: =IF(H10=0,0,(Z10+Z9)/2*C10) -> 0 | AB10: =IF(H10=0,0,(W9+W10)/2*C10) -> 0 | AC10: =IF(H10=0,0,(H9+H10)/2*C10) -> 0 | AD10: =IF(H10=0,0,(2*I9+2*I10)/2*C10) -> 0 | AE10: =IF(H10>0,C10,0) -> 0 | AG10: =+K10 -> 0 | AH10: =+K10 -> 0 | AI10: =+(AG10+AH10)/2 -> 0 | AJ10: =+AI10*$I$5 -> 0 | AK10: =IF(H10=0,0,(AJ10+AJ9)/2*C10) -> 0 | AL10: =((ข้อมูลเริ่มต้น!$I$11/100)+$I$5) -> 0.4 | AM10: =AD10*AL10 -> 0 | AO10: =IF(H10=0,0,(AH9+AH10)/2*C10) -> 0 | AQ10: =IF($H$10=0,0,($H$9+$H$10)/2*$C$10) -> 0
B11: รวม | C11: =SUM(C8:C10) -> 300 | F11: =SUM(F8:F10) -> 0 | G11: =SUM(G8:G10) -> 0 | T11: =SUM(T8:T10) -> 1680 | U11: 390 | V11: 354 | W11: 10 | X11: 11.2 | Y11: 10.6 | Z11: 2.12 | AA11: 318 | AB11: 1500 | AC11: 1200 | AD11: 300 | AE11: =SUM(AE9:AE10) -> 300 | AG11: =SUM(AG8:AG10) -> 10 | AH11: =SUM(AH8:AH10) -> 10 | AI11: =SUM(AI8:AI10) -> 10 | AJ11: =SUM(AJ8:AJ10) -> 2 | AK11: =SUM(AK8:AK10) -> 300 | AM11: =SUM(AM8:AM10) -> 120 | AO11: =SUM(AO8:AO10) -> 1500 | AQ11: =SUM(AQ8:AQ10) -> 258

Sheet สรุปโครงสร้างทาง ช่วง 3 (hidden)
B1: กรุณาป้อนข้อมูลในแถบ สีเหลือง
F2: side slope | H2: 1 : | I2: =ข้อมูลเริ่มต้น!$X$21 -> 1.5 | K2: ผิวทางหนา
C3: 1) | D3: =ข้อมูลเริ่มต้น!AF4 -> งานวัสดุคัดเลือกเป็นลูกรัง | G3: หนา | H3: = | I3: =IF(D3=" ",0,ข้อมูลเริ่มต้น!$I$14/100) -> 0.2 | J3: ม. | K3: =(ข้อมูลเริ่มต้น!$I$11)/100 -> 0.2 | L3: =(K3*I2)*2 -> 0.6 | M3: =((K4+L4)/2)*K3 -> 0.06 | P3: =IF($I$5=" ",0,$I$5) -> 0.2
C4: 2) | D4: =ข้อมูลเริ่มต้น!W4 -> งานรองพื้นทางดินซีเมนต์ | G4: หนา | H4: = | I4: =IF(D4=" ",0,ข้อมูลเริ่มต้น!$I$13/100) -> 0.2 | J4: ม. | K4: =(H8+H9)/2 -> 0 | L4: =K4+L3 -> 0.6
C5: 3) | D5: =ข้อมูลเริ่มต้น!AA4 -> งานพื้นทางหินคลุก | G5: หนา | H5: = | I5: =IF(D5=" ",0,ข้อมูลเริ่มต้น!$I$12/100) -> 0.2 | J5: ม. | AG5: ถนนคอนกรีตเสริมเหล็ก
B6: STA. | C6: ระยะ | D6: ดินตัด (Cut) | E6: ดินถม (Fill) | F6: cut | G6: fill | H6: ผิวทางกว้าง | I6: ไหล่ทางกว้างข้างละ | J6: งานถางป่าขุดตอ กว้าง | K6: รวมผิว+ไหล่ทาง | L6: งานชั้นวัสดุคัดเลือก | P6: งานรองพื้นทาง | T6: งานปรับเกลียคันทางเดิม | U6: งานวัสดุคัดเลือก | V6: งานรองพื้นทางลูกรัง | W6: งานชั้นพื้นทาง | AA6: งานชั้นพื้นทาง | AB6: งาน prime coat | AC6: งานผิวทาง | AD6: งานไหล่ทาง | AG6: งานทรายรองพื้นใต้คอนกรีต | AK6: งานทรายรองพื้น | AM6: งานลูกรังไหล่ทาง | AN6: งานขุดตอถางป่า | AO6: งานปรับเกลียคันทางเดิม | AQ6: งานผิวทางลูกรัง
B7: (ควรกรอกที่ละ 25 ม.) | D7: ตร.ม. | E7: ตร.ม. | F7: ลบ.ม. | G7: ลบ.ม. | H7: ม. | I7: ม. | J7: ม. | K7: ม. | L7: ระยะผิวบน | M7: ระยะผิวล่าง | N7: กว้างเฉลี่ย | O7: ตร.ม. | P7: ระยะผิวบน | Q7: ระยะผิวล่าง | R7: กว้างเฉลี่ย | S7: ตร.ม. | T7: ตร.ม. | U7: ลบ.ม. | V7: ลบ.ม. | W7: ระยะผิวบน | X7: ระยะผิวล่าง | Y7: กว้างเฉลี่ย | Z7: ตร.ม. | AA7: ลบ.ม. | AB7: ตร.ม. | AC7: ตร.ม. | AD7: ตร.ม. | AG7: ระยะผิวบน | AH7: ระยะผิวล่าง | AI7: กว้างเฉลี่ย | AJ7: ตร.ม. | AK7: ลบ.ม. | AM7: ลบ.ม. | AN7: ตร.ม. | AO7: ตร.ม. | AQ7: ตร.ม.
H8: =IF(ข้อมูลเริ่มต้น!$T$25=" ",0,ข้อมูลเริ่มต้น!$T$25) -> 0 | I8: =IF(ข้อมูลเริ่มต้น!$X$25=" ",0,ข้อมูลเริ่มต้น!$X$25) -> 0 | K8: =+H8+2*I8 -> 0 | L8: =IF(H8=0,0,K8+2*$I$2*$I$4+2*$I$2*$I$5) -> 0 | M8: =IF(H8=0,0,K8+2*$I$2*$I$3+2*$I$2*$I$4+2*$I$2*$I$5) -> 0 | N8: =(L8+M8)/2 -> 0 | O8: =N8*$I$3 -> 0 | P8: =IF(K8=0,0,K8+2*$I$5/(1/$I$2)) -> 0 | Q8: =IF(K8=0,0,K8+2*($I$5+$I$4)/(1/$I$2)) -> 0 | R8: =+(P8+Q8)/2 -> 0 | S8: =+R8*$I$4 -> 0 | W8: =+K8 -> 0 | X8: =P8 -> 0 | Y8: =+(W8+X8)/2 -> 0 | Z8: =+Y8*$I$5 -> 0 | AG8: =+K8 -> 0 | AH8: =+K8 -> 0 | AI8: =+(AG8+AH8)/2 -> 0 | AJ8: =+AI8*$I$5 -> 0
C9: =ข้อมูลเริ่มต้น!$Y$25 -> 0 | F9: =IF(B9=0," ",(D8+D9)/2*C9) ->  | G9: =IF(B9=0," ",(E8+E9)/2*C9) ->  | H9: =$H$8 -> 0 | I9: =$I$8 -> 0 | K9: =+H9+2*I9 -> 0 | L9: =IF(H9=0,0,K9+2*$I$2*$I$4+2*$I$2*$I$5) -> 0 | M9: =IF(H9=0,0,K9+2*$I$2*$I$3+2*$I$2*$I$4+2*$I$2*$I$5) -> 0 | N9: =(L9+M9)/2 -> 0 | O9: =N9*$I$3 -> 0 | P9: =IF(K9=0,0,K9+2*$I$5/(1/$I$2)) -> 0 | Q9: =IF(K9=0,0,K9+2*($I$5+$I$4)/(1/$I$2)) -> 0 | R9: =+(P9+Q9)/2 -> 0 | S9: =+R9*$I$4 -> 0 | T9: =IF(H9=0,0,(X8+X9)/2*C9) -> 0 | U9: =IF(H9=0,0,(O9+O8)/2*C9) -> 0 | V9: =IF(H9=0,0,(S9+S8)/2*C9) -> 0 | W9: =+K9 -> 0 | X9: =P9 -> 0 | Y9: =+(W9+X9)/2 -> 0 | Z9: =+Y9*$I$5 -> 0 | AA9: =IF(H9=0,0,(Z9+Z8)/2*C9) -> 0 | AB9: =IF(H9=0,0,(W8+W9)/2*C9) -> 0 | AC9: =IF(H9=0,0,(H8+H9)/2*C9) -> 0 | AD9: =IF(H9=0,0,(2*I8+2*I9)/2*C9) -> 0 | AE9: =IF(H9>0,C9,0) -> 0 | AG9: =+K9 -> 0 | AH9: =+K9 -> 0 | AI9: =+(AG9+AH9)/2 -> 0 | AJ9: =+AI9*$I$5 -> 0 | AK9: =IF(H9=0,0,(AJ9+AJ8)/2*C9) -> 0 | AL9: =((ข้อมูลเริ่มต้น!$I$11/100)+$I$5) -> 0.4 | AM9: =AD9*AL9 -> 0 | AO9: =IF(H9=0,0,(AH8+AH9)/2*C9) -> 0 | AQ9: =IF($H$9=0,0,($M$3*$C$9)) -> 0
C10: =IF(B10=0," ",(+B10-B9)) ->  | F10: =IF(B10=0," ",(D9+D10)/2*C10) ->  | G10: =IF(B10=0," ",(E9+E10)/2*C10) ->  | K10: =+H10+2*I10 -> 0 | L10: =IF(H10=0,0,K10+2*$I$2*$I$4+2*$I$2*$I$5) -> 0 | M10: =IF(H10=0,0,K10+2*$I$2*$I$3+2*$I$2*$I$4+2*$I$2*$I$5) -> 0 | N10: =(L10+M10)/2 -> 0 | O10: =N10*$I$3 -> 0 | P10: =IF(K10=0,0,K10+2*$I$5/(1/$I$2)) -> 0 | Q10: =IF(K10=0,0,K10+2*($I$5+$I$4)/(1/$I$2)) -> 0 | R10: =+(P10+Q10)/2 -> 0 | S10: =+R10*$I$4 -> 0 | T10: =IF(H10=0,0,(X9+X10)/2*C10) -> 0 | U10: =IF(H10=0,0,(O10+O9)/2*C10) -> 0 | V10: =IF(H10=0,0,(S10+S9)/2*C10) -> 0 | W10: =+K10 -> 0 | X10: =P10 -> 0 | Y10: =+(W10+X10)/2 -> 0 | Z10: =+Y10*$I$5 -> 0 | AA10: =IF(H10=0,0,(Z10+Z9)/2*C10) -> 0 | AB10: =IF(H10=0,0,(W9+W10)/2*C10) -> 0 | AC10: =IF(H10=0,0,(H9+H10)/2*C10) -> 0 | AD10: =IF(H10=0,0,(2*I9+2*I10)/2*C10) -> 0 | AE10: =IF(H10>0,C10,0) -> 0 | AG10: =+K10 -> 0 | AH10: =+K10 -> 0 | AI10: =+(AG10+AH10)/2 -> 0 | AJ10: =+AI10*$I$5 -> 0 | AK10: =IF(H10=0,0,(AJ10+AJ9)/2*C10) -> 0 | AL10: =((ข้อมูลเริ่มต้น!$I$11/100)+$I$5) -> 0.4 | AM10: =AD10*AL10 -> 0 | AO10: =IF(H10=0,0,(AH9+AH10)/2*C10) -> 0 | AQ10: =IF($H$10=0,0,($H$9+$H$10)/2*$C$10) -> 0
B11: รวม | C11: =SUM(C8:C10) -> 0 | F11: =SUM(F8:F10) -> 0 | G11: =SUM(G8:G10) -> 0 | T11: =SUM(T8:T10) -> 0 | U11: 0 | V11: 0 | W11: 0 | X11: 0 | Y11: 0 | Z11: 0 | AA11: 0 | AB11: 0 | AC11: 0 | AD11: 0 | AE11: =SUM(AE9:AE10) -> 0 | AG11: =SUM(AG8:AG10) -> 0 | AH11: =SUM(AH8:AH10) -> 0 | AI11: =SUM(AI8:AI10) -> 0 | AJ11: =SUM(AJ8:AJ10) -> 0 | AK11: =SUM(AK8:AK10) -> 0 | AM11: =SUM(AM8:AM10) -> 0 | AO11: =SUM(AO8:AO10) -> 0 | AQ11: =SUM(AQ8:AQ10) -> 0

Sheet สรุปโครงสร้างทาง ช่วง 4 (hidden)
B1: กรุณาป้อนข้อมูลในแถบ สีเหลือง
F2: side slope | H2: 1 : | I2: =ข้อมูลเริ่มต้น!$X$21 -> 1.5 | K2: ผิวทางหนา
C3: 1) | D3: =ข้อมูลเริ่มต้น!AF4 -> งานวัสดุคัดเลือกเป็นลูกรัง | G3: หนา | H3: = | I3: =IF(D3=" ",0,ข้อมูลเริ่มต้น!$I$14/100) -> 0.2 | J3: ม. | K3: =(ข้อมูลเริ่มต้น!$I$11)/100 -> 0.2 | L3: =(K3*I2)*2 -> 0.6 | M3: =((K4+L4)/2)*K3 -> 0.06 | P3: =IF($I$5=" ",0,$I$5) -> 0.2
C4: 2) | D4: =ข้อมูลเริ่มต้น!W4 -> งานรองพื้นทางดินซีเมนต์ | G4: หนา | H4: = | I4: =IF(D4=" ",0,ข้อมูลเริ่มต้น!$I$13/100) -> 0.2 | J4: ม. | K4: =(H8+H9)/2 -> 0 | L4: =K4+L3 -> 0.6
C5: 3) | D5: =ข้อมูลเริ่มต้น!AA4 -> งานพื้นทางหินคลุก | G5: หนา | H5: = | I5: =IF(D5=" ",0,ข้อมูลเริ่มต้น!$I$12/100) -> 0.2 | J5: ม. | AG5: ถนนคอนกรีตเสริมเหล็ก
B6: STA. | C6: ระยะ | D6: ดินตัด (Cut) | E6: ดินถม (Fill) | F6: cut | G6: fill | H6: ผิวทางกว้าง | I6: ไหล่ทางกว้างข้างละ | J6: งานถางป่าขุดตอ กว้าง | K6: รวมผิว+ไหล่ทาง | L6: งานชั้นวัสดุคัดเลือก | P6: งานรองพื้นทาง | T6: งานปรับเกลียคันทางเดิม | U6: งานวัสดุคัดเลือก | V6: งานรองพื้นทางลูกรัง | W6: งานชั้นพื้นทาง | AA6: งานชั้นพื้นทาง | AB6: งาน prime coat | AC6: งานผิวทาง | AD6: งานไหล่ทาง | AG6: งานทรายรองพื้นใต้คอนกรีต | AK6: งานทรายรองพื้น | AM6: งานลูกรังไหล่ทาง | AN6: งานขุดตอถางป่า | AO6: งานปรับเกลียคันทางเดิม | AQ6: งานผิวทางลูกรัง
B7: (ควรกรอกที่ละ 25 ม.) | D7: ตร.ม. | E7: ตร.ม. | F7: ลบ.ม. | G7: ลบ.ม. | H7: ม. | I7: ม. | J7: ม. | K7: ม. | L7: ระยะผิวบน | M7: ระยะผิวล่าง | N7: กว้างเฉลี่ย | O7: ตร.ม. | P7: ระยะผิวบน | Q7: ระยะผิวล่าง | R7: กว้างเฉลี่ย | S7: ตร.ม. | T7: ตร.ม. | U7: ลบ.ม. | V7: ลบ.ม. | W7: ระยะผิวบน | X7: ระยะผิวล่าง | Y7: กว้างเฉลี่ย | Z7: ตร.ม. | AA7: ลบ.ม. | AB7: ตร.ม. | AC7: ตร.ม. | AD7: ตร.ม. | AG7: ระยะผิวบน | AH7: ระยะผิวล่าง | AI7: กว้างเฉลี่ย | AJ7: ตร.ม. | AK7: ลบ.ม. | AM7: ลบ.ม. | AN7: ตร.ม. | AO7: ตร.ม. | AQ7: ตร.ม.
H8: =IF(ข้อมูลเริ่มต้น!$T$26=" ",0,ข้อมูลเริ่มต้น!$T$26) -> 0 | I8: =IF(ข้อมูลเริ่มต้น!$X$26=" ",0,ข้อมูลเริ่มต้น!$X$26) -> 0 | K8: =+H8+2*I8 -> 0 | L8: =IF(H8=0,0,K8+2*$I$2*$I$4+2*$I$2*$I$5) -> 0 | M8: =IF(H8=0,0,K8+2*$I$2*$I$3+2*$I$2*$I$4+2*$I$2*$I$5) -> 0 | N8: =(L8+M8)/2 -> 0 | O8: =N8*$I$3 -> 0 | P8: =IF(K8=0,0,K8+2*$I$5/(1/$I$2)) -> 0 | Q8: =IF(K8=0,0,K8+2*($I$5+$I$4)/(1/$I$2)) -> 0 | R8: =+(P8+Q8)/2 -> 0 | S8: =+R8*$I$4 -> 0 | W8: =+K8 -> 0 | X8: =P8 -> 0 | Y8: =+(W8+X8)/2 -> 0 | Z8: =+Y8*$I$5 -> 0 | AG8: =+K8 -> 0 | AH8: =+K8 -> 0 | AI8: =+(AG8+AH8)/2 -> 0 | AJ8: =+AI8*$I$5 -> 0
C9: =ข้อมูลเริ่มต้น!$Y$26 -> 0 | F9: =IF(B9=0," ",(D8+D9)/2*C9) ->  | G9: =IF(B9=0," ",(E8+E9)/2*C9) ->  | H9: =$H$8 -> 0 | I9: =$I$8 -> 0 | K9: =+H9+2*I9 -> 0 | L9: =IF(H9=0,0,K9+2*$I$2*$I$4+2*$I$2*$I$5) -> 0 | M9: =IF(H9=0,0,K9+2*$I$2*$I$3+2*$I$2*$I$4+2*$I$2*$I$5) -> 0 | N9: =(L9+M9)/2 -> 0 | O9: =N9*$I$3 -> 0 | P9: =IF(K9=0,0,K9+2*$I$5/(1/$I$2)) -> 0 | Q9: =IF(K9=0,0,K9+2*($I$5+$I$4)/(1/$I$2)) -> 0 | R9: =+(P9+Q9)/2 -> 0 | S9: =+R9*$I$4 -> 0 | T9: =IF(H9=0,0,(X8+X9)/2*C9) -> 0 | U9: =IF(H9=0,0,(O9+O8)/2*C9) -> 0 | V9: =IF(H9=0,0,(S9+S8)/2*C9) -> 0 | W9: =+K9 -> 0 | X9: =P9 -> 0 | Y9: =+(W9+X9)/2 -> 0 | Z9: =+Y9*$I$5 -> 0 | AA9: =IF(H9=0,0,(Z9+Z8)/2*C9) -> 0 | AB9: =IF(H9=0,0,(W8+W9)/2*C9) -> 0 | AC9: =IF(H9=0,0,(H8+H9)/2*C9) -> 0 | AD9: =IF(H9=0,0,(2*I8+2*I9)/2*C9) -> 0 | AE9: =IF(H9>0,C9,0) -> 0 | AG9: =+K9 -> 0 | AH9: =+K9 -> 0 | AI9: =+(AG9+AH9)/2 -> 0 | AJ9: =+AI9*$I$5 -> 0 | AK9: =IF(H9=0,0,(AJ9+AJ8)/2*C9) -> 0 | AL9: =((ข้อมูลเริ่มต้น!$I$11/100)+$I$5) -> 0.4 | AM9: =AD9*AL9 -> 0 | AO9: =IF(H9=0,0,(AH8+AH9)/2*C9) -> 0 | AQ9: =IF($H$9=0,0,($M$3*$C$9)) -> 0
C10: =IF(B10=0," ",(+B10-B9)) ->  | F10: =IF(B10=0," ",(D9+D10)/2*C10) ->  | G10: =IF(B10=0," ",(E9+E10)/2*C10) ->  | K10: =+H10+2*I10 -> 0 | L10: =IF(H10=0,0,K10+2*$I$2*$I$4+2*$I$2*$I$5) -> 0 | M10: =IF(H10=0,0,K10+2*$I$2*$I$3+2*$I$2*$I$4+2*$I$2*$I$5) -> 0 | N10: =(L10+M10)/2 -> 0 | O10: =N10*$I$3 -> 0 | P10: =IF(K10=0,0,K10+2*$I$5/(1/$I$2)) -> 0 | Q10: =IF(K10=0,0,K10+2*($I$5+$I$4)/(1/$I$2)) -> 0 | R10: =+(P10+Q10)/2 -> 0 | S10: =+R10*$I$4 -> 0 | T10: =IF(H10=0,0,(X9+X10)/2*C10) -> 0 | U10: =IF(H10=0,0,(O10+O9)/2*C10) -> 0 | V10: =IF(H10=0,0,(S10+S9)/2*C10) -> 0 | W10: =+K10 -> 0 | X10: =P10 -> 0 | Y10: =+(W10+X10)/2 -> 0 | Z10: =+Y10*$I$5 -> 0 | AA10: =IF(H10=0,0,(Z10+Z9)/2*C10) -> 0 | AB10: =IF(H10=0,0,(W9+W10)/2*C10) -> 0 | AC10: =IF(H10=0,0,(H9+H10)/2*C10) -> 0 | AD10: =IF(H10=0,0,(2*I9+2*I10)/2*C10) -> 0 | AE10: =IF(H10>0,C10,0) -> 0 | AG10: =+K10 -> 0 | AH10: =+K10 -> 0 | AI10: =+(AG10+AH10)/2 -> 0 | AJ10: =+AI10*$I$5 -> 0 | AK10: =IF(H10=0,0,(AJ10+AJ9)/2*C10) -> 0 | AL10: =((ข้อมูลเริ่มต้น!$I$11/100)+$I$5) -> 0.4 | AM10: =AD10*AL10 -> 0 | AO10: =IF(H10=0,0,(AH9+AH10)/2*C10) -> 0 | AQ10: =IF($H$10=0,0,($H$9+$H$10)/2*$C$10) -> 0
B11: รวม | C11: =SUM(C8:C10) -> 0 | F11: =SUM(F8:F10) -> 0 | G11: =SUM(G8:G10) -> 0 | T11: =SUM(T8:T10) -> 0 | U11: 0 | V11: 0 | W11: 0 | X11: 0 | Y11: 0 | Z11: 0 | AA11: 0 | AB11: 0 | AC11: 0 | AD11: 0 | AE11: =SUM(AE9:AE10) -> 0 | AG11: =SUM(AG8:AG10) -> 0 | AH11: =SUM(AH8:AH10) -> 0 | AI11: =SUM(AI8:AI10) -> 0 | AJ11: =SUM(AJ8:AJ10) -> 0 | AK11: =SUM(AK8:AK10) -> 0 | AM11: =SUM(AM8:AM10) -> 0 | AO11: =SUM(AO8:AO10) -> 0 | AQ11: =SUM(AQ8:AQ10) -> 0

Sheet ดินตัด , ดินถม+ถางป่า ช่วง 1
B1: กรุณาป้อนข้อมูลในแถบ สีเหลือง
B2: ป้อนข้อมูล งานดินตัด ดินถม และ งานถางป่า (ช่วงที่ 1) | E2: side slope | G2: 1 : | H2: =ข้อมูลเริ่มต้น!$X$21 -> 1.5
B3: 1) | C3: =ข้อมูลเริ่มต้น!$AF$4 -> งานวัสดุคัดเลือกเป็นลูกรัง | F3: หนา | G3: = | H3: =IF(C3=" ",0,ข้อมูลเริ่มต้น!$I$14/100) -> 0.2 | I3: ม.
B4: 2) | C4: =ข้อมูลเริ่มต้น!$W$4 -> งานรองพื้นทางดินซีเมนต์ | F4: หนา | G4: = | H4: =IF(C4=" ",0,ข้อมูลเริ่มต้น!$I$13/100) -> 0.2 | I4: ม.
B5: 3) | C5: =ข้อมูลเริ่มต้น!$AA$4 -> งานพื้นทางหินคลุก | F5: หนา | G5: = | H5: =IF(C5=" ",0,ข้อมูลเริ่มต้น!$I$12/100) -> 0.2 | I5: ม.
B6: STA. | C6: ระยะ | D6: ดินตัด (Cut) | E6: ดินถม (Fill) | F6: ดินตัด (cut) | G6: ดินถม (fill) | H6: งานถางป่าขุดตอ กว้าง | I6: งานขุดตอถางป่า
B7: (ควรกรอกที่ละ 25 ม.) | D7: ตร.ม. | E7: ตร.ม. | F7: ลบ.ม. | G7: ลบ.ม. | H7: ม. | I7: ตร.ม.
C9: =IF(B9=0," ",(+B9-B8)) ->  | F9: =IF(B9=0," ",(D8+D9)/2*C9) ->  | G9: =IF(B9=0," ",(E8+E9)/2*C9) ->  | I9: =IF(B9=0,0,(H8+H9)/2*C9) -> 0
F10: =IF(B10=0," ",(D9+D10)/2*C10) ->  | G10: =IF(B10=0," ",(E9+E10)/2*C10) ->  | I10: =IF(B10=0,0,(H9+H10)/2*C10) -> 0
I11: 0
I12: 0
I13: 0
F14: =IF(B14=0," ",(D13+D14)/2*C14) ->  | G14: =IF(B14=0," ",(E13+E14)/2*C14) ->  | I14: 0
C15: =IF(B15=0," ",(+B15-B14)) ->  | I15: 0
I16: 0
I17: 0
I18: 0
I19: 0
I20: 0
I21: 0
I22: 0
I23: 0
I24: 0
I25: 0
I26: 0
I27: 0
I28: 0
I29: 0
I30: 0
I31: 0
I32: 0
I33: 0
I34: 0
I35: 0 | J35: ย้อนกลับ
I36: 0
I37: 0
I38: 0
I39: 0
I40: 0
I41: 0
I42: 0
I43: 0
I44: 0
I45: 0
I46: 0
I47: 0
I48: 0
I49: 0
I50: 0
I51: 0
I52: 0
I53: 0
I54: 0
I55: 0
I56: 0
I57: 0
I58: 0
I59: 0
I60: 0
I61: 0
I62: 0
I63: 0
I64: 0
I65: 0
I66: 0
I67: 0
I68: 0
I69: 0
I70: 0
I71: 0
I72: 0
I73: 0
F74: =IF(B74=0," ",(D73+D74)/2*C74) ->  | G74: =IF(B74=0," ",(E73+E74)/2*C74) ->  | I74: =IF(B74=0,0,(H73+H74)/2*C74) -> 0
I75: 0
I76: 0
I77: 0
C78: =IF(B78=0," ",(+B78-B77)) ->  | I78: 0
I79: 0
I80: 0
I81: 0
I82: 0
I83: 0
I84: 0
I85: 0
I86: 0
I87: 0
I88: 0
I89: 0
I90: 0
I91: 0
I92: 0
I93: 0
I94: 0
I95: 0
I96: 0
I97: 0
I98: 0
I99: 0
I100: 0
I101: 0
I102: 0
I103: 0
I104: 0
I105: 0
I106: 0
I107: 0
I108: 0
I109: 0
I110: 0
I111: 0
I112: 0
I113: 0
I114: 0
I115: 0
I116: 0
I117: 0
I118: 0
I119: 0
I120: 0
I121: 0
I122: 0
I123: 0
I124: 0
I125: 0
I126: 0
I127: 0
I128: 0
I129: 0
I130: 0
I131: 0
I132: 0
I133: 0
I134: 0
I135: 0
I136: 0
I137: 0
I138: 0
I139: 0
I140: 0
I141: 0
I142: 0
I143: 0
I144: 0
I145: 0
I146: 0
I147: 0
I148: 0
I149: 0
I150: 0
I151: 0
I152: 0
I153: 0
I154: 0
I155: 0
I156: 0
I157: 0
I158: 0
I159: 0
I160: 0
I161: 0
I162: 0
I163: 0
I164: 0
I165: 0
I166: 0
I167: 0
I168: 0
I169: 0
I170: 0
I171: 0
I172: 0
I173: 0
I174: 0
I175: 0
I176: 0
I177: 0
I178: 0
I179: 0
I180: 0
I181: 0
I182: 0
I183: 0
I184: 0
I185: 0
I186: 0
I187: 0
I188: 0
I189: 0
I190: 0
I191: 0
I192: 0
I193: 0
I194: 0
I195: 0
I196: 0
I197: 0
I198: 0
I199: 0
I200: 0
I201: 0
... 89 more rows

Sheet ดินตัด , ดินถม+ถางป่า ช่วง 2
B1: กรุณาป้อนข้อมูลในแถบ สีเหลือง
B2: ป้อนข้อมูล งานดินตัด ดินถม และ งานถางป่า (ช่วงที่ 2) | E2: side slope | G2: 1 : | H2: =ข้อมูลเริ่มต้น!$X$21 -> 1.5
B3: 1) | C3: =ข้อมูลเริ่มต้น!$AF$4 -> งานวัสดุคัดเลือกเป็นลูกรัง | F3: หนา | G3: = | H3: =IF(C3=" ",0,ข้อมูลเริ่มต้น!$I$14/100) -> 0.2 | I3: ม.
B4: 2) | C4: =ข้อมูลเริ่มต้น!$W$4 -> งานรองพื้นทางดินซีเมนต์ | F4: หนา | G4: = | H4: =IF(C4=" ",0,ข้อมูลเริ่มต้น!$I$13/100) -> 0.2 | I4: ม.
B5: 3) | C5: =ข้อมูลเริ่มต้น!$AA$4 -> งานพื้นทางหินคลุก | F5: หนา | G5: = | H5: =IF(C5=" ",0,ข้อมูลเริ่มต้น!$I$12/100) -> 0.2 | I5: ม.
B6: STA. | C6: ระยะ | D6: ดินตัด (Cut) | E6: ดินถม (Fill) | F6: ดินตัด (cut) | G6: ดินถม (fill) | H6: งานถางป่าขุดตอ กว้าง | I6: งานขุดตอถางป่า
B7: (ควรกรอกที่ละ 25 ม.) | D7: ตร.ม. | E7: ตร.ม. | F7: ลบ.ม. | G7: ลบ.ม. | H7: ม. | I7: ตร.ม.
C9: =IF(B9=0," ",(+B9-B8)) ->  | F9: =IF(B9=0," ",(D8+D9)/2*C9) ->  | G9: =IF(B9=0," ",(E8+E9)/2*C9) ->  | I9: =IF(B9=0,0,(H8+H9)/2*C9) -> 0
F10: =IF(B10=0," ",(D9+D10)/2*C10) ->  | G10: =IF(B10=0," ",(E9+E10)/2*C10) ->  | I10: =IF(B10=0,0,(H9+H10)/2*C10) -> 0
I11: 0
I12: 0
I13: 0
F14: =IF(B14=0," ",(D13+D14)/2*C14) ->  | G14: =IF(B14=0," ",(E13+E14)/2*C14) ->  | I14: 0
I15: 0
I16: 0
I17: 0
I18: 0
I19: 0
I20: 0
I21: 0
I22: 0
I23: 0
I24: 0
I25: 0
I26: 0
I27: 0
I28: 0
I29: 0
I30: 0
I31: 0
I32: 0
I33: 0
I34: 0
I35: 0 | J35: ย้อนกลับ
I36: 0
I37: 0
I38: 0
I39: 0
I40: 0
I41: 0
I42: 0
I43: 0
I44: 0
I45: 0
I46: 0
I47: 0
I48: 0
I49: 0
I50: 0
I51: 0
I52: 0
I53: 0
I54: 0
I55: 0
I56: 0
I57: 0
I58: 0
I59: 0
I60: 0
I61: 0
I62: 0
I63: 0
I64: 0
I65: 0
I66: 0
I67: 0
I68: 0
I69: 0
I70: 0
I71: 0
I72: 0
C73: =IF(B73=0," ",(+B73-B72)) ->  | I73: 0
F74: =IF(B74=0," ",(D73+D74)/2*C74) ->  | G74: =IF(B74=0," ",(E73+E74)/2*C74) ->  | I74: =IF(B74=0,0,(H73+H74)/2*C74) -> 0
I75: 0
I76: 0
I77: 0
I78: 0
I79: 0
I80: 0
I81: 0
I82: 0
I83: 0
I84: 0
I85: 0
I86: 0
I87: 0
I88: 0
I89: 0
I90: 0
I91: 0
I92: 0
I93: 0
I94: 0
I95: 0
I96: 0
I97: 0
I98: 0
I99: 0
I100: 0
I101: 0
I102: 0
I103: 0
I104: 0
I105: 0
I106: 0
I107: 0
I108: 0
I109: 0
I110: 0
I111: 0
I112: 0
I113: 0
I114: 0
I115: 0
I116: 0
I117: 0
I118: 0
I119: 0
I120: 0
I121: 0
I122: 0
I123: 0
I124: 0
I125: 0
I126: 0
I127: 0
I128: 0
I129: 0
I130: 0
I131: 0
I132: 0
I133: 0
I134: 0
I135: 0
I136: 0
C137: =IF(B137=0," ",(+B137-B136)) ->  | I137: 0
I138: 0
I139: 0
I140: 0
I141: 0
I142: 0
I143: 0
I144: 0
I145: 0
I146: 0
I147: 0
I148: 0
I149: 0
I150: 0
I151: 0
I152: 0
I153: 0
I154: 0
I155: 0
I156: 0
I157: 0
I158: 0
I159: 0
I160: 0
I161: 0
I162: 0
I163: 0
I164: 0
I165: 0
I166: 0
I167: 0
I168: 0
I169: 0
I170: 0
I171: 0
I172: 0
I173: 0
I174: 0
I175: 0
I176: 0
I177: 0
I178: 0
I179: 0
I180: 0
I181: 0
I182: 0
I183: 0
I184: 0
I185: 0
I186: 0
I187: 0
I188: 0
I189: 0
I190: 0
I191: 0
I192: 0
I193: 0
I194: 0
I195: 0
I196: 0
I197: 0
I198: 0
I199: 0
I200: 0
I201: 0
... 88 more rows

Sheet ดินตัด , ดินถม+ถางป่า ช่วง 3
B1: กรุณาป้อนข้อมูลในแถบ สีเหลือง
B2: ป้อนข้อมูล งานดินตัด ดินถม และ งานถางป่า (ช่วงที่ 3) | E2: side slope | G2: 1 : | H2: =ข้อมูลเริ่มต้น!$X$21 -> 1.5
B3: 1) | C3: =ข้อมูลเริ่มต้น!$AF$4 -> งานวัสดุคัดเลือกเป็นลูกรัง | F3: หนา | G3: = | H3: =IF(C3=" ",0,ข้อมูลเริ่มต้น!$I$14/100) -> 0.2 | I3: ม.
B4: 2) | C4: =ข้อมูลเริ่มต้น!$W$4 -> งานรองพื้นทางดินซีเมนต์ | F4: หนา | G4: = | H4: =IF(C4=" ",0,ข้อมูลเริ่มต้น!$I$13/100) -> 0.2 | I4: ม.
B5: 3) | C5: =ข้อมูลเริ่มต้น!$AA$4 -> งานพื้นทางหินคลุก | F5: หนา | G5: = | H5: =IF(C5=" ",0,ข้อมูลเริ่มต้น!$I$12/100) -> 0.2 | I5: ม.
B6: STA. | C6: ระยะ | D6: ดินตัด (Cut) | E6: ดินถม (Fill) | F6: ดินตัด (cut) | G6: ดินถม (fill) | H6: งานถางป่าขุดตอ กว้าง | I6: งานขุดตอถางป่า
B7: (ควรกรอกที่ละ 25 ม.) | D7: ตร.ม. | E7: ตร.ม. | F7: ลบ.ม. | G7: ลบ.ม. | H7: ม. | I7: ตร.ม.
C9: =IF(B9=0," ",(+B9-B8)) ->  | F9: =IF(B9=0," ",(D8+D9)/2*C9) ->  | G9: =IF(B9=0," ",(E8+E9)/2*C9) ->  | I9: =IF(B9=0,0,(H8+H9)/2*C9) -> 0
F10: =IF(B10=0," ",(D9+D10)/2*C10) ->  | G10: =IF(B10=0," ",(E9+E10)/2*C10) ->  | I10: =IF(B10=0,0,(H9+H10)/2*C10) -> 0
I11: 0
I12: 0
I13: 0
F14: =IF(B14=0," ",(D13+D14)/2*C14) ->  | G14: =IF(B14=0," ",(E13+E14)/2*C14) ->  | I14: 0
I15: 0
I16: 0
I17: 0
I18: 0
I19: 0
I20: 0
I21: 0
I22: 0
I23: 0
I24: 0
I25: 0
I26: 0
I27: 0
I28: 0
I29: 0
I30: 0
I31: 0
I32: 0
I33: 0
I34: 0
I35: 0 | J35: ย้อนกลับ
I36: 0
I37: 0
I38: 0
I39: 0
I40: 0
I41: 0
I42: 0
I43: 0
I44: 0
I45: 0
I46: 0
I47: 0
I48: 0
I49: 0
I50: 0
I51: 0
I52: 0
I53: 0
I54: 0
I55: 0
I56: 0
I57: 0
I58: 0
I59: 0
I60: 0
I61: 0
I62: 0
I63: 0
I64: 0
I65: 0
I66: 0
I67: 0
I68: 0
I69: 0
I70: 0
I71: 0
I72: 0
C73: =IF(B73=0," ",(+B73-B72)) ->  | I73: 0
F74: =IF(B74=0," ",(D73+D74)/2*C74) ->  | G74: =IF(B74=0," ",(E73+E74)/2*C74) ->  | I74: =IF(B74=0,0,(H73+H74)/2*C74) -> 0
I75: 0
I76: 0
I77: 0
I78: 0
I79: 0
I80: 0
I81: 0
I82: 0
I83: 0
I84: 0
I85: 0
I86: 0
I87: 0
I88: 0
I89: 0
I90: 0
I91: 0
I92: 0
I93: 0
I94: 0
I95: 0
I96: 0
I97: 0
I98: 0
I99: 0
I100: 0
I101: 0
I102: 0
I103: 0
I104: 0
I105: 0
I106: 0
I107: 0
I108: 0
I109: 0
I110: 0
I111: 0
I112: 0
I113: 0
I114: 0
I115: 0
I116: 0
I117: 0
I118: 0
I119: 0
I120: 0
I121: 0
I122: 0
I123: 0
I124: 0
I125: 0
I126: 0
I127: 0
I128: 0
I129: 0
I130: 0
I131: 0
I132: 0
I133: 0
I134: 0
I135: 0
I136: 0
C137: =IF(B137=0," ",(+B137-B136)) ->  | I137: 0
I138: 0
I139: 0
I140: 0
I141: 0
I142: 0
I143: 0
I144: 0
I145: 0
I146: 0
I147: 0
I148: 0
I149: 0
I150: 0
I151: 0
I152: 0
I153: 0
I154: 0
I155: 0
I156: 0
I157: 0
I158: 0
I159: 0
I160: 0
I161: 0
I162: 0
I163: 0
I164: 0
I165: 0
I166: 0
I167: 0
I168: 0
I169: 0
I170: 0
I171: 0
I172: 0
I173: 0
I174: 0
I175: 0
I176: 0
I177: 0
I178: 0
I179: 0
I180: 0
I181: 0
I182: 0
I183: 0
I184: 0
I185: 0
I186: 0
I187: 0
I188: 0
I189: 0
I190: 0
I191: 0
I192: 0
I193: 0
I194: 0
I195: 0
I196: 0
I197: 0
I198: 0
I199: 0
I200: 0
I201: 0
... 88 more rows

Sheet ดินตัด , ดินถม+ถางป่า ช่วง 4
B1: กรุณาป้อนข้อมูลในแถบ สีเหลือง
B2: ป้อนข้อมูล งานดินตัด ดินถม และ งานถางป่า (ช่วงที่ 4) | E2: side slope | G2: 1 : | H2: =ข้อมูลเริ่มต้น!$X$21 -> 1.5
B3: 1) | C3: =ข้อมูลเริ่มต้น!$AF$4 -> งานวัสดุคัดเลือกเป็นลูกรัง | F3: หนา | G3: = | H3: =IF(C3=" ",0,ข้อมูลเริ่มต้น!$I$14/100) -> 0.2 | I3: ม.
B4: 2) | C4: =ข้อมูลเริ่มต้น!$W$4 -> งานรองพื้นทางดินซีเมนต์ | F4: หนา | G4: = | H4: =IF(C4=" ",0,ข้อมูลเริ่มต้น!$I$13/100) -> 0.2 | I4: ม.
B5: 3) | C5: =ข้อมูลเริ่มต้น!$AA$4 -> งานพื้นทางหินคลุก | F5: หนา | G5: = | H5: =IF(C5=" ",0,ข้อมูลเริ่มต้น!$I$12/100) -> 0.2 | I5: ม.
B6: STA. | C6: ระยะ | D6: ดินตัด (Cut) | E6: ดินถม (Fill) | F6: ดินตัด (cut) | G6: ดินถม (fill) | H6: งานถางป่าขุดตอ กว้าง | I6: งานขุดตอถางป่า
B7: (ควรกรอกที่ละ 25 ม.) | D7: ตร.ม. | E7: ตร.ม. | F7: ลบ.ม. | G7: ลบ.ม. | H7: ม. | I7: ตร.ม.
C9: =IF(B9=0," ",(+B9-B8)) ->  | F9: =IF(B9=0," ",(D8+D9)/2*C9) ->  | G9: =IF(B9=0," ",(E8+E9)/2*C9) ->  | I9: =IF(B9=0,0,(H8+H9)/2*C9) -> 0
F10: =IF(B10=0," ",(D9+D10)/2*C10) ->  | G10: =IF(B10=0," ",(E9+E10)/2*C10) ->  | I10: =IF(B10=0,0,(H9+H10)/2*C10) -> 0
I11: 0
I12: 0
I13: 0
F14: =IF(B14=0," ",(D13+D14)/2*C14) ->  | G14: =IF(B14=0," ",(E13+E14)/2*C14) ->  | I14: 0
I15: 0
I16: 0
I17: 0
I18: 0
I19: 0
I20: 0
I21: 0
I22: 0
I23: 0
I24: 0
I25: 0
I26: 0
I27: 0
I28: 0
I29: 0
I30: 0
I31: 0
I32: 0
I33: 0
I34: 0
I35: 0 | J35: ย้อนกลับ
I36: 0
I37: 0
I38: 0
I39: 0
I40: 0
I41: 0
I42: 0
I43: 0
I44: 0
I45: 0
I46: 0
I47: 0
I48: 0
I49: 0
I50: 0
I51: 0
I52: 0
I53: 0
I54: 0
I55: 0
I56: 0
I57: 0
I58: 0
I59: 0
I60: 0
I61: 0
I62: 0
I63: 0
I64: 0
I65: 0
I66: 0
I67: 0
I68: 0
I69: 0
I70: 0
I71: 0
I72: 0
C73: =IF(B73=0," ",(+B73-B72)) ->  | I73: 0
F74: =IF(B74=0," ",(D73+D74)/2*C74) ->  | G74: =IF(B74=0," ",(E73+E74)/2*C74) ->  | I74: =IF(B74=0,0,(H73+H74)/2*C74) -> 0
I75: 0
I76: 0
I77: 0
I78: 0
I79: 0
I80: 0
I81: 0
I82: 0
I83: 0
I84: 0
I85: 0
I86: 0
I87: 0
I88: 0
I89: 0
I90: 0
I91: 0
I92: 0
I93: 0
I94: 0
I95: 0
I96: 0
I97: 0
I98: 0
I99: 0
I100: 0
I101: 0
I102: 0
I103: 0
I104: 0
I105: 0
I106: 0
I107: 0
I108: 0
I109: 0
I110: 0
I111: 0
I112: 0
I113: 0
I114: 0
I115: 0
I116: 0
I117: 0
I118: 0
I119: 0
I120: 0
I121: 0
I122: 0
I123: 0
I124: 0
I125: 0
I126: 0
I127: 0
I128: 0
I129: 0
I130: 0
I131: 0
I132: 0
I133: 0
I134: 0
I135: 0
I136: 0
C137: =IF(B137=0," ",(+B137-B136)) ->  | I137: 0
I138: 0
I139: 0
I140: 0
I141: 0
I142: 0
I143: 0
I144: 0
I145: 0
I146: 0
I147: 0
I148: 0
I149: 0
I150: 0
I151: 0
I152: 0
I153: 0
I154: 0
I155: 0
I156: 0
I157: 0
I158: 0
I159: 0
I160: 0
I161: 0
I162: 0
I163: 0
I164: 0
I165: 0
I166: 0
I167: 0
I168: 0
I169: 0
I170: 0
I171: 0
I172: 0
I173: 0
I174: 0
I175: 0
I176: 0
I177: 0
I178: 0
I179: 0
I180: 0
I181: 0
I182: 0
I183: 0
I184: 0
I185: 0
I186: 0
I187: 0
I188: 0
I189: 0
I190: 0
I191: 0
I192: 0
I193: 0
I194: 0
I195: 0
I196: 0
I197: 0
I198: 0
I199: 0
I200: 0
I201: 0
... 88 more rows

Sheet สรุปผลการคำนวณ
B1: สรุปผลการคำนวณ
B2: =ข้อมูลเริ่มต้น!E103 -> ผิวจราจร | C2: =ข้อมูลเริ่มต้น!F103 -> แอสฟัลต์คอนกรีต | G2: =ข้อมูลเริ่มต้น!H103 -> กว้าง | H2: =ข้อมูลเริ่มต้น!I103 -> 4 | I2: =IF(H2=" "," "," - ") -> - | J2: =ข้อมูลเริ่มต้น!K103 -> 6 | K2: =ข้อมูลเริ่มต้น!L103 -> ม. | L2: =ข้อมูลเริ่มต้น!M103 -> ระยะทาง | M2: =ข้อมูลเริ่มต้น!N103 -> 1300 | N2: =ข้อมูลเริ่มต้น!O103 -> ม.
B3: =ข้อมูลเริ่มต้น!E104 -> ไหล่ทาง | C3: =ข้อมูลเริ่มต้น!F104 ->  | G3: =ข้อมูลเริ่มต้น!H104 -> กว้างข้างละ | H3: =ข้อมูลเริ่มต้น!I104 -> 0.5 | I3: =IF(H3=" "," "," - ") -> - | J3: =IF(ข้อมูลเริ่มต้น!$K$104=0," ",ข้อมูลเริ่มต้น!$K$104) -> 1 | K3: =ข้อมูลเริ่มต้น!L104 -> ม. | L3: =ข้อมูลเริ่มต้น!M104 -> ระยะทาง | M3: =ข้อมูลเริ่มต้น!N104 -> 1300 | N3: =ข้อมูลเริ่มต้น!O104 -> ม.
B4: =ข้อมูลเริ่มต้น!E105 -> งานผิวทาง | C4: =ข้อมูลเริ่มต้น!F105 -> แอสฟัลต์คอนกรีต | H4: =ข้อมูลเริ่มต้น!I105 -> 7200 | I4: =ข้อมูลเริ่มต้น!J105 -> ตร.ม.
B5: =ข้อมูลเริ่มต้น!E106 -> งานไหล่ทาง | C5: =ข้อมูลเริ่มต้น!F106 ->  | H5: =IF(C5=" ",0,ข้อมูลเริ่มต้น!I106) -> 0 | I5: =ข้อมูลเริ่มต้น!J106 -> ลบ.ม.
C6: =ข้อมูลเริ่มต้น!F107 -> งานลาดแอสฟัลต์ไพร์มโค้ต (Prime Coat) | H6: =ข้อมูลเริ่มต้น!I107 -> 7200 | I6: =ข้อมูลเริ่มต้น!J107 -> ตร.ม.
C7: =ข้อมูลเริ่มต้น!F108 -> งานลาดแอสฟัลต์แทคโค้ต (Tack Coat) | H7: =ข้อมูลเริ่มต้น!I108 -> 7200 | I7: =ข้อมูลเริ่มต้น!J108 -> ตร.ม.
C8: =ข้อมูลเริ่มต้น!F109 -> งานตีเส้นจราจร ( สีเหลือง ) | H8: =ข้อมูลเริ่มต้น!I109 -> 52 | I8: =ข้อมูลเริ่มต้น!J109 -> ตร.ม.
C9: =ข้อมูลเริ่มต้น!F110 -> งานตีเส้นจราจร ( สีขาว ) | H9: =ข้อมูลเริ่มต้น!I110 -> 260 | I9: =ข้อมูลเริ่มต้น!J110 -> ตร.ม.
C10: =ข้อมูลเริ่มต้น!F111 ->  | H10: =ข้อมูลเริ่มต้น!I111 ->  | I10: =ข้อมูลเริ่มต้น!J111 -> 
C11: =ข้อมูลเริ่มต้น!F112 ->  | H11: =ข้อมูลเริ่มต้น!I112 ->  | I11: =ข้อมูลเริ่มต้น!J112 -> 
C12: =ข้อมูลเริ่มต้น!F113 ->  | H12: =ข้อมูลเริ่มต้น!I113 ->  | I12: =ข้อมูลเริ่มต้น!J113 -> 
C13: =ข้อมูลเริ่มต้น!K105 -> งานพื้นทางหินคลุก | H13: =ข้อมูลเริ่มต้น!N105 -> 1978 | I13: =ข้อมูลเริ่มต้น!O105 -> ลบ.ม.
C14: =ข้อมูลเริ่มต้น!K106 -> งานรองพื้นทางดินซีเมนต์ | H14: =ข้อมูลเริ่มต้น!N106 -> 2134 | I14: =ข้อมูลเริ่มต้น!O106 -> ลบ.ม.
C15: =ข้อมูลเริ่มต้น!K107 -> งานวัสดุคัดเลือกเป็นลูกรัง | H15: =ข้อมูลเริ่มต้น!N107 -> 2290 | I15: =ข้อมูลเริ่มต้น!O107 -> ลบ.ม.
C16: =ข้อมูลเริ่มต้น!K108 -> งานดินถมคันทาง | H16: =ข้อมูลเริ่มต้น!N108 -> 0 | I16: =ข้อมูลเริ่มต้น!O108 -> ลบ.ม.
C17: =ข้อมูลเริ่มต้น!K109 -> งานดินตัด | H17: =ข้อมูลเริ่มต้น!N109 -> 0 | I17: =ข้อมูลเริ่มต้น!O109 -> ลบ.ม.
C18: =ข้อมูลเริ่มต้น!K110 -> งานปรับเกลี่ยแต่งคันทางเดิม | H18: =ข้อมูลเริ่มต้น!N110 -> 10280 | I18: =ข้อมูลเริ่มต้น!O110 -> ตร.ม.
C19: =ข้อมูลเริ่มต้น!K111 -> งานถางป่าและขุดตอ | H19: =ข้อมูลเริ่มต้น!N111 -> 0 | I19: =ข้อมูลเริ่มต้น!O111 -> ตร.ม.
C20: =ข้อมูลเริ่มต้น!F114 -> งานท่อกลมคอนกรีตเสริมเหล็ก ø 0.30 ม. ชั้น 3 | H20: =ข้อมูลเริ่มต้น!I114 -> 1 | I20: =ข้อมูลเริ่มต้น!J114 -> ม.
C21: =ข้อมูลเริ่มต้น!F115 -> งานท่อกลมคอนกรีตเสริมเหล็ก ø 0.40 ม. ชั้น 3 | H21: =ข้อมูลเริ่มต้น!I115 -> 1 | I21: =ข้อมูลเริ่มต้น!J115 -> ม.
C22: =ข้อมูลเริ่มต้น!F116 -> งานท่อกลมคอนกรีตเสริมเหล็ก ø 0.60 ม. ชั้น 3 | H22: =ข้อมูลเริ่มต้น!I116 -> 1 | I22: =ข้อมูลเริ่มต้น!J116 -> ม.
C23: =ข้อมูลเริ่มต้น!F117 -> งานท่อกลมคอนกรีตเสริมเหล็ก ø 0.80 ม. ชั้น 3 | H23: =ข้อมูลเริ่มต้น!I117 -> 1 | I23: =ข้อมูลเริ่มต้น!J117 -> ม.
C24: =ข้อมูลเริ่มต้น!F118 -> งานท่อกลมคอนกรีตเสริมเหล็ก ø 1.00 ม. ชั้น 3 | H24: =ข้อมูลเริ่มต้น!I118 -> 1 | I24: =ข้อมูลเริ่มต้น!J118 -> ม.
C25: =ข้อมูลเริ่มต้น!F119 -> งานท่อกลมคอนกรีตเสริมเหล็ก ø 1.20 ม. ชั้น 3 | H25: =ข้อมูลเริ่มต้น!I119 -> 1 | I25: =ข้อมูลเริ่มต้น!J119 -> ม.
C26: =ข้อมูลเริ่มต้น!F120 -> งานท่อกลมคอนกรีตเสริมเหล็ก ø 1.50 ม. ชั้น 3 | H26: =ข้อมูลเริ่มต้น!I120 -> 1 | I26: =ข้อมูลเริ่มต้น!J120 -> ม.
C27: =ข้อมูลเริ่มต้น!F121 -> งานกำแพงปากท่อสำหรับท่อกลมคอนกรีต 1 - ø 0.60 ม. | H27: =ข้อมูลเริ่มต้น!J121 -> 1 | I27: =ข้อมูลเริ่มต้น!K121 -> แห่ง
C28: =ข้อมูลเริ่มต้น!F122 -> งานกำแพงปากท่อสำหรับท่อกลมคอนกรีต 2 - ø 0.60 ม. | H28: =ข้อมูลเริ่มต้น!J122 -> 1 | I28: =ข้อมูลเริ่มต้น!K122 -> แห่ง
C29: =ข้อมูลเริ่มต้น!F123 -> งานกำแพงปากท่อสำหรับท่อกลมคอนกรีต 3 - ø 0.60 ม. | H29: =ข้อมูลเริ่มต้น!J123 -> 1 | I29: =ข้อมูลเริ่มต้น!K123 -> แห่ง
C30: =ข้อมูลเริ่มต้น!F124 -> งานกำแพงปากท่อสำหรับท่อกลมคอนกรีต 1 - ø 0.80 ม. | H30: =ข้อมูลเริ่มต้น!J124 -> 1 | I30: =ข้อมูลเริ่มต้น!K124 -> แห่ง
C31: =ข้อมูลเริ่มต้น!F125 -> งานกำแพงปากท่อสำหรับท่อกลมคอนกรีต 2 - ø 0.80 ม. | H31: =ข้อมูลเริ่มต้น!J125 -> 1 | I31: =ข้อมูลเริ่มต้น!K125 -> แห่ง
C32: =ข้อมูลเริ่มต้น!F126 -> งานกำแพงปากท่อสำหรับท่อกลมคอนกรีต 3 - ø 0.80 ม. | H32: =ข้อมูลเริ่มต้น!J126 -> 1 | I32: =ข้อมูลเริ่มต้น!K126 -> แห่ง
C33: =ข้อมูลเริ่มต้น!F127 -> งานกำแพงปากท่อสำหรับท่อกลมคอนกรีต 1 - ø 1.00 ม. | H33: =ข้อมูลเริ่มต้น!J127 -> 1 | I33: =ข้อมูลเริ่มต้น!K127 -> แห่ง
C34: =ข้อมูลเริ่มต้น!F128 -> งานกำแพงปากท่อสำหรับท่อกลมคอนกรีต 2 - ø 1.00 ม. | H34: =ข้อมูลเริ่มต้น!J128 -> 1 | I34: =ข้อมูลเริ่มต้น!K128 -> แห่ง
C35: =ข้อมูลเริ่มต้น!F129 -> งานกำแพงปากท่อสำหรับท่อกลมคอนกรีต 3 - ø 1.00 ม. | H35: =ข้อมูลเริ่มต้น!J129 -> 1 | I35: =ข้อมูลเริ่มต้น!K129 -> แห่ง
C36: =ข้อมูลเริ่มต้น!K112 -> งานบ่อพัก คสล. สำหรับท่อกลม ø 0.30 ม. | H36: =ข้อมูลเริ่มต้น!N112 -> 1 | I36: =ข้อมูลเริ่มต้น!O112 -> แห่ง
C37: =ข้อมูลเริ่มต้น!K113 -> งานบ่อพัก คสล. สำหรับท่อกลม ø 0.40 ม. | H37: =ข้อมูลเริ่มต้น!N113 -> 1 | I37: =ข้อมูลเริ่มต้น!O113 -> แห่ง
C38: =ข้อมูลเริ่มต้น!K114 -> งานบ่อพัก คสล. สำหรับท่อกลม ø 0.60 ม. | H38: =ข้อมูลเริ่มต้น!N114 -> 1 | I38: =ข้อมูลเริ่มต้น!O114 -> แห่ง
C39: =ข้อมูลเริ่มต้น!K115 -> งานท่อเหลี่ยม คสล. ขนาด | E39: =ข้อมูลเริ่มต้น!M115 -> 1-1.80x1.80 | H39: =ข้อมูลเริ่มต้น!N115 -> 1 | I39: =ข้อมูลเริ่มต้น!O115 -> แห่ง

Sheet แบบสรุปราคาแอสฟัลต์
B1: แบบสรุปราคากลาง ผิวทางแอสฟัลต์คอนกรีต
B2: แบบสรุปราคากลางงานก่อสร้างทาง สะพาน และท่อเหลียม
B3: ชื่อโครงการ | E3: =ข้อมูลเริ่มต้น!$F$3 -> โครงการก่อสร้างถนน คสล. บ้านหนองลาดใต้ หมู่ที่ 8
B4: สถานที่ก่อสร้าง | E4: =ข้อมูลเริ่มต้น!$F$4 -> บ้านหนองลาดใต้ หมู่ที่ 8 ต.หนองลาด อ.เมือง จ.สกลนคร
B5: ปริมาณงาน | E5: =CONCATENATE(ข้อมูลเริ่มต้น!$E$103,ข้อมูลเริ่มต้น!$F$103) -> ผิวจราจร แอสฟัลต์คอนกรีต | G5: =สรุปผลการคำนวณ!$G$2 -> กว้าง | H5: =สรุปผลการคำนวณ!$H$2 -> 4 | I5: =IF($H$5=" "," "," - ") -> - | J5: =สรุปผลการคำนวณ!$J$2 -> 6 | K5: =สรุปผลการคำนวณ!$K$2 -> ม. | M5: =IF(H5=" "," ระยะทาง","ระยะทางรวม") -> ระยะทางรวม | N5: =ข้อมูลเริ่มต้น!$N$103 -> 1300 | O5: =ข้อมูลเริ่มต้น!$O$103 -> ม.
E6: =CONCATENATE(ข้อมูลเริ่มต้น!$E$104," ",ข้อมูลเริ่มต้น!$F$104) -> ไหล่ทาง | G6: =สรุปผลการคำนวณ!$G$3 -> กว้างข้างละ | H6: =สรุปผลการคำนวณ!$H$3 -> 0.5 | I6: =IF($H$6=" "," "," - ") -> - | J6: =สรุปผลการคำนวณ!$J$3 -> 1 | K6: =สรุปผลการคำนวณ!$K$3 -> ม.
B7: หน่วยงานเจ้าของโครงการ | E7: =ข้อมูลเริ่มต้น!$F$5 -> สำนักงานเทศบาลตำบลหนอลาด
B8: แบบเลขที่ | E8: =ข้อมูลเริ่มต้น!$F$6 -> 85 / 2555 ลงวันที่ 30 กรกฏาคม 2555
B9: คำนวณราคากลางเมื่อวันที่ | E9: =ข้อมูลเริ่มต้น!$F$7 -> 30 กรกฏาคม 2555
B10: ลำดับ | C10: รายการ | G10: หน่วย | H10: จำนวน | I10: ราคาต่อหน่วย | K10: ราคาทุน | M10: FN | N10: ราคาต่อหน่วย | O10: ราคากลาง
N11: X FN
B12: 1 | C12: งานดิน
C13: 1.1 | D13: งานถางป่าและขุดต่อ | E13: =CONCATENATE("( ",ข้อมูลเริ่มต้น!Z40," )") -> ( ขนาดเบา ) | G13: ตร.ม. | H13: =สรุปผลการคำนวณ!$H$19 -> 0 | I13: =IF(H13=" "," ",ค่างานต้นทุนต่อหน่วย!$P$8) -> 1.29 | K13: =IF(I13=" "," ",ROUND(H13*I13,2)) -> 0 | M13: =IF(I13=" "," ",$L$65) -> 1.2797 | N13: =IF(I13=" "," ",ROUND(I13*M13,2)) -> 1.65 | O13: =IF(I13=" "," ",ROUND(H13*N13,2)) -> 0
C14: 1.2 | D14: =IF(ข้อมูลเริ่มต้น!$AI$4=1," ",ข้อมูลเริ่มต้น!AJ4) -> งานปรับเกลี่ยแต่งคันทางเดิม | G14: ตร.ม. | H14: =สรุปผลการคำนวณ!$H$18 -> 10280 | I14: =IF(ข้อมูลเริ่มต้น!$AI$4=1," ",IF(ข้อมูลเริ่มต้น!$AI$4=2,ค่างานต้นทุนต่อหน่วย!$P$17,IF(ข้อมูลเริ่มต้น!$AI$4=3,ค่างานต้นทุนต่อหน่วย!$P$21,IF(ข้อมูลเริ่มต้น!$AI$4=4,ค่างานต้นทุนต่อหน่วย!$P$25,IF(ข้อมูลเริ่มต้น!$AI$4=5,ค่างานต้นทุนต่อหน่วย!$P$29))))) -> 1.29 | K14: =IF(I14=" "," ",ROUND(H14*I14,2)) -> 13261.2 | M14: =IF(I14=" "," ",$L$65) -> 1.2797 | N14: =IF(I14=" "," ",ROUND(I14*M14,2)) -> 1.65 | O14: =IF(I14=" "," ",ROUND(K14*M14,2)) -> 16970.36
C15: 1.3 | D15: งานตัดดินคันทาง | G15: ลบ.ม. | H15: =สรุปผลการคำนวณ!$H$17 -> 0 | I15: =IF(H15=" "," ",ค่างานต้นทุนต่อหน่วย!$P$66) -> 37.51 | K15: =IF(I15=" "," ",ROUND(H15*I15,2)) -> 0 | M15: =IF(I15=" "," ",$L$65) -> 1.2797 | N15: =IF(I15=" "," ",ROUND(I15*M15,2)) -> 48 | O15: =IF(I15=" "," ",ROUND(H15*N15,2)) -> 0
C16: 1.4 | D16: งานดินถมคันทาง | G16: ลบ.ม. | H16: =สรุปผลการคำนวณ!$H$16 -> 0 | I16: =IF(H16=" "," ",ค่างานต้นทุนต่อหน่วย!$P$79) -> 87.58 | K16: =IF(I16=" "," ",ROUND(H16*I16,2)) -> 0 | M16: =IF(I16=" "," ",$L$65) -> 1.2797 | N16: =IF(I16=" "," ",ROUND(I16*M16,2)) -> 112.08 | O16: =IF(I16=" "," ",ROUND(H16*N16,2)) -> 0
C17: 1.5 | D17: งานวัสดุคัดเลือก (ลูกรัง) | G17: ลบ.ม. | H17: =สรุปผลการคำนวณ!$H$15 -> 2290 | I17: =IF(H17=" "," ",ค่างานต้นทุนต่อหน่วย!$P$105) -> 118.56 | K17: =IF(I17=" "," ",ROUND(H17*I17,2)) -> 271502.4 | M17: =IF(I17=" "," ",$L$65) -> 1.2797 | N17: =IF(I17=" "," ",ROUND(I17*M17,2)) -> 151.72 | O17: =IF(I17=" "," ",ROUND(H17*N17,2)) -> 347438.8
B18: 2 | C18: งานรองพื้นทางและพื้นทาง
C19: 2.1 | D19: =ข้อมูลเริ่มต้น!$K$106 -> งานรองพื้นทางดินซีเมนต์ | G19: ลบ.ม. | H19: =สรุปผลการคำนวณ!$H$14 -> 2134 | I19: =IF(H19=0," ",IF(ข้อมูลเริ่มต้น!$V$4=2,ค่างานต้นทุนต่อหน่วย!$P$114,IF(ข้อมูลเริ่มต้น!$V$4=3,ค่างานต้นทุนต่อหน่วย!$P$152," "))) -> 429.89 | K19: =IF(I19=" "," ",ROUND(H19*I19,2)) -> 917385.26 | M19: =IF(I19=" "," ",$L$65) -> 1.2797 | N19: =IF(I19=" "," ",ROUND(I19*M19,2)) -> 550.13 | O19: =IF(I19=" "," ",ROUND(H19*N19,2)) -> 1173977.42
C20: 2.2 | D20: =ข้อมูลเริ่มต้น!$K$105 -> งานพื้นทางหินคลุก | G20: ลบ.ม. | H20: =สรุปผลการคำนวณ!$H$13 -> 1978 | I20: =IF(H20=0," ",IF(ข้อมูลเริ่มต้น!$Z$4=2,ค่างานต้นทุนต่อหน่วย!$P$124,IF(ข้อมูลเริ่มต้น!$Z$4=3,ค่างานต้นทุนต่อหน่วย!$P$137,IF(ข้อมูลเริ่มต้น!$Z$4=4,ค่างานต้นทุนต่อหน่วย!$P$152," ")))) -> 953.43 | K20: =IF(I20=" "," ",ROUND(H20*I20,2)) -> 1885884.54 | M20: =IF(I20=" "," ",$L$65) -> 1.2797 | N20: =IF(I20=" "," ",ROUND(I20*M20,2)) -> 1220.1 | O20: =IF(I20=" "," ",ROUND(H20*N20,2)) -> 2413357.8
B21: 3 | C21: งานผิวทาง
C22: 3.1 | D22: =IF(ข้อมูลเริ่มต้น!$Z$4=1,"งานลาดแอสฟัลต์แทคโค้ต","งานลาดแอสฟัลต์ไพร์มโค้ต") -> งานลาดแอสฟัลต์ไพร์มโค้ต | G22: ตร.ม. | H22: =สรุปผลการคำนวณ!$H$6 -> 7200 | I22: =IF(H22=0," ",IF(ข้อมูลเริ่มต้น!$Z$4=1,ค่างานต้นทุนต่อหน่วย!$P$223,ค่างานต้นทุนต่อหน่วย!$P$217)) -> 44.12 | K22: =IF(I22=" "," ",ROUND(H22*I22,2)) -> 317664 | M22: =IF(I22=" "," ",$L$65) -> 1.2797 | N22: =IF(I22=" "," ",ROUND(I22*M22,2)) -> 56.46 | O22: =IF(I22=" "," ",ROUND(H22*N22,2)) -> 406512
C23: 3.2 | D23: งานชั้นผิวทางแอสฟัลต์คอนกรีต หนา | F23: =CONCATENATE(ข้อมูลเริ่มต้น!$I$11," ",ข้อมูลเริ่มต้น!$J$11) -> 20 ซม. | G23: ตร.ม. | H23: =สรุปผลการคำนวณ!$H$4+สรุปผลการคำนวณ!$H$5 -> 7200 | I23: =IF(H23=0," ",ค่างานต้นทุนต่อหน่วย!$P$252) -> 1227.68 | K23: =IF(I23=" "," ",ROUND(H23*I23,2)) -> 8839296 | M23: =IF(I23=" "," ",$L$65) -> 1.2797 | N23: =IF(I23=" "," ",ROUND(I23*M23,2)) -> 1571.06 | O23: =IF(I23=" "," ",ROUND(H23*N23,2)) -> 11311632
B24: 4 | C24: งานตีเส้นจราจร
C25: 4.1 | D25: งานตีเส้น ThermoPlastic Paint (สีเหลือง) | G25: ตร.ม. | H25: =สรุปผลการคำนวณ!$H$8 -> 52 | I25: =IF(H25=" "," ",ค่างานต้นทุนต่อหน่วย!$O$523) -> 230 | K25: =IF(H25=" "," ",ROUND(H25*I25,2)) -> 11960 | M25: =IF(I25=" "," ",$L$65) -> 1.2797 | N25: =IF(H25=" "," ",ROUND(I25*M25,2)) -> 294.33 | O25: =IF(H25=" "," ",ROUND(H25*N25,2)) -> 15305.16
C26: 4.2 | D26: งานตีเส้น ThermoPlastic Paint (สีขาว) | G26: ตร.ม. | H26: =สรุปผลการคำนวณ!$H$9 -> 260 | I26: =IF(H26=" "," ",ค่างานต้นทุนต่อหน่วย!$O$523) -> 230 | K26: =IF(H26=" "," ",ROUND(H26*I26,2)) -> 59800 | M26: =IF(I26=" "," ",$L$65) -> 1.2797 | N26: =IF(H26=" "," ",ROUND(I26*M26,2)) -> 294.33 | O26: =IF(H26=" "," ",ROUND(H26*N26,2)) -> 76525.8
B27: 5 | C27: งานท่อกลมคอนกรีตเสริมเหล็ก
C28: 5.1 | D28: ขนาด ø 0.30 ม. ชั้น 3 | G28: ม. | H28: =สรุปผลการคำนวณ!$H$20 -> 1 | I28: =IF(H28=" "," ",ค่างานต้นทุนต่อหน่วย!$P$322) -> 539.57 | K28: =IF(H28=" "," ",ROUND(H28*I28,2)) -> 539.57 | M28: =IF(I28=" "," ",$L$65) -> 1.2797 | N28: =IF(H28=" "," ",ROUND(I28*M28,2)) -> 690.49 | O28: =IF(H28=" "," ",ROUND(H28*N28,2)) -> 690.49
C29: 5.2 | D29: ขนาด ø 0.40 ม. ชั้น 3 | G29: ม. | H29: =สรุปผลการคำนวณ!$H$21 -> 1 | I29: =IF(H29=" "," ",ค่างานต้นทุนต่อหน่วย!$P$336) -> 608.54 | K29: =IF(H29=" "," ",ROUND(H29*I29,2)) -> 608.54 | M29: =IF(I29=" "," ",$L$65) -> 1.2797 | N29: =IF(H29=" "," ",ROUND(I29*M29,2)) -> 778.75 | O29: =IF(H29=" "," ",ROUND(H29*N29,2)) -> 778.75
C30: 5.3 | D30: ขนาด ø 0.60 ม. ชั้น 3 | G30: ม. | H30: =สรุปผลการคำนวณ!$H$22 -> 1 | I30: =IF(H30=" "," ",ค่างานต้นทุนต่อหน่วย!$P$350) -> 945.15 | K30: =IF(H30=" "," ",ROUND(H30*I30,2)) -> 945.15 | M30: =IF(I30=" "," ",$L$65) -> 1.2797 | N30: =IF(H30=" "," ",ROUND(I30*M30,2)) -> 1209.51 | O30: =IF(H30=" "," ",ROUND(H30*N30,2)) -> 1209.51
C31: 5.4 | D31: ขนาด ø 0.80 ม. ชั้น 3 | G31: ม. | H31: =สรุปผลการคำนวณ!$H$23 -> 1 | I31: =IF(H31=" "," ",ค่างานต้นทุนต่อหน่วย!$P$364) -> 1745.84 | K31: =IF(H31=" "," ",ROUND(H31*I31,2)) -> 1745.84 | M31: =IF(I31=" "," ",$L$65) -> 1.2797 | N31: =IF(H31=" "," ",ROUND(I31*M31,2)) -> 2234.15 | O31: =IF(H31=" "," ",ROUND(H31*N31,2)) -> 2234.15
C32: 5.5 | D32: ขนาด ø 1.00 ม. ชั้น 3 | G32: ม. | H32: =สรุปผลการคำนวณ!$H$24 -> 1 | I32: =IF(H32=" "," ",ค่างานต้นทุนต่อหน่วย!$P$378) -> 2380.67 | K32: =IF(H32=" "," ",ROUND(H32*I32,2)) -> 2380.67 | M32: =IF(I32=" "," ",$L$65) -> 1.2797 | N32: =IF(H32=" "," ",ROUND(I32*M32,2)) -> 3046.54 | O32: =IF(H32=" "," ",ROUND(H32*N32,2)) -> 3046.54
B33: 6 | C33: งานกำแพงปากท่อคอนกรีตเสริมเหล็ก
C34: 6.1 | D34: สำหรับท่อกลม คสล. ขนาด ø 0.60 ม. 1 แถว | G34: แห่ง | H34: =สรุปผลการคำนวณ!$H$27 -> 1 | I34: =IF(H34=" "," ",ค่างานต้นทุนต่อหน่วย!$P$421) -> 3359.89 | K34: =IF(H34=" "," ",ROUND(H34*I34,2)) -> 3359.89 | M34: =IF(I34=" "," ",$L$65) -> 1.2797 | N34: =IF(H34=" "," ",ROUND(I34*M34,2)) -> 4299.65 | O34: =IF(H34=" "," ",ROUND(H34*N34,2)) -> 4299.65
C35: 6.2 | D35: สำหรับท่อกลม คสล. ขนาด ø 0.60 ม. 2 แถว | G35: แห่ง | H35: =สรุปผลการคำนวณ!$H$28 -> 1 | I35: =IF(H35=" "," ",ค่างานต้นทุนต่อหน่วย!$P$432) -> 4941.04 | K35: 4941.04 | M35: 1.2797 | N35: 6323.05 | O35: 6323.05
C36: 6.3 | D36: สำหรับท่อกลม คสล. ขนาด ø 0.60 ม. 3 แถว | G36: แห่ง | H36: =สรุปผลการคำนวณ!$H$29 -> 1 | I36: =IF(H36=" "," ",ค่างานต้นทุนต่อหน่วย!$P$443) -> 6522.98 | K36: 6522.98 | M36: 1.2797 | N36: 8347.46 | O36: 8347.46
C37: 6.4 | D37: สำหรับท่อกลม คสล. ขนาด ø 0.80 ม. 1 แถว | G37: แห่ง | H37: =สรุปผลการคำนวณ!$H$30 -> 1 | I37: =IF(H37=" "," ",ค่างานต้นทุนต่อหน่วย!$P$454) -> 4068.83 | K37: 4068.83 | M37: 1.2797 | N37: 5206.88 | O37: 5206.88
C38: 6.5 | D38: สำหรับท่อกลม คสล. ขนาด ø 0.80 ม. 2 แถว | G38: แห่ง | H38: =สรุปผลการคำนวณ!$H$31 -> 1 | I38: =IF(H38=" "," ",ค่างานต้นทุนต่อหน่วย!$P$465) -> 6351.12 | K38: 6351.12 | M38: 1.2797 | N38: 8127.53 | O38: 8127.53
C39: 6.6 | D39: สำหรับท่อกลม คสล. ขนาด ø 0.80 ม. 3 แถว | G39: แห่ง | H39: =สรุปผลการคำนวณ!$H$32 -> 1 | I39: =IF(H39=" "," ",ค่างานต้นทุนต่อหน่วย!$P$476) -> 8653.28 | K39: 8653.28 | M39: 1.2797 | N39: 11073.6 | O39: 11073.6
C40: 6.7 | D40: สำหรับท่อกลม คสล. ขนาด ø 1.00 ม. 1 แถว | G40: แห่ง | H40: =สรุปผลการคำนวณ!$H$33 -> 1 | I40: =IF(H40=" "," ",ค่างานต้นทุนต่อหน่วย!$P$487) -> 4813.16 | K40: 4813.16 | M40: 1.2797 | N40: 6159.4 | O40: 6159.4
C41: 6.8 | D41: สำหรับท่อกลม คสล. ขนาด ø 1.00 ม. 2 แถว | G41: แห่ง | H41: =สรุปผลการคำนวณ!$H$34 -> 1 | I41: =IF(H41=" "," ",ค่างานต้นทุนต่อหน่วย!$P$498) -> 7924.4 | K41: 7924.4 | M41: 1.2797 | N41: 10140.85 | O41: 10140.85
C42: 6.9 | D42: สำหรับท่อกลม คสล. ขนาด ø 1.00 ม. 3 แถว | G42: แห่ง | H42: =สรุปผลการคำนวณ!$H$35 -> 1 | I42: =IF(H42=" "," ",ค่างานต้นทุนต่อหน่วย!$P$509) -> 10609.5 | K42: 10609.5 | M42: 1.2797 | N42: 13576.98 | O42: 13576.98
B47: 7 | C47: งานบ่อพักรับน้ำ คอนกรีตเสริมเหล็ก
C48: 7.1 | D48: สำหรับท่อกลม คสล. ขนาด ø 0.30 ม. เข้า - ออก | G48: แห่ง | H48: =สรุปผลการคำนวณ!$H$36 -> 1 | I48: =IF(H48=" "," ",ค่างานต้นทุนต่อหน่วย!$P$610) -> 3150.62 | K48: =IF(H48=" "," ",ROUND(H48*I48,2)) -> 3150.62 | M48: =IF(I48=" "," ",$L$65) -> 1.2797 | N48: =IF(H48=" "," ",ROUND(I48*M48,2)) -> 4031.85 | O48: =IF(H48=" "," ",ROUND(H48*N48,2)) -> 4031.85
C49: 7.2 | D49: สำหรับท่อกลม คสล. ขนาด ø 0.40 ม. เข้า - ออก | G49: แห่ง | H49: =สรุปผลการคำนวณ!$H$37 -> 1 | I49: =IF(H49=" "," ",ค่างานต้นทุนต่อหน่วย!$P$581) -> 4957.49 | K49: =IF(H49=" "," ",ROUND(H49*I49,2)) -> 4957.49 | M49: =IF(I49=" "," ",$L$65) -> 1.2797 | N49: =IF(H49=" "," ",ROUND(I49*M49,2)) -> 6344.1 | O49: =IF(H49=" "," ",ROUND(H49*N49,2)) -> 6344.1
C50: 7.3 | D50: สำหรับท่อกลม คสล. ขนาด ø 0.60 ม. เข้า - ออก | G50: แห่ง | H50: =สรุปผลการคำนวณ!$H$38 -> 1 | I50: =IF(H50=" "," ",ค่างานต้นทุนต่อหน่วย!$P$642) -> 5345.92 | K50: =IF(H50=" "," ",ROUND(H50*I50,2)) -> 5345.92 | M50: =IF(I50=" "," ",$L$65) -> 1.2797 | N50: =IF(H50=" "," ",ROUND(I50*M50,2)) -> 6841.17 | O50: =IF(H50=" "," ",ROUND(H50*N50,2)) -> 6841.17
B51: 8 | C51: งานท่อเหลี่ยมคอนกรีตเสริมเหล็ก
C52: 8.1 | D52: งานท่อเหลี่ยมคอนกรีตเสริมเหล็กก่อสร้างใหม่ | G52: แห่ง | H52: =สรุปผลการคำนวณ!$H$39 -> 1 | I52: =IF(H52=" "," ",ค่างานต้นทุนต่อหน่วย!$P$554) -> 213810.96 | K52: =IF(H52=" "," ",ROUND(H52*I52,2)) -> 213810.96 | M52: =IF(H52=" "," ",$L$66) -> 1.2256 | N52: =IF(H52=" "," ",ROUND(I52*M52,2)) -> 262046.71 | O52: =IF(H52=" "," ",ROUND(H52*N52,2)) -> 262046.71
D53: กม. | E53: =ข้อมูลเริ่มต้น!H41 -> 100
D54: ขนาด | E54: =ข้อมูลเริ่มต้น!M41 -> 1-1.80x1.80
D55: ยาว | E55: =ข้อมูลเริ่มต้น!H42 -> 10 | F55: ม.
N58: รวมค่าก่อสร้างทั้งโครงการ | O58: =ROUND((SUM(O12:O57)),2) -> 16122198.01
N59: ราคากลาง | O59: =ROUNDDOWN($O$58,-3) -> 16122000
O60: =CONCATENATE("ราคากลาง"," ","(",BAHTTEXT(O59),")") -> ราคากลาง (สิบหกล้านหนึ่งแสนสองหมื่นสองพันบาทถ้วน)
D62: ① | E62: ผลรวมค่างานต้นทุนงานก่อสร้างทาง | L62: =SUM(K12:L50) -> 12393671.4
D63: ② | E63: ผลรวมค่างานต้นทุนงานก่อสร้างสะพานและท่อเหลียม | L63: =IF(K52=" ",0,ROUND(K52,2)) -> 213810.96
D65: ③ | E65: ค่า Factor F งานก่อสร้างทาง | L65: =F_ทาง!$M$5 -> 1.2797
D66: ④ | E66: ค่า Factor F งานก่อสร้างสะพานและท่อเหลียม | L66: =F_สะพานและท่อเหลี่ยม!$N$5 -> 1.2256
D68: =IF(ข้อมูลเริ่มต้น!$W$66=1,"คณะกรรมการกำหนดราคากลาง"," ") -> 
D69: =IF(ข้อมูลเริ่มต้น!$W$66=1,"ตามคำสั่งที่"," ") ->  | E69: =IF(D68=" "," ",ข้อมูลเริ่มต้น!$K$93) -> 
D71: =IF(ข้อมูลเริ่มต้น!$W$66=2,"ผู้ประมาณราคา"," ") -> ผู้ประมาณราคา | E71: …………………………………. | G71: =IF(ข้อมูลเริ่มต้น!$W$66=1,"ประธานกรรมการ"," ") ->  | J71: =IF(ข้อมูลเริ่มต้น!$W$66=2,"ผู้ตรวจ"," ") -> ผู้ตรวจ | L71: …………………………………. | O71: =IF(ข้อมูลเริ่มต้น!$W$66=1,"กรรมการ"," ") -> 
E72: =CONCATENATE("(",ข้อมูลเริ่มต้น!$K$93,")") -> (นายศิวกร พงษ์สิทธิศักดิ์) | L72: =CONCATENATE("(",ข้อมูลเริ่มต้น!$K$95,")") -> (นายคมกฤษ เทียมโคกกรวด)
E73: =ข้อมูลเริ่มต้น!$K$94 -> นายช่างโยธา 4 | L73: =ข้อมูลเริ่มต้น!$K$96 -> ผู้อำนวยการกองช่าง
D76: =IF(ข้อมูลเริ่มต้น!$W$66=2,"ผู้เห็นชอบ"," ") -> ผู้เห็นชอบ | E76: …………………………………. | G76: =IF(ข้อมูลเริ่มต้น!$W$66=1,"กรรมการ"," ") ->  | J76: =IF(ข้อมูลเริ่มต้น!$W$66=2,"ผู้อนุมัติ"," ") -> ผู้อนุมัติ | L76: =IF(ข้อมูลเริ่มต้น!$W$66=1," ","………………………………….") -> ………………………………….
E77: =CONCATENATE("(",ข้อมูลเริ่มต้น!$K$97,")") -> (นายประสิทธิ์ สกนธรัตน์) | L77: =IF(ข้อมูลเริ่มต้น!$W$66=1," ",CONCATENATE("(",ข้อมูลเริ่มต้น!$K$99,")")) -> (นายสุริยะ แก้ววิรัตน์)
E78: =ข้อมูลเริ่มต้น!$K$98 -> ปลัดเทศบาล | L78: =IF(ข้อมูลเริ่มต้น!$W$66=1," ",CONCATENATE(ข้อมูลเริ่มต้น!$K$100)) -> นายกเทศมนตรีตำบลหนองลาด

Sheet แบบสรุปราคา คสล.
B1: แบบสรุปราคากลาง ผิวทางคอนกรีตเสริมเหล็ก
B2: แบบสรุปราคากลางงานก่อสร้างทาง สะพาน และท่อเหลียม
B3: ชื่อโครงการ | E3: =ข้อมูลเริ่มต้น!$F$3 -> โครงการก่อสร้างถนน คสล. บ้านหนองลาดใต้ หมู่ที่ 8
B4: สถานที่ก่อสร้าง | E4: =ข้อมูลเริ่มต้น!$F$4 -> บ้านหนองลาดใต้ หมู่ที่ 8 ต.หนองลาด อ.เมือง จ.สกลนคร
B5: ปริมาณงาน | E5: =CONCATENATE(ข้อมูลเริ่มต้น!$E$103,ข้อมูลเริ่มต้น!$F$103) -> ผิวจราจร แอสฟัลต์คอนกรีต | G5: =สรุปผลการคำนวณ!$G$2 -> กว้าง | H5: =สรุปผลการคำนวณ!$H$2 -> 4 | I5: =IF($H$5=" "," "," - ") -> - | J5: =สรุปผลการคำนวณ!$J$2 -> 6 | K5: =สรุปผลการคำนวณ!$K$2 -> ม. | M5: =IF(H5=" "," ระยะทาง","ระยะทางรวม") -> ระยะทางรวม | N5: =ข้อมูลเริ่มต้น!$N$103 -> 1300 | O5: =ข้อมูลเริ่มต้น!$O$103 -> ม.
E6: =CONCATENATE(ข้อมูลเริ่มต้น!$E$104," ",ข้อมูลเริ่มต้น!$F$104) -> ไหล่ทาง | G6: =สรุปผลการคำนวณ!$G$3 -> กว้างข้างละ | H6: =สรุปผลการคำนวณ!$H$3 -> 0.5 | I6: =IF($H$6=" "," "," - ") -> - | J6: =สรุปผลการคำนวณ!$J$3 -> 1 | K6: =สรุปผลการคำนวณ!$K$3 -> ม.
B7: หน่วยงานเจ้าของโครงการ | E7: =ข้อมูลเริ่มต้น!$F$5 -> สำนักงานเทศบาลตำบลหนอลาด
B8: แบบเลขที่ | E8: =ข้อมูลเริ่มต้น!$F$6 -> 85 / 2555 ลงวันที่ 30 กรกฏาคม 2555
B9: คำนวณราคากลางเมื่อวันที่ | E9: =ข้อมูลเริ่มต้น!$F$7 -> 30 กรกฏาคม 2555
B10: ลำดับ | C10: รายการ | G10: หน่วย | H10: จำนวน | I10: ราคาต่อหน่วย | K10: ราคาทุน | M10: FN | N10: ราคาต่อหน่วย | O10: ราคากลาง
N11: X FN
B12: 1 | C12: งานดิน
C13: 1.1 | D13: งานถางป่าและขุดต่อ | E13: =CONCATENATE("( ",ข้อมูลเริ่มต้น!Z40," )") -> ( ขนาดเบา ) | G13: ตร.ม. | H13: =สรุปผลการคำนวณ!$H$19 -> 0 | I13: =IF(H13=" "," ",ค่างานต้นทุนต่อหน่วย!$P$8) -> 1.29 | K13: =IF(I13=" "," ",ROUND(H13*I13,2)) -> 0 | M13: =IF(I13=" "," ",$L$65) -> 1.2797 | N13: =IF(I13=" "," ",ROUND(I13*M13,2)) -> 1.65 | O13: =IF(I13=" "," ",ROUND(K13*M13,2)) -> 0
C14: 1.2 | D14: =IF(ข้อมูลเริ่มต้น!$AI$4=1," ",ข้อมูลเริ่มต้น!AJ4) -> งานปรับเกลี่ยแต่งคันทางเดิม | G14: ตร.ม. | H14: =สรุปผลการคำนวณ!$H$18 -> 10280 | I14: =IF(ข้อมูลเริ่มต้น!$AI$4=1," ",IF(ข้อมูลเริ่มต้น!$AI$4=2,ค่างานต้นทุนต่อหน่วย!$P$17,IF(ข้อมูลเริ่มต้น!$AI$4=3,ค่างานต้นทุนต่อหน่วย!$P$21,IF(ข้อมูลเริ่มต้น!$AI$4=4,ค่างานต้นทุนต่อหน่วย!$P$25,IF(ข้อมูลเริ่มต้น!$AI$4=5,ค่างานต้นทุนต่อหน่วย!$P$29))))) -> 1.29 | K14: =IF(I14=" "," ",ROUND(H14*I14,2)) -> 13261.2 | M14: =IF(I14=" "," ",$L$65) -> 1.2797 | N14: =IF(I14=" "," ",ROUND(I14*M14,2)) -> 1.65 | O14: =IF(I14=" "," ",ROUND(K14*M14,2)) -> 16970.36
C15: 1.3 | D15: งานตัดดินคันทาง | G15: ลบ.ม. | H15: =สรุปผลการคำนวณ!$H$17 -> 0 | I15: =IF(H15=" "," ",ค่างานต้นทุนต่อหน่วย!$P$66) -> 37.51 | K15: =IF(I15=" "," ",ROUND(H15*I15,2)) -> 0 | M15: =IF(I15=" "," ",$L$65) -> 1.2797 | N15: =IF(I15=" "," ",ROUND(I15*M15,2)) -> 48 | O15: =IF(I15=" "," ",ROUND(K15*M15,2)) -> 0
C16: 1.4 | D16: งานดินถมคันทาง | G16: ลบ.ม. | H16: =สรุปผลการคำนวณ!$H$16 -> 0 | I16: =IF(H16=" "," ",ค่างานต้นทุนต่อหน่วย!$P$79) -> 87.58 | K16: =IF(I16=" "," ",ROUND(H16*I16,2)) -> 0 | M16: =IF(I16=" "," ",$L$65) -> 1.2797 | N16: =IF(I16=" "," ",ROUND(I16*M16,2)) -> 112.08 | O16: =IF(I16=" "," ",ROUND(K16*M16,2)) -> 0
C17: 1.5 | D17: งานวัสดุคัดเลือก (ลูกรัง) | G17: ลบ.ม. | H17: =สรุปผลการคำนวณ!$H$15 -> 2290 | I17: =IF(H17=" "," ",ค่างานต้นทุนต่อหน่วย!$P$105) -> 118.56 | K17: =IF(I17=" "," ",ROUND(H17*I17,2)) -> 271502.4 | M17: =IF(I17=" "," ",$L$65) -> 1.2797 | N17: =IF(I17=" "," ",ROUND(I17*M17,2)) -> 151.72 | O17: =IF(I17=" "," ",ROUND(H17*N17,2)) -> 347438.8
B18: 2 | C18: งานรองพื้นทางและทรายรองใต้ผิวคอนกรีต
C19: 2.1 | D19: =ข้อมูลเริ่มต้น!$K$106 -> งานรองพื้นทางดินซีเมนต์ | G19: ลบ.ม. | H19: =สรุปผลการคำนวณ!$H$14 -> 2134 | I19: =IF(H19=0," ",IF(ข้อมูลเริ่มต้น!$V$4=2,ค่างานต้นทุนต่อหน่วย!$P$114,IF(ข้อมูลเริ่มต้น!$V$4=3,ค่างานต้นทุนต่อหน่วย!$P$152," "))) -> 429.89 | K19: =IF(I19=" "," ",ROUND(H19*I19,2)) -> 917385.26 | M19: =IF(I19=" "," ",$L$65) -> 1.2797 | N19: =IF(I19=" "," ",ROUND(I19*M19,2)) -> 550.13 | O19: =IF(I19=" "," ",ROUND(K19*M19,2)) -> 1173977.92
C20: 2.2 | D20: =ข้อมูลเริ่มต้น!$K$105 -> งานพื้นทางหินคลุก | G20: ลบ.ม. | H20: =IF(ข้อมูลเริ่มต้น!$Z$4=2,สรุปผลการคำนวณ!$H$13," ") -> 1978 | I20: =IF(H20=0," ",IF(ข้อมูลเริ่มต้น!$Z$4=2,ค่างานต้นทุนต่อหน่วย!$P$201," ")) -> 496.22 | K20: =IF(I20=" "," ",ROUND(H20*I20,2)) -> 981523.16 | M20: =IF(I20=" "," ",$L$65) -> 1.2797 | N20: =IF(I20=" "," ",ROUND(I20*M20,2)) -> 635.01 | O20: =IF(I20=" "," ",ROUND(K20*M20,2)) -> 1256055.19
B21: 3 | C21: งานผิวทาง
C22: 3.1 | D22: งานผิวทางปอร์ตแลนด์ซีเมนต์ หนา | F22: =CONCATENATE(ข้อมูลเริ่มต้น!$I$11," ",ข้อมูลเริ่มต้น!$J$11) -> 20 ซม. | G22: ตร.ม. | H22: =IF(ข้อมูลเริ่มต้น!$V$8=2,สรุปผลการคำนวณ!$H$4," ") ->  | I22: =IF(H22=0," ",IF(ข้อมูลเริ่มต้น!$V$8=2,ค่างานต้นทุนต่อหน่วย!$P$269," ")) ->  | K22: =IF(I22=" "," ",ROUND(H22*I22,2)) ->  | M22: =IF(I22=" "," ",$L$65) ->  | N22: =IF(I22=" "," ",ROUND(I22*M22,2)) ->  | O22: =IF(I22=" "," ",ROUND(K22*M22,2)) -> 
C23: 3.2 | D23: =สรุปผลการคำนวณ!$C$10 ->  | G23: ม. | H23: =IF(ข้อมูลเริ่มต้น!$V$8=2,สรุปผลการคำนวณ!$H$10," ") ->  | I23: =IF(H23=0," ",IF(ข้อมูลเริ่มต้น!$V$8=2,ค่างานต้นทุนต่อหน่วย!$P$297," ")) ->  | K23: =IF(I23=" "," ",ROUND(H23*I23,2)) ->  | M23: =IF(I23=" "," ",$L$65) ->  | N23: =IF(I23=" "," ",ROUND(I23*M23,2)) ->  | O23: =IF(I23=" "," ",ROUND(L23*M23,2)) -> 
C24: 3.3 | D24: =สรุปผลการคำนวณ!$C$11 ->  | G24: ม. | H24: =IF(ข้อมูลเริ่มต้น!$V$8=2,สรุปผลการคำนวณ!$H$11," ") ->  | I24: =IF(H24=0," ",IF(ข้อมูลเริ่มต้น!$V$8=2,ค่างานต้นทุนต่อหน่วย!$P$306," ")) ->  | M24: =IF(I24=" "," ",$L$65) ->  | N24: =IF(I24=" "," ",ROUND(I24*M24,2)) ->  | O24: =IF(I24=" "," ",ROUND(L24*M24,2)) -> 
C25: 3.4 | D25: =สรุปผลการคำนวณ!$C$12 ->  | G25: ม. | H25: =IF(ข้อมูลเริ่มต้น!$V$8=2,สรุปผลการคำนวณ!$H$12," ") ->  | I25: =IF(H25=0," ",IF(ข้อมูลเริ่มต้น!$V$8=2,ค่างานต้นทุนต่อหน่วย!$P$314," ")) ->  | M25: =IF(I25=" "," ",$L$65) ->  | N25: =IF(I25=" "," ",ROUND(I25*M25,2)) ->  | O25: =IF(I25=" "," ",ROUND(L25*M25,2)) -> 
B26: 4 | C26: งานไหล่ทาง
C27: 4.1 | D27: งานไหล่ทางลูกรังปรับเกี่ยแต่ง | G27: ลบ.ม. | H27: =สรุปผลการคำนวณ!$H$5 -> 0 | I27: =IF(H27=0," ",IF(ข้อมูลเริ่มต้น!$V$8=2,ค่างานต้นทุนต่อหน่วย!$P$172," ")) ->  | M27: =IF(I27=" "," ",$L$65) ->  | N27: =IF(I27=" "," ",ROUND(I27*M27,2)) ->  | O27: =IF(I27=" "," ",ROUND(L27*M27,2)) -> 
B28: 5 | C28: งานตีเส้นจราจร
C29: 5.1 | D29: งานตีเส้น ThermoPlastic Paint (สีเหลือง) | G29: ตร.ม. | H29: =สรุปผลการคำนวณ!$H$8 -> 52 | I29: =IF(H29=" "," ",ค่างานต้นทุนต่อหน่วย!$O$523) -> 230 | K29: =IF(H29=" "," ",ROUND(H29*I29,2)) -> 11960 | M29: =IF(I29=" "," ",$L$65) -> 1.2797 | N29: =IF(H29=" "," ",ROUND(I29*M29,2)) -> 294.33 | O29: =IF(I29=" "," ",ROUND(K29*M29,2)) -> 15305.21
D30: (ตีเฉพาะเส้นแบ่งทิศทาง CenterLine)
B31: 6 | C31: งานท่อกลมคอนกรีตเสริมเหล็ก
C32: 6.1 | D32: ขนาด ø 0.30 ม. ชั้น 3 | G32: ม. | H32: =สรุปผลการคำนวณ!$H$20 -> 1 | I32: =IF(H32=" "," ",ค่างานต้นทุนต่อหน่วย!$P$322) -> 539.57 | K32: =IF(H32=" "," ",ROUND(H32*I32,2)) -> 539.57 | M32: =IF(I32=" "," ",$L$65) -> 1.2797 | N32: =IF(H32=" "," ",ROUND(I32*M32,2)) -> 690.49 | O32: =IF(I32=" "," ",ROUND(K32*M32,2)) -> 690.49
C33: 6.2 | D33: ขนาด ø 0.40 ม. ชั้น 3 | G33: ม. | H33: =สรุปผลการคำนวณ!$H$21 -> 1 | I33: =IF(H33=" "," ",ค่างานต้นทุนต่อหน่วย!$P$336) -> 608.54 | K33: =IF(H33=" "," ",ROUND(H33*I33,2)) -> 608.54 | M33: =IF(I33=" "," ",$L$65) -> 1.2797 | N33: =IF(H33=" "," ",ROUND(I33*M33,2)) -> 778.75 | O33: =IF(I33=" "," ",ROUND(K33*M33,2)) -> 778.75
C34: 6.3 | D34: ขนาด ø 0.60 ม. ชั้น 3 | G34: ม. | H34: =สรุปผลการคำนวณ!$H$22 -> 1 | I34: =IF(H34=" "," ",ค่างานต้นทุนต่อหน่วย!$P$350) -> 945.15 | K34: =IF(H34=" "," ",ROUND(H34*I34,2)) -> 945.15 | M34: =IF(I34=" "," ",$L$65) -> 1.2797 | N34: =IF(H34=" "," ",ROUND(I34*M34,2)) -> 1209.51 | O34: =IF(I34=" "," ",ROUND(K34*M34,2)) -> 1209.51
C35: 6.4 | D35: ขนาด ø 0.80 ม. ชั้น 3 | G35: ม. | H35: =สรุปผลการคำนวณ!$H$23 -> 1 | I35: =IF(H35=" "," ",ค่างานต้นทุนต่อหน่วย!$P$364) -> 1745.84 | K35: =IF(H35=" "," ",ROUND(H35*I35,2)) -> 1745.84 | M35: =IF(I35=" "," ",$L$65) -> 1.2797 | N35: =IF(H35=" "," ",ROUND(I35*M35,2)) -> 2234.15 | O35: =IF(I35=" "," ",ROUND(K35*M35,2)) -> 2234.15
C36: 6.5 | D36: ขนาด ø 1.00 ม. ชั้น 3 | G36: ม. | H36: =สรุปผลการคำนวณ!$H$24 -> 1 | I36: =IF(H36=" "," ",ค่างานต้นทุนต่อหน่วย!$P$378) -> 2380.67 | K36: =IF(H36=" "," ",ROUND(H36*I36,2)) -> 2380.67 | M36: =IF(I36=" "," ",$L$65) -> 1.2797 | N36: =IF(H36=" "," ",ROUND(I36*M36,2)) -> 3046.54 | O36: =IF(I36=" "," ",ROUND(K36*M36,2)) -> 3046.54
B37: 7 | C37: งานกำแพงปากท่อคอนกรีตเสริมเหล็ก
C38: 7.1 | D38: สำหรับท่อกลม คสล. ขนาด ø 0.60 ม. 1 แถว | G38: แห่ง | H38: =สรุปผลการคำนวณ!$H$27 -> 1 | I38: =IF(H38=" "," ",ค่างานต้นทุนต่อหน่วย!$P$421) -> 3359.89 | K38: =IF(H38=" "," ",ROUND(H38*I38,2)) -> 3359.89 | M38: =IF(I38=" "," ",$L$65) -> 1.2797 | N38: =IF(H38=" "," ",ROUND(I38*M38,2)) -> 4299.65 | O38: =IF(I38=" "," ",ROUND(K38*M38,2)) -> 4299.65
C39: 7.2 | D39: สำหรับท่อกลม คสล. ขนาด ø 0.60 ม. 2 แถว | G39: แห่ง | H39: =สรุปผลการคำนวณ!$H$28 -> 1 | I39: =IF(H39=" "," ",ค่างานต้นทุนต่อหน่วย!$P$432) -> 4941.04 | K39: 4941.04 | M39: 1.2797 | N39: 6323.05 | O39: 6323.05
C40: 7.3 | D40: สำหรับท่อกลม คสล. ขนาด ø 0.60 ม. 3 แถว | G40: แห่ง | H40: =สรุปผลการคำนวณ!$H$29 -> 1 | I40: =IF(H40=" "," ",ค่างานต้นทุนต่อหน่วย!$P$443) -> 6522.98 | K40: 6522.98 | M40: 1.2797 | N40: 8347.46 | O40: 8347.46
C41: 7.4 | D41: สำหรับท่อกลม คสล. ขนาด ø 0.80 ม. 1 แถว | G41: แห่ง | H41: =สรุปผลการคำนวณ!$H$30 -> 1 | I41: =IF(H41=" "," ",ค่างานต้นทุนต่อหน่วย!$P$454) -> 4068.83 | K41: 4068.83 | M41: 1.2797 | N41: 5206.88 | O41: 5206.88
C42: 7.5 | D42: สำหรับท่อกลม คสล. ขนาด ø 0.80 ม. 2 แถว | G42: แห่ง | H42: =สรุปผลการคำนวณ!$H$31 -> 1 | I42: =IF(H42=" "," ",ค่างานต้นทุนต่อหน่วย!$P$465) -> 6351.12 | K42: 6351.12 | M42: 1.2797 | N42: 8127.53 | O42: 8127.53
C43: 7.6 | D43: สำหรับท่อกลม คสล. ขนาด ø 0.80 ม. 3 แถว | G43: แห่ง | H43: =สรุปผลการคำนวณ!$H$32 -> 1 | I43: =IF(H43=" "," ",ค่างานต้นทุนต่อหน่วย!$P$476) -> 8653.28 | K43: 8653.28 | M43: 1.2797 | N43: 11073.6 | O43: 11073.6
C44: 7.7 | D44: สำหรับท่อกลม คสล. ขนาด ø 1.00 ม. 1 แถว | G44: แห่ง | H44: =สรุปผลการคำนวณ!$H$33 -> 1 | I44: =IF(H44=" "," ",ค่างานต้นทุนต่อหน่วย!$P$487) -> 4813.16 | K44: 4813.16 | M44: 1.2797 | N44: 6159.4 | O44: 6159.4
C45: 7.8 | D45: สำหรับท่อกลม คสล. ขนาด ø 1.00 ม. 2 แถว | G45: แห่ง | H45: =สรุปผลการคำนวณ!$H$34 -> 1 | I45: =IF(H45=" "," ",ค่างานต้นทุนต่อหน่วย!$P$498) -> 7924.4 | K45: 7924.4 | M45: 1.2797 | N45: 10140.85 | O45: 10140.85
C46: 7.9 | D46: สำหรับท่อกลม คสล. ขนาด ø 1.00 ม. 3 แถว | G46: แห่ง | H46: =สรุปผลการคำนวณ!$H$35 -> 1 | I46: =IF(H46=" "," ",ค่างานต้นทุนต่อหน่วย!$P$509) -> 10609.5 | K46: 10609.5 | M46: 1.2797 | N46: 13576.98 | O46: 13576.98
B47: 8 | C47: งานบ่อพักรับน้ำ คอนกรีตเสริมเหล็ก
C48: 8.1 | D48: สำหรับท่อกลม คสล. ขนาด ø 0.30 ม. เข้า - ออก | G48: แห่ง | H48: =สรุปผลการคำนวณ!$H$36 -> 1 | I48: =IF(H48=" "," ",ค่างานต้นทุนต่อหน่วย!$P$610) -> 3150.62 | K48: =IF(H48=" "," ",ROUND(H48*I48,2)) -> 3150.62 | M48: =IF(I48=" "," ",$L$65) -> 1.2797 | N48: =IF(H48=" "," ",ROUND(I48*M48,2)) -> 4031.85 | O48: =IF(I48=" "," ",ROUND(K48*M48,2)) -> 4031.85
C49: 8.2 | D49: สำหรับท่อกลม คสล. ขนาด ø 0.40 ม. เข้า - ออก | G49: แห่ง | H49: =สรุปผลการคำนวณ!$H$37 -> 1 | I49: =IF(H49=" "," ",ค่างานต้นทุนต่อหน่วย!$P$581) -> 4957.49 | K49: =IF(H49=" "," ",ROUND(H49*I49,2)) -> 4957.49 | M49: =IF(I49=" "," ",$L$65) -> 1.2797 | N49: =IF(H49=" "," ",ROUND(I49*M49,2)) -> 6344.1 | O49: =IF(I49=" "," ",ROUND(K49*M49,2)) -> 6344.1
C50: 8.3 | D50: สำหรับท่อกลม คสล. ขนาด ø 0.60 ม. เข้า - ออก | G50: แห่ง | H50: =สรุปผลการคำนวณ!$H$38 -> 1 | I50: =IF(H50=" "," ",ค่างานต้นทุนต่อหน่วย!$P$642) -> 5345.92 | K50: =IF(H50=" "," ",ROUND(H50*I50,2)) -> 5345.92 | M50: =IF(I50=" "," ",$L$65) -> 1.2797 | N50: =IF(H50=" "," ",ROUND(I50*M50,2)) -> 6841.17 | O50: =IF(I50=" "," ",ROUND(K50*M50,2)) -> 6841.17
B51: 9 | C51: งานท่อเหลี่ยมคอนกรีตเสริมเหล็ก
C52: 9.1 | D52: งานท่อเหลี่ยมคอนกรีตเสริมเหล็กก่อสร้างใหม่ | G52: แห่ง | H52: =สรุปผลการคำนวณ!$H$39 -> 1 | I52: =IF(H52=" "," ",ค่างานต้นทุนต่อหน่วย!$P$554) -> 213810.96 | K52: =IF(H52=" "," ",ROUND(H52*I52,2)) -> 213810.96 | M52: =IF(H52=" "," ",$L$66) -> 1.2256 | N52: =IF(H52=" "," ",ROUND(I52*M52,2)) -> 262046.71 | O52: =IF(I52=" "," ",ROUND(K52*M52,2)) -> 262046.71
D53: กม. | E53: =ข้อมูลเริ่มต้น!H41 -> 100
D54: ขนาด | E54: =ข้อมูลเริ่มต้น!M41 -> 1-1.80x1.80
D55: ยาว | E55: =ข้อมูลเริ่มต้น!H42 -> 10 | F55: ม.
N58: รวมค่าก่อสร้างทั้งโครงการ | O58: =ROUND((SUM(O12:O57)),2) -> 3170226.15
N59: ราคากลาง | O59: =ROUNDDOWN($O$58,-3) -> 3170000
O60: =CONCATENATE("ราคากลาง"," ","(",BAHTTEXT(O59),")") -> ราคากลาง (สามล้านหนึ่งแสนเจ็ดหมื่นบาทถ้วน)
D62: ① | E62: ผลรวมค่างานต้นทุนงานก่อสร้างทาง | L62: =SUM(K12:L50) -> 2272550.02
D63: ② | E63: ผลรวมค่างานต้นทุนงานก่อสร้างสะพานและท่อเหลียม | L63: =IF(K52=" ",0,ROUND(K52,2)) -> 213810.96
D65: ③ | E65: ค่า Factor F งานก่อสร้างทาง | L65: =F_ทาง!$M$5 -> 1.2797
D66: ④ | E66: ค่า Factor F งานก่อสร้างสะพานและท่อเหลียม | L66: =F_สะพานและท่อเหลี่ยม!$N$5 -> 1.2256
D68: =IF(ข้อมูลเริ่มต้น!$W$66=1,"คณะกรรมการกำหนดราคากลาง"," ") -> 
D69: =IF(ข้อมูลเริ่มต้น!$W$66=1,"ตามคำสั่งที่"," ") ->  | E69: =IF(D68=" "," ",ข้อมูลเริ่มต้น!$K$93) -> 
D71: =IF(ข้อมูลเริ่มต้น!$W$66=2,"ผู้ประมาณราคา"," ") -> ผู้ประมาณราคา | E71: …………………………………. | G71: =IF(ข้อมูลเริ่มต้น!$W$66=1,"ประธานกรรมการ"," ") ->  | J71: =IF(ข้อมูลเริ่มต้น!$W$66=2,"ผู้ตรวจ"," ") -> ผู้ตรวจ | L71: …………………………………. | O71: =IF(ข้อมูลเริ่มต้น!$W$66=1,"กรรมการ"," ") -> 
E72: =CONCATENATE("(",ข้อมูลเริ่มต้น!$K$93,")") -> (นายศิวกร พงษ์สิทธิศักดิ์) | L72: =CONCATENATE("(",ข้อมูลเริ่มต้น!$K$95,")") -> (นายคมกฤษ เทียมโคกกรวด)
E73: =ข้อมูลเริ่มต้น!$K$94 -> นายช่างโยธา 4 | L73: =ข้อมูลเริ่มต้น!$K$96 -> ผู้อำนวยการกองช่าง
D76: =IF(ข้อมูลเริ่มต้น!$W$66=2,"ผู้เห็นชอบ"," ") -> ผู้เห็นชอบ | E76: …………………………………. | G76: =IF(ข้อมูลเริ่มต้น!$W$66=1,"กรรมการ"," ") ->  | J76: =IF(ข้อมูลเริ่มต้น!$W$66=2,"ผู้อนุมัติ"," ") -> ผู้อนุมัติ | L76: =IF(ข้อมูลเริ่มต้น!$W$66=1," ","………………………………….") -> ………………………………….
E77: =CONCATENATE("(",ข้อมูลเริ่มต้น!$K$97,")") -> (นายประสิทธิ์ สกนธรัตน์) | L77: =IF(ข้อมูลเริ่มต้น!$W$66=1," ",CONCATENATE("(",ข้อมูลเริ่มต้น!$K$99,")")) -> (นายสุริยะ แก้ววิรัตน์)
E78: =ข้อมูลเริ่มต้น!$K$98 -> ปลัดเทศบาล | L78: =IF(ข้อมูลเริ่มต้น!$W$66=1," ",CONCATENATE(ข้อมูลเริ่มต้น!$K$100)) -> นายกเทศมนตรีตำบลหนองลาด

Sheet แบบสรุปราคาลุกรัง บดอัด
B1: แบบสรุปราคากลาง ผิวทางลูกรัง บดอัดแน่น
B2: แบบสรุปราคากลางงานก่อสร้างทาง สะพาน และท่อเหลียม
B3: ชื่อโครงการ | E3: =ข้อมูลเริ่มต้น!$F$3 -> โครงการก่อสร้างถนน คสล. บ้านหนองลาดใต้ หมู่ที่ 8
B4: สถานที่ก่อสร้าง | E4: =ข้อมูลเริ่มต้น!$F$4 -> บ้านหนองลาดใต้ หมู่ที่ 8 ต.หนองลาด อ.เมือง จ.สกลนคร
B5: ปริมาณงาน | E5: =CONCATENATE(ข้อมูลเริ่มต้น!$E$103,ข้อมูลเริ่มต้น!$F$103) -> ผิวจราจร แอสฟัลต์คอนกรีต | G5: =สรุปผลการคำนวณ!$G$2 -> กว้าง | H5: =สรุปผลการคำนวณ!$H$2 -> 4 | I5: =IF($H$5=" "," "," - ") -> - | J5: =สรุปผลการคำนวณ!$J$2 -> 6 | K5: =สรุปผลการคำนวณ!$K$2 -> ม. | M5: =IF(H5=" "," ระยะทาง","ระยะทางรวม") -> ระยะทางรวม | N5: =ข้อมูลเริ่มต้น!$N$103 -> 1300 | O5: =ข้อมูลเริ่มต้น!$O$103 -> ม.
B6: หน่วยงานเจ้าของโครงการ | E6: =ข้อมูลเริ่มต้น!$F$5 -> สำนักงานเทศบาลตำบลหนอลาด
B7: แบบเลขที่ | E7: =ข้อมูลเริ่มต้น!$F$6 -> 85 / 2555 ลงวันที่ 30 กรกฏาคม 2555
B8: คำนวณราคากลางเมื่อวันที่ | E8: =ข้อมูลเริ่มต้น!$F$7 -> 30 กรกฏาคม 2555
B9: ลำดับ | C9: รายการ | G9: หน่วย | H9: จำนวน | I9: ราคาต่อหน่วย | K9: ราคาทุน | M9: FN | N9: ราคาต่อหน่วย | O9: ราคากลาง
N10: X FN
B11: 1 | C11: งานดิน
C12: 1.1 | D12: งานถางป่าและขุดต่อ | E12: =CONCATENATE("( ",ข้อมูลเริ่มต้น!Z40," )") -> ( ขนาดเบา ) | G12: ตร.ม. | H12: =สรุปผลการคำนวณ!$H$19 -> 0 | I12: =IF(H12=" "," ",ค่างานต้นทุนต่อหน่วย!$P$8) -> 1.29 | K12: =IF(I12=" "," ",ROUND(H12*I12,2)) -> 0 | M12: =IF(I12=" "," ",$L$61) -> 1.2797 | N12: =IF(I12=" "," ",ROUND(I12*M12,2)) -> 1.65 | O12: =IF(I12=" "," ",ROUND(H12*N12,2)) -> 0
C13: 1.2 | D13: งานตัดดินคันทาง | G13: ลบ.ม. | H13: =สรุปผลการคำนวณ!$H$17 -> 0 | I13: =IF(H13=" "," ",ค่างานต้นทุนต่อหน่วย!$P$66) -> 37.51 | K13: =IF(I13=" "," ",ROUND(H13*I13,2)) -> 0 | M13: =IF(I13=" "," ",$L$61) -> 1.2797 | N13: =IF(I13=" "," ",ROUND(I13*M13,2)) -> 48 | O13: =IF(I13=" "," ",ROUND(H13*N13,2)) -> 0
C14: 1.3 | D14: =IF(ข้อมูลเริ่มต้น!$V$8=3,"งานดินถมคันทาง บดอัดแน่น",IF(ข้อมูลเริ่มต้น!$V$8=4,"งานดินถมคันทาง ปรับเกลี่ยแต่ง"," ")) ->  | G14: ลบ.ม. | H14: =สรุปผลการคำนวณ!$H$16 -> 0 | I14: =IF(H14=" "," ",ค่างานต้นทุนต่อหน่วย!$P$79) -> 87.58 | K14: =IF(I14=" "," ",ROUND(H14*I14,2)) -> 0 | M14: =IF(I14=" "," ",$L$61) -> 1.2797 | N14: =IF(I14=" "," ",ROUND(I14*M14,2)) -> 112.08 | O14: =IF(I14=" "," ",ROUND(H14*N14,2)) -> 0
B15: 2 | C15: งานผิวทาง
C16: 2.1 | D16: =CONCATENATE("งานผิวทาง",ข้อมูลเริ่มต้น!$F$105," ","หนา") -> งานผิวทางแอสฟัลต์คอนกรีต หนา | F16: =CONCATENATE(ข้อมูลเริ่มต้น!$I$11," ",ข้อมูลเริ่มต้น!$J$11) -> 20 ซม. | G16: ลบ.ม. | H16: =สรุปผลการคำนวณ!$H$4+สรุปผลการคำนวณ!$H$5 -> 7200 | I16: =IF(H16=0," ",ค่างานต้นทุนต่อหน่วย!$P$182) -> 123.36 | K16: =IF(I16=" "," ",ROUND(H16*I16,2)) -> 888192 | M16: =IF(I16=" "," ",$L$61) -> 1.2797 | N16: =IF(I16=" "," ",ROUND(I16*M16,2)) -> 157.86 | O16: =IF(I16=" "," ",ROUND(H16*N16,2)) -> 1136592
B17: 3 | C17: งานท่อกลมคอนกรีตเสริมเหล็ก
C18: 3.1 | D18: ขนาด ø 0.30 ม. ชั้น 3 | G18: ม. | H18: =สรุปผลการคำนวณ!$H$20 -> 1 | I18: =IF(H18=" "," ",ค่างานต้นทุนต่อหน่วย!$P$322) -> 539.57 | K18: =IF(H18=" "," ",ROUND(H18*I18,2)) -> 539.57 | M18: =IF(I18=" "," ",$L$61) -> 1.2797 | N18: =IF(H18=" "," ",ROUND(I18*M18,2)) -> 690.49 | O18: =IF(H18=" "," ",ROUND(H18*N18,2)) -> 690.49
C19: 3.2 | D19: ขนาด ø 0.40 ม. ชั้น 3 | G19: ม. | H19: =สรุปผลการคำนวณ!$H$21 -> 1 | I19: =IF(H19=" "," ",ค่างานต้นทุนต่อหน่วย!$P$336) -> 608.54 | K19: =IF(H19=" "," ",ROUND(H19*I19,2)) -> 608.54 | M19: =IF(I19=" "," ",$L$61) -> 1.2797 | N19: =IF(H19=" "," ",ROUND(I19*M19,2)) -> 778.75 | O19: 778.75
C20: 3.3 | D20: ขนาด ø 0.60 ม. ชั้น 3 | G20: ม. | H20: =สรุปผลการคำนวณ!$H$22 -> 1 | I20: =IF(H20=" "," ",ค่างานต้นทุนต่อหน่วย!$P$350) -> 945.15 | K20: =IF(H20=" "," ",ROUND(H20*I20,2)) -> 945.15 | M20: =IF(I20=" "," ",$L$61) -> 1.2797 | N20: =IF(H20=" "," ",ROUND(I20*M20,2)) -> 1209.51 | O20: 1209.51
C21: 3.4 | D21: ขนาด ø 0.80 ม. ชั้น 3 | G21: ม. | H21: =สรุปผลการคำนวณ!$H$23 -> 1 | I21: =IF(H21=" "," ",ค่างานต้นทุนต่อหน่วย!$P$364) -> 1745.84 | K21: =IF(H21=" "," ",ROUND(H21*I21,2)) -> 1745.84 | M21: =IF(I21=" "," ",$L$61) -> 1.2797 | N21: =IF(H21=" "," ",ROUND(I21*M21,2)) -> 2234.15 | O21: 2234.15
C22: 3.5 | D22: ขนาด ø 1.00 ม. ชั้น 3 | G22: ม. | H22: =สรุปผลการคำนวณ!$H$24 -> 1 | I22: =IF(H22=" "," ",ค่างานต้นทุนต่อหน่วย!$P$378) -> 2380.67 | K22: =IF(H22=" "," ",ROUND(H22*I22,2)) -> 2380.67 | M22: =IF(I22=" "," ",$L$61) -> 1.2797 | N22: =IF(H22=" "," ",ROUND(I22*M22,2)) -> 3046.54 | O22: 3046.54
B23: 4 | C23: งานกำแพงปากท่อคอนกรีตเสริมเหล็ก
C24: 4.1 | D24: สำหรับท่อกลม คสล. ขนาด ø 0.60 ม. 1 แถว | G24: แห่ง | H24: =สรุปผลการคำนวณ!$H$27 -> 1 | I24: =IF(H24=" "," ",ค่างานต้นทุนต่อหน่วย!$P$421) -> 3359.89 | K24: =IF(H24=" "," ",ROUND(H24*I24,2)) -> 3359.89 | M24: =IF(I24=" "," ",$L$61) -> 1.2797 | N24: =IF(H24=" "," ",ROUND(I24*M24,2)) -> 4299.65 | O24: 4299.65
C25: 4.2 | D25: สำหรับท่อกลม คสล. ขนาด ø 0.60 ม. 2 แถว | G25: แห่ง | H25: =สรุปผลการคำนวณ!$H$28 -> 1 | I25: =IF(H25=" "," ",ค่างานต้นทุนต่อหน่วย!$P$432) -> 4941.04 | K25: 4941.04 | M25: 1.2797 | N25: 6323.05 | O25: 6323.05
C26: 4.3 | D26: สำหรับท่อกลม คสล. ขนาด ø 0.60 ม. 3 แถว | G26: แห่ง | H26: =สรุปผลการคำนวณ!$H$29 -> 1 | I26: =IF(H26=" "," ",ค่างานต้นทุนต่อหน่วย!$P$443) -> 6522.98 | K26: 6522.98 | M26: 1.2797 | N26: 8347.46 | O26: 8347.46
C27: 4.4 | D27: สำหรับท่อกลม คสล. ขนาด ø 0.80 ม. 1 แถว | G27: แห่ง | H27: =สรุปผลการคำนวณ!$H$30 -> 1 | I27: =IF(H27=" "," ",ค่างานต้นทุนต่อหน่วย!$P$454) -> 4068.83 | K27: 4068.83 | M27: 1.2797 | N27: 5206.88 | O27: 5206.88
C28: 4.5 | D28: สำหรับท่อกลม คสล. ขนาด ø 0.80 ม. 2 แถว | G28: แห่ง | H28: =สรุปผลการคำนวณ!$H$31 -> 1 | I28: =IF(H28=" "," ",ค่างานต้นทุนต่อหน่วย!$P$465) -> 6351.12 | K28: 6351.12 | M28: 1.2797 | N28: 8127.53 | O28: 8127.53
C29: 4.6 | D29: สำหรับท่อกลม คสล. ขนาด ø 0.80 ม. 3 แถว | G29: แห่ง | H29: =สรุปผลการคำนวณ!$H$32 -> 1 | I29: =IF(H29=" "," ",ค่างานต้นทุนต่อหน่วย!$P$476) -> 8653.28 | K29: 8653.28 | M29: 1.2797 | N29: 11073.6 | O29: 11073.6
C30: 4.7 | D30: สำหรับท่อกลม คสล. ขนาด ø 1.00 ม. 1 แถว | G30: แห่ง | H30: =สรุปผลการคำนวณ!$H$33 -> 1 | I30: =IF(H30=" "," ",ค่างานต้นทุนต่อหน่วย!$P$487) -> 4813.16 | K30: 4813.16 | M30: 1.2797 | N30: 6159.4 | O30: 6159.4
C31: 4.8 | D31: สำหรับท่อกลม คสล. ขนาด ø 1.00 ม. 2 แถว | G31: แห่ง | H31: =สรุปผลการคำนวณ!$H$34 -> 1 | I31: =IF(H31=" "," ",ค่างานต้นทุนต่อหน่วย!$P$498) -> 7924.4 | K31: 7924.4 | M31: 1.2797 | N31: 10140.85 | O31: 10140.85
C32: 4.9 | D32: สำหรับท่อกลม คสล. ขนาด ø 1.00 ม. 3 แถว | G32: แห่ง | H32: =สรุปผลการคำนวณ!$H$35 -> 1 | I32: =IF(H32=" "," ",ค่างานต้นทุนต่อหน่วย!$P$509) -> 10609.5 | K32: 10609.5 | M32: 1.2797 | N32: 13576.98 | O32: 13576.98
B47: 5 | C47: งานท่อเหลี่ยมคอนกรีตเสริมเหล็ก
C48: 5.1 | D48: งานท่อเหลี่ยมคอนกรีตเสริมเหล็กก่อสร้างใหม่ | G48: แห่ง | H48: =สรุปผลการคำนวณ!$H$39 -> 1 | I48: =IF(H48=" "," ",ค่างานต้นทุนต่อหน่วย!$P$554) -> 213810.96 | K48: =IF(H48=" "," ",ROUND(H48*I48,2)) -> 213810.96 | M48: =IF(H48=" "," ",$L$62) -> 1.2256 | N48: =IF(H48=" "," ",ROUND(I48*M48,2)) -> 262046.71 | O48: 262046.71
D49: กม. | E49: =ข้อมูลเริ่มต้น!H41 -> 100
D50: ขนาด | E50: =ข้อมูลเริ่มต้น!M41 -> 1-1.80x1.80
D51: ยาว | E51: =ข้อมูลเริ่มต้น!H42 -> 10 | F51: ม.
N54: รวมค่าก่อสร้างทั้งโครงการ | O54: =ROUND((SUM(O11:O53)),2) -> 1479853.55
N55: ราคากลาง | O55: =ROUNDDOWN($O$54,-3) -> 1479000
O56: =CONCATENATE("ราคากลาง"," ","(",BAHTTEXT(O55),")") -> ราคากลาง (หนึ่งล้านสี่แสนเจ็ดหมื่นเก้าพันบาทถ้วน)
D58: ① | E58: ผลรวมค่างานต้นทุนงานก่อสร้างทาง | L58: =SUM(K11:L46) -> 951655.97
D59: ② | E59: ผลรวมค่างานต้นทุนงานก่อสร้างสะพานและท่อเหลียม | L59: =IF(K48=" ",0,ROUND(K48,2)) -> 213810.96
D61: ③ | E61: ค่า Factor F งานก่อสร้างทาง | L61: =F_ทาง!$M$5 -> 1.2797
D62: ④ | E62: ค่า Factor F งานก่อสร้างสะพานและท่อเหลียม | L62: =F_สะพานและท่อเหลี่ยม!$N$5 -> 1.2256
D64: =IF(ข้อมูลเริ่มต้น!$W$66=1,"คณะกรรมการกำหนดราคากลาง"," ") -> 
D65: =IF(ข้อมูลเริ่มต้น!$W$66=1,"ตามคำสั่งที่"," ") ->  | E65: =IF(D64=" "," ",ข้อมูลเริ่มต้น!$K$93) -> 
D67: =IF(ข้อมูลเริ่มต้น!$W$66=2,"ผู้ประมาณราคา"," ") -> ผู้ประมาณราคา | E67: …………………………………. | G67: =IF(ข้อมูลเริ่มต้น!$W$66=1,"ประธานกรรมการ"," ") ->  | J67: =IF(ข้อมูลเริ่มต้น!$W$66=2,"ผู้ตรวจ"," ") -> ผู้ตรวจ | L67: …………………………………. | O67: =IF(ข้อมูลเริ่มต้น!$W$66=1,"กรรมการ"," ") -> 
E68: =CONCATENATE("(",ข้อมูลเริ่มต้น!$K$93,")") -> (นายศิวกร พงษ์สิทธิศักดิ์) | L68: =CONCATENATE("(",ข้อมูลเริ่มต้น!$K$95,")") -> (นายคมกฤษ เทียมโคกกรวด)
E69: =ข้อมูลเริ่มต้น!$K$94 -> นายช่างโยธา 4 | L69: =ข้อมูลเริ่มต้น!$K$96 -> ผู้อำนวยการกองช่าง
D72: =IF(ข้อมูลเริ่มต้น!$W$66=2,"ผู้เห็นชอบ"," ") -> ผู้เห็นชอบ | E72: …………………………………. | G72: =IF(ข้อมูลเริ่มต้น!$W$66=1,"กรรมการ"," ") ->  | J72: =IF(ข้อมูลเริ่มต้น!$W$66=2,"ผู้อนุมัติ"," ") -> ผู้อนุมัติ | L72: =IF(ข้อมูลเริ่มต้น!$W$66=1," ","………………………………….") -> ………………………………….
E73: =CONCATENATE("(",ข้อมูลเริ่มต้น!$K$97,")") -> (นายประสิทธิ์ สกนธรัตน์) | L73: =IF(ข้อมูลเริ่มต้น!$W$66=1," ",CONCATENATE("(",ข้อมูลเริ่มต้น!$K$99,")")) -> (นายสุริยะ แก้ววิรัตน์)
E74: =ข้อมูลเริ่มต้น!$K$98 -> ปลัดเทศบาล | L74: =IF(ข้อมูลเริ่มต้น!$W$66=1," ",CONCATENATE(ข้อมูลเริ่มต้น!$K$100)) -> นายกเทศมนตรีตำบลหนองลาด

Sheet แบบสรุปราคาลุกรัง ปรับเกลี่ย
B1: แบบสรุปราคากลาง ผิวทางลูกรัง ปรับเกลี่ยแต่ง
B2: แบบสรุปราคากลางงานก่อสร้างทาง สะพาน และท่อเหลียม
B3: ชื่อโครงการ | E3: =ข้อมูลเริ่มต้น!$F$3 -> โครงการก่อสร้างถนน คสล. บ้านหนองลาดใต้ หมู่ที่ 8
B4: สถานที่ก่อสร้าง | E4: =ข้อมูลเริ่มต้น!$F$4 -> บ้านหนองลาดใต้ หมู่ที่ 8 ต.หนองลาด อ.เมือง จ.สกลนคร
B5: ปริมาณงาน | E5: =CONCATENATE(ข้อมูลเริ่มต้น!$E$103,ข้อมูลเริ่มต้น!$F$103) -> ผิวจราจร แอสฟัลต์คอนกรีต | G5: =สรุปผลการคำนวณ!$G$2 -> กว้าง | H5: =สรุปผลการคำนวณ!$H$2 -> 4 | I5: =IF($H$5=" "," "," - ") -> - | J5: =สรุปผลการคำนวณ!$J$2 -> 6 | K5: =สรุปผลการคำนวณ!$K$2 -> ม. | M5: =IF(H5=" "," ระยะทาง","ระยะทางรวม") -> ระยะทางรวม | N5: =ข้อมูลเริ่มต้น!$N$103 -> 1300 | O5: =ข้อมูลเริ่มต้น!$O$103 -> ม.
B6: หน่วยงานเจ้าของโครงการ | E6: =ข้อมูลเริ่มต้น!$F$5 -> สำนักงานเทศบาลตำบลหนอลาด
B7: แบบเลขที่ | E7: =ข้อมูลเริ่มต้น!$F$6 -> 85 / 2555 ลงวันที่ 30 กรกฏาคม 2555
B8: คำนวณราคากลางเมื่อวันที่ | E8: =ข้อมูลเริ่มต้น!$F$7 -> 30 กรกฏาคม 2555
B9: ลำดับ | C9: รายการ | G9: หน่วย | H9: จำนวน | I9: ราคาต่อหน่วย | K9: ราคาทุน | M9: FN | N9: ราคาต่อหน่วย | O9: ราคากลาง
N10: X FN
B11: 1 | C11: งานดิน
C12: 1.1 | D12: งานถางป่าและขุดต่อ | E12: =CONCATENATE("( ",ข้อมูลเริ่มต้น!Z40," )") -> ( ขนาดเบา ) | G12: ตร.ม. | H12: =สรุปผลการคำนวณ!$H$19 -> 0 | I12: =IF(H12=" "," ",ค่างานต้นทุนต่อหน่วย!$P$8) -> 1.29 | K12: =IF(I12=" "," ",ROUND(H12*I12,2)) -> 0 | M12: =IF(I12=" "," ",$L$61) -> 1.2797 | N12: =IF(I12=" "," ",ROUND(I12*M12,2)) -> 1.65 | O12: =IF(I12=" "," ",ROUND(H12*N12,2)) -> 0
C13: 1.2 | D13: งานตัดดินคันทาง | G13: ลบ.ม. | H13: =สรุปผลการคำนวณ!$H$17 -> 0 | I13: =IF(H13=" "," ",ค่างานต้นทุนต่อหน่วย!$P$66) -> 37.51 | K13: =IF(I13=" "," ",ROUND(H13*I13,2)) -> 0 | M13: =IF(I13=" "," ",$L$61) -> 1.2797 | N13: =IF(I13=" "," ",ROUND(I13*M13,2)) -> 48 | O13: =IF(I13=" "," ",ROUND(H13*N13,2)) -> 0
C14: 1.3 | D14: =IF(ข้อมูลเริ่มต้น!$V$8=3,"งานดินถมคันทาง บดอัดแน่น",IF(ข้อมูลเริ่มต้น!$V$8=4,"งานดินถมคันทาง ปรับเกลี่ยแต่ง"," ")) ->  | G14: ลบ.ม. | H14: =สรุปผลการคำนวณ!$H$16 -> 0 | I14: =IF(H14=" "," ",ค่างานต้นทุนต่อหน่วย!$P$95) -> 39.96 | K14: =IF(I14=" "," ",ROUND(H14*I14,2)) -> 0 | M14: =IF(I14=" "," ",$L$61) -> 1.2797 | N14: =IF(I14=" "," ",ROUND(I14*M14,2)) -> 51.14 | O14: =IF(I14=" "," ",ROUND(H14*N14,2)) -> 0
B15: 2 | C15: งานผิวทาง
C16: 2.1 | D16: =CONCATENATE("งานผิวทาง",ข้อมูลเริ่มต้น!$F$105," ","หนา") -> งานผิวทางแอสฟัลต์คอนกรีต หนา | F16: =CONCATENATE(ข้อมูลเริ่มต้น!$I$11," ",ข้อมูลเริ่มต้น!$J$11) -> 20 ซม. | G16: ลบ.ม. | H16: =สรุปผลการคำนวณ!$H$4+สรุปผลการคำนวณ!$H$5 -> 7200 | I16: =IF(H16=0," ",ค่างานต้นทุนต่อหน่วย!$P$191) -> 57.77 | K16: =IF(I16=" "," ",ROUND(H16*I16,2)) -> 415944 | M16: =IF(I16=" "," ",$L$61) -> 1.2797 | N16: =IF(I16=" "," ",ROUND(I16*M16,2)) -> 73.93 | O16: =IF(I16=" "," ",ROUND(H16*N16,2)) -> 532296
B17: 3 | C17: งานท่อกลมคอนกรีตเสริมเหล็ก
C18: 3.1 | D18: ขนาด ø 0.30 ม. ชั้น 3 | G18: ม. | H18: =สรุปผลการคำนวณ!$H$20 -> 1 | I18: =IF(H18=" "," ",ค่างานต้นทุนต่อหน่วย!$P$322) -> 539.57 | K18: =IF(H18=" "," ",ROUND(H18*I18,2)) -> 539.57 | M18: =IF(I18=" "," ",$L$61) -> 1.2797 | N18: =IF(H18=" "," ",ROUND(I18*M18,2)) -> 690.49 | O18: =IF(H18=" "," ",ROUND(H18*N18,2)) -> 690.49
C19: 3.2 | D19: ขนาด ø 0.40 ม. ชั้น 3 | G19: ม. | H19: =สรุปผลการคำนวณ!$H$21 -> 1 | I19: =IF(H19=" "," ",ค่างานต้นทุนต่อหน่วย!$P$336) -> 608.54 | K19: =IF(H19=" "," ",ROUND(H19*I19,2)) -> 608.54 | M19: =IF(I19=" "," ",$L$61) -> 1.2797 | N19: =IF(H19=" "," ",ROUND(I19*M19,2)) -> 778.75 | O19: 778.75
C20: 3.3 | D20: ขนาด ø 0.60 ม. ชั้น 3 | G20: ม. | H20: =สรุปผลการคำนวณ!$H$22 -> 1 | I20: =IF(H20=" "," ",ค่างานต้นทุนต่อหน่วย!$P$350) -> 945.15 | K20: =IF(H20=" "," ",ROUND(H20*I20,2)) -> 945.15 | M20: =IF(I20=" "," ",$L$61) -> 1.2797 | N20: =IF(H20=" "," ",ROUND(I20*M20,2)) -> 1209.51 | O20: 1209.51
C21: 3.4 | D21: ขนาด ø 0.80 ม. ชั้น 3 | G21: ม. | H21: =สรุปผลการคำนวณ!$H$23 -> 1 | I21: =IF(H21=" "," ",ค่างานต้นทุนต่อหน่วย!$P$364) -> 1745.84 | K21: =IF(H21=" "," ",ROUND(H21*I21,2)) -> 1745.84 | M21: =IF(I21=" "," ",$L$61) -> 1.2797 | N21: =IF(H21=" "," ",ROUND(I21*M21,2)) -> 2234.15 | O21: 2234.15
C22: 3.5 | D22: ขนาด ø 1.00 ม. ชั้น 3 | G22: ม. | H22: =สรุปผลการคำนวณ!$H$24 -> 1 | I22: =IF(H22=" "," ",ค่างานต้นทุนต่อหน่วย!$P$378) -> 2380.67 | K22: =IF(H22=" "," ",ROUND(H22*I22,2)) -> 2380.67 | M22: =IF(I22=" "," ",$L$61) -> 1.2797 | N22: =IF(H22=" "," ",ROUND(I22*M22,2)) -> 3046.54 | O22: 3046.54
B23: 4 | C23: งานกำแพงปากท่อคอนกรีตเสริมเหล็ก
C24: 4.1 | D24: สำหรับท่อกลม คสล. ขนาด ø 0.60 ม. 1 แถว | G24: แห่ง | H24: =สรุปผลการคำนวณ!$H$27 -> 1 | I24: =IF(H24=" "," ",ค่างานต้นทุนต่อหน่วย!$P$421) -> 3359.89 | K24: =IF(H24=" "," ",ROUND(H24*I24,2)) -> 3359.89 | M24: =IF(I24=" "," ",$L$61) -> 1.2797 | N24: =IF(H24=" "," ",ROUND(I24*M24,2)) -> 4299.65 | O24: 4299.65
C25: 4.2 | D25: สำหรับท่อกลม คสล. ขนาด ø 0.60 ม. 2 แถว | G25: แห่ง | H25: =สรุปผลการคำนวณ!$H$28 -> 1 | I25: =IF(H25=" "," ",ค่างานต้นทุนต่อหน่วย!$P$432) -> 4941.04 | K25: 4941.04 | M25: 1.2797 | N25: 6323.05 | O25: 6323.05
C26: 4.3 | D26: สำหรับท่อกลม คสล. ขนาด ø 0.60 ม. 3 แถว | G26: แห่ง | H26: =สรุปผลการคำนวณ!$H$29 -> 1 | I26: =IF(H26=" "," ",ค่างานต้นทุนต่อหน่วย!$P$443) -> 6522.98 | K26: 6522.98 | M26: 1.2797 | N26: 8347.46 | O26: 8347.46
C27: 4.4 | D27: สำหรับท่อกลม คสล. ขนาด ø 0.80 ม. 1 แถว | G27: แห่ง | H27: =สรุปผลการคำนวณ!$H$30 -> 1 | I27: =IF(H27=" "," ",ค่างานต้นทุนต่อหน่วย!$P$454) -> 4068.83 | K27: 4068.83 | M27: 1.2797 | N27: 5206.88 | O27: 5206.88
C28: 4.5 | D28: สำหรับท่อกลม คสล. ขนาด ø 0.80 ม. 2 แถว | G28: แห่ง | H28: =สรุปผลการคำนวณ!$H$31 -> 1 | I28: =IF(H28=" "," ",ค่างานต้นทุนต่อหน่วย!$P$465) -> 6351.12 | K28: 6351.12 | M28: 1.2797 | N28: 8127.53 | O28: 8127.53
C29: 4.6 | D29: สำหรับท่อกลม คสล. ขนาด ø 0.80 ม. 3 แถว | G29: แห่ง | H29: =สรุปผลการคำนวณ!$H$32 -> 1 | I29: =IF(H29=" "," ",ค่างานต้นทุนต่อหน่วย!$P$476) -> 8653.28 | K29: 8653.28 | M29: 1.2797 | N29: 11073.6 | O29: 11073.6
C30: 4.7 | D30: สำหรับท่อกลม คสล. ขนาด ø 1.00 ม. 1 แถว | G30: แห่ง | H30: =สรุปผลการคำนวณ!$H$33 -> 1 | I30: =IF(H30=" "," ",ค่างานต้นทุนต่อหน่วย!$P$487) -> 4813.16 | K30: 4813.16 | M30: 1.2797 | N30: 6159.4 | O30: 6159.4
C31: 4.8 | D31: สำหรับท่อกลม คสล. ขนาด ø 1.00 ม. 2 แถว | G31: แห่ง | H31: =สรุปผลการคำนวณ!$H$34 -> 1 | I31: =IF(H31=" "," ",ค่างานต้นทุนต่อหน่วย!$P$498) -> 7924.4 | K31: 7924.4 | M31: 1.2797 | N31: 10140.85 | O31: 10140.85
C32: 4.9 | D32: สำหรับท่อกลม คสล. ขนาด ø 1.00 ม. 3 แถว | G32: แห่ง | H32: =สรุปผลการคำนวณ!$H$35 -> 1 | I32: =IF(H32=" "," ",ค่างานต้นทุนต่อหน่วย!$P$509) -> 10609.5 | K32: 10609.5 | M32: 1.2797 | N32: 13576.98 | O32: 13576.98
B47: 5 | C47: งานท่อเหลี่ยมคอนกรีตเสริมเหล็ก
C48: 5.1 | D48: งานท่อเหลี่ยมคอนกรีตเสริมเหล็กก่อสร้างใหม่ | G48: แห่ง | H48: =สรุปผลการคำนวณ!$H$39 -> 1 | I48: =IF(H48=" "," ",ค่างานต้นทุนต่อหน่วย!$P$554) -> 213810.96 | K48: =IF(H48=" "," ",ROUND(H48*I48,2)) -> 213810.96 | M48: =IF(H48=" "," ",$L$62) -> 1.2256 | N48: =IF(H48=" "," ",ROUND(I48*M48,2)) -> 262046.71 | O48: 262046.71
D49: กม. | E49: =ข้อมูลเริ่มต้น!H41 -> 100
D50: ขนาด | E50: =ข้อมูลเริ่มต้น!M41 -> 1-1.80x1.80
D51: ยาว | E51: =ข้อมูลเริ่มต้น!H42 -> 10 | F51: ม.
N54: รวมค่าก่อสร้างทั้งโครงการ | O54: =ROUND((SUM(O11:O53)),2) -> 875557.55
N55: ราคากลาง | O55: =ROUNDDOWN($O$54,-3) -> 875000
O56: =CONCATENATE("ราคากลาง"," ","(",BAHTTEXT(O55),")") -> ราคากลาง (แปดแสนเจ็ดหมื่นห้าพันบาทถ้วน)
D58: ① | E58: ผลรวมค่างานต้นทุนงานก่อสร้างทาง | L58: =SUM(K11:L46) -> 479407.97
D59: ② | E59: ผลรวมค่างานต้นทุนงานก่อสร้างสะพานและท่อเหลียม | L59: =IF(K48=" ",0,ROUND(K48,2)) -> 213810.96
D61: ③ | E61: ค่า Factor F งานก่อสร้างทาง | L61: =F_ทาง!$M$5 -> 1.2797
D62: ④ | E62: ค่า Factor F งานก่อสร้างสะพานและท่อเหลียม | L62: =F_สะพานและท่อเหลี่ยม!$N$5 -> 1.2256
D64: =IF(ข้อมูลเริ่มต้น!$W$66=1,"คณะกรรมการกำหนดราคากลาง"," ") -> 
D65: =IF(ข้อมูลเริ่มต้น!$W$66=1,"ตามคำสั่งที่"," ") ->  | E65: =IF(D64=" "," ",ข้อมูลเริ่มต้น!$K$93) -> 
D67: =IF(ข้อมูลเริ่มต้น!$W$66=2,"ผู้ประมาณราคา"," ") -> ผู้ประมาณราคา | E67: …………………………………. | G67: =IF(ข้อมูลเริ่มต้น!$W$66=1,"ประธานกรรมการ"," ") ->  | J67: =IF(ข้อมูลเริ่มต้น!$W$66=2,"ผู้ตรวจ"," ") -> ผู้ตรวจ | L67: …………………………………. | O67: =IF(ข้อมูลเริ่มต้น!$W$66=1,"กรรมการ"," ") -> 
E68: =CONCATENATE("(",ข้อมูลเริ่มต้น!$K$93,")") -> (นายศิวกร พงษ์สิทธิศักดิ์) | L68: =CONCATENATE("(",ข้อมูลเริ่มต้น!$K$95,")") -> (นายคมกฤษ เทียมโคกกรวด)
E69: =ข้อมูลเริ่มต้น!$K$94 -> นายช่างโยธา 4 | L69: =ข้อมูลเริ่มต้น!$K$96 -> ผู้อำนวยการกองช่าง
D72: =IF(ข้อมูลเริ่มต้น!$W$66=2,"ผู้เห็นชอบ"," ") -> ผู้เห็นชอบ | E72: …………………………………. | G72: =IF(ข้อมูลเริ่มต้น!$W$66=1,"กรรมการ"," ") ->  | J72: =IF(ข้อมูลเริ่มต้น!$W$66=2,"ผู้อนุมัติ"," ") -> ผู้อนุมัติ | L72: =IF(ข้อมูลเริ่มต้น!$W$66=1," ","………………………………….") -> ………………………………….
E73: =CONCATENATE("(",ข้อมูลเริ่มต้น!$K$97,")") -> (นายประสิทธิ์ สกนธรัตน์) | L73: =IF(ข้อมูลเริ่มต้น!$W$66=1," ",CONCATENATE("(",ข้อมูลเริ่มต้น!$K$99,")")) -> (นายสุริยะ แก้ววิรัตน์)
E74: =ข้อมูลเริ่มต้น!$K$98 -> ปลัดเทศบาล | L74: =IF(ข้อมูลเริ่มต้น!$W$66=1," ",CONCATENATE(ข้อมูลเริ่มต้น!$K$100)) -> นายกเทศมนตรีตำบลหนองลาด

Sheet ดำเนินการ + เสื่อมราคา
A1: ค่าดำเนินการและค่าเสื่อมราคา
B2: ตารางสรุปค่าดำเนินการและค่าเสื่อมราคา
B3: ='ค่าดำเนินการ+ค่าเสื่อมราคา'!C2 -> ราคาน้ำมันเชื้อเพลิงโซล่า ที่ อำเภอ เมือง 30.00 - 30.99 บาท / ลิตร | I3: (ราคาเครื่องจักร 2548)
B4: ลำดับ | C4: ลักษณะงาน | D4: หน่วย | E4: ค่าดำเนินการ | F4: ค่าเสื่อมราคา(บาท) | H4: รวมค่างาน(บาท)
E5: บาท/หน่วย | F5: ปกติ | G5: ฝนชุก | H5: ปกติ | I5: ฝนชุก
A6: 1 | B6: 1 | C6: งานถางป่าขุดตอ
A7: 2 | C7: ขนาดเบา | D7: ตรม. | E7: =VLOOKUP(ข้อมูลเริ่มต้น!$B$28*100+$A7,รวมoperate!$A$5:$I$2740,5) -> 1.14 | F7: =VLOOKUP(ข้อมูลเริ่มต้น!$B$28*100+$A7,รวมoperate!$A$5:$I$2740,6) -> 0.16 | G7: =VLOOKUP(ข้อมูลเริ่มต้น!$B$28*100+$A7,รวมoperate!$A$5:$I$2740,7) -> 0.19 | H7: =VLOOKUP(ข้อมูลเริ่มต้น!$B$28*100+$A7,รวมoperate!$A$5:$I$2740,8) -> 1.29 | I7: =VLOOKUP(ข้อมูลเริ่มต้น!$B$28*100+$A7,รวมoperate!$A$5:$I$2740,9) -> 1.33
A8: 3 | C8: ขนาดกลาง | D8: ตรม. | E8: =VLOOKUP(ข้อมูลเริ่มต้น!$B$28*100+$A8,รวมoperate!$A$5:$I$2740,5) -> 2.64 | F8: =VLOOKUP(ข้อมูลเริ่มต้น!$B$28*100+$A8,รวมoperate!$A$5:$I$2740,6) -> 0.46 | G8: =VLOOKUP(ข้อมูลเริ่มต้น!$B$28*100+$A8,รวมoperate!$A$5:$I$2740,7) -> 0.58 | H8: =VLOOKUP(ข้อมูลเริ่มต้น!$B$28*100+$A8,รวมoperate!$A$5:$I$2740,8) -> 3.1 | I8: =VLOOKUP(ข้อมูลเริ่มต้น!$B$28*100+$A8,รวมoperate!$A$5:$I$2740,9) -> 3.21
A9: 4 | C9: ขนาดหนัก | D9: ตรม. | E9: =VLOOKUP(ข้อมูลเริ่มต้น!$B$28*100+$A9,รวมoperate!$A$5:$I$2740,5) -> 4.03 | F9: =VLOOKUP(ข้อมูลเริ่มต้น!$B$28*100+$A9,รวมoperate!$A$5:$I$2740,6) -> 0.66 | G9: =VLOOKUP(ข้อมูลเริ่มต้น!$B$28*100+$A9,รวมoperate!$A$5:$I$2740,7) -> 0.83 | H9: =VLOOKUP(ข้อมูลเริ่มต้น!$B$28*100+$A9,รวมoperate!$A$5:$I$2740,8) -> 4.69 | I9: =VLOOKUP(ข้อมูลเริ่มต้น!$B$28*100+$A9,รวมoperate!$A$5:$I$2740,9) -> 4.85
A10: 5 | B10: 2 | C10: งานดินคันทาง
A11: 6 | C11: ขุด-ขน | D11: ลบม. หลวม | E11: =VLOOKUP(ข้อมูลเริ่มต้น!$B$28*100+$A11,รวมoperate!$A$5:$I$2740,5) -> 15.84 | F11: =VLOOKUP(ข้อมูลเริ่มต้น!$B$28*100+$A11,รวมoperate!$A$5:$I$2740,6) -> 3.47 | G11: =VLOOKUP(ข้อมูลเริ่มต้น!$B$28*100+$A11,รวมoperate!$A$5:$I$2740,7) -> 4.34 | H11: =VLOOKUP(ข้อมูลเริ่มต้น!$B$28*100+$A11,รวมoperate!$A$5:$I$2740,8) -> 19.31 | I11: =VLOOKUP(ข้อมูลเริ่มต้น!$B$28*100+$A11,รวมoperate!$A$5:$I$2740,9) -> 20.18
A12: 7 | C12: บดทับ | D12: ลบม. แน่น | E12: =VLOOKUP(ข้อมูลเริ่มต้น!$B$28*100+$A12,รวมoperate!$A$5:$I$2740,5) -> 28.52 | F12: =VLOOKUP(ข้อมูลเริ่มต้น!$B$28*100+$A12,รวมoperate!$A$5:$I$2740,6) -> 7.92 | G12: =VLOOKUP(ข้อมูลเริ่มต้น!$B$28*100+$A12,รวมoperate!$A$5:$I$2740,7) -> 9.9 | H12: =VLOOKUP(ข้อมูลเริ่มต้น!$B$28*100+$A12,รวมoperate!$A$5:$I$2740,8) -> 36.44 | I12: =VLOOKUP(ข้อมูลเริ่มต้น!$B$28*100+$A12,รวมoperate!$A$5:$I$2740,9) -> 38.42
A13: 8 | B13: 3 | C13: งานตัด-ขึ้นรูปคันทาง
A14: 9 | C14: ดิน-ขุดตัด | D14: ลบม. ปกติ | E14: =VLOOKUP(ข้อมูลเริ่มต้น!$B$28*100+$A14,รวมoperate!$A$5:$I$2740,5) -> 15.88 | F14: =VLOOKUP(ข้อมูลเริ่มต้น!$B$28*100+$A14,รวมoperate!$A$5:$I$2740,6) -> 2.93 | G14: =VLOOKUP(ข้อมูลเริ่มต้น!$B$28*100+$A14,รวมoperate!$A$5:$I$2740,7) -> 3.66 | H14: =VLOOKUP(ข้อมูลเริ่มต้น!$B$28*100+$A14,รวมoperate!$A$5:$I$2740,8) -> 18.81 | I14: =VLOOKUP(ข้อมูลเริ่มต้น!$B$28*100+$A14,รวมoperate!$A$5:$I$2740,9) -> 19.54
A15: 10 | C15: -ตัก | D15: ลบม. หลวม | E15: =VLOOKUP(ข้อมูลเริ่มต้น!$B$28*100+$A15,รวมoperate!$A$5:$I$2740,5) -> 5.86 | F15: =VLOOKUP(ข้อมูลเริ่มต้น!$B$28*100+$A15,รวมoperate!$A$5:$I$2740,6) -> 1.7 | G15: =VLOOKUP(ข้อมูลเริ่มต้น!$B$28*100+$A15,รวมoperate!$A$5:$I$2740,7) -> 2.13 | H15: =VLOOKUP(ข้อมูลเริ่มต้น!$B$28*100+$A15,รวมoperate!$A$5:$I$2740,8) -> 7.56 | I15: =VLOOKUP(ข้อมูลเริ่มต้น!$B$28*100+$A15,รวมoperate!$A$5:$I$2740,9) -> 7.98
A16: 11 | C16: หินผุ-ขุดตัด | D16: ลบม. ปกติ | E16: =VLOOKUP(ข้อมูลเริ่มต้น!$B$28*100+$A16,รวมoperate!$A$5:$I$2740,5) -> 27.87 | F16: =VLOOKUP(ข้อมูลเริ่มต้น!$B$28*100+$A16,รวมoperate!$A$5:$I$2740,6) -> 3.34 | G16: =VLOOKUP(ข้อมูลเริ่มต้น!$B$28*100+$A16,รวมoperate!$A$5:$I$2740,7) -> 4.18 | H16: =VLOOKUP(ข้อมูลเริ่มต้น!$B$28*100+$A16,รวมoperate!$A$5:$I$2740,8) -> 31.21 | I16: =VLOOKUP(ข้อมูลเริ่มต้น!$B$28*100+$A16,รวมoperate!$A$5:$I$2740,9) -> 32.05
A17: 12 | C17: -ดันและตัก | D17: ลบม. หลวม | E17: =VLOOKUP(ข้อมูลเริ่มต้น!$B$28*100+$A17,รวมoperate!$A$5:$I$2740,5) -> 33.07 | F17: =VLOOKUP(ข้อมูลเริ่มต้น!$B$28*100+$A17,รวมoperate!$A$5:$I$2740,6) -> 5.04 | G17: =VLOOKUP(ข้อมูลเริ่มต้น!$B$28*100+$A17,รวมoperate!$A$5:$I$2740,7) -> 6.3 | H17: =VLOOKUP(ข้อมูลเริ่มต้น!$B$28*100+$A17,รวมoperate!$A$5:$I$2740,8) -> 38.11 | I17: =VLOOKUP(ข้อมูลเริ่มต้น!$B$28*100+$A17,รวมoperate!$A$5:$I$2740,9) -> 39.37
A18: 13 | C18: หินแข็ง-เจาะระเบิด | D18: ลบม. ปกติ | E18: =VLOOKUP(ข้อมูลเริ่มต้น!$B$28*100+$A18,รวมoperate!$A$5:$I$2740,5) -> 45.83 | F18: =VLOOKUP(ข้อมูลเริ่มต้น!$B$28*100+$A18,รวมoperate!$A$5:$I$2740,6) -> 4.66 | G18: =VLOOKUP(ข้อมูลเริ่มต้น!$B$28*100+$A18,รวมoperate!$A$5:$I$2740,7) -> 5.82 | H18: =VLOOKUP(ข้อมูลเริ่มต้น!$B$28*100+$A18,รวมoperate!$A$5:$I$2740,8) -> 50.49 | I18: =VLOOKUP(ข้อมูลเริ่มต้น!$B$28*100+$A18,รวมoperate!$A$5:$I$2740,9) -> 51.66
A19: 14 | C19: -ดันและตัก | D19: ลบม. หลวม | E19: =VLOOKUP(ข้อมูลเริ่มต้น!$B$28*100+$A19,รวมoperate!$A$5:$I$2740,5) -> 56.52 | F19: =VLOOKUP(ข้อมูลเริ่มต้น!$B$28*100+$A19,รวมoperate!$A$5:$I$2740,6) -> 19 | G19: =VLOOKUP(ข้อมูลเริ่มต้น!$B$28*100+$A19,รวมoperate!$A$5:$I$2740,7) -> 23.75 | H19: =VLOOKUP(ข้อมูลเริ่มต้น!$B$28*100+$A19,รวมoperate!$A$5:$I$2740,8) -> 75.52 | I19: =VLOOKUP(ข้อมูลเริ่มต้น!$B$28*100+$A19,รวมoperate!$A$5:$I$2740,9) -> 80.27
A20: 15 | B20: 4 | C20: งานวัสดุคัดเลือก ลูกรังรองพื้นทาง
A21: 16 | C21: ขุด-ขน | D21: ลบม. หลวม | E21: =VLOOKUP(ข้อมูลเริ่มต้น!$B$28*100+$A21,รวมoperate!$A$5:$I$2740,5) -> 22.52 | F21: =VLOOKUP(ข้อมูลเริ่มต้น!$B$28*100+$A21,รวมoperate!$A$5:$I$2740,6) -> 6.36 | G21: =VLOOKUP(ข้อมูลเริ่มต้น!$B$28*100+$A21,รวมoperate!$A$5:$I$2740,7) -> 7.95 | H21: =VLOOKUP(ข้อมูลเริ่มต้น!$B$28*100+$A21,รวมoperate!$A$5:$I$2740,8) -> 28.88 | I21: =VLOOKUP(ข้อมูลเริ่มต้น!$B$28*100+$A21,รวมoperate!$A$5:$I$2740,9) -> 30.47
A22: 17 | C22: ผสม (ผสมกับวัสดุอื่นๆ) | D22: ลบม. แน่น | E22: =VLOOKUP(ข้อมูลเริ่มต้น!$B$28*100+$A22,รวมoperate!$A$5:$I$2740,5) -> 6.64 | F22: =VLOOKUP(ข้อมูลเริ่มต้น!$B$28*100+$A22,รวมoperate!$A$5:$I$2740,6) -> 1.01 | G22: =VLOOKUP(ข้อมูลเริ่มต้น!$B$28*100+$A22,รวมoperate!$A$5:$I$2740,7) -> 1.27 | H22: =VLOOKUP(ข้อมูลเริ่มต้น!$B$28*100+$A22,รวมoperate!$A$5:$I$2740,8) -> 7.65 | I22: =VLOOKUP(ข้อมูลเริ่มต้น!$B$28*100+$A22,รวมoperate!$A$5:$I$2740,9) -> 7.9
A23: 18 | C23: บดทับ | D23: ลบม. แน่น | E23: =VLOOKUP(ข้อมูลเริ่มต้น!$B$28*100+$A23,รวมoperate!$A$5:$I$2740,5) -> 34.23 | F23: =VLOOKUP(ข้อมูลเริ่มต้น!$B$28*100+$A23,รวมoperate!$A$5:$I$2740,6) -> 9.5 | G23: =VLOOKUP(ข้อมูลเริ่มต้น!$B$28*100+$A23,รวมoperate!$A$5:$I$2740,7) -> 11.88 | H23: =VLOOKUP(ข้อมูลเริ่มต้น!$B$28*100+$A23,รวมoperate!$A$5:$I$2740,8) -> 43.73 | I23: =VLOOKUP(ข้อมูลเริ่มต้น!$B$28*100+$A23,รวมoperate!$A$5:$I$2740,9) -> 46.11
A24: 19 | B24: 5 | C24: งานไหล่ทางลูกรัง ผสม-บดทับ
A25: 20 | C25: ผสม (ผสมกับวัสดุอื่นๆ) | D25: ลบม. แน่น | E25: =VLOOKUP(ข้อมูลเริ่มต้น!$B$28*100+$A25,รวมoperate!$A$5:$I$2740,5) -> 12.49 | F25: =VLOOKUP(ข้อมูลเริ่มต้น!$B$28*100+$A25,รวมoperate!$A$5:$I$2740,6) -> 1.91 | G25: =VLOOKUP(ข้อมูลเริ่มต้น!$B$28*100+$A25,รวมoperate!$A$5:$I$2740,7) -> 2.38 | H25: =VLOOKUP(ข้อมูลเริ่มต้น!$B$28*100+$A25,รวมoperate!$A$5:$I$2740,8) -> 14.4 | I25: =VLOOKUP(ข้อมูลเริ่มต้น!$B$28*100+$A25,รวมoperate!$A$5:$I$2740,9) -> 14.87
A26: 21 | C26: บดทับ | D26: ลบม. แน่น | E26: =VLOOKUP(ข้อมูลเริ่มต้น!$B$28*100+$A26,รวมoperate!$A$5:$I$2740,5) -> 40.26 | F26: =VLOOKUP(ข้อมูลเริ่มต้น!$B$28*100+$A26,รวมoperate!$A$5:$I$2740,6) -> 15.33 | G26: =VLOOKUP(ข้อมูลเริ่มต้น!$B$28*100+$A26,รวมoperate!$A$5:$I$2740,7) -> 19.16 | H26: =VLOOKUP(ข้อมูลเริ่มต้น!$B$28*100+$A26,รวมoperate!$A$5:$I$2740,8) -> 55.58 | I26: =VLOOKUP(ข้อมูลเริ่มต้น!$B$28*100+$A26,รวมoperate!$A$5:$I$2740,9) -> 59.42
A27: 22 | B27: 6 | C27: งานพื้นทาง(หินคลุก)
A28: 23 | C28: ผสม (Blend) | D28: ลบม. แน่น | E28: =VLOOKUP(ข้อมูลเริ่มต้น!$B$28*100+$A28,รวมoperate!$A$5:$I$2740,5) -> 14.54 | F28: =VLOOKUP(ข้อมูลเริ่มต้น!$B$28*100+$A28,รวมoperate!$A$5:$I$2740,6) -> 2.91 | G28: =VLOOKUP(ข้อมูลเริ่มต้น!$B$28*100+$A28,รวมoperate!$A$5:$I$2740,7) -> 3.64 | H28: =VLOOKUP(ข้อมูลเริ่มต้น!$B$28*100+$A28,รวมoperate!$A$5:$I$2740,8) -> 17.44 | I28: =VLOOKUP(ข้อมูลเริ่มต้น!$B$28*100+$A28,รวมoperate!$A$5:$I$2740,9) -> 18.17
A29: 24 | C29: บดทับ | D29: ลบม. แน่น | E29: =VLOOKUP(ข้อมูลเริ่มต้น!$B$28*100+$A29,รวมoperate!$A$5:$I$2740,5) -> 49.8 | F29: =VLOOKUP(ข้อมูลเริ่มต้น!$B$28*100+$A29,รวมoperate!$A$5:$I$2740,6) -> 19.1 | G29: =VLOOKUP(ข้อมูลเริ่มต้น!$B$28*100+$A29,รวมoperate!$A$5:$I$2740,7) -> 23.87 | H29: =VLOOKUP(ข้อมูลเริ่มต้น!$B$28*100+$A29,รวมoperate!$A$5:$I$2740,8) -> 68.9 | I29: =VLOOKUP(ข้อมูลเริ่มต้น!$B$28*100+$A29,รวมoperate!$A$5:$I$2740,9) -> 73.67
A30: 25 | B30: 7 | C30: งานตัดแต่งขั้นบันได | D30: ลบม. แน่น | E30: =VLOOKUP(ข้อมูลเริ่มต้น!$B$28*100+$A30,รวมoperate!$A$5:$I$2740,5) -> 5.33 | F30: =VLOOKUP(ข้อมูลเริ่มต้น!$B$28*100+$A30,รวมoperate!$A$5:$I$2740,6) -> 1.3 | G30: =VLOOKUP(ข้อมูลเริ่มต้น!$B$28*100+$A30,รวมoperate!$A$5:$I$2740,7) -> 1.63 | H30: =VLOOKUP(ข้อมูลเริ่มต้น!$B$28*100+$A30,รวมoperate!$A$5:$I$2740,8) -> 6.63 | I30: =VLOOKUP(ข้อมูลเริ่มต้น!$B$28*100+$A30,รวมoperate!$A$5:$I$2740,9) -> 6.96
A31: 26 | B31: 8 | C31: งานขุดรื้อคันทางเดิมแล้วบดทับ
A32: 27 | C32: ลูกรัง 10 ซม. | D32: ตรม. | E32: =VLOOKUP(ข้อมูลเริ่มต้น!$B$28*100+$A32,รวมoperate!$A$5:$I$2740,5) -> 7.11 | F32: =VLOOKUP(ข้อมูลเริ่มต้น!$B$28*100+$A32,รวมoperate!$A$5:$I$2740,6) -> 1.51 | G32: =VLOOKUP(ข้อมูลเริ่มต้น!$B$28*100+$A32,รวมoperate!$A$5:$I$2740,7) -> 1.89 | H32: =VLOOKUP(ข้อมูลเริ่มต้น!$B$28*100+$A32,รวมoperate!$A$5:$I$2740,8) -> 8.62 | I32: =VLOOKUP(ข้อมูลเริ่มต้น!$B$28*100+$A32,รวมoperate!$A$5:$I$2740,9) -> 9
A33: 28 | C33: หินคลุก 10 ซม. | D33: ตรม. | E33: =VLOOKUP(ข้อมูลเริ่มต้น!$B$28*100+$A33,รวมoperate!$A$5:$I$2740,5) -> 8.67 | F33: =VLOOKUP(ข้อมูลเริ่มต้น!$B$28*100+$A33,รวมoperate!$A$5:$I$2740,6) -> 2.47 | G33: =VLOOKUP(ข้อมูลเริ่มต้น!$B$28*100+$A33,รวมoperate!$A$5:$I$2740,7) -> 3.09 | H33: =VLOOKUP(ข้อมูลเริ่มต้น!$B$28*100+$A33,รวมoperate!$A$5:$I$2740,8) -> 11.14 | I33: =VLOOKUP(ข้อมูลเริ่มต้น!$B$28*100+$A33,รวมoperate!$A$5:$I$2740,9) -> 11.76
A34: 29 | C34: ผิวAC 5 ซม. | D34: ตรม. | E34: =VLOOKUP(ข้อมูลเริ่มต้น!$B$28*100+$A34,รวมoperate!$A$5:$I$2740,5) -> 7.75 | F34: =VLOOKUP(ข้อมูลเริ่มต้น!$B$28*100+$A34,รวมoperate!$A$5:$I$2740,6) -> 1.25 | G34: =VLOOKUP(ข้อมูลเริ่มต้น!$B$28*100+$A34,รวมoperate!$A$5:$I$2740,7) -> 1.56 | H34: =VLOOKUP(ข้อมูลเริ่มต้น!$B$28*100+$A34,รวมoperate!$A$5:$I$2740,8) -> 9 | I34: =VLOOKUP(ข้อมูลเริ่มต้น!$B$28*100+$A34,รวมoperate!$A$5:$I$2740,9) -> 9.31
A35: 30 | B35: 9 | C35: งานราดยางไพรม์โค้ด | D35: ตรม. | E35: =VLOOKUP(ข้อมูลเริ่มต้น!$B$28*100+$A35,รวมoperate!$A$5:$I$2740,5) -> 5.97 | F35: =VLOOKUP(ข้อมูลเริ่มต้น!$B$28*100+$A35,รวมoperate!$A$5:$I$2740,6) -> 0.54 | G35: =VLOOKUP(ข้อมูลเริ่มต้น!$B$28*100+$A35,รวมoperate!$A$5:$I$2740,7) -> 0.68 | H35: =VLOOKUP(ข้อมูลเริ่มต้น!$B$28*100+$A35,รวมoperate!$A$5:$I$2740,8) -> 6.51 | I35: =VLOOKUP(ข้อมูลเริ่มต้น!$B$28*100+$A35,รวมoperate!$A$5:$I$2740,9) -> 6.65
A36: 31 | B36: 10 | C36: งานราดยางแทคโค้ด | D36: ตรม. | E36: =VLOOKUP(ข้อมูลเริ่มต้น!$B$28*100+$A36,รวมoperate!$A$5:$I$2740,5) -> 5.43 | F36: =VLOOKUP(ข้อมูลเริ่มต้น!$B$28*100+$A36,รวมoperate!$A$5:$I$2740,6) -> 0.77 | G36: =VLOOKUP(ข้อมูลเริ่มต้น!$B$28*100+$A36,รวมoperate!$A$5:$I$2740,7) -> 0.96 | H36: =VLOOKUP(ข้อมูลเริ่มต้น!$B$28*100+$A36,รวมoperate!$A$5:$I$2740,8) -> 6.2 | I36: =VLOOKUP(ข้อมูลเริ่มต้น!$B$28*100+$A36,รวมoperate!$A$5:$I$2740,9) -> 6.39
A37: 32 | B37: 11 | C37: งานผิวทางแบบบาง
A38: 33 | C38: ชั้นเดียว (1/2") | D38: ตรม. | E38: =VLOOKUP(ข้อมูลเริ่มต้น!$B$28*100+$A38,รวมoperate!$A$5:$I$2740,5) -> 12.8 | F38: =VLOOKUP(ข้อมูลเริ่มต้น!$B$28*100+$A38,รวมoperate!$A$5:$I$2740,6) -> 1.94 | G38: =VLOOKUP(ข้อมูลเริ่มต้น!$B$28*100+$A38,รวมoperate!$A$5:$I$2740,7) -> 2.43 | H38: =VLOOKUP(ข้อมูลเริ่มต้น!$B$28*100+$A38,รวมoperate!$A$5:$I$2740,8) -> 14.74 | I38: =VLOOKUP(ข้อมูลเริ่มต้น!$B$28*100+$A38,รวมoperate!$A$5:$I$2740,9) -> 15.22
A39: 34 | C39: ชั้นเดียว (3/4") | D39: ตรม. | E39: =VLOOKUP(ข้อมูลเริ่มต้น!$B$28*100+$A39,รวมoperate!$A$5:$I$2740,5) -> 17.68 | F39: =VLOOKUP(ข้อมูลเริ่มต้น!$B$28*100+$A39,รวมoperate!$A$5:$I$2740,6) -> 2.68 | G39: =VLOOKUP(ข้อมูลเริ่มต้น!$B$28*100+$A39,รวมoperate!$A$5:$I$2740,7) -> 3.35 | H39: =VLOOKUP(ข้อมูลเริ่มต้น!$B$28*100+$A39,รวมoperate!$A$5:$I$2740,8) -> 20.36 | I39: =VLOOKUP(ข้อมูลเริ่มต้น!$B$28*100+$A39,รวมoperate!$A$5:$I$2740,9) -> 21.03
A40: 35 | C40: สองชั้น (3/4"+3/8") | D40: ตรม. | E40: =VLOOKUP(ข้อมูลเริ่มต้น!$B$28*100+$A40,รวมoperate!$A$5:$I$2740,5) -> 26.29 | F40: =VLOOKUP(ข้อมูลเริ่มต้น!$B$28*100+$A40,รวมoperate!$A$5:$I$2740,6) -> 3.99 | G40: =VLOOKUP(ข้อมูลเริ่มต้น!$B$28*100+$A40,รวมoperate!$A$5:$I$2740,7) -> 4.98 | H40: =VLOOKUP(ข้อมูลเริ่มต้น!$B$28*100+$A40,รวมoperate!$A$5:$I$2740,8) -> 30.28 | I40: =VLOOKUP(ข้อมูลเริ่มต้น!$B$28*100+$A40,รวมoperate!$A$5:$I$2740,9) -> 31.27
A41: 36 | C41: สองชั้น (1"+1/2") | D41: ตรม. | E41: =VLOOKUP(ข้อมูลเริ่มต้น!$B$28*100+$A41,รวมoperate!$A$5:$I$2740,5) -> 38.51 | F41: =VLOOKUP(ข้อมูลเริ่มต้น!$B$28*100+$A41,รวมoperate!$A$5:$I$2740,6) -> 5.84 | G41: =VLOOKUP(ข้อมูลเริ่มต้น!$B$28*100+$A41,รวมoperate!$A$5:$I$2740,7) -> 7.3 | H41: =VLOOKUP(ข้อมูลเริ่มต้น!$B$28*100+$A41,รวมoperate!$A$5:$I$2740,8) -> 44.34 | I41: =VLOOKUP(ข้อมูลเริ่มต้น!$B$28*100+$A41,รวมoperate!$A$5:$I$2740,9) -> 45.8
A42: 37 | B42: 12 | C42: งานเคลือบหิน ขจัดฝุ่น (Pre-coat)
A43: 38 | C43: ชั้นเดียว (1/2") | D43: ลบม. หลวม | E43: =VLOOKUP(ข้อมูลเริ่มต้น!$B$28*100+$A43,รวมoperate!$A$5:$I$2740,5) -> 1.47 | F43: =VLOOKUP(ข้อมูลเริ่มต้น!$B$28*100+$A43,รวมoperate!$A$5:$I$2740,6) -> 0.49 | G43: =VLOOKUP(ข้อมูลเริ่มต้น!$B$28*100+$A43,รวมoperate!$A$5:$I$2740,7) -> 0.61 | H43: =VLOOKUP(ข้อมูลเริ่มต้น!$B$28*100+$A43,รวมoperate!$A$5:$I$2740,8) -> 1.95 | I43: =VLOOKUP(ข้อมูลเริ่มต้น!$B$28*100+$A43,รวมoperate!$A$5:$I$2740,9) -> 2.08
A44: 39 | C44: ชั้นเดียว (3/4") | D44: ลบม. หลวม | E44: =VLOOKUP(ข้อมูลเริ่มต้น!$B$28*100+$A44,รวมoperate!$A$5:$I$2740,5) -> 2.03 | F44: =VLOOKUP(ข้อมูลเริ่มต้น!$B$28*100+$A44,รวมoperate!$A$5:$I$2740,6) -> 0.68 | G44: =VLOOKUP(ข้อมูลเริ่มต้น!$B$28*100+$A44,รวมoperate!$A$5:$I$2740,7) -> 0.84 | H44: =VLOOKUP(ข้อมูลเริ่มต้น!$B$28*100+$A44,รวมoperate!$A$5:$I$2740,8) -> 2.7 | I44: =VLOOKUP(ข้อมูลเริ่มต้น!$B$28*100+$A44,รวมoperate!$A$5:$I$2740,9) -> 2.87
A45: 40 | C45: สองชั้น (3/4"+3/8") | D45: ลบม. หลวม | E45: =VLOOKUP(ข้อมูลเริ่มต้น!$B$28*100+$A45,รวมoperate!$A$5:$I$2740,5) -> 3.01 | F45: =VLOOKUP(ข้อมูลเริ่มต้น!$B$28*100+$A45,รวมoperate!$A$5:$I$2740,6) -> 1 | G45: =VLOOKUP(ข้อมูลเริ่มต้น!$B$28*100+$A45,รวมoperate!$A$5:$I$2740,7) -> 1.26 | H45: =VLOOKUP(ข้อมูลเริ่มต้น!$B$28*100+$A45,รวมoperate!$A$5:$I$2740,8) -> 4.02 | I45: =VLOOKUP(ข้อมูลเริ่มต้น!$B$28*100+$A45,รวมoperate!$A$5:$I$2740,9) -> 4.27
A46: 41 | C46: สองชั้น (1"+1/2") | D46: ลบม. หลวม | E46: =VLOOKUP(ข้อมูลเริ่มต้น!$B$28*100+$A46,รวมoperate!$A$5:$I$2740,5) -> 4.41 | F46: =VLOOKUP(ข้อมูลเริ่มต้น!$B$28*100+$A46,รวมoperate!$A$5:$I$2740,6) -> 1.47 | G46: =VLOOKUP(ข้อมูลเริ่มต้น!$B$28*100+$A46,รวมoperate!$A$5:$I$2740,7) -> 1.84 | H46: =VLOOKUP(ข้อมูลเริ่มต้น!$B$28*100+$A46,รวมoperate!$A$5:$I$2740,8) -> 5.88 | I46: =VLOOKUP(ข้อมูลเริ่มต้น!$B$28*100+$A46,รวมoperate!$A$5:$I$2740,9) -> 6.25
A47: 42 | B47: 13 | C47: งานผิวทางแอสฟัลติกคอนกรีต
A48: 43 | C48: ค่าผสมวัสดุแอสฟัลติกคอนกรีต | D48: ตัน | E48: =VLOOKUP(ข้อมูลเริ่มต้น!$B$28*100+$A48,รวมoperate!$A$5:$I$2740,5) -> 364.17 | F48: =VLOOKUP(ข้อมูลเริ่มต้น!$B$28*100+$A48,รวมoperate!$A$5:$I$2740,6) -> 16.77 | G48: =VLOOKUP(ข้อมูลเริ่มต้น!$B$28*100+$A48,รวมoperate!$A$5:$I$2740,7) -> 20.97 | H48: =VLOOKUP(ข้อมูลเริ่มต้น!$B$28*100+$A48,รวมoperate!$A$5:$I$2740,8) -> 380.94 | I48: =VLOOKUP(ข้อมูลเริ่มต้น!$B$28*100+$A48,รวมoperate!$A$5:$I$2740,9) -> 385.14
A49: 44 | C49: ค่าขนส่งอุปกรณ์ 80 ตัน ระยะทางขนส่ง 100-300 กม.
A50: 45 | C50: ค่าติดตั้งเครื่องผสม | D50: ครั้ง | E50: =VLOOKUP(ข้อมูลเริ่มต้น!$B$28*100+$A50,รวมoperate!$A$5:$I$2740,5) -> 250000
A51: 46 | C51: งานปูลาดและบดทับ ผิวACหนา5ซม.
A52: 47 | C52: บนผิวไพรม์โค้ด | D52: ตรม. | E52: =VLOOKUP(ข้อมูลเริ่มต้น!$B$28*100+$A52,รวมoperate!$A$5:$I$2740,5) -> 10.76 | F52: =VLOOKUP(ข้อมูลเริ่มต้น!$B$28*100+$A52,รวมoperate!$A$5:$I$2740,6) -> 2.56 | G52: =VLOOKUP(ข้อมูลเริ่มต้น!$B$28*100+$A52,รวมoperate!$A$5:$I$2740,7) -> 3.2 | H52: =VLOOKUP(ข้อมูลเริ่มต้น!$B$28*100+$A52,รวมoperate!$A$5:$I$2740,8) -> 13.32 | I52: =VLOOKUP(ข้อมูลเริ่มต้น!$B$28*100+$A52,รวมoperate!$A$5:$I$2740,9) -> 13.96
A53: 48 | C53: บนผิวแทคโค้ด | D53: ตรม. | E53: =VLOOKUP(ข้อมูลเริ่มต้น!$B$28*100+$A53,รวมoperate!$A$5:$I$2740,5) -> 8.28 | F53: =VLOOKUP(ข้อมูลเริ่มต้น!$B$28*100+$A53,รวมoperate!$A$5:$I$2740,6) -> 2.1 | G53: =VLOOKUP(ข้อมูลเริ่มต้น!$B$28*100+$A53,รวมoperate!$A$5:$I$2740,7) -> 2.63 | H53: =VLOOKUP(ข้อมูลเริ่มต้น!$B$28*100+$A53,รวมoperate!$A$5:$I$2740,8) -> 10.38 | I53: =VLOOKUP(ข้อมูลเริ่มต้น!$B$28*100+$A53,รวมoperate!$A$5:$I$2740,9) -> 10.91
A54: 49 | B54: 14 | C54: งานผิวทางคอนกรีต
A55: 50 | C55: ค่าติดตั้งเครื่องผสม | D55: ครั้ง | E55: =VLOOKUP(ข้อมูลเริ่มต้น!$B$28*100+$A55,รวมoperate!$A$5:$I$2740,5) -> 150000
A56: 51 | C56: ด่าผสมคอนกรีต | D56: ลบม. | E56: =VLOOKUP(ข้อมูลเริ่มต้น!$B$28*100+$A56,รวมoperate!$A$5:$I$2740,5) -> 154.8 | F56: =VLOOKUP(ข้อมูลเริ่มต้น!$B$28*100+$A56,รวมoperate!$A$5:$I$2740,6) -> 34.07 | G56: =VLOOKUP(ข้อมูลเริ่มต้น!$B$28*100+$A56,รวมoperate!$A$5:$I$2740,7) -> 42.59 | H56: =VLOOKUP(ข้อมูลเริ่มต้น!$B$28*100+$A56,รวมoperate!$A$5:$I$2740,8) -> 188.87 | I56: =VLOOKUP(ข้อมูลเริ่มต้น!$B$28*100+$A56,รวมoperate!$A$5:$I$2740,9) -> 197.39
A57: 52 | C57: ด่าขนส่งคอนกรีต | D57: ลบม./กม. | E57: =VLOOKUP(ข้อมูลเริ่มต้น!$B$28*100+$A57,รวมoperate!$A$5:$I$2740,5) -> 12.05 | F57: =VLOOKUP(ข้อมูลเริ่มต้น!$B$28*100+$A57,รวมoperate!$A$5:$I$2740,6) -> 1.52 | G57: =VLOOKUP(ข้อมูลเริ่มต้น!$B$28*100+$A57,รวมoperate!$A$5:$I$2740,7) -> 1.9 | H57: =VLOOKUP(ข้อมูลเริ่มต้น!$B$28*100+$A57,รวมoperate!$A$5:$I$2740,8) -> 13.57 | I57: =VLOOKUP(ข้อมูลเริ่มต้น!$B$28*100+$A57,รวมoperate!$A$5:$I$2740,9) -> 13.95
A58: 53 | C58: ค่าแบบข้างคิดตามยาว 2 ข้าง | D58: เมตร | E58: =VLOOKUP(ข้อมูลเริ่มต้น!$B$28*100+$A58,รวมoperate!$A$5:$I$2740,5) -> 7.81 | F58: =VLOOKUP(ข้อมูลเริ่มต้น!$B$28*100+$A58,รวมoperate!$A$5:$I$2740,6) -> 3.69 | G58: =VLOOKUP(ข้อมูลเริ่มต้น!$B$28*100+$A58,รวมoperate!$A$5:$I$2740,7) -> 4.61 | H58: =VLOOKUP(ข้อมูลเริ่มต้น!$B$28*100+$A58,รวมoperate!$A$5:$I$2740,8) -> 11.5 | I58: =VLOOKUP(ข้อมูลเริ่มต้น!$B$28*100+$A58,รวมoperate!$A$5:$I$2740,9) -> 12.42
A59: 54 | C59: ด่าปูผิวคอนกรีต | D59: ตรม. | E59: =VLOOKUP(ข้อมูลเริ่มต้น!$B$28*100+$A59,รวมoperate!$A$5:$I$2740,5) -> 7.62 | F59: =VLOOKUP(ข้อมูลเริ่มต้น!$B$28*100+$A59,รวมoperate!$A$5:$I$2740,6) -> 1.92 | G59: =VLOOKUP(ข้อมูลเริ่มต้น!$B$28*100+$A59,รวมoperate!$A$5:$I$2740,7) -> 2.41 | H59: =VLOOKUP(ข้อมูลเริ่มต้น!$B$28*100+$A59,รวมoperate!$A$5:$I$2740,8) -> 9.54 | I59: =VLOOKUP(ข้อมูลเริ่มต้น!$B$28*100+$A59,รวมoperate!$A$5:$I$2740,9) -> 10.02
A60: 55 | C60: ด่าตัดรอยต่อคอนกรีต และหยอดยาง | D60: เมตร | E60: =VLOOKUP(ข้อมูลเริ่มต้น!$B$28*100+$A60,รวมoperate!$A$5:$I$2740,5) -> 19.32 | F60: =VLOOKUP(ข้อมูลเริ่มต้น!$B$28*100+$A60,รวมoperate!$A$5:$I$2740,6) -> 2.45 | G60: =VLOOKUP(ข้อมูลเริ่มต้น!$B$28*100+$A60,รวมoperate!$A$5:$I$2740,7) -> 3.06 | H60: =VLOOKUP(ข้อมูลเริ่มต้น!$B$28*100+$A60,รวมoperate!$A$5:$I$2740,8) -> 21.77 | I60: =VLOOKUP(ข้อมูลเริ่มต้น!$B$28*100+$A60,รวมoperate!$A$5:$I$2740,9) -> 22.38
A61: 56 | C61: ด่าหยอดยางรอยต่อคอนกรีต | D61: เมตร | E61: =VLOOKUP(ข้อมูลเริ่มต้น!$B$28*100+$A61,รวมoperate!$A$5:$I$2740,5) -> 10.63 | F61: =VLOOKUP(ข้อมูลเริ่มต้น!$B$28*100+$A61,รวมoperate!$A$5:$I$2740,6) -> 2.34 | G61: =VLOOKUP(ข้อมูลเริ่มต้น!$B$28*100+$A61,รวมoperate!$A$5:$I$2740,7) -> 2.92 | H61: =VLOOKUP(ข้อมูลเริ่มต้น!$B$28*100+$A61,รวมoperate!$A$5:$I$2740,8) -> 12.96 | I61: =VLOOKUP(ข้อมูลเริ่มต้น!$B$28*100+$A61,รวมoperate!$A$5:$I$2740,9) -> 13.55
A62: 57 | C62: ค่าบ่มผิวทางคอนกรีต | D62: ตรม. | E62: =VLOOKUP(ข้อมูลเริ่มต้น!$B$28*100+$A62,รวมoperate!$A$5:$I$2740,5) -> 6.7 | F62: =VLOOKUP(ข้อมูลเริ่มต้น!$B$28*100+$A62,รวมoperate!$A$5:$I$2740,6) -> 0.71 | G62: =VLOOKUP(ข้อมูลเริ่มต้น!$B$28*100+$A62,รวมoperate!$A$5:$I$2740,7) -> 0.88 | H62: =VLOOKUP(ข้อมูลเริ่มต้น!$B$28*100+$A62,รวมoperate!$A$5:$I$2740,8) -> 7.41 | I62: =VLOOKUP(ข้อมูลเริ่มต้น!$B$28*100+$A62,รวมoperate!$A$5:$I$2740,9) -> 7.58
A63: 58 | B63: 15 | C63: งาน stabilized layer
A64: 59 | C64: ค่าผสมวัสดุ ลูกรัง | D64: ลบม. แน่น | E64: =VLOOKUP(ข้อมูลเริ่มต้น!$B$28*100+$A64,รวมoperate!$A$5:$I$2740,5) -> 32.73 | F64: =VLOOKUP(ข้อมูลเริ่มต้น!$B$28*100+$A64,รวมoperate!$A$5:$I$2740,6) -> 11.03 | G64: =VLOOKUP(ข้อมูลเริ่มต้น!$B$28*100+$A64,รวมoperate!$A$5:$I$2740,7) -> 13.78 | H64: =VLOOKUP(ข้อมูลเริ่มต้น!$B$28*100+$A64,รวมoperate!$A$5:$I$2740,8) -> 43.75 | I64: =VLOOKUP(ข้อมูลเริ่มต้น!$B$28*100+$A64,รวมoperate!$A$5:$I$2740,9) -> 46.51
A65: 60 | C65: ค่าบ่มวัสดุ ลูกรัง | D65: ลบม. แน่น | E65: =VLOOKUP(ข้อมูลเริ่มต้น!$B$28*100+$A65,รวมoperate!$A$5:$I$2740,5) -> 33.5 | F65: =VLOOKUP(ข้อมูลเริ่มต้น!$B$28*100+$A65,รวมoperate!$A$5:$I$2740,6) -> 3.53 | G65: =VLOOKUP(ข้อมูลเริ่มต้น!$B$28*100+$A65,รวมoperate!$A$5:$I$2740,7) -> 4.41 | H65: =VLOOKUP(ข้อมูลเริ่มต้น!$B$28*100+$A65,รวมoperate!$A$5:$I$2740,8) -> 37.03 | I65: =VLOOKUP(ข้อมูลเริ่มต้น!$B$28*100+$A65,รวมoperate!$A$5:$I$2740,9) -> 37.91
A66: 61 | C66: ค่าผสมวัสดุ หินคลุก | D66: ลบม. แน่น | E66: =VLOOKUP(ข้อมูลเริ่มต้น!$B$28*100+$A66,รวมoperate!$A$5:$I$2740,5) -> 36 | F66: =VLOOKUP(ข้อมูลเริ่มต้น!$B$28*100+$A66,รวมoperate!$A$5:$I$2740,6) -> 11.03 | G66: =VLOOKUP(ข้อมูลเริ่มต้น!$B$28*100+$A66,รวมoperate!$A$5:$I$2740,7) -> 13.78 | H66: =VLOOKUP(ข้อมูลเริ่มต้น!$B$28*100+$A66,รวมoperate!$A$5:$I$2740,8) -> 47.02 | I66: =VLOOKUP(ข้อมูลเริ่มต้น!$B$28*100+$A66,รวมoperate!$A$5:$I$2740,9) -> 49.78
A67: 62 | C67: ค่าบ่มวัสดุ หินคลุก | D67: ลบม. แน่น | E67: =VLOOKUP(ข้อมูลเริ่มต้น!$B$28*100+$A67,รวมoperate!$A$5:$I$2740,5) -> 33.5 | F67: =VLOOKUP(ข้อมูลเริ่มต้น!$B$28*100+$A67,รวมoperate!$A$5:$I$2740,6) -> 3.53 | G67: =VLOOKUP(ข้อมูลเริ่มต้น!$B$28*100+$A67,รวมoperate!$A$5:$I$2740,7) -> 4.41 | H67: =VLOOKUP(ข้อมูลเริ่มต้น!$B$28*100+$A67,รวมoperate!$A$5:$I$2740,8) -> 37.03 | I67: =VLOOKUP(ข้อมูลเริ่มต้น!$B$28*100+$A67,รวมoperate!$A$5:$I$2740,9) -> 37.91
A68: 63 | B68: 16 | C68: งาน Pavement In Place Recycling
A69: 64 | C69: ขุดลึกเฉลี่ย 15 ซม. | D69: ตรม. | E69: =VLOOKUP(ข้อมูลเริ่มต้น!$B$28*100+$A69,รวมoperate!$A$5:$I$2740,5) -> 23.57 | F69: =VLOOKUP(ข้อมูลเริ่มต้น!$B$28*100+$A69,รวมoperate!$A$5:$I$2740,6) -> 10.73 | G69: =VLOOKUP(ข้อมูลเริ่มต้น!$B$28*100+$A69,รวมoperate!$A$5:$I$2740,7) -> 13.41 | H69: =VLOOKUP(ข้อมูลเริ่มต้น!$B$28*100+$A69,รวมoperate!$A$5:$I$2740,8) -> 34.3 | I69: =VLOOKUP(ข้อมูลเริ่มต้น!$B$28*100+$A69,รวมoperate!$A$5:$I$2740,9) -> 36.98
A70: 65 | C70: ขุดลึกเฉลี่ย 20 ซม. | D70: ตรม. | E70: =VLOOKUP(ข้อมูลเริ่มต้น!$B$28*100+$A70,รวมoperate!$A$5:$I$2740,5) -> 29.46 | F70: =VLOOKUP(ข้อมูลเริ่มต้น!$B$28*100+$A70,รวมoperate!$A$5:$I$2740,6) -> 13.41 | G70: =VLOOKUP(ข้อมูลเริ่มต้น!$B$28*100+$A70,รวมoperate!$A$5:$I$2740,7) -> 16.76 | H70: =VLOOKUP(ข้อมูลเริ่มต้น!$B$28*100+$A70,รวมoperate!$A$5:$I$2740,8) -> 42.87 | I70: =VLOOKUP(ข้อมูลเริ่มต้น!$B$28*100+$A70,รวมoperate!$A$5:$I$2740,9) -> 46.22
A71: 66 | C71: ขุดลึกเฉลี่ย 25 ซม. | D71: ตรม. | E71: =VLOOKUP(ข้อมูลเริ่มต้น!$B$28*100+$A71,รวมoperate!$A$5:$I$2740,5) -> 39.28 | F71: =VLOOKUP(ข้อมูลเริ่มต้น!$B$28*100+$A71,รวมoperate!$A$5:$I$2740,6) -> 17.88 | G71: =VLOOKUP(ข้อมูลเริ่มต้น!$B$28*100+$A71,รวมoperate!$A$5:$I$2740,7) -> 22.34 | H71: =VLOOKUP(ข้อมูลเริ่มต้น!$B$28*100+$A71,รวมoperate!$A$5:$I$2740,8) -> 57.16 | I71: =VLOOKUP(ข้อมูลเริ่มต้น!$B$28*100+$A71,รวมoperate!$A$5:$I$2740,9) -> 61.63
A72: 67 | B72: 17 | C72: งาน Slurry Seal | D72: ตรม. | E72: =VLOOKUP(ข้อมูลเริ่มต้น!$B$28*100+$A72,รวมoperate!$A$5:$I$2740,5) -> 9.39 | F72: =VLOOKUP(ข้อมูลเริ่มต้น!$B$28*100+$A72,รวมoperate!$A$5:$I$2740,6) -> 1.93 | G72: =VLOOKUP(ข้อมูลเริ่มต้น!$B$28*100+$A72,รวมoperate!$A$5:$I$2740,7) -> 2.41 | H72: =VLOOKUP(ข้อมูลเริ่มต้น!$B$28*100+$A72,รวมoperate!$A$5:$I$2740,8) -> 11.32 | I72: =VLOOKUP(ข้อมูลเริ่มต้น!$B$28*100+$A72,รวมoperate!$A$5:$I$2740,9) -> 11.8
A73: 68 | B73: 18 | C73: งาน Fog Spray | D73: ตรม. | E73: =VLOOKUP(ข้อมูลเริ่มต้น!$B$28*100+$A73,รวมoperate!$A$5:$I$2740,5) -> 2.17 | F73: =VLOOKUP(ข้อมูลเริ่มต้น!$B$28*100+$A73,รวมoperate!$A$5:$I$2740,6) -> 0.36 | G73: =VLOOKUP(ข้อมูลเริ่มต้น!$B$28*100+$A73,รวมoperate!$A$5:$I$2740,7) -> 0.45 | H73: =VLOOKUP(ข้อมูลเริ่มต้น!$B$28*100+$A73,รวมoperate!$A$5:$I$2740,8) -> 2.54 | I73: =VLOOKUP(ข้อมูลเริ่มต้น!$B$28*100+$A73,รวมoperate!$A$5:$I$2740,9) -> 2.63
A74: 69 | B74: 19 | C74: งาน Hot Mixed Recycling
A75: 70 | C75: ขุดลึก 3 ซม. | D75: ตรม. | E75: =VLOOKUP(ข้อมูลเริ่มต้น!$B$28*100+$A75,รวมoperate!$A$5:$I$2740,5) -> 36.1 | F75: =VLOOKUP(ข้อมูลเริ่มต้น!$B$28*100+$A75,รวมoperate!$A$5:$I$2740,6) -> 5.56 | G75: =VLOOKUP(ข้อมูลเริ่มต้น!$B$28*100+$A75,รวมoperate!$A$5:$I$2740,7) -> 6.94 | H75: =VLOOKUP(ข้อมูลเริ่มต้น!$B$28*100+$A75,รวมoperate!$A$5:$I$2740,8) -> 41.66 | I75: =VLOOKUP(ข้อมูลเริ่มต้น!$B$28*100+$A75,รวมoperate!$A$5:$I$2740,9) -> 43.05
A76: 71 | C76: ขุดลึก 4 ซม. | D76: ตรม. | E76: =VLOOKUP(ข้อมูลเริ่มต้น!$B$28*100+$A76,รวมoperate!$A$5:$I$2740,5) -> 47.99 | F76: =VLOOKUP(ข้อมูลเริ่มต้น!$B$28*100+$A76,รวมoperate!$A$5:$I$2740,6) -> 7.06 | G76: =VLOOKUP(ข้อมูลเริ่มต้น!$B$28*100+$A76,รวมoperate!$A$5:$I$2740,7) -> 8.82 | H76: =VLOOKUP(ข้อมูลเริ่มต้น!$B$28*100+$A76,รวมoperate!$A$5:$I$2740,8) -> 55.04 | I76: =VLOOKUP(ข้อมูลเริ่มต้น!$B$28*100+$A76,รวมoperate!$A$5:$I$2740,9) -> 56.81
A77: 72 | C77: ขุดลึก 5 ซม. | D77: ตรม. | E77: =VLOOKUP(ข้อมูลเริ่มต้น!$B$28*100+$A77,รวมoperate!$A$5:$I$2740,5) -> 58.03 | F77: =VLOOKUP(ข้อมูลเริ่มต้น!$B$28*100+$A77,รวมoperate!$A$5:$I$2740,6) -> 7.75 | G77: =VLOOKUP(ข้อมูลเริ่มต้น!$B$28*100+$A77,รวมoperate!$A$5:$I$2740,7) -> 9.68 | H77: =VLOOKUP(ข้อมูลเริ่มต้น!$B$28*100+$A77,รวมoperate!$A$5:$I$2740,8) -> 65.78 | I77: =VLOOKUP(ข้อมูลเริ่มต้น!$B$28*100+$A77,รวมoperate!$A$5:$I$2740,9) -> 67.72
A78: 73 | C78: ขุดลึก 6 ซม. | D78: ตรม. | E78: =VLOOKUP(ข้อมูลเริ่มต้น!$B$28*100+$A78,รวมoperate!$A$5:$I$2740,5) -> 70.26 | F78: =VLOOKUP(ข้อมูลเริ่มต้น!$B$28*100+$A78,รวมoperate!$A$5:$I$2740,6) -> 8.59 | G78: =VLOOKUP(ข้อมูลเริ่มต้น!$B$28*100+$A78,รวมoperate!$A$5:$I$2740,7) -> 10.74 | H78: =VLOOKUP(ข้อมูลเริ่มต้น!$B$28*100+$A78,รวมoperate!$A$5:$I$2740,8) -> 78.85 | I78: =VLOOKUP(ข้อมูลเริ่มต้น!$B$28*100+$A78,รวมoperate!$A$5:$I$2740,9) -> 81
A79: 74 | B79: 20 | C79: งาน Milling
A80: 75 | C80: ขุดลึก 5 ซม. | D80: ตร.ม. | E80: =VLOOKUP(ข้อมูลเริ่มต้น!$B$28*100+$A80,รวมoperate!$A$5:$I$2740,5) -> 9.93 | F80: =VLOOKUP(ข้อมูลเริ่มต้น!$B$28*100+$A80,รวมoperate!$A$5:$I$2740,6) -> 1.72 | G80: =VLOOKUP(ข้อมูลเริ่มต้น!$B$28*100+$A80,รวมoperate!$A$5:$I$2740,7) -> 2.15 | H80: =VLOOKUP(ข้อมูลเริ่มต้น!$B$28*100+$A80,รวมoperate!$A$5:$I$2740,8) -> 11.65 | I80: =VLOOKUP(ข้อมูลเริ่มต้น!$B$28*100+$A80,รวมoperate!$A$5:$I$2740,9) -> 12.07
A81: 76 | C81: ขุดลึก 10 ซม. | D81: ตร.ม. | E81: =VLOOKUP(ข้อมูลเริ่มต้น!$B$28*100+$A81,รวมoperate!$A$5:$I$2740,5) -> 11.58 | F81: =VLOOKUP(ข้อมูลเริ่มต้น!$B$28*100+$A81,รวมoperate!$A$5:$I$2740,6) -> 2 | G81: =VLOOKUP(ข้อมูลเริ่มต้น!$B$28*100+$A81,รวมoperate!$A$5:$I$2740,7) -> 2.5 | H81: =VLOOKUP(ข้อมูลเริ่มต้น!$B$28*100+$A81,รวมoperate!$A$5:$I$2740,8) -> 13.59 | I81: =VLOOKUP(ข้อมูลเริ่มต้น!$B$28*100+$A81,รวมoperate!$A$5:$I$2740,9) -> 14.09

Sheet ค่าดำเนินการ+ค่าเสื่อมราคา (hidden)
C1: ตารางสรุปค่าดำเนินการและค่าเสื่อมราคา
C2: ="ราคาน้ำมันเชื้อเพลิงโซล่า ที่ อำเภอ เมือง "&ข้อมูลเริ่มต้น!$B$28&".00 - "&ข้อมูลเริ่มต้น!$B$28+0.99&" บาท / ลิตร" -> ราคาน้ำมันเชื้อเพลิงโซล่า ที่ อำเภอ เมือง 30.00 - 30.99 บาท / ลิตร
E3: ค่า | F3: ค่าเสื่อมราคา | G3: รวมค่างาน
B4: ลำ | C4: ลักษณะงาน | D4: หน่วย | E4: ดำเนินการ | F4: ( บาท ) | G4: ( บาท )
B5: ดับ | E5: บาท/หน่วย | F5: =IF(ข้อมูลเริ่มต้น!$B$30=0,"ปกติ","ฝนชุก") -> ปกติ | G5: =IF(ข้อมูลเริ่มต้น!$B$30=0,"ปกติ","ฝนชุก") -> ปกติ
A6: 1 | B6: 1 | C6: งานถางป่าขุดตอ
A7: 2 | C7: ขนาดเบา | D7: ตรม. | E7: =VLOOKUP(ข้อมูลเริ่มต้น!$B$28*100+$A7,รวมoperate!$A$5:$I$2740,5) -> 1.14 | F7: =VLOOKUP(ข้อมูลเริ่มต้น!$B$28*100+$A7,รวมoperate!$A$5:$I$2740,6+ข้อมูลเริ่มต้น!$B$30) -> 0.16 | G7: =VLOOKUP(ข้อมูลเริ่มต้น!$B$28*100+$A7,รวมoperate!$A$5:$I$2740,8+ข้อมูลเริ่มต้น!$B$30) -> 1.29
A8: 3 | C8: ขนาดกลาง | D8: ตรม. | E8: =VLOOKUP(ข้อมูลเริ่มต้น!$B$28*100+$A8,รวมoperate!$A$5:$I$2740,5) -> 2.64 | F8: =VLOOKUP(ข้อมูลเริ่มต้น!$B$28*100+$A8,รวมoperate!$A$5:$I$2740,6+ข้อมูลเริ่มต้น!$B$30) -> 0.46 | G8: =VLOOKUP(ข้อมูลเริ่มต้น!$B$28*100+$A8,รวมoperate!$A$5:$I$2740,8+ข้อมูลเริ่มต้น!$B$30) -> 3.1
A9: 4 | C9: ขนาดหนัก | D9: ตรม. | E9: =VLOOKUP(ข้อมูลเริ่มต้น!$B$28*100+$A9,รวมoperate!$A$5:$I$2740,5) -> 4.03 | F9: =VLOOKUP(ข้อมูลเริ่มต้น!$B$28*100+$A9,รวมoperate!$A$5:$I$2740,6+ข้อมูลเริ่มต้น!$B$30) -> 0.66 | G9: =VLOOKUP(ข้อมูลเริ่มต้น!$B$28*100+$A9,รวมoperate!$A$5:$I$2740,8+ข้อมูลเริ่มต้น!$B$30) -> 4.69
A10: 5 | B10: 2 | C10: งานดินคันทาง | E10: =VLOOKUP(ข้อมูลเริ่มต้น!$B$28*100+$A10,รวมoperate!$A$5:$I$2740,5) -> 0 | F10: =VLOOKUP(ข้อมูลเริ่มต้น!$B$28*100+$A10,รวมoperate!$A$5:$I$2740,6+ข้อมูลเริ่มต้น!$B$30) -> 0 | G10: =VLOOKUP(ข้อมูลเริ่มต้น!$B$28*100+$A10,รวมoperate!$A$5:$I$2740,8+ข้อมูลเริ่มต้น!$B$30) -> 0
A11: 6 | C11: ขุด-ขน | D11: ลบม. หลวม | E11: =VLOOKUP(ข้อมูลเริ่มต้น!$B$28*100+$A11,รวมoperate!$A$5:$I$2740,5) -> 15.84 | F11: =VLOOKUP(ข้อมูลเริ่มต้น!$B$28*100+$A11,รวมoperate!$A$5:$I$2740,6+ข้อมูลเริ่มต้น!$B$30) -> 3.47 | G11: =VLOOKUP(ข้อมูลเริ่มต้น!$B$28*100+$A11,รวมoperate!$A$5:$I$2740,8+ข้อมูลเริ่มต้น!$B$30) -> 19.31
A12: 7 | C12: บดทับ | D12: ลบม. แน่น | E12: =VLOOKUP(ข้อมูลเริ่มต้น!$B$28*100+$A12,รวมoperate!$A$5:$I$2740,5) -> 28.52 | F12: =VLOOKUP(ข้อมูลเริ่มต้น!$B$28*100+$A12,รวมoperate!$A$5:$I$2740,6+ข้อมูลเริ่มต้น!$B$30) -> 7.92 | G12: =VLOOKUP(ข้อมูลเริ่มต้น!$B$28*100+$A12,รวมoperate!$A$5:$I$2740,8+ข้อมูลเริ่มต้น!$B$30) -> 36.44
A13: 8 | B13: 3 | C13: งานตัด-ขึ้นรูปคันทาง | E13: =VLOOKUP(ข้อมูลเริ่มต้น!$B$28*100+$A13,รวมoperate!$A$5:$I$2740,5) -> 0 | F13: =VLOOKUP(ข้อมูลเริ่มต้น!$B$28*100+$A13,รวมoperate!$A$5:$I$2740,6+ข้อมูลเริ่มต้น!$B$30) -> 0 | G13: =VLOOKUP(ข้อมูลเริ่มต้น!$B$28*100+$A13,รวมoperate!$A$5:$I$2740,8+ข้อมูลเริ่มต้น!$B$30) -> 0
A14: 9 | C14: ดิน-ขุดตัด | D14: ลบม. ปกติ | E14: =VLOOKUP(ข้อมูลเริ่มต้น!$B$28*100+$A14,รวมoperate!$A$5:$I$2740,5) -> 15.88 | F14: =VLOOKUP(ข้อมูลเริ่มต้น!$B$28*100+$A14,รวมoperate!$A$5:$I$2740,6+ข้อมูลเริ่มต้น!$B$30) -> 2.93 | G14: =VLOOKUP(ข้อมูลเริ่มต้น!$B$28*100+$A14,รวมoperate!$A$5:$I$2740,8+ข้อมูลเริ่มต้น!$B$30) -> 18.81
A15: 10 | C15: -ตัก | D15: ลบม. หลวม | E15: =VLOOKUP(ข้อมูลเริ่มต้น!$B$28*100+$A15,รวมoperate!$A$5:$I$2740,5) -> 5.86 | F15: =VLOOKUP(ข้อมูลเริ่มต้น!$B$28*100+$A15,รวมoperate!$A$5:$I$2740,6+ข้อมูลเริ่มต้น!$B$30) -> 1.7 | G15: =VLOOKUP(ข้อมูลเริ่มต้น!$B$28*100+$A15,รวมoperate!$A$5:$I$2740,8+ข้อมูลเริ่มต้น!$B$30) -> 7.56
A16: 11 | C16: หินผุ-ขุดตัด | D16: ลบม. ปกติ | E16: =VLOOKUP(ข้อมูลเริ่มต้น!$B$28*100+$A16,รวมoperate!$A$5:$I$2740,5) -> 27.87 | F16: =VLOOKUP(ข้อมูลเริ่มต้น!$B$28*100+$A16,รวมoperate!$A$5:$I$2740,6+ข้อมูลเริ่มต้น!$B$30) -> 3.34 | G16: =VLOOKUP(ข้อมูลเริ่มต้น!$B$28*100+$A16,รวมoperate!$A$5:$I$2740,8+ข้อมูลเริ่มต้น!$B$30) -> 31.21
A17: 12 | C17: -ดันและตัก | D17: ลบม. หลวม | E17: =VLOOKUP(ข้อมูลเริ่มต้น!$B$28*100+$A17,รวมoperate!$A$5:$I$2740,5) -> 33.07 | F17: =VLOOKUP(ข้อมูลเริ่มต้น!$B$28*100+$A17,รวมoperate!$A$5:$I$2740,6+ข้อมูลเริ่มต้น!$B$30) -> 5.04 | G17: =VLOOKUP(ข้อมูลเริ่มต้น!$B$28*100+$A17,รวมoperate!$A$5:$I$2740,8+ข้อมูลเริ่มต้น!$B$30) -> 38.11
A18: 13 | C18: หินแข็ง-เจาะระเบิด | D18: ลบม. ปกติ | E18: =VLOOKUP(ข้อมูลเริ่มต้น!$B$28*100+$A18,รวมoperate!$A$5:$I$2740,5) -> 45.83 | F18: =VLOOKUP(ข้อมูลเริ่มต้น!$B$28*100+$A18,รวมoperate!$A$5:$I$2740,6+ข้อมูลเริ่มต้น!$B$30) -> 4.66 | G18: =VLOOKUP(ข้อมูลเริ่มต้น!$B$28*100+$A18,รวมoperate!$A$5:$I$2740,8+ข้อมูลเริ่มต้น!$B$30) -> 50.49
A19: 14 | C19: -ดันและตัก | D19: ลบม. หลวม | E19: =VLOOKUP(ข้อมูลเริ่มต้น!$B$28*100+$A19,รวมoperate!$A$5:$I$2740,5) -> 56.52 | F19: =VLOOKUP(ข้อมูลเริ่มต้น!$B$28*100+$A19,รวมoperate!$A$5:$I$2740,6+ข้อมูลเริ่มต้น!$B$30) -> 19 | G19: =VLOOKUP(ข้อมูลเริ่มต้น!$B$28*100+$A19,รวมoperate!$A$5:$I$2740,8+ข้อมูลเริ่มต้น!$B$30) -> 75.52
A20: 15 | B20: 4 | C20: งานวัสดุคัดเลือก ลูกรังรองพื้นทาง | E20: =VLOOKUP(ข้อมูลเริ่มต้น!$B$28*100+$A20,รวมoperate!$A$5:$I$2740,5) -> 0 | F20: =VLOOKUP(ข้อมูลเริ่มต้น!$B$28*100+$A20,รวมoperate!$A$5:$I$2740,6+ข้อมูลเริ่มต้น!$B$30) -> 0 | G20: =VLOOKUP(ข้อมูลเริ่มต้น!$B$28*100+$A20,รวมoperate!$A$5:$I$2740,8+ข้อมูลเริ่มต้น!$B$30) -> 0
A21: 16 | C21: ขุด-ขน | D21: ลบม. หลวม | E21: =VLOOKUP(ข้อมูลเริ่มต้น!$B$28*100+$A21,รวมoperate!$A$5:$I$2740,5) -> 22.52 | F21: =VLOOKUP(ข้อมูลเริ่มต้น!$B$28*100+$A21,รวมoperate!$A$5:$I$2740,6+ข้อมูลเริ่มต้น!$B$30) -> 6.36 | G21: =VLOOKUP(ข้อมูลเริ่มต้น!$B$28*100+$A21,รวมoperate!$A$5:$I$2740,8+ข้อมูลเริ่มต้น!$B$30) -> 28.88
A22: 17 | C22: ผสม (ผสมกับวัสดุอื่นๆ) | D22: ลบม. แน่น | E22: =VLOOKUP(ข้อมูลเริ่มต้น!$B$28*100+$A22,รวมoperate!$A$5:$I$2740,5) -> 6.64 | F22: =VLOOKUP(ข้อมูลเริ่มต้น!$B$28*100+$A22,รวมoperate!$A$5:$I$2740,6+ข้อมูลเริ่มต้น!$B$30) -> 1.01 | G22: =VLOOKUP(ข้อมูลเริ่มต้น!$B$28*100+$A22,รวมoperate!$A$5:$I$2740,8+ข้อมูลเริ่มต้น!$B$30) -> 7.65
A23: 18 | C23: บดทับ | D23: ลบม. แน่น | E23: =VLOOKUP(ข้อมูลเริ่มต้น!$B$28*100+$A23,รวมoperate!$A$5:$I$2740,5) -> 34.23 | F23: =VLOOKUP(ข้อมูลเริ่มต้น!$B$28*100+$A23,รวมoperate!$A$5:$I$2740,6+ข้อมูลเริ่มต้น!$B$30) -> 9.5 | G23: =VLOOKUP(ข้อมูลเริ่มต้น!$B$28*100+$A23,รวมoperate!$A$5:$I$2740,8+ข้อมูลเริ่มต้น!$B$30) -> 43.73
A24: 19 | B24: 5 | C24: งานไหล่ทางลูกรัง ผสม-บดทับ | E24: =VLOOKUP(ข้อมูลเริ่มต้น!$B$28*100+$A24,รวมoperate!$A$5:$I$2740,5) -> 0 | F24: =VLOOKUP(ข้อมูลเริ่มต้น!$B$28*100+$A24,รวมoperate!$A$5:$I$2740,6+ข้อมูลเริ่มต้น!$B$30) -> 0 | G24: =VLOOKUP(ข้อมูลเริ่มต้น!$B$28*100+$A24,รวมoperate!$A$5:$I$2740,8+ข้อมูลเริ่มต้น!$B$30) -> 0
A25: 20 | C25: ผสม (ผสมกับวัสดุอื่นๆ) | D25: ลบม. แน่น | E25: =VLOOKUP(ข้อมูลเริ่มต้น!$B$28*100+$A25,รวมoperate!$A$5:$I$2740,5) -> 12.49 | F25: =VLOOKUP(ข้อมูลเริ่มต้น!$B$28*100+$A25,รวมoperate!$A$5:$I$2740,6+ข้อมูลเริ่มต้น!$B$30) -> 1.91 | G25: =VLOOKUP(ข้อมูลเริ่มต้น!$B$28*100+$A25,รวมoperate!$A$5:$I$2740,8+ข้อมูลเริ่มต้น!$B$30) -> 14.4
A26: 21 | C26: บดทับ | D26: ลบม. แน่น | E26: =VLOOKUP(ข้อมูลเริ่มต้น!$B$28*100+$A26,รวมoperate!$A$5:$I$2740,5) -> 40.26 | F26: =VLOOKUP(ข้อมูลเริ่มต้น!$B$28*100+$A26,รวมoperate!$A$5:$I$2740,6+ข้อมูลเริ่มต้น!$B$30) -> 15.33 | G26: =VLOOKUP(ข้อมูลเริ่มต้น!$B$28*100+$A26,รวมoperate!$A$5:$I$2740,8+ข้อมูลเริ่มต้น!$B$30) -> 55.58
A27: 22 | B27: 6 | C27: งานพื้นทาง(หินคลุก) | E27: =VLOOKUP(ข้อมูลเริ่มต้น!$B$28*100+$A27,รวมoperate!$A$5:$I$2740,5) -> 0 | F27: =VLOOKUP(ข้อมูลเริ่มต้น!$B$28*100+$A27,รวมoperate!$A$5:$I$2740,6+ข้อมูลเริ่มต้น!$B$30) -> 0 | G27: =VLOOKUP(ข้อมูลเริ่มต้น!$B$28*100+$A27,รวมoperate!$A$5:$I$2740,8+ข้อมูลเริ่มต้น!$B$30) -> 0
A28: 23 | C28: ผสม (Blend) | D28: ลบม. แน่น | E28: =VLOOKUP(ข้อมูลเริ่มต้น!$B$28*100+$A28,รวมoperate!$A$5:$I$2740,5) -> 14.54 | F28: =VLOOKUP(ข้อมูลเริ่มต้น!$B$28*100+$A28,รวมoperate!$A$5:$I$2740,6+ข้อมูลเริ่มต้น!$B$30) -> 2.91 | G28: =VLOOKUP(ข้อมูลเริ่มต้น!$B$28*100+$A28,รวมoperate!$A$5:$I$2740,8+ข้อมูลเริ่มต้น!$B$30) -> 17.44
A29: 24 | C29: บดทับ | D29: ลบม. แน่น | E29: =VLOOKUP(ข้อมูลเริ่มต้น!$B$28*100+$A29,รวมoperate!$A$5:$I$2740,5) -> 49.8 | F29: =VLOOKUP(ข้อมูลเริ่มต้น!$B$28*100+$A29,รวมoperate!$A$5:$I$2740,6+ข้อมูลเริ่มต้น!$B$30) -> 19.1 | G29: =VLOOKUP(ข้อมูลเริ่มต้น!$B$28*100+$A29,รวมoperate!$A$5:$I$2740,8+ข้อมูลเริ่มต้น!$B$30) -> 68.9
A30: 25 | B30: 7 | C30: งานตัดแต่งขั้นบันได | D30: ลบม. แน่น | E30: =VLOOKUP(ข้อมูลเริ่มต้น!$B$28*100+$A30,รวมoperate!$A$5:$I$2740,5) -> 5.33 | F30: =VLOOKUP(ข้อมูลเริ่มต้น!$B$28*100+$A30,รวมoperate!$A$5:$I$2740,6+ข้อมูลเริ่มต้น!$B$30) -> 1.3 | G30: =VLOOKUP(ข้อมูลเริ่มต้น!$B$28*100+$A30,รวมoperate!$A$5:$I$2740,8+ข้อมูลเริ่มต้น!$B$30) -> 6.63
A31: 26 | B31: 8 | C31: งานขุดรื้อคันทางเดิมแล้วบดทับ | E31: =VLOOKUP(ข้อมูลเริ่มต้น!$B$28*100+$A31,รวมoperate!$A$5:$I$2740,5) -> 0 | F31: =VLOOKUP(ข้อมูลเริ่มต้น!$B$28*100+$A31,รวมoperate!$A$5:$I$2740,6+ข้อมูลเริ่มต้น!$B$30) -> 0 | G31: =VLOOKUP(ข้อมูลเริ่มต้น!$B$28*100+$A31,รวมoperate!$A$5:$I$2740,8+ข้อมูลเริ่มต้น!$B$30) -> 0
A32: 27 | C32: ลูกรัง 10 ซม. | D32: ตรม. | E32: =VLOOKUP(ข้อมูลเริ่มต้น!$B$28*100+$A32,รวมoperate!$A$5:$I$2740,5) -> 7.11 | F32: =VLOOKUP(ข้อมูลเริ่มต้น!$B$28*100+$A32,รวมoperate!$A$5:$I$2740,6+ข้อมูลเริ่มต้น!$B$30) -> 1.51 | G32: =VLOOKUP(ข้อมูลเริ่มต้น!$B$28*100+$A32,รวมoperate!$A$5:$I$2740,8+ข้อมูลเริ่มต้น!$B$30) -> 8.62
A33: 28 | C33: หินคลุก 10 ซม. | D33: ตรม. | E33: =VLOOKUP(ข้อมูลเริ่มต้น!$B$28*100+$A33,รวมoperate!$A$5:$I$2740,5) -> 8.67 | F33: =VLOOKUP(ข้อมูลเริ่มต้น!$B$28*100+$A33,รวมoperate!$A$5:$I$2740,6+ข้อมูลเริ่มต้น!$B$30) -> 2.47 | G33: =VLOOKUP(ข้อมูลเริ่มต้น!$B$28*100+$A33,รวมoperate!$A$5:$I$2740,8+ข้อมูลเริ่มต้น!$B$30) -> 11.14
A34: 29 | C34: ผิวAC 5 ซม. | D34: ตรม. | E34: =VLOOKUP(ข้อมูลเริ่มต้น!$B$28*100+$A34,รวมoperate!$A$5:$I$2740,5) -> 7.75 | F34: =VLOOKUP(ข้อมูลเริ่มต้น!$B$28*100+$A34,รวมoperate!$A$5:$I$2740,6+ข้อมูลเริ่มต้น!$B$30) -> 1.25 | G34: =VLOOKUP(ข้อมูลเริ่มต้น!$B$28*100+$A34,รวมoperate!$A$5:$I$2740,8+ข้อมูลเริ่มต้น!$B$30) -> 9
A35: 30 | B35: 9 | C35: งานราดยางไพรม์โค้ด | D35: ตรม. | E35: =VLOOKUP(ข้อมูลเริ่มต้น!$B$28*100+$A35,รวมoperate!$A$5:$I$2740,5) -> 5.97 | F35: =VLOOKUP(ข้อมูลเริ่มต้น!$B$28*100+$A35,รวมoperate!$A$5:$I$2740,6+ข้อมูลเริ่มต้น!$B$30) -> 0.54 | G35: =VLOOKUP(ข้อมูลเริ่มต้น!$B$28*100+$A35,รวมoperate!$A$5:$I$2740,8+ข้อมูลเริ่มต้น!$B$30) -> 6.51
A36: 31 | B36: 10 | C36: งานราดยางแทคโค้ด | D36: ตรม. | E36: =VLOOKUP(ข้อมูลเริ่มต้น!$B$28*100+$A36,รวมoperate!$A$5:$I$2740,5) -> 5.43 | F36: =VLOOKUP(ข้อมูลเริ่มต้น!$B$28*100+$A36,รวมoperate!$A$5:$I$2740,6+ข้อมูลเริ่มต้น!$B$30) -> 0.77 | G36: =VLOOKUP(ข้อมูลเริ่มต้น!$B$28*100+$A36,รวมoperate!$A$5:$I$2740,8+ข้อมูลเริ่มต้น!$B$30) -> 6.2
A37: 32 | B37: 11 | C37: งานผิวทางแบบบาง | E37: =VLOOKUP(ข้อมูลเริ่มต้น!$B$28*100+$A37,รวมoperate!$A$5:$I$2740,5) -> 0 | F37: =VLOOKUP(ข้อมูลเริ่มต้น!$B$28*100+$A37,รวมoperate!$A$5:$I$2740,6+ข้อมูลเริ่มต้น!$B$30) -> 0 | G37: =VLOOKUP(ข้อมูลเริ่มต้น!$B$28*100+$A37,รวมoperate!$A$5:$I$2740,8+ข้อมูลเริ่มต้น!$B$30) -> 0
A38: 33 | C38: ชั้นเดียว (1/2") | D38: ตรม. | E38: =VLOOKUP(ข้อมูลเริ่มต้น!$B$28*100+$A38,รวมoperate!$A$5:$I$2740,5) -> 12.8 | F38: =VLOOKUP(ข้อมูลเริ่มต้น!$B$28*100+$A38,รวมoperate!$A$5:$I$2740,6+ข้อมูลเริ่มต้น!$B$30) -> 1.94 | G38: =VLOOKUP(ข้อมูลเริ่มต้น!$B$28*100+$A38,รวมoperate!$A$5:$I$2740,8+ข้อมูลเริ่มต้น!$B$30) -> 14.74
A39: 34 | C39: ชั้นเดียว (3/4") | D39: ตรม. | E39: =VLOOKUP(ข้อมูลเริ่มต้น!$B$28*100+$A39,รวมoperate!$A$5:$I$2740,5) -> 17.68 | F39: =VLOOKUP(ข้อมูลเริ่มต้น!$B$28*100+$A39,รวมoperate!$A$5:$I$2740,6+ข้อมูลเริ่มต้น!$B$30) -> 2.68 | G39: =VLOOKUP(ข้อมูลเริ่มต้น!$B$28*100+$A39,รวมoperate!$A$5:$I$2740,8+ข้อมูลเริ่มต้น!$B$30) -> 20.36
A40: 35 | C40: สองชั้น (3/4"+3/8") | D40: ตรม. | E40: =VLOOKUP(ข้อมูลเริ่มต้น!$B$28*100+$A40,รวมoperate!$A$5:$I$2740,5) -> 26.29 | F40: =VLOOKUP(ข้อมูลเริ่มต้น!$B$28*100+$A40,รวมoperate!$A$5:$I$2740,6+ข้อมูลเริ่มต้น!$B$30) -> 3.99 | G40: =VLOOKUP(ข้อมูลเริ่มต้น!$B$28*100+$A40,รวมoperate!$A$5:$I$2740,8+ข้อมูลเริ่มต้น!$B$30) -> 30.28
A41: 36 | C41: สองชั้น (1"+1/2") | D41: ตรม. | E41: =VLOOKUP(ข้อมูลเริ่มต้น!$B$28*100+$A41,รวมoperate!$A$5:$I$2740,5) -> 38.51 | F41: =VLOOKUP(ข้อมูลเริ่มต้น!$B$28*100+$A41,รวมoperate!$A$5:$I$2740,6+ข้อมูลเริ่มต้น!$B$30) -> 5.84 | G41: =VLOOKUP(ข้อมูลเริ่มต้น!$B$28*100+$A41,รวมoperate!$A$5:$I$2740,8+ข้อมูลเริ่มต้น!$B$30) -> 44.34
A42: 37 | B42: 12 | C42: งานเคลือบหิน ขจัดฝุ่น (Pre-coat) | E42: =VLOOKUP(ข้อมูลเริ่มต้น!$B$28*100+$A42,รวมoperate!$A$5:$I$2740,5) -> 0 | F42: =VLOOKUP(ข้อมูลเริ่มต้น!$B$28*100+$A42,รวมoperate!$A$5:$I$2740,6+ข้อมูลเริ่มต้น!$B$30) -> 0 | G42: =VLOOKUP(ข้อมูลเริ่มต้น!$B$28*100+$A42,รวมoperate!$A$5:$I$2740,8+ข้อมูลเริ่มต้น!$B$30) -> 0
A43: 38 | C43: ชั้นเดียว (1/2") | D43: ลบม. หลวม | E43: =VLOOKUP(ข้อมูลเริ่มต้น!$B$28*100+$A43,รวมoperate!$A$5:$I$2740,5) -> 1.47 | F43: =VLOOKUP(ข้อมูลเริ่มต้น!$B$28*100+$A43,รวมoperate!$A$5:$I$2740,6+ข้อมูลเริ่มต้น!$B$30) -> 0.49 | G43: =VLOOKUP(ข้อมูลเริ่มต้น!$B$28*100+$A43,รวมoperate!$A$5:$I$2740,8+ข้อมูลเริ่มต้น!$B$30) -> 1.95
A44: 39 | C44: ชั้นเดียว (3/4") | D44: ลบม. หลวม | E44: =VLOOKUP(ข้อมูลเริ่มต้น!$B$28*100+$A44,รวมoperate!$A$5:$I$2740,5) -> 2.03 | F44: =VLOOKUP(ข้อมูลเริ่มต้น!$B$28*100+$A44,รวมoperate!$A$5:$I$2740,6+ข้อมูลเริ่มต้น!$B$30) -> 0.68 | G44: =VLOOKUP(ข้อมูลเริ่มต้น!$B$28*100+$A44,รวมoperate!$A$5:$I$2740,8+ข้อมูลเริ่มต้น!$B$30) -> 2.7
A45: 40 | C45: สองชั้น (3/4"+3/8") | D45: ลบม. หลวม | E45: =VLOOKUP(ข้อมูลเริ่มต้น!$B$28*100+$A45,รวมoperate!$A$5:$I$2740,5) -> 3.01 | F45: =VLOOKUP(ข้อมูลเริ่มต้น!$B$28*100+$A45,รวมoperate!$A$5:$I$2740,6+ข้อมูลเริ่มต้น!$B$30) -> 1 | G45: =VLOOKUP(ข้อมูลเริ่มต้น!$B$28*100+$A45,รวมoperate!$A$5:$I$2740,8+ข้อมูลเริ่มต้น!$B$30) -> 4.02
A46: 41 | C46: สองชั้น (1"+1/2") | D46: ลบม. หลวม | E46: =VLOOKUP(ข้อมูลเริ่มต้น!$B$28*100+$A46,รวมoperate!$A$5:$I$2740,5) -> 4.41 | F46: =VLOOKUP(ข้อมูลเริ่มต้น!$B$28*100+$A46,รวมoperate!$A$5:$I$2740,6+ข้อมูลเริ่มต้น!$B$30) -> 1.47 | G46: =VLOOKUP(ข้อมูลเริ่มต้น!$B$28*100+$A46,รวมoperate!$A$5:$I$2740,8+ข้อมูลเริ่มต้น!$B$30) -> 5.88
A47: 42 | B47: 13 | C47: งานผิวทางแอสฟัลติกคอนกรีต | E47: =VLOOKUP(ข้อมูลเริ่มต้น!$B$28*100+$A47,รวมoperate!$A$5:$I$2740,5) -> 0 | F47: =VLOOKUP(ข้อมูลเริ่มต้น!$B$28*100+$A47,รวมoperate!$A$5:$I$2740,6+ข้อมูลเริ่มต้น!$B$30) -> 0 | G47: =VLOOKUP(ข้อมูลเริ่มต้น!$B$28*100+$A47,รวมoperate!$A$5:$I$2740,8+ข้อมูลเริ่มต้น!$B$30) -> 0
A48: 43 | C48: ค่าผสมวัสดุแอสฟัลติกคอนกรีต | D48: ตัน | E48: =VLOOKUP(ข้อมูลเริ่มต้น!$B$28*100+$A48,รวมoperate!$A$5:$I$2740,5) -> 364.17 | F48: =VLOOKUP(ข้อมูลเริ่มต้น!$B$28*100+$A48,รวมoperate!$A$5:$I$2740,6+ข้อมูลเริ่มต้น!$B$30) -> 16.77 | G48: =VLOOKUP(ข้อมูลเริ่มต้น!$B$28*100+$A48,รวมoperate!$A$5:$I$2740,8+ข้อมูลเริ่มต้น!$B$30) -> 380.94
A49: 44 | C49: ค่าขนส่งอุปกรณ์ 80 ตัน ระยะทางขนส่ง 100-300 กม. | E49: =VLOOKUP(ข้อมูลเริ่มต้น!$B$28*100+$A49,รวมoperate!$A$5:$I$2740,5) -> 0 | F49: =VLOOKUP(ข้อมูลเริ่มต้น!$B$28*100+$A49,รวมoperate!$A$5:$I$2740,6+ข้อมูลเริ่มต้น!$B$30) -> 0 | G49: =VLOOKUP(ข้อมูลเริ่มต้น!$B$28*100+$A49,รวมoperate!$A$5:$I$2740,8+ข้อมูลเริ่มต้น!$B$30) -> 0
A50: 45 | C50: ค่าติดตั้งเครื่องผสม | D50: ครั้ง | E50: =VLOOKUP(ข้อมูลเริ่มต้น!$B$28*100+$A50,รวมoperate!$A$5:$I$2740,5) -> 250000 | F50: =VLOOKUP(ข้อมูลเริ่มต้น!$B$28*100+$A50,รวมoperate!$A$5:$I$2740,6+ข้อมูลเริ่มต้น!$B$30) -> 0 | G50: =VLOOKUP(ข้อมูลเริ่มต้น!$B$28*100+$A50,รวมoperate!$A$5:$I$2740,8+ข้อมูลเริ่มต้น!$B$30) -> 0
A51: 46 | C51: งานปูลาดและบดทับ ผิวACหนา5ซม. | E51: =VLOOKUP(ข้อมูลเริ่มต้น!$B$28*100+$A51,รวมoperate!$A$5:$I$2740,5) -> 0 | F51: =VLOOKUP(ข้อมูลเริ่มต้น!$B$28*100+$A51,รวมoperate!$A$5:$I$2740,6+ข้อมูลเริ่มต้น!$B$30) -> 0 | G51: =VLOOKUP(ข้อมูลเริ่มต้น!$B$28*100+$A51,รวมoperate!$A$5:$I$2740,8+ข้อมูลเริ่มต้น!$B$30) -> 0
A52: 47 | C52: บนผิวไพรม์โค้ด | D52: ตรม. | E52: =VLOOKUP(ข้อมูลเริ่มต้น!$B$28*100+$A52,รวมoperate!$A$5:$I$2740,5) -> 10.76 | F52: =VLOOKUP(ข้อมูลเริ่มต้น!$B$28*100+$A52,รวมoperate!$A$5:$I$2740,6+ข้อมูลเริ่มต้น!$B$30) -> 2.56 | G52: =VLOOKUP(ข้อมูลเริ่มต้น!$B$28*100+$A52,รวมoperate!$A$5:$I$2740,8+ข้อมูลเริ่มต้น!$B$30) -> 13.32
A53: 48 | C53: บนผิวแทคโค้ด | D53: ตรม. | E53: =VLOOKUP(ข้อมูลเริ่มต้น!$B$28*100+$A53,รวมoperate!$A$5:$I$2740,5) -> 8.28 | F53: =VLOOKUP(ข้อมูลเริ่มต้น!$B$28*100+$A53,รวมoperate!$A$5:$I$2740,6+ข้อมูลเริ่มต้น!$B$30) -> 2.1 | G53: =VLOOKUP(ข้อมูลเริ่มต้น!$B$28*100+$A53,รวมoperate!$A$5:$I$2740,8+ข้อมูลเริ่มต้น!$B$30) -> 10.38
A54: 49 | B54: 14 | C54: งานผิวทางคอนกรีต | E54: =VLOOKUP(ข้อมูลเริ่มต้น!$B$28*100+$A54,รวมoperate!$A$5:$I$2740,5) -> 0 | F54: =VLOOKUP(ข้อมูลเริ่มต้น!$B$28*100+$A54,รวมoperate!$A$5:$I$2740,6+ข้อมูลเริ่มต้น!$B$30) -> 0 | G54: =VLOOKUP(ข้อมูลเริ่มต้น!$B$28*100+$A54,รวมoperate!$A$5:$I$2740,8+ข้อมูลเริ่มต้น!$B$30) -> 0
A55: 50 | C55: ค่าติดตั้งเครื่องผสม | D55: ครั้ง | E55: =VLOOKUP(ข้อมูลเริ่มต้น!$B$28*100+$A55,รวมoperate!$A$5:$I$2740,5) -> 150000 | F55: =VLOOKUP(ข้อมูลเริ่มต้น!$B$28*100+$A55,รวมoperate!$A$5:$I$2740,6+ข้อมูลเริ่มต้น!$B$30) -> 0 | G55: =VLOOKUP(ข้อมูลเริ่มต้น!$B$28*100+$A55,รวมoperate!$A$5:$I$2740,8+ข้อมูลเริ่มต้น!$B$30) -> 0
A56: 51 | C56: ด่าผสมคอนกรีต | D56: ลบม. | E56: =VLOOKUP(ข้อมูลเริ่มต้น!$B$28*100+$A56,รวมoperate!$A$5:$I$2740,5) -> 154.8 | F56: =VLOOKUP(ข้อมูลเริ่มต้น!$B$28*100+$A56,รวมoperate!$A$5:$I$2740,6+ข้อมูลเริ่มต้น!$B$30) -> 34.07 | G56: =VLOOKUP(ข้อมูลเริ่มต้น!$B$28*100+$A56,รวมoperate!$A$5:$I$2740,8+ข้อมูลเริ่มต้น!$B$30) -> 188.87
A57: 52 | C57: ด่าขนส่งคอนกรีต | D57: ลบม./กม. | E57: =VLOOKUP(ข้อมูลเริ่มต้น!$B$28*100+$A57,รวมoperate!$A$5:$I$2740,5) -> 12.05 | F57: =VLOOKUP(ข้อมูลเริ่มต้น!$B$28*100+$A57,รวมoperate!$A$5:$I$2740,6+ข้อมูลเริ่มต้น!$B$30) -> 1.52 | G57: =VLOOKUP(ข้อมูลเริ่มต้น!$B$28*100+$A57,รวมoperate!$A$5:$I$2740,8+ข้อมูลเริ่มต้น!$B$30) -> 13.57
A58: 53 | C58: ค่าแบบข้างคิดตามยาว 2 ข้าง | D58: เมตร | E58: =VLOOKUP(ข้อมูลเริ่มต้น!$B$28*100+$A58,รวมoperate!$A$5:$I$2740,5) -> 7.81 | F58: =VLOOKUP(ข้อมูลเริ่มต้น!$B$28*100+$A58,รวมoperate!$A$5:$I$2740,6+ข้อมูลเริ่มต้น!$B$30) -> 3.69 | G58: =VLOOKUP(ข้อมูลเริ่มต้น!$B$28*100+$A58,รวมoperate!$A$5:$I$2740,8+ข้อมูลเริ่มต้น!$B$30) -> 11.5
A59: 54 | C59: ด่าปูผิวคอนกรีต | D59: ตรม. | E59: =VLOOKUP(ข้อมูลเริ่มต้น!$B$28*100+$A59,รวมoperate!$A$5:$I$2740,5) -> 7.62 | F59: =VLOOKUP(ข้อมูลเริ่มต้น!$B$28*100+$A59,รวมoperate!$A$5:$I$2740,6+ข้อมูลเริ่มต้น!$B$30) -> 1.92 | G59: =VLOOKUP(ข้อมูลเริ่มต้น!$B$28*100+$A59,รวมoperate!$A$5:$I$2740,8+ข้อมูลเริ่มต้น!$B$30) -> 9.54
A60: 55 | C60: ด่าตัดรอยต่อคอนกรีต และหยอดยาง | D60: เมตร | E60: =VLOOKUP(ข้อมูลเริ่มต้น!$B$28*100+$A60,รวมoperate!$A$5:$I$2740,5) -> 19.32 | F60: =VLOOKUP(ข้อมูลเริ่มต้น!$B$28*100+$A60,รวมoperate!$A$5:$I$2740,6+ข้อมูลเริ่มต้น!$B$30) -> 2.45 | G60: =VLOOKUP(ข้อมูลเริ่มต้น!$B$28*100+$A60,รวมoperate!$A$5:$I$2740,8+ข้อมูลเริ่มต้น!$B$30) -> 21.77
A61: 56 | C61: ด่าหยอดยางรอยต่อคอนกรีต | D61: เมตร | E61: =VLOOKUP(ข้อมูลเริ่มต้น!$B$28*100+$A61,รวมoperate!$A$5:$I$2740,5) -> 10.63 | F61: =VLOOKUP(ข้อมูลเริ่มต้น!$B$28*100+$A61,รวมoperate!$A$5:$I$2740,6+ข้อมูลเริ่มต้น!$B$30) -> 2.34 | G61: =VLOOKUP(ข้อมูลเริ่มต้น!$B$28*100+$A61,รวมoperate!$A$5:$I$2740,8+ข้อมูลเริ่มต้น!$B$30) -> 12.96
A62: 57 | C62: ค่าบ่มผิวทางคอนกรีต | D62: ตรม. | E62: =VLOOKUP(ข้อมูลเริ่มต้น!$B$28*100+$A62,รวมoperate!$A$5:$I$2740,5) -> 6.7 | F62: =VLOOKUP(ข้อมูลเริ่มต้น!$B$28*100+$A62,รวมoperate!$A$5:$I$2740,6+ข้อมูลเริ่มต้น!$B$30) -> 0.71 | G62: =VLOOKUP(ข้อมูลเริ่มต้น!$B$28*100+$A62,รวมoperate!$A$5:$I$2740,8+ข้อมูลเริ่มต้น!$B$30) -> 7.41
A63: 58 | B63: 15 | C63: งาน stabilized layer | E63: =VLOOKUP(ข้อมูลเริ่มต้น!$B$28*100+$A63,รวมoperate!$A$5:$I$2740,5) -> 0 | F63: =VLOOKUP(ข้อมูลเริ่มต้น!$B$28*100+$A63,รวมoperate!$A$5:$I$2740,6+ข้อมูลเริ่มต้น!$B$30) -> 0 | G63: =VLOOKUP(ข้อมูลเริ่มต้น!$B$28*100+$A63,รวมoperate!$A$5:$I$2740,8+ข้อมูลเริ่มต้น!$B$30) -> 0
A64: 59 | C64: ค่าผสมวัสดุ ลูกรัง | D64: ลบม. แน่น | E64: =VLOOKUP(ข้อมูลเริ่มต้น!$B$28*100+$A64,รวมoperate!$A$5:$I$2740,5) -> 32.73 | F64: =VLOOKUP(ข้อมูลเริ่มต้น!$B$28*100+$A64,รวมoperate!$A$5:$I$2740,6+ข้อมูลเริ่มต้น!$B$30) -> 11.03 | G64: =VLOOKUP(ข้อมูลเริ่มต้น!$B$28*100+$A64,รวมoperate!$A$5:$I$2740,8+ข้อมูลเริ่มต้น!$B$30) -> 43.75
A65: 60 | C65: ค่าบ่มวัสดุ ลูกรัง | D65: ลบม. แน่น | E65: =VLOOKUP(ข้อมูลเริ่มต้น!$B$28*100+$A65,รวมoperate!$A$5:$I$2740,5) -> 33.5 | F65: =VLOOKUP(ข้อมูลเริ่มต้น!$B$28*100+$A65,รวมoperate!$A$5:$I$2740,6+ข้อมูลเริ่มต้น!$B$30) -> 3.53 | G65: =VLOOKUP(ข้อมูลเริ่มต้น!$B$28*100+$A65,รวมoperate!$A$5:$I$2740,8+ข้อมูลเริ่มต้น!$B$30) -> 37.03
A66: 61 | C66: ค่าผสมวัสดุ หินคลุก | D66: ลบม. แน่น | E66: =VLOOKUP(ข้อมูลเริ่มต้น!$B$28*100+$A66,รวมoperate!$A$5:$I$2740,5) -> 36 | F66: =VLOOKUP(ข้อมูลเริ่มต้น!$B$28*100+$A66,รวมoperate!$A$5:$I$2740,6+ข้อมูลเริ่มต้น!$B$30) -> 11.03 | G66: =VLOOKUP(ข้อมูลเริ่มต้น!$B$28*100+$A66,รวมoperate!$A$5:$I$2740,8+ข้อมูลเริ่มต้น!$B$30) -> 47.02
A67: 62 | C67: ค่าบ่มวัสดุ หินคลุก | D67: ลบม. แน่น | E67: =VLOOKUP(ข้อมูลเริ่มต้น!$B$28*100+$A67,รวมoperate!$A$5:$I$2740,5) -> 33.5 | F67: =VLOOKUP(ข้อมูลเริ่มต้น!$B$28*100+$A67,รวมoperate!$A$5:$I$2740,6+ข้อมูลเริ่มต้น!$B$30) -> 3.53 | G67: =VLOOKUP(ข้อมูลเริ่มต้น!$B$28*100+$A67,รวมoperate!$A$5:$I$2740,8+ข้อมูลเริ่มต้น!$B$30) -> 37.03
A68: 63 | B68: 16 | C68: งาน Pavement In Place Recycling | E68: =VLOOKUP(ข้อมูลเริ่มต้น!$B$28*100+$A68,รวมoperate!$A$5:$I$2740,5) -> 0 | F68: =VLOOKUP(ข้อมูลเริ่มต้น!$B$28*100+$A68,รวมoperate!$A$5:$I$2740,6+ข้อมูลเริ่มต้น!$B$30) -> 0 | G68: =VLOOKUP(ข้อมูลเริ่มต้น!$B$28*100+$A68,รวมoperate!$A$5:$I$2740,8+ข้อมูลเริ่มต้น!$B$30) -> 0
A69: 64 | C69: ขุดลึกเฉลี่ย 15 ซม. | D69: ตรม. | E69: =VLOOKUP(ข้อมูลเริ่มต้น!$B$28*100+$A69,รวมoperate!$A$5:$I$2740,5) -> 23.57 | F69: =VLOOKUP(ข้อมูลเริ่มต้น!$B$28*100+$A69,รวมoperate!$A$5:$I$2740,6+ข้อมูลเริ่มต้น!$B$30) -> 10.73 | G69: =VLOOKUP(ข้อมูลเริ่มต้น!$B$28*100+$A69,รวมoperate!$A$5:$I$2740,8+ข้อมูลเริ่มต้น!$B$30) -> 34.3
A70: 65 | C70: ขุดลึกเฉลี่ย 20 ซม. | D70: ตรม. | E70: =VLOOKUP(ข้อมูลเริ่มต้น!$B$28*100+$A70,รวมoperate!$A$5:$I$2740,5) -> 29.46 | F70: =VLOOKUP(ข้อมูลเริ่มต้น!$B$28*100+$A70,รวมoperate!$A$5:$I$2740,6+ข้อมูลเริ่มต้น!$B$30) -> 13.41 | G70: =VLOOKUP(ข้อมูลเริ่มต้น!$B$28*100+$A70,รวมoperate!$A$5:$I$2740,8+ข้อมูลเริ่มต้น!$B$30) -> 42.87
A71: 66 | C71: ขุดลึกเฉลี่ย 25 ซม. | D71: ตรม. | E71: =VLOOKUP(ข้อมูลเริ่มต้น!$B$28*100+$A71,รวมoperate!$A$5:$I$2740,5) -> 39.28 | F71: =VLOOKUP(ข้อมูลเริ่มต้น!$B$28*100+$A71,รวมoperate!$A$5:$I$2740,6+ข้อมูลเริ่มต้น!$B$30) -> 17.88 | G71: =VLOOKUP(ข้อมูลเริ่มต้น!$B$28*100+$A71,รวมoperate!$A$5:$I$2740,8+ข้อมูลเริ่มต้น!$B$30) -> 57.16
A72: 67 | B72: 17 | C72: งาน Slurry Seal | D72: ตรม. | E72: =VLOOKUP(ข้อมูลเริ่มต้น!$B$28*100+$A72,รวมoperate!$A$5:$I$2740,5) -> 9.39 | F72: =VLOOKUP(ข้อมูลเริ่มต้น!$B$28*100+$A72,รวมoperate!$A$5:$I$2740,6+ข้อมูลเริ่มต้น!$B$30) -> 1.93 | G72: =VLOOKUP(ข้อมูลเริ่มต้น!$B$28*100+$A72,รวมoperate!$A$5:$I$2740,8+ข้อมูลเริ่มต้น!$B$30) -> 11.32
A73: 68 | B73: 18 | C73: งาน Fog Spray | D73: ตรม. | E73: =VLOOKUP(ข้อมูลเริ่มต้น!$B$28*100+$A73,รวมoperate!$A$5:$I$2740,5) -> 2.17 | F73: =VLOOKUP(ข้อมูลเริ่มต้น!$B$28*100+$A73,รวมoperate!$A$5:$I$2740,6+ข้อมูลเริ่มต้น!$B$30) -> 0.36 | G73: =VLOOKUP(ข้อมูลเริ่มต้น!$B$28*100+$A73,รวมoperate!$A$5:$I$2740,8+ข้อมูลเริ่มต้น!$B$30) -> 2.54
A74: 69 | B74: 19 | C74: งาน Hot Mixed Recycling | E74: =VLOOKUP(ข้อมูลเริ่มต้น!$B$28*100+$A74,รวมoperate!$A$5:$I$2740,5) -> 0 | F74: =VLOOKUP(ข้อมูลเริ่มต้น!$B$28*100+$A74,รวมoperate!$A$5:$I$2740,6+ข้อมูลเริ่มต้น!$B$30) -> 0 | G74: =VLOOKUP(ข้อมูลเริ่มต้น!$B$28*100+$A74,รวมoperate!$A$5:$I$2740,8+ข้อมูลเริ่มต้น!$B$30) -> 0
A75: 70 | C75: ขุดลึก 3 ซม. | D75: ตรม. | E75: =VLOOKUP(ข้อมูลเริ่มต้น!$B$28*100+$A75,รวมoperate!$A$5:$I$2740,5) -> 36.1 | F75: =VLOOKUP(ข้อมูลเริ่มต้น!$B$28*100+$A75,รวมoperate!$A$5:$I$2740,6+ข้อมูลเริ่มต้น!$B$30) -> 5.56 | G75: =VLOOKUP(ข้อมูลเริ่มต้น!$B$28*100+$A75,รวมoperate!$A$5:$I$2740,8+ข้อมูลเริ่มต้น!$B$30) -> 41.66
A76: 71 | C76: ขุดลึก 4 ซม. | D76: ตรม. | E76: =VLOOKUP(ข้อมูลเริ่มต้น!$B$28*100+$A76,รวมoperate!$A$5:$I$2740,5) -> 47.99 | F76: =VLOOKUP(ข้อมูลเริ่มต้น!$B$28*100+$A76,รวมoperate!$A$5:$I$2740,6+ข้อมูลเริ่มต้น!$B$30) -> 7.06 | G76: =VLOOKUP(ข้อมูลเริ่มต้น!$B$28*100+$A76,รวมoperate!$A$5:$I$2740,8+ข้อมูลเริ่มต้น!$B$30) -> 55.04
A77: 72 | C77: ขุดลึก 5 ซม. | D77: ตรม. | E77: =VLOOKUP(ข้อมูลเริ่มต้น!$B$28*100+$A77,รวมoperate!$A$5:$I$2740,5) -> 58.03 | F77: =VLOOKUP(ข้อมูลเริ่มต้น!$B$28*100+$A77,รวมoperate!$A$5:$I$2740,6+ข้อมูลเริ่มต้น!$B$30) -> 7.75 | G77: =VLOOKUP(ข้อมูลเริ่มต้น!$B$28*100+$A77,รวมoperate!$A$5:$I$2740,8+ข้อมูลเริ่มต้น!$B$30) -> 65.78
A78: 73 | C78: ขุดลึก 6 ซม. | D78: ตรม. | E78: =VLOOKUP(ข้อมูลเริ่มต้น!$B$28*100+$A78,รวมoperate!$A$5:$I$2740,5) -> 70.26 | F78: =VLOOKUP(ข้อมูลเริ่มต้น!$B$28*100+$A78,รวมoperate!$A$5:$I$2740,6+ข้อมูลเริ่มต้น!$B$30) -> 8.59 | G78: =VLOOKUP(ข้อมูลเริ่มต้น!$B$28*100+$A78,รวมoperate!$A$5:$I$2740,8+ข้อมูลเริ่มต้น!$B$30) -> 78.85
A79: 74 | B79: 20 | C79: งาน Milling | E79: =VLOOKUP(ข้อมูลเริ่มต้น!$B$28*100+$A79,รวมoperate!$A$5:$I$2740,5) -> 0 | F79: =VLOOKUP(ข้อมูลเริ่มต้น!$B$28*100+$A79,รวมoperate!$A$5:$I$2740,6+ข้อมูลเริ่มต้น!$B$30) -> 0 | G79: =VLOOKUP(ข้อมูลเริ่มต้น!$B$28*100+$A79,รวมoperate!$A$5:$I$2740,8+ข้อมูลเริ่มต้น!$B$30) -> 0
A80: 75 | C80: ขุดลึก 5 ซม. | D80: ตร.ม. | E80: =VLOOKUP(ข้อมูลเริ่มต้น!$B$28*100+$A80,รวมoperate!$A$5:$I$2740,5) -> 9.93 | F80: =VLOOKUP(ข้อมูลเริ่มต้น!$B$28*100+$A80,รวมoperate!$A$5:$I$2740,6+ข้อมูลเริ่มต้น!$B$30) -> 1.72 | G80: =VLOOKUP(ข้อมูลเริ่มต้น!$B$28*100+$A80,รวมoperate!$A$5:$I$2740,8+ข้อมูลเริ่มต้น!$B$30) -> 11.65
A81: 76 | C81: ขุดลึก 10 ซม. | D81: ตร.ม. | E81: =VLOOKUP(ข้อมูลเริ่มต้น!$B$28*100+$A81,รวมoperate!$A$5:$I$2740,5) -> 11.58 | F81: =VLOOKUP(ข้อมูลเริ่มต้น!$B$28*100+$A81,รวมoperate!$A$5:$I$2740,6+ข้อมูลเริ่มต้น!$B$30) -> 2 | G81: =VLOOKUP(ข้อมูลเริ่มต้น!$B$28*100+$A81,รวมoperate!$A$5:$I$2740,8+ข้อมูลเริ่มต้น!$B$30) -> 13.59

Sheet รวมoperate (hidden)
B1: ตารางค่าดำเนินการและค่าเสื่อมราคา
B2: ราคาน้ำมันเชื้อเพลิงโซล่า ที่ อำเภอเมือง 15.00 - 39.99 บาท / ลิตร | I2: ( ราคาเครื่องจักร 2548 )
B3: ลำดับ | C3: ลักษณะงาน | D3: หน่วย | E3: ค่าดำเนินการ | F3: ค่าเสื่อมราคา (บาท) | H3: รวมค่างาน (บาท)
E4: บาท/หน่วย | F4: ปกติ | G4: ฝนชุก | H4: ปกติ | I4: ฝนชุก
A5: 1501 | B5: 1 | C5: งานถางป่าขุดตอ
A6: 1502 | C6: ขนาดเบา | D6: ตรม. | E6: 0.95 | F6: 0.16 | G6: 0.19 | H6: 1.1 | I6: 1.14
A7: 1503 | C7: ขนาดกลาง | D7: ตรม. | E7: 2.15 | F7: 0.46 | G7: 0.58 | H7: 2.61 | I7: 2.73
A8: 1504 | C8: ขนาดหนัก | D8: ตรม. | E8: 3.24 | F8: 0.66 | G8: 0.83 | H8: 3.9 | I8: 4.07
A9: 1505 | B9: 2 | C9: งานดินคันทาง | E9: 0 | F9: 0 | G9: 0 | H9: 0 | I9: 0
A10: 1506 | C10: ขุด - ขน | D10: ลบม. หลวม | E10: 12.61 | F10: 3.47 | G10: 4.34 | H10: 16.08 | I10: 16.95
A11: 1507 | C11: บดทับ | D11: ลบม. แน่น | E11: 21.76 | F11: 7.92 | G11: 9.9 | H11: 29.68 | I11: 31.66
A12: 1508 | B12: 3 | C12: งานตัด - ขึ้นรูปคันทาง | E12: 0 | F12: 0 | G12: 0 | H12: 0 | I12: 0
A13: 1509 | C13: ดิน - ขุดตัด | D13: ลบม. ปกติ | E13: 13.06 | F13: 2.93 | G13: 3.66 | H13: 15.99 | I13: 16.73
A14: 1510 | C14: - ตัก | D14: ลบม. หลวม | E14: 4.64 | F14: 1.7 | G14: 2.13 | H14: 6.34 | I14: 6.77
A15: 1511 | C15: หินผุ - ขุดตัด | D15: ลบม. ปกติ | E15: 22.07 | F15: 3.34 | G15: 4.18 | H15: 25.41 | I15: 26.25
A16: 1512 | C16: - ดันและตัก | D16: ลบม. หลวม | E16: 26.34 | F16: 5.04 | G16: 6.3 | H16: 31.38 | I16: 32.64
A17: 1513 | C17: หินแข็ง - เจาะระเบิด | D17: ลบม. ปกติ | E17: 39.34 | F17: 4.66 | G17: 5.82 | H17: 44 | I17: 45.17
A18: 1514 | C18: - ดันและตัก | D18: ลบม. หลวม | E18: 42.31 | F18: 19 | G18: 23.75 | H18: 61.31 | I18: 66.06
A19: 1515 | B19: 4 | C19: งานวัสดุคัดเลือก ลูกรังรองพื้นทาง | E19: 0 | F19: 0 | G19: 0 | H19: 0 | I19: 0
A20: 1516 | C20: ขุด - ขน | D20: ลบม. หลวม | E20: 17.96 | F20: 6.36 | G20: 7.95 | H20: 24.33 | I20: 25.92
A21: 1517 | C21: ผสม ( ผสมกับวัสดุอื่นๆ ) | D21: ลบม. แน่น | E21: 5.4 | F21: 1.01 | G21: 1.27 | H21: 6.41 | I21: 6.66
A22: 1518 | C22: บดทับ | D22: ลบม. แน่น | E22: 26.11 | F22: 9.5 | G22: 11.88 | H22: 35.62 | I22: 37.99
A23: 1519 | B23: 5 | C23: งานไหล่ทางลูกรัง ผสม - บดทับ | E23: 0 | F23: 0 | G23: 0 | H23: 0 | I23: 0
A24: 1520 | C24: ผสม ( ผสมกับวัสดุอื่นๆ ) | D24: ลบม. แน่น | E24: 10.15 | F24: 1.91 | G24: 2.38 | H24: 12.06 | I24: 12.54
A25: 1521 | C25: บดทับ | D25: ลบม. แน่น | E25: 30.91 | F25: 15.33 | G25: 19.16 | H25: 46.24 | I25: 50.07
A26: 1522 | B26: 6 | C26: งานพื้นทาง ( หินคลุก ) | E26: 0 | F26: 0 | G26: 0 | H26: 0 | I26: 0
A27: 1523 | C27: ผสม ( Blend ) | D27: ลบม. แน่น | E27: 12.39 | F27: 2.91 | G27: 3.64 | H27: 15.3 | I27: 16.03
A28: 1524 | C28: บดทับ | D28: ลบม. แน่น | E28: 38.14 | F28: 19.1 | G28: 23.87 | H28: 57.24 | I28: 62.02
A29: 1525 | B29: 7 | C29: งานตัดแต่งขั้นบันได | D29: ลบม. แน่น | E29: 4.18 | F29: 1.3 | G29: 1.63 | H29: 5.48 | I29: 5.81
A30: 1526 | B30: 8 | C30: งานขุดรื้อคันทางเดิมแล้วบดทับ | E30: 0 | F30: 0 | G30: 0 | H30: 0 | I30: 0
A31: 1527 | C31: ลูกรัง 10 ซม. | D31: ตรม. | E31: 5.61 | F31: 1.51 | G31: 1.89 | H31: 7.12 | I31: 7.5
A32: 1528 | C32: หินคลุก 10 ซม. | D32: ตรม. | E32: 6.81 | F32: 2.47 | G32: 3.09 | H32: 9.28 | I32: 9.9
A33: 1529 | C33: ผิว AC 5 ซม. | D33: ตรม. | E33: 6.29 | F33: 1.25 | G33: 1.56 | H33: 7.53 | I33: 7.85
A34: 1530 | B34: 9 | C34: งานราดยางไพรม์โค้ต | D34: ตรม. | E34: 4.04 | F34: 0.54 | G34: 0.68 | H34: 4.58 | I34: 4.71
A35: 1531 | B35: 10 | C35: งานราดยางแทคโค้ต | D35: ตรม. | E35: 3.64 | F35: 0.77 | G35: 0.96 | H35: 4.41 | I35: 4.6
A36: 1532 | B36: 11 | C36: งานผิวทางแบบบาง | E36: 0 | F36: 0 | G36: 0 | H36: 0 | I36: 0
A37: 1533 | C37: ชั้นเดียว ( 1/2 ") | D37: ตรม. | E37: 8.9 | F37: 1.94 | G37: 2.43 | H37: 10.84 | I37: 11.32
A38: 1534 | C38: ชั้นเดียว ( 3/4 ") | D38: ตรม. | E38: 12.29 | F38: 2.68 | G38: 3.35 | H38: 14.97 | I38: 15.64
A39: 1535 | C39: สองชั้น ( 3/4 " + 3/8 ") | D39: ตรม. | E39: 18.28 | F39: 3.99 | G39: 4.98 | H39: 22.26 | I39: 23.26
A40: 1536 | C40: สองชั้น ( 1 " + 1/2 ") | D40: ตรม. | E40: 26.77 | F40: 5.84 | G40: 7.3 | H40: 32.61 | I40: 34.07
A41: 1537 | B41: 12 | C41: งานเคลือบหิน ขจัดฝุ่น ( Pre - Coat ) | E41: 0 | F41: 0 | G41: 0 | H41: 0 | I41: 0
A42: 1538 | C42: ชั้นเดียว ( 1/2 ") | D42: ลบม. หลวม | E42: 1.2 | F42: 0.49 | G42: 0.61 | H42: 1.68 | I42: 1.81
A43: 1539 | C43: ชั้นเดียว ( 3/4 ") | D43: ลบม. หลวม | E43: 1.65 | F43: 0.68 | G43: 0.84 | H43: 2.33 | I43: 2.5
A44: 1540 | C44: สองชั้น ( 3/4 " + 3/8 ") | D44: ลบม. หลวม | E44: 2.46 | F44: 1 | G44: 1.26 | H44: 3.46 | I44: 3.71
A45: 1541 | C45: สองชั้น ( 1 " + 1/2 ") | D45: ลบม. หลวม | E45: 3.6 | F45: 1.47 | G45: 1.84 | H45: 5.07 | I45: 5.44
A46: 1542 | B46: 13 | C46: งานผิวทางแอสฟัลท์ติกคอนกรีต | E46: 0 | F46: 0 | G46: 0 | H46: 0 | I46: 0
A47: 1543 | C47: ค่าผสมวัสดุแอสฟัลท์ติกคอนกรีต | D47: ตัน | E47: 202.42 | F47: 16.77 | G47: 20.97 | H47: 219.19 | I47: 223.38
A48: 1544 | C48: ค่าขนส่งอุปกรณ์ 80 ตัน ระยะขนส่ง100-300 กม. | E48: 0 | F48: 0 | G48: 0 | H48: 0 | I48: 0
A49: 1545 | C49: ค่าติดตั้งเครื่องผสม | D49: ครั้ง | E49: 250000 | F49: 0 | G49: 0 | H49: 0 | I49: 0
A50: 1546 | C50: งานปูลาดและบดทับ ผิว AC หนา 5 ซม. | E50: 0 | F50: 0 | G50: 0 | H50: 0 | I50: 0
A51: 1547 | C51: บนผิวไพรม์โค้ต | D51: ตรม. | E51: 8.28 | F51: 2.56 | G51: 3.2 | H51: 10.84 | I51: 11.48
A52: 1548 | C52: บนผิวแทคโค้ต | D52: ตรม. | E52: 6.62 | F52: 2.1 | G52: 2.63 | H52: 8.73 | I52: 9.25
A53: 1549 | B53: 14 | C53: งานผิวทางคอนกรีต | E53: 0 | F53: 0 | G53: 0 | H53: 0 | I53: 0
A54: 1550 | C54: ค่าติดตั้งเครื่องผสม | D54: ครั้ง | E54: 150000 | F54: 0 | G54: 0 | H54: 0 | I54: 0
A55: 1551 | C55: ค่าผสมคอนกรีต | D55: ลบม. | E55: 102.83 | F55: 34.07 | G55: 42.59 | H55: 136.9 | I55: 145.42
A56: 1552 | C56: ค่าขนส่งคอนกรีต | D56: ลบม./กม. | E56: 7.91 | F56: 1.52 | G56: 1.9 | H56: 9.43 | I56: 9.81
A57: 1553 | C57: ค่าแบบข้างติดตามยาว 2 ข้าง | D57: เมตร | E57: 7.81 | F57: 3.69 | G57: 4.61 | H57: 11.5 | I57: 12.42
A58: 1554 | C58: ค่าปูผิวคอนกรีต | D58: ตรม. | E58: 6.9 | F58: 1.92 | G58: 2.41 | H58: 8.82 | I58: 9.3
A59: 1555 | C59: ค่าตัดรอยต่อคอนกรีต และหยอดยาง | D59: เมตร | E59: 15.65 | F59: 2.45 | G59: 3.06 | H59: 18.1 | I59: 18.72
A60: 1556 | C60: ด่าหยอดยางรอยต่อคอนกรีต | D60: เมตร | E60: 7.27 | F60: 2.34 | G60: 2.92 | H60: 9.6 | I60: 10.19
A61: 1557 | C61: ค่าบ่มผิวทางคอนกรีต | D61: ตรม. | E61: 4.67 | F61: 0.71 | G61: 0.88 | H61: 5.38 | I61: 5.55
A62: 1558 | B62: 15 | C62: งาน Stabilized Layer | E62: 0 | F62: 0 | G62: 0 | H62: 0 | I62: 0
A63: 1559 | C63: ค่าผสมวัสดุ ลูกรัง | D63: ลบม. แน่น | E63: 26.69 | F63: 11.03 | G63: 13.78 | H63: 37.71 | I63: 40.47
A64: 1560 | C64: ค่าบ่มวัสดุ ลูกรัง | D64: ลบม. แน่น | E64: 23.35 | F64: 3.53 | G64: 4.41 | H64: 26.88 | I64: 27.76
A65: 1561 | C65: ค่าผสมวัสดุ หินคลุก | D65: ลบม. แน่น | E65: 29.36 | F65: 11.03 | G65: 13.78 | H65: 40.38 | I65: 43.14
A66: 1562 | C66: ค่าบ่มวัสดุ หินคลุก | D66: ลบม. แน่น | E66: 23.35 | F66: 3.53 | G66: 4.41 | H66: 26.88 | I66: 27.76
A67: 1563 | B67: 16 | C67: งาน Pavement In Place Recycling | E67: 0 | F67: 0 | G67: 0 | H67: 0 | I67: 0
A68: 1564 | C68: ขุดลึกเฉลี่ย 15 ซม. | D68: ตรม. | E68: 21.44 | F68: 10.73 | G68: 13.41 | H68: 32.17 | I68: 34.85
A69: 1565 | C69: ขุดลึกเฉลี่ย 20 ซม. | D69: ตรม. | E69: 26.8 | F69: 13.41 | G69: 16.76 | H69: 40.21 | I69: 43.56
A70: 1566 | C70: ขุดลึกเฉลี่ย 25 ซม. | D70: ตรม. | E70: 35.74 | F70: 17.88 | G70: 22.34 | H70: 53.61 | I70: 58.08
A71: 1567 | B71: 17 | C71: งาน Slurry Seal | D71: ตรม. | E71: 6.8 | F71: 1.93 | G71: 2.41 | H71: 8.73 | I71: 9.21
A72: 1568 | B72: 18 | C72: งาน Fog Spray | D72: ตรม. | E72: 1.51 | F72: 0.36 | G72: 0.45 | H72: 1.88 | I72: 1.97
A73: 1569 | B73: 19 | C73: งาน Hot Mixed Recycling | E73: 0 | F73: 0 | G73: 0 | H73: 0 | I73: 0
A74: 1570 | C74: ขุดลึก 3 ซม. | D74: ตรม. | E74: 31.25 | F74: 5.56 | G74: 6.94 | H74: 36.81 | I74: 38.2
A75: 1571 | C75: ขุดลึก 4 ซม. | D75: ตรม. | E75: 42.26 | F75: 7.06 | G75: 8.82 | H75: 49.31 | I75: 51.08
A76: 1572 | C76: ขุดลึก 5 ซม. | D76: ตรม. | E76: 51.04 | F76: 7.75 | G76: 9.68 | H76: 58.79 | I76: 60.73
A77: 1573 | C77: ขุดลึก 6 ซม. | D77: ตรม. | E77: 61.74 | F77: 8.59 | G77: 10.74 | H77: 70.33 | I77: 72.47
A78: 1574 | B78: 20 | C78: งาน Milling | E78: 0 | F78: 0 | G78: 0 | H78: 0 | I78: 0
A79: 1575 | C79: ขุดลึก 5 ซม. | D79: ตร.ม. | E79: 7.02 | F79: 1.72 | G79: 2.15 | H79: 8.74 | I79: 9.17
A80: 1576 | C80: ขุดลึก 10 ซม. | D80: ตร.ม. | E80: 8.19 | F80: 2 | G80: 2.5 | H80: 10.19 | I80: 10.69
A81: 1601 | B81: 1 | C81: งานถางป่าขุดตอ | E81: 0 | F81: 0 | G81: 0 | H81: 0 | I81: 0
A82: 1602 | C82: ขนาดเบา | D82: ตรม. | E82: 0.96 | F82: 0.16 | G82: 0.19 | H82: 1.11 | I82: 1.15
A83: 1603 | C83: ขนาดกลาง | D83: ตรม. | E83: 2.18 | F83: 0.46 | G83: 0.58 | H83: 2.65 | I83: 2.76
A84: 1604 | C84: ขนาดหนัก | D84: ตรม. | E84: 3.3 | F84: 0.66 | G84: 0.83 | H84: 3.96 | I84: 4.12
A85: 1605 | B85: 2 | C85: งานดินคันทาง | E85: 0 | F85: 0 | G85: 0 | H85: 0 | I85: 0
A86: 1606 | C86: ขุด - ขน | D86: ลบม. หลวม | E86: 12.82 | F86: 3.47 | G86: 4.34 | H86: 16.29 | I86: 17.16
A87: 1607 | C87: บดทับ | D87: ลบม. แน่น | E87: 22.21 | F87: 7.92 | G87: 9.9 | H87: 30.13 | I87: 32.11
A88: 1608 | B88: 3 | C88: งานตัด - ขึ้นรูปคันทาง | E88: 0 | F88: 0 | G88: 0 | H88: 0 | I88: 0
A89: 1609 | C89: ดิน - ขุดตัด | D89: ลบม. ปกติ | E89: 13.25 | F89: 2.93 | G89: 3.66 | H89: 16.18 | I89: 16.91
A90: 1610 | C90: - ตัก | D90: ลบม. หลวม | E90: 4.72 | F90: 1.7 | G90: 2.13 | H90: 6.42 | I90: 6.85
A91: 1611 | C91: หินผุ - ขุดตัด | D91: ลบม. ปกติ | E91: 22.46 | F91: 3.34 | G91: 4.18 | H91: 25.8 | I91: 26.64
A92: 1612 | C92: - ดันและตัก | D92: ลบม. หลวม | E92: 26.79 | F92: 5.04 | G92: 6.3 | H92: 31.83 | I92: 33.09
A93: 1613 | C93: หินแข็ง - เจาะระเบิด | D93: ลบม. ปกติ | E93: 39.78 | F93: 4.66 | G93: 5.82 | H93: 44.43 | I93: 45.6
A94: 1614 | C94: - ดันและตัก | D94: ลบม. หลวม | E94: 43.26 | F94: 19 | G94: 23.75 | H94: 62.26 | I94: 67.01
A95: 1615 | B95: 4 | C95: งานวัสดุคัดเลือก ลูกรังรองพื้นทาง | E95: 0 | F95: 0 | G95: 0 | H95: 0 | I95: 0
A96: 1616 | C96: ขุด - ขน | D96: ลบม. หลวม | E96: 18.27 | F96: 6.36 | G96: 7.95 | H96: 24.63 | I96: 26.22
A97: 1617 | C97: ผสม ( ผสมกับวัสดุอื่นๆ ) | D97: ลบม. แน่น | E97: 5.48 | F97: 1.01 | G97: 1.27 | H97: 6.49 | I97: 6.74
A98: 1618 | C98: บดทับ | D98: ลบม. แน่น | E98: 26.65 | F98: 9.5 | G98: 11.88 | H98: 36.16 | I98: 38.53
A99: 1619 | B99: 5 | C99: งานไหล่ทางลูกรัง ผสม - บดทับ | E99: 0 | F99: 0 | G99: 0 | H99: 0 | I99: 0
A100: 1620 | C100: ผสม ( ผสมกับวัสดุอื่นๆ ) | D100: ลบม. แน่น | E100: 10.31 | F100: 1.91 | G100: 2.38 | H100: 12.21 | I100: 12.69
A101: 1621 | C101: บดทับ | D101: ลบม. แน่น | E101: 31.53 | F101: 15.33 | G101: 19.16 | H101: 46.86 | I101: 50.69
A102: 1622 | B102: 6 | C102: งานพื้นทาง ( หินคลุก ) | E102: 0 | F102: 0 | G102: 0 | H102: 0 | I102: 0
A103: 1623 | C103: ผสม ( Blend ) | D103: ลบม. แน่น | E103: 12.54 | F103: 2.91 | G103: 3.64 | H103: 15.45 | I103: 16.17
A104: 1624 | C104: บดทับ | D104: ลบม. แน่น | E104: 38.92 | F104: 19.1 | G104: 23.87 | H104: 58.02 | I104: 62.79
A105: 1625 | B105: 7 | C105: งานตัดแต่งขั้นบันได | D105: ลบม. แน่น | E105: 4.26 | F105: 1.3 | G105: 1.63 | H105: 5.56 | I105: 5.88
A106: 1626 | B106: 8 | C106: งานขุดรื้อคันทางเดิมแล้วบดทับ | E106: 0 | F106: 0 | G106: 0 | H106: 0 | I106: 0
A107: 1627 | C107: ลูกรัง 10 ซม. | D107: ตรม. | E107: 5.71 | F107: 1.51 | G107: 1.89 | H107: 7.22 | I107: 7.6
A108: 1628 | C108: หินคลุก 10 ซม. | D108: ตรม. | E108: 6.94 | F108: 2.47 | G108: 3.09 | H108: 9.41 | I108: 10.03
A109: 1629 | C109: ผิว AC 5 ซม. | D109: ตรม. | E109: 6.39 | F109: 1.25 | G109: 1.56 | H109: 7.63 | I109: 7.94
A110: 1630 | B110: 9 | C110: งานราดยางไพรม์โค้ต | D110: ตรม. | E110: 4.17 | F110: 0.54 | G110: 0.68 | H110: 4.71 | I110: 4.84
A111: 1631 | B111: 10 | C111: งานราดยางแทคโค้ต | D111: ตรม. | E111: 3.75 | F111: 0.77 | G111: 0.96 | H111: 4.53 | I111: 4.72
A112: 1632 | B112: 11 | C112: งานผิวทางแบบบาง | E112: 0 | F112: 0 | G112: 0 | H112: 0 | I112: 0
A113: 1633 | C113: ชั้นเดียว ( 1/2 ") | D113: ตรม. | E113: 9.16 | F113: 1.94 | G113: 2.43 | H113: 11.1 | I113: 11.58
A114: 1634 | C114: ชั้นเดียว ( 3/4 ") | D114: ตรม. | E114: 12.65 | F114: 2.68 | G114: 3.35 | H114: 15.33 | I114: 16
A115: 1635 | C115: สองชั้น ( 3/4 " + 3/8 ") | D115: ตรม. | E115: 18.81 | F115: 3.99 | G115: 4.98 | H115: 22.8 | I115: 23.79
A116: 1636 | C116: สองชั้น ( 1 " + 1/2 ") | D116: ตรม. | E116: 27.55 | F116: 5.84 | G116: 7.3 | H116: 33.39 | I116: 34.85
A117: 1637 | B117: 12 | C117: งานเคลือบหิน ขจัดฝุ่น ( Pre - Coat ) | E117: 0 | F117: 0 | G117: 0 | H117: 0 | I117: 0
A118: 1638 | C118: ชั้นเดียว ( 1/2 ") | D118: ลบม. หลวม | E118: 1.21 | F118: 0.49 | G118: 0.61 | H118: 1.7 | I118: 1.82
A119: 1639 | C119: ชั้นเดียว ( 3/4 ") | D119: ลบม. หลวม | E119: 1.68 | F119: 0.68 | G119: 0.84 | H119: 2.35 | I119: 2.52
A120: 1640 | C120: สองชั้น ( 3/4 " + 3/8 ") | D120: ลบม. หลวม | E120: 2.49 | F120: 1 | G120: 1.26 | H120: 3.5 | I120: 3.75
A121: 1641 | C121: สองชั้น ( 1 " + 1/2 ") | D121: ลบม. หลวม | E121: 3.65 | F121: 1.47 | G121: 1.84 | H121: 5.12 | I121: 5.49
A122: 1642 | B122: 13 | C122: งานผิวทางแอสฟัลท์ติกคอนกรีต | E122: 0 | F122: 0 | G122: 0 | H122: 0 | I122: 0
A123: 1643 | C123: ค่าผสมวัสดุแอสฟัลท์ติกคอนกรีต | D123: ตัน | E123: 213.2 | F123: 16.77 | G123: 20.97 | H123: 229.97 | I123: 234.17
A124: 1644 | C124: ค่าขนส่งอุปกรณ์ 80 ตัน ระยะขนส่ง100-300 กม. | E124: 0 | F124: 0 | G124: 0 | H124: 0 | I124: 0
A125: 1645 | C125: ค่าติดตั้งเครื่องผสม | D125: ครั้ง | E125: 250000 | F125: 0 | G125: 0 | H125: 0 | I125: 0
A126: 1646 | C126: งานปูลาดและบดทับ ผิว AC หนา 5 ซม. | E126: 0 | F126: 0 | G126: 0 | H126: 0 | I126: 0
A127: 1647 | C127: บนผิวไพรม์โค้ต | D127: ตรม. | E127: 8.44 | F127: 2.56 | G127: 3.2 | H127: 11 | I127: 11.64
A128: 1648 | C128: บนผิวแทคโค้ต | D128: ตรม. | E128: 6.74 | F128: 2.1 | G128: 2.63 | H128: 8.84 | I128: 9.36
A129: 1649 | B129: 14 | C129: งานผิวทางคอนกรีต | E129: 0 | F129: 0 | G129: 0 | H129: 0 | I129: 0
A130: 1650 | C130: ค่าติดตั้งเครื่องผสม | D130: ครั้ง | E130: 150000 | F130: 0 | G130: 0 | H130: 0 | I130: 0
A131: 1651 | C131: ค่าผสมคอนกรีต | D131: ลบม. | E131: 106.3 | F131: 34.07 | G131: 42.59 | H131: 140.37 | I131: 148.88
A132: 1652 | C132: ค่าขนส่งคอนกรีต | D132: ลบม./กม. | E132: 8.19 | F132: 1.52 | G132: 1.9 | H132: 9.71 | I132: 10.09
A133: 1653 | C133: ค่าแบบข้างติดตามยาว 2 ข้าง | D133: เมตร | E133: 7.81 | F133: 3.69 | G133: 4.61 | H133: 11.5 | I133: 12.42
A134: 1654 | C134: ค่าปูผิวคอนกรีต | D134: ตรม. | E134: 6.95 | F134: 1.92 | G134: 2.41 | H134: 8.87 | I134: 9.35
A135: 1655 | C135: ค่าตัดรอยต่อคอนกรีต และหยอดยาง | D135: เมตร | E135: 15.9 | F135: 2.45 | G135: 3.06 | H135: 18.35 | I135: 18.96
A136: 1656 | C136: ด่าหยอดยางรอยต่อคอนกรีต | D136: เมตร | E136: 7.49 | F136: 2.34 | G136: 2.92 | H136: 9.83 | I136: 10.41
A137: 1657 | C137: ค่าบ่มผิวทางคอนกรีต | D137: ตรม. | E137: 4.81 | F137: 0.71 | G137: 0.88 | H137: 5.51 | I137: 5.69
A138: 1658 | B138: 15 | C138: งาน Stabilized Layer | E138: 0 | F138: 0 | G138: 0 | H138: 0 | I138: 0
A139: 1659 | C139: ค่าผสมวัสดุ ลูกรัง | D139: ลบม. แน่น | E139: 27.09 | F139: 11.03 | G139: 13.78 | H139: 38.12 | I139: 40.87
A140: 1660 | C140: ค่าบ่มวัสดุ ลูกรัง | D140: ลบม. แน่น | E140: 24.03 | F140: 3.53 | G140: 4.41 | H140: 27.56 | I140: 28.44
A141: 1661 | C141: ค่าผสมวัสดุ หินคลุก | D141: ลบม. แน่น | E141: 29.8 | F141: 11.03 | G141: 13.78 | H141: 40.83 | I141: 43.58
A142: 1662 | C142: ค่าบ่มวัสดุ หินคลุก | D142: ลบม. แน่น | E142: 24.03 | F142: 3.53 | G142: 4.41 | H142: 27.56 | I142: 28.44
A143: 1663 | B143: 16 | C143: งาน Pavement In Place Recycling | E143: 0 | F143: 0 | G143: 0 | H143: 0 | I143: 0
A144: 1664 | C144: ขุดลึกเฉลี่ย 15 ซม. | D144: ตรม. | E144: 21.58 | F144: 10.73 | G144: 13.41 | H144: 32.31 | I144: 34.99
A145: 1665 | C145: ขุดลึกเฉลี่ย 20 ซม. | D145: ตรม. | E145: 26.98 | F145: 13.41 | G145: 16.76 | H145: 40.39 | I145: 43.74
A146: 1666 | C146: ขุดลึกเฉลี่ย 25 ซม. | D146: ตรม. | E146: 35.97 | F146: 17.88 | G146: 22.34 | H146: 53.85 | I146: 58.32
A147: 1667 | B147: 17 | C147: งาน Slurry Seal | D147: ตรม. | E147: 6.97 | F147: 1.93 | G147: 2.41 | H147: 8.9 | I147: 9.39
A148: 1668 | B148: 18 | C148: งาน Fog Spray | D148: ตรม. | E148: 1.56 | F148: 0.36 | G148: 0.45 | H148: 1.92 | I148: 2.01
A149: 1669 | B149: 19 | C149: งาน Hot Mixed Recycling | E149: 0 | F149: 0 | G149: 0 | H149: 0 | I149: 0
A150: 1670 | C150: ขุดลึก 3 ซม. | D150: ตรม. | E150: 31.58 | F150: 5.56 | G150: 6.94 | H150: 37.13 | I150: 38.52
A151: 1671 | C151: ขุดลึก 4 ซม. | D151: ตรม. | E151: 42.64 | F151: 7.06 | G151: 8.82 | H151: 49.69 | I151: 51.46
A152: 1672 | C152: ขุดลึก 5 ซม. | D152: ตรม. | E152: 51.51 | F152: 7.75 | G152: 9.68 | H152: 59.25 | I152: 61.19
A153: 1673 | C153: ขุดลึก 6 ซม. | D153: ตรม. | E153: 62.3 | F153: 8.59 | G153: 10.74 | H153: 70.89 | I153: 73.04
A154: 1674 | B154: 20 | C154: งาน Milling | E154: 0 | F154: 0 | G154: 0 | H154: 0 | I154: 0
A155: 1675 | C155: ขุดลึก 5 ซม. | D155: ตร.ม. | E155: 7.21 | F155: 1.72 | G155: 2.15 | H155: 8.93 | I155: 9.36
A156: 1676 | C156: ขุดลึก 10 ซม. | D156: ตร.ม. | E156: 8.42 | F156: 2 | G156: 2.5 | H156: 10.42 | I156: 10.92
A157: 1701 | B157: 1 | C157: งานถางป่าขุดตอ | E157: 0 | F157: 0 | G157: 0 | H157: 0 | I157: 0
A158: 1702 | C158: ขนาดเบา | D158: ตรม. | E158: 0.97 | F158: 0.16 | G158: 0.19 | H158: 1.13 | I158: 1.17
A159: 1703 | C159: ขนาดกลาง | D159: ตรม. | E159: 2.22 | F159: 0.46 | G159: 0.58 | H159: 2.68 | I159: 2.8
A160: 1704 | C160: ขนาดหนัก | D160: ตรม. | E160: 3.35 | F160: 0.66 | G160: 0.83 | H160: 4.01 | I160: 4.17
A161: 1705 | B161: 2 | C161: งานดินคันทาง | E161: 0 | F161: 0 | G161: 0 | H161: 0 | I161: 0
A162: 1706 | C162: ขุด - ขน | D162: ลบม. หลวม | E162: 13.04 | F162: 3.47 | G162: 4.34 | H162: 16.51 | I162: 17.38
A163: 1707 | C163: บดทับ | D163: ลบม. แน่น | E163: 22.66 | F163: 7.92 | G163: 9.9 | H163: 30.58 | I163: 32.56
A164: 1708 | B164: 3 | C164: งานตัด - ขึ้นรูปคันทาง | E164: 0 | F164: 0 | G164: 0 | H164: 0 | I164: 0
A165: 1709 | C165: ดิน - ขุดตัด | D165: ลบม. ปกติ | E165: 13.44 | F165: 2.93 | G165: 3.66 | H165: 16.37 | I165: 17.1
A166: 1710 | C166: - ตัก | D166: ลบม. หลวม | E166: 4.8 | F166: 1.7 | G166: 2.13 | H166: 6.5 | I166: 6.93
A167: 1711 | C167: หินผุ - ขุดตัด | D167: ลบม. ปกติ | E167: 22.85 | F167: 3.34 | G167: 4.18 | H167: 26.19 | I167: 27.02
A168: 1712 | C168: - ดันและตัก | D168: ลบม. หลวม | E168: 27.24 | F168: 5.04 | G168: 6.3 | H168: 32.28 | I168: 33.54
A169: 1713 | C169: หินแข็ง - เจาะระเบิด | D169: ลบม. ปกติ | E169: 40.21 | F169: 4.66 | G169: 5.82 | H169: 44.87 | I169: 46.03
A170: 1714 | C170: - ดันและตัก | D170: ลบม. หลวม | E170: 44.2 | F170: 19 | G170: 23.75 | H170: 63.2 | I170: 67.95
A171: 1715 | B171: 4 | C171: งานวัสดุคัดเลือก ลูกรังรองพื้นทาง | E171: 0 | F171: 0 | G171: 0 | H171: 0 | I171: 0
A172: 1716 | C172: ขุด - ขน | D172: ลบม. หลวม | E172: 18.57 | F172: 6.36 | G172: 7.95 | H172: 24.93 | I172: 26.52
A173: 1717 | C173: ผสม ( ผสมกับวัสดุอื่นๆ ) | D173: ลบม. แน่น | E173: 5.56 | F173: 1.01 | G173: 1.27 | H173: 6.57 | I173: 6.83
A174: 1718 | C174: บดทับ | D174: ลบม. แน่น | E174: 27.19 | F174: 9.5 | G174: 11.88 | H174: 36.7 | I174: 39.07
A175: 1719 | B175: 5 | C175: งานไหล่ทางลูกรัง ผสม - บดทับ | E175: 0 | F175: 0 | G175: 0 | H175: 0 | I175: 0
A176: 1720 | C176: ผสม ( ผสมกับวัสดุอื่นๆ ) | D176: ลบม. แน่น | E176: 10.47 | F176: 1.91 | G176: 2.38 | H176: 12.37 | I176: 12.85
A177: 1721 | C177: บดทับ | D177: ลบม. แน่น | E177: 32.16 | F177: 15.33 | G177: 19.16 | H177: 47.48 | I177: 51.31
A178: 1722 | B178: 6 | C178: งานพื้นทาง ( หินคลุก ) | E178: 0 | F178: 0 | G178: 0 | H178: 0 | I178: 0
A179: 1723 | C179: ผสม ( Blend ) | D179: ลบม. แน่น | E179: 12.68 | F179: 2.91 | G179: 3.64 | H179: 15.59 | I179: 16.32
A180: 1724 | C180: บดทับ | D180: ลบม. แน่น | E180: 39.7 | F180: 19.1 | G180: 23.87 | H180: 58.8 | I180: 63.57
A181: 1725 | B181: 7 | C181: งานตัดแต่งขั้นบันได | D181: ลบม. แน่น | E181: 4.33 | F181: 1.3 | G181: 1.63 | H181: 5.63 | I181: 5.96
A182: 1726 | B182: 8 | C182: งานขุดรื้อคันทางเดิมแล้วบดทับ | E182: 0 | F182: 0 | G182: 0 | H182: 0 | I182: 0
A183: 1727 | C183: ลูกรัง 10 ซม. | D183: ตรม. | E183: 5.81 | F183: 1.51 | G183: 1.89 | H183: 7.32 | I183: 7.7
A184: 1728 | C184: หินคลุก 10 ซม. | D184: ตรม. | E184: 7.06 | F184: 2.47 | G184: 3.09 | H184: 9.53 | I184: 10.15
A185: 1729 | C185: ผิว AC 5 ซม. | D185: ตรม. | E185: 6.48 | F185: 1.25 | G185: 1.56 | H185: 7.73 | I185: 8.04
A186: 1730 | B186: 9 | C186: งานราดยางไพรม์โค้ต | D186: ตรม. | E186: 4.3 | F186: 0.54 | G186: 0.68 | H186: 4.84 | I186: 4.97
A187: 1731 | B187: 10 | C187: งานราดยางแทคโค้ต | D187: ตรม. | E187: 3.87 | F187: 0.77 | G187: 0.96 | H187: 4.65 | I187: 4.84
A188: 1732 | B188: 11 | C188: งานผิวทางแบบบาง | E188: 0 | F188: 0 | G188: 0 | H188: 0 | I188: 0
A189: 1733 | C189: ชั้นเดียว ( 1/2 ") | D189: ตรม. | E189: 9.42 | F189: 1.94 | G189: 2.43 | H189: 11.36 | I189: 11.84
A190: 1734 | C190: ชั้นเดียว ( 3/4 ") | D190: ตรม. | E190: 13.01 | F190: 2.68 | G190: 3.35 | H190: 15.69 | I190: 16.36
A191: 1735 | C191: สองชั้น ( 3/4 " + 3/8 ") | D191: ตรม. | E191: 19.35 | F191: 3.99 | G191: 4.98 | H191: 23.33 | I191: 24.33
A192: 1736 | C192: สองชั้น ( 1 " + 1/2 ") | D192: ตรม. | E192: 28.33 | F192: 5.84 | G192: 7.3 | H192: 34.17 | I192: 35.63
A193: 1737 | B193: 12 | C193: งานเคลือบหิน ขจัดฝุ่น ( Pre - Coat ) | E193: 0 | F193: 0 | G193: 0 | H193: 0 | I193: 0
A194: 1738 | C194: ชั้นเดียว ( 1/2 ") | D194: ลบม. หลวม | E194: 1.23 | F194: 0.49 | G194: 0.61 | H194: 1.72 | I194: 1.84
A195: 1739 | C195: ชั้นเดียว ( 3/4 ") | D195: ลบม. หลวม | E195: 1.7 | F195: 0.68 | G195: 0.84 | H195: 2.38 | I195: 2.55
A196: 1740 | C196: สองชั้น ( 3/4 " + 3/8 ") | D196: ลบม. หลวม | E196: 2.53 | F196: 1 | G196: 1.26 | H196: 3.53 | I196: 3.79
A197: 1741 | C197: สองชั้น ( 1 " + 1/2 ") | D197: ลบม. หลวม | E197: 3.7 | F197: 1.47 | G197: 1.84 | H197: 5.18 | I197: 5.54
A198: 1742 | B198: 13 | C198: งานผิวทางแอสฟัลท์ติกคอนกรีต | E198: 0 | F198: 0 | G198: 0 | H198: 0 | I198: 0
A199: 1743 | C199: ค่าผสมวัสดุแอสฟัลท์ติกคอนกรีต | D199: ตัน | E199: 223.99 | F199: 16.77 | G199: 20.97 | H199: 240.76 | I199: 244.95
A200: 1744 | C200: ค่าขนส่งอุปกรณ์ 80 ตัน ระยะขนส่ง100-300 กม. | E200: 0 | F200: 0 | G200: 0 | H200: 0 | I200: 0
... 2540 more rows

Sheet สูตร10ล้อ (hidden)
X1: ="ตารางค่าขนส่งวัสดุก่อสร้าง รถบรรทุก 10 ล้อ(กรณีน้ำหนักรวมไม่เกิน "&TEXT(D18+10,"00")&" ตัน)" -> ตารางค่าขนส่งวัสดุก่อสร้าง รถบรรทุก 10 ล้อ(กรณีน้ำหนักรวมไม่เกิน 25 ตัน) | AH1: ตารางค่าขนส่งวัสดุก่อสร้าง รถบรรทุก 10 ล้อ
A2: ข้อกำหนดและสมมติฐาน รถบรรทุกวิ่งบนทางราบ ผิวลาดยาง | H2: ข้อกำหนดและสมมติฐานในการคำนวณค่าขนส่งวัสดุก่อสร้าง รถบรรทุก 10 ล้อ | M2: วิธีการคำนวณค่าขนส่งวัสดุก่อสร้าง รถบรรทุก 10 ล้อ | R2: การคำนวณจำนวนเที่ยวที่วิ่งต่อวัน รถบรรทุก 10 ล้อ | X2: ภูมิประเทศเป็นที่ราบ ทางผิวลาดยาง ปริมาณจราจรปกติ | AH2: ภูมิประเทศเป็นที่ราบ ทางผิวลาดยาง ปริมาณจราจรปกติ | AR2: =+X1 -> ตารางค่าขนส่งวัสดุก่อสร้าง รถบรรทุก 10 ล้อ(กรณีน้ำหนักรวมไม่เกิน 25 ตัน) | BD2: =+X1 -> ตารางค่าขนส่งวัสดุก่อสร้าง รถบรรทุก 10 ล้อ(กรณีน้ำหนักรวมไม่เกิน 25 ตัน) | BP2: ตารางค่าขนส่งวัสดุก่อสร้าง รถบรรทุก 10 ล้อ(น้ำหนัก 21 ตัน)
X3: (1) | Y3: (2) | Z3: (3) | AA3: (4) | AB3: (5) | AC3: (6) | AD3: (7) | AE3: (8) | AF3: (9) | AH3: (1) | AI3: (2) | AJ3: (3) | AK3: (4) | AL3: (5) | AM3: (6) | AN3: (7) | AO3: (8) | AP3: (9) | AR3: ภูมิประเทศเป็น ที่ราบ ผิวทางลาดยาง และการจราจรปรกติ | BD3: ภูมิประเทศเป็น ที่ราบ ผิวทางลาดยาง และการจราจรปรกติ | BP3: ภูมิประเทศเป็น ที่ราบ ผิวทางลาดยาง การจราจรปรกติ
A4: ลำดับ | B4: รายการ | C4: รถบรรทุก 6 ล้อ | D4: รถบรรทุก 10 ล้อ | E4: รถบรรทุก 10 ล้อ | F4: หน่วย | H4: ลำดับ | I4: รายการ | J4: ปริมาณ | K4: หน่วย | M4: ลำดับ | N4: รายการ | O4: ปริมาณ | P4: หน่วย | R4: ลำดับ | S4: รายการ | T4: ปริมาณ | U4: หน่วย | AA4: (2)/(3) | AB4: =TEXT(O42,"0.00")&"x(1)" -> 26.00x(1) | AC4: (4)+(5) | AD4: ="(6)/"&TEXT(D18,"0.00") -> (6)/15.00 | AE4: (7)x1.4 | AF4: (8)/(1) | AK4: (2)/(3) | AL4: =+AB4 -> 26.00x(1) | AM4: (4)+(5) | AN4: =+AD4 -> (6)/15.00 | AO4: (7)*1.4 | AP4: (8)/(1) | AR4: ="ราคาน้ำมันเชื้อเพลิงโซล่า ที่ อำเภอเมือง "&TEXT(C11-0.5,"00")&".00 - "&TEXT(C11-0.5,"00")&".99 บาท / ลิตร" -> ราคาน้ำมันเชื้อเพลิงโซล่า ที่ อำเภอเมือง 30.00 - 30.99 บาท / ลิตร | BD4: =+AR4 -> ราคาน้ำมันเชื้อเพลิงโซล่า ที่ อำเภอเมือง 30.00 - 30.99 บาท / ลิตร | BP4: ราคาน้ำมันเชื้อเพลิงโซล่า ที่ อำเภอเมือง 12.00 - 12.99 บาท / ลิตร
E5: พร้อมลากพ่วง | M5: 1 | N5: ค่าใช้จ่ายคงที่ (Fixed Cost) | R5: 1 | S5: เวลาที่ใช้ในการตักบรรทุก และยกเทลงกอง(Loading And Dumping) | X5: ระยะ | Y5: Terminal | Z5: จำนวน | AA5: Terminal | AB5: Running | AC5: Total | AD5: ค่าบรรทุก | AE5: ค่าบรรทุก | AF5: ค่าบรรทุก | AH5: ระยะ | AI5: Terminal | AJ5: จำนวน | AK5: Terminal | AL5: Running | AM5: Total | AN5: ค่าบรรทุก | AO5: ค่าบรรทุก | AP5: ค่าบรรทุก | AR5: ระยะ | AS5: ค่าบรรทุก | AT5: ค่าบรรทุก | AV5: ระยะ | AW5: ค่าบรรทุก | AX5: ค่าบรรทุก | AZ5: ระยะ | BA5: ค่าบรรทุก | BB5: ค่าบรรทุก | BD5: ระยะ | BE5: ค่าบรรทุก | BF5: ค่าบรรทุก | BH5: ระยะ | BI5: ค่าบรรทุก | BJ5: ค่าบรรทุก | BL5: ระยะ | BM5: ค่าบรรทุก | BN5: ค่าบรรทุก | BP5: ระยะ | BQ5: ค่าบรรทุก | BR5: ค่าบรรทุก | BT5: ระยะ | BU5: ค่าบรรทุก | BV5: ค่าบรรทุก | BX5: ระยะ | BY5: ค่าบรรทุก | BZ5: ค่าบรรทุก
A6: 1 | B6: ราคารถบรรทุกพร้อมตัวถัง | C6: 1500000 | D6: 2300000 | E6: 3000000 | F6: บาท | H6: 1 | I6: ราคารถบรรทุก 10 ล้อ แบบยกเท ราคาเฉลี่ย | J6: =+D6 -> 2300000 | K6: บาท | N6: ="มูลค่าของรถบรรทุกต่อปี "&TEXT(J31,"0.0000")&"*"&TEXT(J11,"0.00") -> มูลค่าของรถบรรทุกต่อปี 0.1259*2016144.00 | O6: =+J31*J11 -> 253836.539 | P6: บาท/ปี | S6: จาก Caterpillar Performance Handbook Front-end Loader | X6: ขนส่ง | Y6: Cost | Z6: เที่ยว | AA6: Cost | AB6: Cost | AC6: Cost | AF6: บาท/ลบ.ม. | AH6: ขนส่ง | AI6: Cost | AJ6: เที่ยว | AK6: Cost | AL6: Cost | AM6: Cost | AP6: บาท/ลบ.ม. | AR6: ขนส่ง | AV6: ขนส่ง | AZ6: ขนส่ง | BD6: ขนส่ง | BH6: ขนส่ง | BL6: ขนส่ง | BP6: ขนส่ง | BT6: ขนส่ง | BX6: ขนส่ง
A7: 2 | B7: ราคายางรถยนต์ 1 ชุด | C7: 47950 | D7: 59840 | E7: 103360 | F7: บาท | N7: ="เงินเดือน - เบี้ยเลี้ยงพนักงานขับรถ "&TEXT(J16,"0.00")&"*12" -> เงินเดือน - เบี้ยเลี้ยงพนักงานขับรถ 7000.00*12 | O7: =+J16*12 -> 84000 | P7: บาท | S7: Caterpillar 950 | X7: กม. | Y7: บาท/วัน | Z7: เที่ยว/วัน | AA7: บาท/เที่ยว | AB7: บาท/เที่ยว | AC7: บาท/เที่ยว | AD7: บาท/ตัน | AE7: บาท/ลบ.ม. | AF7: /กม. | AH7: กม. | AI7: บาท/วัน | AJ7: เที่ยว/วัน | AK7: บาท/เที่ยว | AL7: บาท/เที่ยว | AM7: บาท/เที่ยว | AN7: บาท/ตัน | AO7: บาท/ลบ.ม. | AP7: /กม. | AR7: กม. | AS7: บาท / ตัน | AT7: บาท / ลบ.ม. | AV7: กม. | AW7: บาท / ตัน | AX7: บาท / ลบ.ม. | AZ7: กม. | BA7: บาท / ตัน | BB7: บาท / ลบ.ม. | BD7: กม. | BE7: บาท / ตัน | BF7: บาท / ลบ.ม. | BH7: กม. | BI7: บาท / ตัน | BJ7: บาท / ลบ.ม. | BL7: กม. | BM7: บาท / ตัน | BN7: บาท / ลบ.ม. | BP7: กม. | BQ7: บาท / ตัน | BR7: บาท / ลบ.ม. | BT7: กม. | BU7: บาท / ตัน | BV7: บาท / ลบ.ม. | BX7: กม. | BY7: บาท / ตัน | BZ7: บาท / ลบ.ม.
A8: 3 | B8: อายุใช้งานของรถ | C8: 12 | D8: 12 | E8: 12 | F8: ปี | I8: ราคายาง รวมยางใน ผ้ารองยาง 11 เส้น | J8: =+D7 -> 59840 | K8: บาท | N8: ค่าเบี้ยประกันอุบัติเหตุ | O8: =+J18 -> 23000 | P8: บาท | S8: ตัก 1 ครั้ง ปุ้งกี๋จุ 3.00 ลบ.ม. ใช้เวลาปกติ | T8: 0.4 | U8: นาที | X8: 1 | Y8: =ROUNDDOWN($O$29,2) -> 1059.87 | Z8: =ROUNDDOWN(IF(2*X8>4*4,10*60/(X8*2/$D$22*60+$T$24),10*60/(+$T$24*5-X8*60/$D$22)),3) -> 19.894 | AA8: =ROUNDDOWN(Y8/Z8,5) -> 53.27586 | AB8: =+$O$42*X8 -> 26.001297 | AC8: =+AA8+AB8 -> 79.277157 | AD8: =+AC8/$J$20 -> 5.2851438 | AE8: =+AD8*1.4 -> 7.39920132 | AF8: =+AE8/X8 -> 7.39920132 | AH8: 1 | AI8: =ROUND($O$29,2) -> 1059.88 | AJ8: =ROUNDDOWN(IF(2*AH8>4*4,10*60/(AH8*2/$D$22*60+$T$24),10*60/(+$T$24*5-AH8*60/$D$22)),2) -> 19.89 | AK8: =+AI8/AJ8 -> 53.28707893 | AL8: =+$O$42*AH8 -> 26.001297 | AM8: =+AK8+AL8 -> 79.28837593 | AN8: =+AM8/$J$20 -> 5.285891729 | AO8: =+AN8*1.4 -> 7.40024842 | AP8: =+AO8/AH8 -> 7.40024842 | AR8: 1 | AS8: =+AN8 -> 5.285891729 | AT8: =+AO8 -> 7.40024842 | AV8: 41 | AW8: =+AN48 -> 82.35753873 | AX8: =+AO48 -> 115.3005542 | AZ8: 81 | BA8: =+AN88 -> 162.0151587 | BB8: =+AO88 -> 226.8212222 | BD8: 121 | BE8: =+AN128 -> 241.572024 | BF8: =+AO128 -> 338.2008336 | BH8: 148 | BI8: =+AN155 -> 295.3695736 | BJ8: =+AO155 -> 413.517403 | BL8: 175 | BM8: =+AN182 -> 349.230716 | BN8: =+AO182 -> 488.9230025 | BP8: 1 | BQ8: 4.21 | BR8: 5.89 | BS8: =+(BQ8-AS8)/AS8*100 -> -20.35402509 | BT8: 41 | BU8: 54.2124 | BV8: 75.899 | BW8: =+(BU8-AW8)/AW8*100 -> -34.17433202 | BX8: 81 | BY8: 106.4684 | BZ8: 149.059 | CA8: =+(BY8-BA8)/BA8*100 -> -34.28491455
A9: 4 | B9: อัตราดอกเบี้ยร้อยละ | C9: 7 | D9: 7 | E9: 7 | F9: ต่อปี | I9: ดังนั้นราคาเฉพาะตัวรถ ไม่รวมยางรถยนต์ | J9: =+J6+J7-J8 -> 2240160 | K9: บาท | N9: ค่าทะเบียนรถยนต์บรรทุก | O9: =+J17 -> 3600 | P9: บาท | S9: ปรับเนื่องจากวัสดุที่ตักเป็น Bank and Broken เพิ่มเวลา | T9: 0.04 | U9: นาที | X9: 2 | Y9: 1059.87 | Z9: 20.641 | AA9: 51.3478 | AB9: 52.00259399 | AC9: 103.350394 | AD9: 6.890026266 | AE9: 9.646036773 | AF9: 4.823018386 | AH9: 2 | AI9: 1059.88 | AJ9: 20.64 | AK9: 51.35077519 | AL9: 52.00259399 | AM9: 103.3533692 | AN9: 6.890224612 | AO9: 9.646314457 | AP9: 4.823157229 | AR9: 2 | AS9: 6.890224612 | AT9: 9.646314457 | AV9: 42 | AW9: 84.34916536 | AX9: 118.0888315 | AZ9: 82 | BA9: 163.948654 | BB9: 229.5281156 | BD9: 122 | BE9: 243.5947913 | BF9: 341.0327079 | BH9: 149 | BI9: 297.3174875 | BJ9: 416.2444826 | BL9: 176 | BM9: 351.2640198 | BN9: 491.7696278 | BP9: 2 | BQ9: 5.16 | BR9: 7.22 | BS9: -25.11129477 | BT9: 42 | BU9: 55.5188 | BV9: 77.728 | BW9: -34.17978736 | BX9: 82 | BY9: 107.7848 | BZ9: 150.888 | CA9: -34.25697781
A10: 5 | B10: ปีหนึ่งวิ่งใช้งาน | C10: 60000 | D10: 85000 | E10: 120000 | F10: ก.ม. | I10: ="เมื่อใช้งานครบอายุ 12 ปี แล้วมีซากรถตีค่า 0.1*"&TEXT(J9,"0.00") -> เมื่อใช้งานครบอายุ 12 ปี แล้วมีซากรถตีค่า 0.1*2240160.00 | J10: =0.1*J9 -> 224016 | K10: บาท | N10: รวมค่าใช้จ่ายคงที่ | O10: =SUM(O6:O9) -> 364436.539 | P10: บาท/ปี | S10: ปรับกรณีกองวัสดุมีความสูงน้อยกว่า 3.0 ม. เพิ่มเวลา | T10: 0.01 | U10: นาที | X10: 3 | Y10: 1059.87 | Z10: 21.445 | AA10: 49.4227 | AB10: 78.00389099 | AC10: 127.426591 | AD10: 8.495106066 | AE10: 11.89314849 | AF10: 3.964382831 | AH10: 3 | AI10: 1059.88 | AJ10: 21.44 | AK10: 49.43470149 | AL10: 78.00389099 | AM10: 127.4385925 | AN10: 8.495906165 | AO10: 11.89426863 | AP10: 3.964756211 | AR10: 3 | AS10: 8.495906165 | AT10: 11.89426863 | AV10: 43 | AW10: 86.33315601 | AX10: 120.8664184 | AZ10: 83 | BA10: 165.9546767 | BB10: 232.3365474 | BD10: 123 | BE10: 245.6228678 | BF10: 343.8720149 | BH10: 150 | BI10: 299.4870854 | BJ10: 419.2819196 | BL10: 177 | BM10: 353.3012695 | BN10: 494.6217773 | BP10: 3 | BQ10: 6.11 | BR10: 8.56 | BS10: -28.08300985 | BT10: 43 | BU10: 56.8252 | BV10: 79.557 | BW10: -34.17916983 | BX10: 83 | BY10: 109.0812 | BZ10: 152.707 | CA10: -34.27048748
A11: 6 | B11: ราคาน้ำมันเชื้อเพลิงโซล่า | C11: =J14 -> 30.5 | D11: =C11 -> 30.5 | E11: =C11 -> 30.5 | F11: บาท/ลิตร | I11: ="ดังนั้น ตัวรถที่ใช้คิดมีราคา "&TEXT(J9,"0.00")&"-"&TEXT(J10,"0.00") -> ดังนั้น ตัวรถที่ใช้คิดมีราคา 2240160.00-224016.00 | J11: =+J9-J10 -> 2016144 | K11: บาท | S11: รวมเวลาที่ใช้ตัก 1 ครั้ง ปริมาตร 3.00 ลบ.ม. | T11: =SUM(T8:T10) -> 0.45 | U11: นาที | X11: 4 | Y11: 1059.87 | Z11: 22.316 | AA11: 47.49372 | AB11: 104.005188 | AC11: 151.498908 | AD11: 10.0999272 | AE11: 14.13989808 | AF11: 3.53497452 | AH11: 4 | AI11: 1059.88 | AJ11: 22.31 | AK11: 47.50694756 | AL11: 104.005188 | AM11: 151.5121355 | AN11: 10.10080904 | AO11: 14.14113265 | AP11: 3.535283163 | AR11: 4 | AS11: 10.10080904 | AT11: 14.14113265 | AV11: 44 | AW11: 88.32826414 | AX11: 123.6595698 | AZ11: 84 | BA11: 167.9676007 | BB11: 235.154641 | BD11: 124 | BE11: 247.6564008 | BF11: 346.7189612 | BH11: 151 | BI11: 301.4422699 | BJ11: 422.0191779 | BL11: 178 | BM11: 355.0346893 | BN11: 497.048565 | BP11: 4 | BQ11: 7.06 | BR11: 9.89 | BS11: -30.1046087 | BT11: 44 | BU11: 58.1316 | BV11: 81.386 | BW11: -34.18686468 | BX11: 84 | BY11: 110.3876 | BZ11: 154.536 | CA11: -34.28042103
A12: 7 | B12: ราคาน้ำมันหล่อลื่น | C12: 60 | D12: 60 | E12: 60 | F12: บาท/ลิตร | I12: ="เมื่อใช้งานครบอายุ 12 ปี อัตราดอกเบี้ยคำนวณค่าเสื่อมราคา "&TEXT(D9,"0.00")&"%ต่อปี" -> เมื่อใช้งานครบอายุ 12 ปี อัตราดอกเบี้ยคำนวณค่าเสื่อมราคา 7.00%ต่อปี | J12: =+D9 -> 7 | K12: %ต่อปี | M12: 2 | N12: ค่าใช้จ่ายการเดินรถ (Running Cost) | X12: 5 | Y12: 1059.87 | Z12: 23.259 | AA12: 45.56816 | AB12: 130.006485 | AC12: 175.574645 | AD12: 11.70497633 | AE12: 16.38696686 | AF12: 3.277393373 | AH12: 5 | AI12: 1059.88 | AJ12: 23.25 | AK12: 45.58623656 | AL12: 130.006485 | AM12: 175.5927215 | AN12: 11.70618144 | AO12: 16.38865401 | AP12: 3.277730802 | AR12: 5 | AS12: 11.70618144 | AT12: 16.38865401 | AV12: 45 | AW12: 90.31376323 | AX12: 126.4392685 | AZ12: 85 | BA12: 169.9876915 | BB12: 237.9827681 | BD12: 125 | BE12: 249.5419711 | BF12: 349.3587595 | BH12: 152 | BI12: 303.3999602 | BJ12: 424.7599443 | BL12: 179 | BM12: 357.0759631 | BN12: 499.9063484 | BP12: 5 | BQ12: 8.01 | BR12: 11.22 | BS12: -31.57461258 | BT12: 45 | BU12: 59.438 | BV12: 83.205 | BW12: -34.18721812 | BX12: 85 | BY12: 111.694 | BZ12: 156.365 | CA12: -34.29288968
A13: 8 | B13: เงินเดือนพนักงานขับรถ | C13: 7000 | D13: 7000 | E13: 7000 | F13: บาท | I13: ปีหนึ่งรถบรรทุก 10 ล้อ จะวิ่งใช้งานเป็นระยะทาง | J13: =+D10 -> 85000 | K13: ก.ม. | N13: ="น้ำมันเชื้อเพลิง "&TEXT(D25,"0.0000")&"*"&TEXT(J14,"0.00") -> น้ำมันเชื้อเพลิง 0.2730*30.50 | O13: =+D25*J14 -> 8.3265 | P13: บาท/ก.ม. | R13: 2 | S13: รถบรรทุก 10 ล้อ | X13: 6 | Y13: 1059.87 | Z13: 24.287 | AA13: 43.63939 | AB13: 156.007782 | AC13: 199.647172 | AD13: 13.30981147 | AE13: 18.63373605 | AF13: 3.105622675 | AH13: 6 | AI13: 1059.88 | AJ13: 24.28 | AK13: 43.6523888 | AL13: 156.007782 | AM13: 199.6601708 | AN13: 13.31067805 | AO13: 18.63494927 | AP13: 3.105824879 | AR13: 6 | AS13: 13.31067805 | AT13: 18.63494927 | AV13: 46 | AW13: 92.31002728 | AX13: 129.2340382 | AZ13: 86 | BA13: 171.9409852 | BB13: 240.7173793 | BD13: 126 | BE13: 251.5839777 | BF13: 352.2175688 | BH13: 153 | BI13: 305.3601991 | BJ13: 427.5042787 | BL13: 180 | BM13: 359.1213417 | BN13: 502.7698784 | BP13: 6 | BQ13: 8.96 | BR13: 12.55 | BS13: -32.68562304 | BT13: 46 | BU13: 60.7544 | BV13: 85.044 | BW13: -34.18439817 | BX13: 86 | BY13: 113.0004 | BZ13: 158.204 | CA13: -34.27954372
A14: 9 | B14: เงินเดือนเด็กท้ายรถ | C14: - | D14: - | E14: 4500 | F14: บาท | H14: 2 | I14: น้ำมันเชื้อเพลิงโซล่า เฉลี่ยระหว่าง กทม. กับจังหวัดไกลสุดของทุกภาค | J14: =ข้อมูลเริ่มต้น!B28+0.5 -> 30.5 | K14: บาท | N14: ="น้ำมันหล่อลื่น "&TEXT(J29,"0.0000")&"*"&TEXT(J15,"0.00") -> น้ำมันหล่อลื่น 0.0023*60.00 | O14: =+J29*J15 -> 0.1374 | P14: บาท/ก.ม. | S14: ="รถบรรทุก 10 ล้อ หนึ่งคันบรรทุกตามกฎหมาย "&TEXT(J20,"0.00")&"/"&TEXT(J19,"0.00") -> รถบรรทุก 10 ล้อ หนึ่งคันบรรทุกตามกฎหมาย 15.00/1.40 | T14: =+J20/J19 -> 10.71428571 | U14: ลบ.ม. | X14: 7 | Y14: 1059.87 | Z14: 25.409 | AA14: 41.71238 | AB14: 182.009079 | AC14: 223.721459 | AD14: 14.91476393 | AE14: 20.8806695 | AF14: 2.982952786 | AH14: 7 | AI14: 1059.88 | AJ14: 25.4 | AK14: 41.72755906 | AL14: 182.009079 | AM14: 223.736638 | AN14: 14.91577587 | AO14: 20.88208622 | AP14: 2.983155174 | AR14: 7 | AS14: 14.91577587 | AT14: 20.88208622 | AV14: 47 | AW14: 94.29444505 | AX14: 132.0122231 | AZ14: 87 | BA14: 173.8985901 | BB14: 243.4580262 | BD14: 127 | BE14: 253.6318343 | BF14: 355.084568 | BH14: 154 | BI14: 307.3230301 | BJ14: 430.2522422 | BL14: 181 | BM14: 361.1709077 | BN14: 505.6392708 | BP14: 7 | BQ14: 9.91 | BR14: 13.88 | BS14: -33.56027814 | BT14: 47 | BU14: 62.0508 | BV14: 86.873 | BW14: -34.19463896 | BX14: 87 | BY14: 114.3068 | BZ14: 160.033 | CA14: -34.26812723
A15: 10 | B15: ค่าทะเบียนรถยนต์ | C15: 3400 | D15: 3600 | E15: 6800 | F15: บาท | H15: 3 | I15: น้ำมันหล่อลื่นเฉลี่ยลิตรละ | J15: =+D12 -> 60 | K15: บาท | N15: ="ยางรถยนต์สึกหรอ "&TEXT(J8,"0.00")&"/11*10/"&TEXT(J30,"0.00") -> ยางรถยนต์สึกหรอ 59840.00/11*10/50800.00 | O15: =+J8/11*10/J30 -> 1.070866142 | P15: บาท/ก.ม. | S15: สัมประสิทธิ์ในการตักของรถตักสำหรับวัสดุมวลหลวม | T15: 0.85 | U15: ความจุปุ้งกี๋ | X15: 8 | Y15: 1059.87 | Z15: =ROUNDDOWN(IF(2*X15>2*4,10*60/(X15*2/$D$22*60+$T$24),10*60/(+$T$24*5-X15*60/$D$22)),3) -> 25.311 | AA15: 41.87388 | AB15: 208.010376 | AC15: 249.884256 | AD15: 16.6589504 | AE15: 23.32253056 | AF15: 2.91531632 | AH15: 8 | AI15: 1059.88 | AJ15: =ROUNDDOWN(IF(2*AH15>2*4,10*60/(AH15*2/$D$22*60+$T$24),10*60/(+$T$24*5-AH15*60/$D$22)),2) -> 25.31 | AK15: 41.87593836 | AL15: 208.010376 | AM15: 249.8863143 | AN15: 16.65908762 | AO15: 23.32272267 | AP15: 2.915340334 | AR15: 8 | AS15: 16.65908762 | AT15: 23.32272267 | AV15: 48 | AW15: 96.28908866 | AX15: 134.8047241 | AZ15: 88 | BA15: 175.9378519 | BB15: 246.3129926 | BD15: 128 | BE15: 255.5247185 | BF15: 357.7346059 | BH15: 155 | BI15: 309.2884981 | BJ15: 433.0038973 | BL15: 182 | BM15: 363.2247459 | BN15: 508.5146443 | BP15: 8 | BQ15: 11.1012 | BR15: 15.542 | BS15: -33.36249708 | BT15: 48 | BU15: 63.3572 | BV15: 88.702 | BW15: -34.20105966 | BX15: 88 | BY15: 115.6132 | BZ15: 161.862 | CA15: -34.28747778
A16: 11 | B16: ค่าประกันอุบัติเหตุปีละ | C16: 15000 | D16: 23000 | E16: 30000 | F16: บาท | H16: 4 | I16: เงินเดือนพนักงานขับรถและเบี้ยเลี้ยง | J16: =+D13 -> 7000 | K16: บาท | N16: ="ค่าซ่อมบำรุงรักษารถบรรทุก "&TEXT(J27,"0.00")&"/"&TEXT(J13,"0.00") -> ค่าซ่อมบำรุงรักษารถบรรทุก 92325.00/85000.00 | O16: =+J27/J13 -> 1.086176471 | P16: บาท/ก.ม. | S16: ตัก 1 ครั้ง ปุ้งกี๋จุ | T16: 3 | U16: ลบ.ม. | X16: 9 | Y16: 1059.87 | Z16: =ROUNDDOWN(IF(2*X16>4*4,10*60/(X16*2/$D$22*60+$T$24),10*60/(+$T$24*5-X16*60/$D$22)),3) -> 23.178 | AA16: 45.72741 | AB16: 234.011673 | AC16: 279.739083 | AD16: 18.6492722 | AE16: 26.10898108 | AF16: 2.900997897 | AH16: 9 | AI16: 1059.88 | AJ16: =ROUNDDOWN(IF(2*AH16>4*4,10*60/(AH16*2/$D$22*60+$T$24),10*60/(+$T$24*5-AH16*60/$D$22)),2) -> 23.17 | AK16: 45.74363401 | AL16: 234.011673 | AM16: 279.755307 | AN16: 18.6503538 | AO16: 26.11049532 | AP16: 2.901166146 | AR16: 9 | AS16: 18.6503538 | AT16: 26.11049532 | AV16: 49 | AW16: 98.26939409 | AX16: 137.5771517 | AZ16: 89 | BA16: 177.9060233 | BB16: 249.0684326 | BD16: 129 | BE16: 257.581667 | BF16: 360.6143338 | BH16: 156 | BI16: 311.2566487 | BJ16: 435.7593082 | BL16: 183 | BM16: 365.2829435 | BN16: 511.3961209 | BP16: 9 | BQ16: 12.4076 | BR16: 17.371 | BS16: -33.47257573 | BT16: 49 | BU16: 64.6636 | BV16: 90.531 | BW16: -34.19762012 | BX16: 89 | BY16: 116.9196 | BZ16: 163.691 | CA16: -34.28013406
A17: 12 | B17: น้ำหนักตัวรถ | C17: 6 | D17: 10 | E17: 17 | F17: ตัน | H17: 5 | I17: ค่าทะเบียนรถยนต์ต่อปี | J17: =+D15 -> 3600 | K17: บาท | N17: รวมค่าใช้จ่ายเดินรถ | O17: =SUM(O13:O16) -> 10.62094261 | P17: บาท/ก.ม. | S17: ตัก 1 ครั้งได้วัสดุ .85 x 3.0 | T17: =+T16*T15 -> 2.55 | U17: ลบ.ม. | X17: 10 | Y17: 1059.87 | Z17: 21.376 | AA17: 49.58224 | AB17: 260.01297 | AC17: 309.59521 | AD17: 20.63968066 | AE17: 28.89555293 | AF17: 2.889555293 | AH17: 10 | AI17: 1059.88 | AJ17: 21.37 | AK17: 49.59663079 | AL17: 260.01297 | AM17: 309.6096008 | AN17: 20.64064005 | AO17: 28.89689607 | AP17: 2.889689607 | AR17: 10 | AS17: 20.64064005 | AT17: 28.89689607 | AV17: 50 | AW17: 100.2591951 | AX17: 140.3628732 | AZ17: 90 | BA17: 179.8789531 | BB17: 251.8305344 | BD17: 130 | BE17: 259.6448976 | BF17: 363.5028566 | BH17: 157 | BI17: 313.2275287 | BJ17: 438.5185402 | BL17: 184 | BM17: 367.0163633 | BN17: 513.8229087 | BP17: 10 | BQ17: 13.724 | BR17: 19.2 | BS17: -33.50981381 | BT17: 50 | BU17: 65.97 | BV17: 92.36 | BW17: -34.20054896 | BX17: 90 | BY17: 118.226 | BZ17: 165.52 | CA17: -34.27468977
A18: 13 | B18: น้ำหนักบรรทุก | C18: 9 | D18: 15 | E18: 30 | F18: ตัน | H18: 6 | I18: ค่าประกันอุบัติเหตุประเภท 1 คิด 1% ต่อปี | J18: =+D16 -> 23000 | K18: บาท | S18: ="ดังนั้น ตักเต็มคันรถ 10 ล้อ ต้องตัก "&TEXT(T14,"0.00")&"/"&TEXT(T17,"0.00") -> ดังนั้น ตักเต็มคันรถ 10 ล้อ ต้องตัก 10.71/2.55 | T18: =+T14/T17 -> 4.201680672 | U18: ครั้ง | X18: 11 | Y18: 1059.87 | Z18: 19.834 | AA18: 53.43702 | AB18: 286.014267 | AC18: 339.451287 | AD18: 22.6300858 | AE18: 31.68212012 | AF18: 2.880192738 | AH18: 11 | AI18: 1059.88 | AJ18: 19.83 | AK18: 53.44831064 | AL18: 286.014267 | AM18: 339.4625776 | AN18: 22.63083851 | AO18: 31.68317391 | AP18: 2.880288537 | AR18: 11 | AS18: 22.63083851 | AT18: 31.68317391 | AV18: 51 | AW18: 102.2590503 | AX18: 143.1626704 | AZ18: 91 | BA18: 181.9393753 | BB18: 254.7151254 | BD18: 131 | BE18: 261.545636 | BF18: 366.1638905 | BH18: 158 | BI18: 315.4442499 | BJ18: 441.6219499 | BL18: 185 | BM18: 369.07901 | BN18: 516.710614 | BP18: 11 | BQ18: 15.0204 | BR18: 21.029 | BS18: -33.62861921 | BT18: 51 | BU18: 67.2764 | BV18: 94.189 | BW18: -34.20983297 | BX18: 91 | BY18: 119.5324 | BZ18: 167.349 | CA18: -34.30097261
A19: 14 | B19: วัสดุก่อสร้างมีความหนาแน่น | C19: 1.4 | D19: 1.4 | E19: 1.4 | F19: ตัน/ลบ.ม. | H19: 7 | I19: วัสดุก่อสร้างมีความหนาแน่นของมวลหลวม เฉลี่ยจาก ดิน ทราย ลูกรัง หิน | J19: =+D19 -> 1.4 | K19: ตัน/ลบ.ม. | M19: 3 | N19: Terminal Cost | S19: คิดเป็น | T19: =ROUNDUP(T18,0) -> 5 | U19: ครั้ง | X19: 12 | Y19: 1059.87 | Z19: 18.5 | AA19: 57.29027 | AB19: 312.015564 | AC19: 369.305834 | AD19: 24.62038893 | AE19: 34.4685445 | AF19: 2.872378709 | AH19: 12 | AI19: 1059.88 | AJ19: 18.5 | AK19: 57.29081081 | AL19: 312.015564 | AM19: 369.3063748 | AN19: 24.62042498 | AO19: 34.46859498 | AP19: 2.872382915 | AR19: 12 | AS19: 24.62042498 | AT19: 34.46859498 | AV19: 52 | AW19: 104.2413559 | AX19: 145.9378982 | AZ19: 92 | BA19: 183.9239872 | BB19: 257.4935821 | BD19: 132 | BE19: 263.6186385 | BF19: 369.0660939 | BH19: 159 | BI19: 317.4236101 | BJ19: 444.3930541 | BL19: 186 | BM19: 371.1461977 | BN19: 519.6046768 | BP19: 12 | BQ19: 16.3268 | BR19: 22.858 | BS19: -33.68595379 | BT19: 52 | BU19: 68.5828 | BV19: 96.018 | BW19: -34.20768616 | BX19: 92 | BY19: 120.8388 | BZ19: 169.178 | CA19: -34.29959744
A20: 15 | B20: เวลาที่สามารถทำงานได้ต่อปี | C20: 300 | D20: 300 | E20: 300 | F20: วัน | H20: 8 | I20: น้ำหนักรถบรรทุก10 ตัน น้ำหนักบรรทุกตามกฎหมาย | J20: =+D18 -> 15 | K20: ตัน | N20: ="ปีหนึ่งรถบรรทุกใช้งานวิ่งเป็นระยะทาง "&TEXT(J13,"0.00")&" กม. " -> ปีหนึ่งรถบรรทุกใช้งานวิ่งเป็นระยะทาง 85000.00 กม. | O20: =+J13 -> 85000 | P20: ก.ม. | S20: ดังนั้น ต้องใช้เวลาตักเต็มคันรถ 10 ล้อ | T20: =+T19*T11 -> 2.25 | U20: นาที | X20: 13 | Y20: 1059.87 | Z20: 17.334 | AA20: 61.14399 | AB20: 338.0168609 | AC20: 399.1608509 | AD20: 26.6107234 | AE20: 37.25501276 | AF20: 2.865770212 | AH20: 13 | AI20: 1059.88 | AJ20: 17.33 | AK20: 61.15868436 | AL20: 338.0168609 | AM20: 399.1755453 | AN20: 26.61170302 | AO20: 37.25638423 | AP20: 2.86587571 | AR20: 13 | AS20: 26.61170302 | AT20: 37.25638423 | AV20: 53 | AW20: 106.232767 | AX20: 148.7258738 | AZ20: 93 | BA20: 185.9138689 | BB20: 260.2794164 | BD20: 133 | BE20: 265.5243713 | BF20: 371.7341198 | BH20: 160 | BI20: 319.4058981 | BJ20: 447.1682574 | BL20: 187 | BM20: 373.2180211 | BN20: 522.5052295 | BP20: 13 | BQ20: 17.6332 | BR20: 24.687 | BS20: -33.73892687 | BT20: 53 | BU20: 69.8892 | BV20: 97.847 | BW20: -34.21125894 | BX20: 93 | BY20: 122.1452 | BZ20: 170.997 | CA20: -34.30011395
A21: 16 | B21: เวลาที่สามารถทำงานได้ต่อวัน | C21: 10 | D21: 10 | E21: 10 | F21: ชม. | H21: 9 | I21: เวลาที่ทำการได้ตลอดปี | J21: =+D20 -> 300 | K21: วัน | N21: ด้วยความเร็วเฉลี่ย | O21: =+D22 -> 55 | P21: ก.ม./ช.ม. | S21: เวลารถ 10 ล้อ เข้าจอดในที่รอตักวัสดุใส่รถ | T21: 2 | U21: นาที | X21: 14 | Y21: 1059.87 | Z21: 16.306 | AA21: 64.99877 | AB21: 364.0181579 | AC21: 429.0169279 | AD21: 28.60112853 | AE21: 40.04157994 | AF21: 2.860112853 | AH21: 14 | AI21: 1059.88 | AJ21: 16.3 | AK21: 65.02331288 | AL21: 364.0181579 | AM21: 429.0414708 | AN21: 28.60276472 | AO21: 40.04387061 | AP21: 2.860276472 | AR21: 14 | AS21: 28.60276472 | AT21: 40.04387061 | AV21: 54 | AW21: 108.2337927 | AX21: 151.5273098 | AZ21: 94 | BA21: 187.9091879 | BB21: 263.0728631 | BD21: 134 | BE21: 267.6075865 | BF21: 374.6506211 | BH21: 161 | BI21: 321.3911666 | BJ21: 449.9476332 | BL21: 188 | BM21: 374.9514409 | BN21: 524.9320172 | BP21: 14 | BQ21: 18.9396 | BR21: 26.516 | BS21: -33.78402338 | BT21: 54 | BU21: 71.1956 | BV21: 99.676 | BW21: -34.22054405 | BX21: 94 | BY21: 123.4516 | BZ21: 172.826 | CA21: -34.30252061
A22: 17 | B22: ความเร็วเฉลี่ยของรถ | C22: 55 | D22: 55 | E22: 55 | F22: ก.ม./ชม. | H22: 10 | I22: เวลาที่ทำการได้ต่อวัน | J22: =+D21 -> 10 | K22: ชม. | N22: ="ดังนั้น จำนวนชั่วโมงที่วิ่งทำงานต่อปี "&TEXT(O20,"0.00")&"/"&TEXT(O21,"0.00") -> ดังนั้น จำนวนชั่วโมงที่วิ่งทำงานต่อปี 85000.00/55.00 | O22: =+O20/O21 -> 1545.454545 | P22: ชม. | S22: เวลาถึงหน้างานเทลงกองและออกรถใช้เวลา | T22: 2 | U22: นาที | X22: 15 | Y22: 1059.87 | Z22: 15.393 | AA22: 68.85402 | AB22: 390.0194549 | AC22: 458.8734749 | AD22: 30.591565 | AE22: 42.82819099 | AF22: 2.855212733 | AH22: 15 | AI22: 1059.88 | AJ22: 15.39 | AK22: 68.86809617 | AL22: 390.0194549 | AM22: 458.8875511 | AN22: 30.59250341 | AO22: 42.82950477 | AP22: 2.855300318 | AR22: 15 | AS22: 30.59250341 | AT22: 42.82950477 | AV22: 55 | AW22: 110.2135978 | AX22: 154.2990369 | AZ22: 95 | BA22: 189.820314 | BB22: 265.7484395 | BD22: 135 | BE22: 269.5185406 | BF22: 377.3259569 | BH22: 162 | BI22: 323.3794694 | BJ22: 452.7312572 | BL22: 189 | BM22: 377.0279972 | BN22: 527.839196 | BP22: 15 | BQ22: 20.246 | BR22: 28.345 | BS22: -33.82038818 | BT22: 55 | BU22: 72.502 | BV22: 101.495 | BW22: -34.21682853 | BX22: 95 | BY22: 124.758 | BZ22: 174.655 | CA22: -34.27573825
A23: 18 | B23: เวลาใช้ตักวัสดุใส่รถ เทกอง | C23: 5.35 | D23: =+T24 -> 6.25 | E23: 12 | F23: นาที/เที่ยว | H23: 11 | I23: ความเร็วของรถเวลาวิ่งรถเปล่า | J23: 60 | K23: ก.ม./ชม. | N23: ="ในหนึ่งวันทำงาน 10 ชั่วโมง ดังนั้นปีหนึ่งมีวันวิ่งรถ "&TEXT(O22,"0.00")&"/"&TEXT(J22,"0.00") -> ในหนึ่งวันทำงาน 10 ชั่วโมง ดังนั้นปีหนึ่งมีวันวิ่งรถ 1545.45/10.00 | O23: =+O22/J22 -> 154.5454545 | P23: วัน | S23: รวมเวลาที่ใช้ในงาน ตักใส่ - เทกอง | T23: =SUM(T20:T22) -> 6.25 | U23: นาที | X23: 16 | Y23: 1059.87 | Z23: 14.577 | AA23: 72.70837 | AB23: 416.0207519 | AC23: 488.7291219 | AD23: 32.58194146 | AE23: 45.61471805 | AF23: 2.850919878 | AH23: 16 | AI23: 1059.88 | AJ23: 14.57 | AK23: 72.74399451 | AL23: 416.0207519 | AM23: 488.7647464 | AN23: 32.58431643 | AO23: 45.618043 | AP23: 2.851127688 | AR23: 16 | AS23: 32.58431643 | AT23: 45.618043 | AV23: 56 | AW23: 112.2018443 | AX23: 157.082582 | AZ23: 96 | BA23: 191.8250873 | BB23: 268.5551223 | BD23: 136 | BE23: 271.4312881 | BF23: 380.0038033 | BH23: 163 | BI23: 325.3708617 | BJ23: 455.5192064 | BL23: 190 | BM23: 379.1093864 | BN23: 530.7531409 | BP23: 16 | BQ23: 21.5524 | BR23: 30.184 | BS23: -33.85652252 | BT23: 56 | BU23: 73.8084 | BV23: 103.334 | BW23: -34.21819357 | BX23: 96 | BY23: 126.0744 | BZ23: 176.494 | CA23: -34.27637555
A24: 19 | B24: ค่าซ่อมบำรุงรักษารถต่อปี | C24: 48075 | D24: 92325 | E24: 187350 | F24: บาท | I24: ความเร็วของรถเวลาวิ่งรถบรรทุกเต็ม | J24: 50 | K24: ก.ม./ชม. | N24: ="และวันที่ไม่วิ่งรถมี "&TEXT(J21,"0.00")&"-"&TEXT(O23,"0.00") -> และวันที่ไม่วิ่งรถมี 300.00-154.55 | O24: =+J21-O23 -> 145.4545455 | P24: วัน | S24: คิดเป็น | T24: =+T23 -> 6.25 | U24: นาที | X24: 17 | Y24: 1059.87 | Z24: 13.843 | AA24: 76.5636 | AB24: 442.0220489 | AC24: 518.5856489 | AD24: 34.5723766 | AE24: 48.40132723 | AF24: 2.847136896 | AH24: 17 | AI24: 1059.88 | AJ24: 13.84 | AK24: 76.58092486 | AL24: 442.0220489 | AM24: 518.6029738 | AN24: 34.57353159 | AO24: 48.40294422 | AP24: 2.847232013 | AR24: 17 | AS24: 34.57353159 | AT24: 48.40294422 | AV24: 57 | AW24: 114.1989736 | AX24: 159.8785631 | AZ24: 97 | BA24: 193.8357812 | BB24: 271.3700937 | BD24: 137 | BE24: 273.5288527 | BF24: 382.9403938 | BH24: 164 | BI24: 327.3654 | BJ24: 458.31156 | BL24: 191 | BM24: 381.1957113 | BN24: 533.6739958 | BP24: 17 | BQ24: 22.8588 | BR24: 32.003 | BS24: -33.88352606 | BT24: 57 | BU24: 75.1248 | BV24: 105.163 | BW24: -34.2158711 | BX24: 97 | BY24: 127.3708 | BZ24: 178.323 | CA24: -34.28932511
A25: 20 | B25: การสิ้นเปลืองเชื้อเพลิง | C25: 0.17 | D25: 0.273 | E25: 0.3855 | F25: ลิตร/ก.ม. | I25: ความเร็วเฉลี่ย ไป - กลับ | J25: =+D22 -> 55 | K25: ก.ม./ชม. | N25: ="สัดส่วนของวันที่ไม่วิ่งรถ "&TEXT(O24,"0.00")&"/"&TEXT(J21,"0.00") -> สัดส่วนของวันที่ไม่วิ่งรถ 145.45/300.00 | O25: =+O24/J21 -> 0.4848484848 | X25: 18 | Y25: 1059.87 | Z25: 13.18 | AA25: 80.41502 | AB25: 468.0233459 | AC25: 548.4383659 | AD25: 36.56255773 | AE25: 51.18758082 | AF25: 2.84375449 | AH25: 18 | AI25: 1059.88 | AJ25: 13.18 | AK25: 80.41578149 | AL25: 468.0233459 | AM25: 548.4391274 | AN25: 36.56260849 | AO25: 51.18765189 | AP25: 2.843758438 | AR25: 18 | AS25: 36.56260849 | AT25: 51.18765189 | AV25: 58 | AW25: 116.2054585 | AX25: 162.6876419 | AZ25: 98 | BA25: 195.8525914 | BB25: 274.1936279 | BD25: 138 | BE25: 275.447146 | BF25: 385.6260045 | BH25: 165 | BI25: 329.3631422 | BJ25: 461.1083991 | BL25: 192 | BM25: 382.9291311 | BN25: 536.1007835 | BP25: 18 | BQ25: 24.1652 | BR25: 33.832 | BS25: -33.90734142 | BT25: 58 | BU25: 76.4212 | BV25: 106.992 | BW25: -34.23613574 | BX25: 98 | BY25: 128.6772 | BZ25: 180.152 | CA25: -34.29895458
A26: 21 | B26: การสิ้นเปลืองน้ำมันหล่อลื่น | C26: 0.0014 | D26: 0.00229 | E26: 0.00229 | F26: ลิตร/ก.ม. | H26: 12 | I26: เวลาในการตักวัสดุใส่รถ - เทลงกอง | J26: =+T24 -> 6.25 | K26: นาที/เที่ยว | N26: ="สัดส่วนของวันที่วิ่งรถ "&TEXT(O23,"0.00")&"/"&TEXT(J21,"0.00") -> สัดส่วนของวันที่วิ่งรถ 154.55/300.00 | O26: =ROUND(O23/J21,2) -> 0.52 | R26: 3 | S26: กรณีต้องรอคิวตัก - เท | X26: 19 | Y26: 1059.87 | Z26: 12.577 | AA26: 84.27049 | AB26: 494.0246429 | AC26: 578.2951329 | AD26: 38.55300886 | AE26: 53.97421241 | AF26: 2.840748021 | AH26: 19 | AI26: 1059.88 | AJ26: 12.57 | AK26: 84.31821798 | AL26: 494.0246429 | AM26: 578.3428609 | AN26: 38.55619073 | AO26: 53.97866702 | AP26: 2.840982475 | AR26: 19 | AS26: 38.55619073 | AT26: 53.97866702 | AV26: 59 | AW26: 118.1858823 | AX26: 165.4602352 | AZ26: 99 | BA26: 197.8757225 | BB26: 277.0260115 | BD26: 139 | BE26: 277.5560603 | BF26: 388.5784844 | BH26: 166 | BI26: 331.3641477 | BJ26: 463.9098067 | BL26: 193 | BM26: 385.0204975 | BN26: 539.0286966 | BP26: 19 | BQ26: 25.4716 | BR26: 35.661 | BS26: -33.93641976 | BT26: 59 | BU26: 77.7276 | BV26: 108.821 | BW26: -34.23275396 | BX26: 99 | BY26: 129.9836 | BZ26: 181.981 | CA26: -34.31048622
A27: 22 | B27: ยาง 1 ชุดใช้วิ่งได้ระยะทาง | C27: 45000 | D27: 50800 | E27: 50800 | F27: ก.ม. | H27: 13 | I27: ค่าซ่อมบำรุงรักษาปีหนึ่งเป็นเงิน | J27: =+D24 -> 92325 | K27: บาท | N27: มูลค่ารถ + เงินเดือนเบี้ยเลี้ยงพนักงาน | O27: =+O6+O7 -> 337836.539 | P27: บาท/ปี | X27: 20 | Y27: 1059.87 | Z27: 12.027 | AA27: 88.12422 | AB27: 520.0259399 | AC27: 608.1501599 | AD27: 40.54334399 | AE27: 56.76068159 | AF27: 2.83803408 | AH27: 20 | AI27: 1059.88 | AJ27: 12.02 | AK27: 88.17637271 | AL27: 520.0259399 | AM27: 608.2023126 | AN27: 40.54682084 | AO27: 56.76554918 | AP27: 2.838277459 | AR27: 20 | AS27: 40.54682084 | AT27: 56.76554918 | AV27: 60 | AW27: 120.1742193 | AX27: 168.243907 | AZ27: 100 | BA27: 199.8059001 | BB27: 279.7282601 | BD27: 140 | BE27: 279.4801609 | BF27: 391.2722252 | BH27: 167 | BI27: 333.3684772 | BJ27: 466.715868 | BL27: 194 | BM27: 387.1170143 | BN27: 541.96382 | BP27: 20 | BQ27: 26.778 | BR27: 37.49 | BS27: -33.95783086 | BT27: 60 | BU27: 79.044 | BV27: 110.65 | BW27: -34.22549321 | BX27: 100 | BY27: 131.29 | BZ27: 183.81 | CA27: -34.29122966
A28: 23 | B28: ตัวรถพ่วง | C28: 0 | D28: - | E28: 60960 | F28: ก.ม. | H28: 14 | I28: การสิ้นเปลืองเชื้อเพลิงที่ความเร็ว 55 กม. /ชม. | J28: =+D25 -> 0.273 | K28: ลิตร/ก.ม. | N28: ="ดังนั้น ค่า Terminal Cost เฉลี่ยต่อวัน "&TEXT(O27,"0.00")&"/"&TEXT(J21,"0.00") -> ดังนั้น ค่า Terminal Cost เฉลี่ยต่อวัน 337836.54/300.00 | O28: =+O27/J21 -> 1126.121797 | P28: บาท/วัน | X28: 25 | Y28: 1059.87 | Z28: 9.869 | AA28: 107.39385 | AB28: 650.0324249 | AC28: 757.4262749 | AD28: 50.49508499 | AE28: 70.69311899 | AF28: 2.82772476 | AH28: 21 | AI28: 1059.88 | AJ28: 11.52 | AK28: 92.00347222 | AL28: 546.0272369 | AM28: 638.0307091 | AN28: 42.53538061 | AO28: 59.54953285 | AP28: 2.835692041 | AR28: 21 | AS28: 42.53538061 | AT28: 59.54953285 | AV28: 61 | AW28: 122.1708558 | AX28: 171.0391982 | AZ28: 101 | BA28: 201.8400462 | BB28: 282.5760647 | BD28: 141 | BE28: 281.4062581 | BF28: 393.9687613 | BH28: 168 | BI28: 335.376193 | BJ28: 469.5266702 | BL28: 195 | BM28: 389.2187933 | BN28: 544.9063106 | BP28: 21 | BQ28: 28.0944 | BR28: 39.319 | BS28: -33.95051461 | BT28: 61 | BU28: 80.3404 | BV28: 112.479 | BW28: -34.23930819 | BX28: 101 | BY28: 132.5964 | BZ28: 185.639 | CA28: -34.30619816
H29: 15 | I29: การสิ้นเปลืองน้ำมันหล่อลื่น | J29: =+D26 -> 0.00229 | K29: ลิตร/ก.ม. | N29: ="ค่าใช้จ่ายในการวิ่งรถส่วนหนึ่งจะมีค่า Terminal Cost"&TEXT(O28,"0.00")&"*"&TEXT(O24,"0.00")&"/"&TEXT(O23,"0.00") -> ค่าใช้จ่ายในการวิ่งรถส่วนหนึ่งจะมีค่า Terminal Cost1126.12*145.45/154.55 | O29: =+O28*O24/O23 -> 1059.879338 | P29: บาท/วัน | X29: 30 | Y29: 1059.87 | Z29: 8.367 | AA29: 126.67264 | AB29: 780.0389099 | AC29: 906.7115499 | AD29: 60.44743666 | AE29: 84.62641132 | AF29: 2.820880377 | AH29: 22 | AI29: 1059.88 | AJ29: 11.05 | AK29: 95.91674208 | AL29: 572.0285339 | AM29: 667.945276 | AN29: 44.52968507 | AO29: 62.34155909 | AP29: 2.833707231 | AR29: 22 | AS29: 44.52968507 | AT29: 62.34155909 | AV29: 62 | AW29: 124.1762041 | AX29: 173.8466857 | AZ29: 102 | BA29: 203.7777763 | BB29: 285.2888868 | BD29: 142 | BE29: 283.5311495 | BF29: 396.9436093 | BH29: 169 | BI29: 337.1096128 | BJ29: 471.953458 | BL29: 196 | BM29: 390.9522131 | BN29: 547.3330984 | BP29: 22 | BQ29: 29.3908 | BR29: 41.148 | BS29: -33.99728753 | BT29: 62 | BU29: 81.6468 | BV29: 114.308 | BW29: -34.24923834 | BX29: 102 | BY29: 133.9028 | BZ29: 187.458 | CA29: -34.28979233
H30: 16 | I30: ยางรถยนต์ 1 ชุด มีเวลาใช้งานได้ระยะทาง | J30: =+D27 -> 50800 | K30: ก.ม. | X30: 35 | Y30: 1059.87 | Z30: 7.262 | AA30: 145.94739 | AB30: 910.0453949 | AC30: 1055.992785 | AD30: 70.39951899 | AE30: 98.55932659 | AF30: 2.81598076 | AH30: 23 | AI30: 1059.88 | AJ30: 10.63 | AK30: 99.70649106 | AL30: 598.0298309 | AM30: 697.736322 | AN30: 46.5157548 | AO30: 65.12205672 | AP30: 2.83139377 | AR30: 23 | AS30: 46.5157548 | AT30: 65.12205672 | AV30: 63 | AW30: 126.1499718 | AX30: 176.6099605 | AZ30: 103 | BA30: 205.8235779 | BB30: 288.153009 | BD30: 143 | BE30: 285.4634285 | BF30: 399.6487999 | BH30: 170 | BI30: 339.120779 | BJ30: 474.7690905 | BL30: 197 | BM30: 393.0593696 | BN30: 550.2831175 | BP30: 23 | BQ30: 30.6972 | BR30: 42.977 | BS30: -34.00687545 | BT30: 63 | BU30: 82.9532 | BV30: 116.137 | BW30: -34.24239511 | BX30: 103 | BY30: 135.2092 | BZ30: 189.287 | CA30: -34.30820637
H31: 17 | I31: CRF | J31: =+J33 -> 0.1259019887 | M31: 4 | N31: Time related cost | X31: 40 | Y31: 1059.87 | Z31: 6.415 | AA31: 165.21745 | AB31: 1040.05188 | AC31: 1205.26933 | AD31: 80.35128866 | AE31: 112.4918041 | AF31: 2.812295103 | AH31: 24 | AI31: 1059.88 | AJ31: 10.23 | AK31: 103.6050831 | AL31: 624.0311279 | AM31: 727.636211 | AN31: 48.50908073 | AO31: 67.91271303 | AP31: 2.829696376 | AR31: 24 | AS31: 48.50908073 | AT31: 67.91271303 | AV31: 64 | AW31: 128.1307569 | AX31: 179.3830596 | AZ31: 104 | BA31: 207.7693038 | BB31: 290.8770253 | BD31: 144 | BE31: 287.3978344 | BF31: 402.3569682 | BH31: 171 | BI31: 341.1354609 | BJ31: 477.5896452 | BL31: 198 | BM31: 395.1720223 | BN31: 553.2408312 | BP31: 24 | BQ31: 32.0136 | BR31: 44.806 | BS31: -34.00493368 | BT31: 64 | BU31: 84.2596 | BV31: 117.956 | BW31: -34.2393645 | BX31: 104 | BY31: 136.5156 | BZ31: 191.116 | CA31: -34.29462509
N32: มูลค่ารถ + เงินเดือนเบี้ยเลี้ยงพนักงาน | O32: =+O27 -> 337836.539 | P32: บาท/ปี | X32: 45 | Y32: 1059.87 | Z32: 5.745 | AA32: 184.48563 | AB32: 1170.058365 | AC32: 1354.543995 | AD32: 90.30293299 | AE32: 126.4241062 | AF32: 2.809424582 | AH32: 25 | AI32: 1059.88 | AJ32: 9.86 | AK32: 107.4929006 | AL32: 650.0324249 | AM32: 757.5253255 | AN32: 50.50168837 | AO32: 70.70236371 | AP32: 2.828094549 | AR32: 25 | AS32: 50.50168837 | AT32: 70.70236371 | AV32: 65 | AW32: 130.1188713 | AX32: 182.1664199 | AZ32: 105 | BA32: 209.8274517 | BB32: 293.7584323 | BD32: 145 | BE32: 289.5397448 | BF32: 405.3556428 | BH32: 172 | BI32: 343.1537257 | BJ32: 480.415216 | BL32: 199 | BM32: 396.9054421 | BN32: 555.667619 | BP32: 25 | BQ32: 33.31 | BR32: 46.635 | BS32: -34.04180914 | BT32: 65 | BU32: 85.566 | BV32: 119.785 | BW32: -34.24013049 | BX32: 105 | BY32: 137.822 | BZ32: 192.945 | CA32: -34.31650678
I33: =D9/100 -> 0.07 | J33: =I33*(1+I33)^D8/((1+I33)^D8-1) -> 0.1259019887 | N33: ดังนั้น ค่า Time related cost ของค่ารถ + เงินเดือน | S33: จำนวนรถบรรทุกกำหนดให้มี 9 คัน รถที่เฉลี่ยคือคันที่ 5 | X33: 50 | Y33: 1059.87 | Z33: 5.201 | AA33: 203.78196 | AB33: 1300.06485 | AC33: 1503.84681 | AD33: 100.256454 | AE33: 140.3590356 | AF33: 2.807180712 | AH33: 26 | AI33: 1059.88 | AJ33: 9.52 | AK33: 111.3319328 | AL33: 676.0337219 | AM33: 787.3656547 | AN33: 52.49104364 | AO33: 73.4874611 | AP33: 2.826440812 | AR33: 26 | AS33: 52.49104364 | AT33: 73.4874611 | AV33: 66 | AW33: 132.1146458 | AX33: 184.9605041 | AZ33: 106 | BA33: 211.7816522 | BB33: 296.4943131 | BD33: 146 | BE33: 291.48074 | BF33: 408.0730361 | BH33: 173 | BI33: 345.1756424 | BJ33: 483.2458994 | BL33: 200 | BM33: 399.023713 | BN33: 558.6331982 | BP33: 26 | BQ33: 34.6164 | BR33: 48.474 | BS33: -34.05274958 | BT33: 66 | BU33: 86.8724 | BV33: 121.624 | BW33: -34.24468614 | BX33: 106 | BY33: 139.1284 | BZ33: 194.784 | CA33: -34.30573492
N34: =TEXT(O32,"0.00")&"*"&TEXT(O26,"0.00")&"/"&TEXT(J13,"0.00") -> 337836.54*0.52/85000.00 | O34: =+O32*O26/J13 -> 2.066764709 | P34: บาท/ก.ม. | S34: วิ่งขนส่งวัสดุระยะทาง 1 ก.ม.( ขาเดียว) | X34: 60 | Y34: 1059.87 | Z34: 4.374 | AA34: 242.31138 | AB34: 1560.07782 | AC34: 1802.3892 | AD34: 120.15928 | AE34: 168.222992 | AF34: 2.803716533 | AH34: 27 | AI34: 1059.88 | AJ34: 9.2 | AK34: 115.2043478 | AL34: 702.0350189 | AM34: 817.2393667 | AN34: 54.48262445 | AO34: 76.27567423 | AP34: 2.825024971 | AR34: 27 | AS34: 54.48262445 | AT34: 76.27567423 | AV34: 67 | AW34: 134.1184311 | AX34: 187.7658035 | AZ34: 107 | BA34: 213.7393852 | BB34: 299.2351393 | BD34: 147 | BE34: 293.4240038 | BF34: 410.7936054 | BH34: 174 | BI34: 347.2012817 | BJ34: 486.0817944 | BL34: 201- | BM34: =BN34/1.4 -> 1.995759841 | BN34: =+AP208 -> 2.794063777 | BP34: 27 | BQ34: 35.9228 | BR34: 50.293 | BS34: -34.06558446 | BT34: 67 | BU34: 88.1788 | BV34: 123.453 | BW34: -34.25303346 | BX34: 107 | BY34: 140.4448 | BZ34: 196.613 | CA34: -34.29156735
I35: "&TEXT( | S35: ความเร็วเฉลี่ย | T35: =+D22 -> 55 | U35: กม./ชม. | X35: 70 | Y35: 1059.87 | Z35: 3.774 | AA35: 280.83465 | AB35: 1820.09079 | AC35: 2100.92544 | AD35: 140.061696 | AE35: 196.0863744 | AF35: 2.80123392 | AH35: 28 | AI35: 1059.88 | AJ35: 8.9 | AK35: 119.0876404 | AL35: 728.0363159 | AM35: 847.1239563 | AN35: 56.47493042 | AO35: 79.06490259 | AP35: 2.823746521 | AR35: 28 | AS35: 56.47493042 | AT35: 79.06490259 | AV35: 68 | AW35: 136.0835429 | AX35: 190.5169601 | AZ35: 108 | BA35: 215.7007362 | BB35: 301.9810307 | BL35: 1000 | BM35: ต่อ กม. | BN35: ต่อ กม. | BP35: 28 | BQ35: 37.2292 | BR35: 52.122 | BS35: -34.07836057 | BT35: 68 | BU35: 89.4852 | BV35: 125.282 | BW35: -34.24245279 | BX35: 108 | BY35: 141.7412 | BZ35: 198.442 | CA35: -34.28803143
I36: ,"0.00")&" | M36: 5 | N36: Trip related cost | S36: 1 กม. ใช้เวลาเดินทาง (1 x 60 )/55 | T36: =60/T35 -> 1.090909091 | U36: นาที | X36: 80 | Y36: 1059.87 | Z36: 3.318 | AA36: 319.43037 | AB36: 2080.10376 | AC36: 2399.53413 | AD36: 159.968942 | AE36: 223.9565188 | AF36: 2.799456485 | AH36: 29 | AI36: 1059.88 | AJ36: 8.63 | AK36: 122.8134415 | AL36: 754.0376129 | AM36: 876.8510544 | AN36: 58.45673696 | AO36: 81.83943174 | AP36: 2.82204937 | AR36: 29 | AS36: 58.45673696 | AT36: 81.83943174 | AV36: 69 | AW36: 138.1029993 | AX36: 193.3441991 | AZ36: 109 | BA36: 217.7830303 | BB36: 304.8962424 | BL36: @ | BP36: 29 | BQ36: 38.5356 | BR36: 53.951 | BS36: -34.0784279 | BT36: 69 | BU36: 90.7916 | BV36: 127.111 | BW36: -34.25805346 | BX36: 109 | BY36: 143.0476 | BZ36: 200.271 | CA36: -34.31646175
N37: ="ค่าทะเบียนและเบี้ยประกันขึ้นกับระยะวิ่ง ("&TEXT(O8,"0.00")&"+"&TEXT(O9,"0.00")&")/"&TEXT(O20,"0.00") -> ค่าทะเบียนและเบี้ยประกันขึ้นกับระยะวิ่ง (23000.00+3600.00)/85000.00 | O37: =+(O8+O9)/O20 -> 0.3129411765 | P37: บาท/ก.ม. | S37: วิ่งไปกลับใช้เวลาเดินทาง 2x1.091 | X37: 90 | Y37: 1059.87 | Z37: 2.961 | AA37: 357.94326 | AB37: 2340.11673 | AC37: 2698.05999 | AD37: 179.870666 | AE37: 251.8189324 | AF37: 2.797988137 | AH37: 30 | AI37: 1059.88 | AJ37: 8.36 | AK37: 126.7799043 | AL37: 780.0389099 | AM37: 906.8188142 | AN37: 60.45458761 | AO37: 84.63642266 | AP37: 2.821214089 | AR37: 30 | AS37: 60.45458761 | AT37: 84.63642266 | AV37: 70 | AW37: 140.0817379 | AX37: 196.114433 | AZ37: 110 | BA37: 219.7538186 | BB37: 307.655346 | BP37: 30 | BQ37: 39.842 | BR37: 55.78 | BS37: -34.09598581 | BT37: 70 | BU37: 92.098 | BV37: 128.94 | BW37: -34.25409951 | BX37: 110 | BY37: 144.354 | BZ37: 202.1 | CA37: -34.31103908
S38: ดังนั้น รถคันที่ 5( คันเฉลี่ย) วิ่งครบ 1 เที่ยว | T38: =2*T36 -> 2.181818182 | U38: นาที | X38: 100 | Y38: 1059.87 | Z38: 2.673 | AA38: 396.50953 | AB38: 2600.1297 | AC38: 2996.63923 | AD38: 199.7759486 | AE38: 279.6863281 | AF38: 2.796863281 | AH38: 31 | AI38: 1059.88 | AJ38: 8.12 | AK38: 130.5270936 | AL38: 806.0402069 | AM38: 936.5673005 | AN38: 62.43782003 | AO38: 87.41294804 | AP38: 2.819772518 | AR38: 31 | AS38: 62.43782003 | AT38: 87.41294804 | AV38: 71 | AW38: 142.067071 | AX38: 198.8938994 | AZ38: 111 | BA38: 221.7285466 | BB38: 310.4199652 | BD38: - ระยะขนส่งตั้งแต่ 201 กม.ถึง 1000 กม. ค่าขนส่งคิดเป็นกม.ละ | BJ38: =BM34 -> 1.995759841 | BK38: บาท/ตัน | BP38: 31 | BQ38: 41.1484 | BR38: 57.609 | BS38: -34.09699445 | BT38: 71 | BU38: 93.4144 | BV38: 130.769 | BW38: -34.2462688 | BX38: 111 | BY38: 145.6604 | BZ38: 203.929 | CA38: -34.30688009
M39: 6 | N39: ดังนั้น ค่าใช้จ่ายในการเดินรถทั้งหมด ต่อ 1 กิโลเมตร ขาเดียว | S39: ใช้เวลารวม ( 4.25 x 5 + 2 x 5 ) - 1.091 | T39: =+T24*5-T36 -> 30.15909091 | U39: นาที | X39: 150 | Y39: 1059.87 | Z39: 1.798 | AA39: 589.47163 | AB39: 3900.194549 | AC39: 4489.666179 | AD39: 299.3110786 | AE39: 419.0355101 | AF39: 2.793570067 | AH39: 32 | AI39: 1059.88 | AJ39: 7.88 | AK39: 134.5025381 | AL39: 832.0415039 | AM39: 966.5440419 | AN39: 64.43626946 | AO39: 90.21077725 | AP39: 2.819086789 | AR39: 32 | AS39: 64.43626946 | AT39: 90.21077725 | AV39: 72 | AW39: 144.0592683 | AX39: 201.6829756 | AZ39: 112 | BA39: 223.7073132 | BB39: 313.1902385 | BJ39: =BN34 -> 2.794063777 | BK39: บาท/ลบ.ม. | BP39: 32 | BQ39: 42.4648 | BR39: 59.438 | BS39: -34.09798495 | BT39: 72 | BU39: 94.7108 | BV39: 132.598 | BW39: -34.2556705 | BX39: 112 | BY39: 146.9668 | BZ39: 205.748 | CA39: -34.30398056
N40: =TEXT(O17,"0.00")&"+"&TEXT(O34,"0.00")&"+"&TEXT(O37,"0.00") -> 10.62+2.07+0.31 | O40: =+O17+O34+O37 -> 13.0006485 | P40: บาท/ก.ม. | S40: =REPLACE("1 วันทำงาน 10 ชม. ดังนั้นวิ่งได้ 10*60/28.909",44,10,ROUND(T39,3)) -> 1 วันทำงาน 10 ชม. ดังนั้นวิ่งได้ 10*60/30.159 | T40: =10*60/+T39 -> 19.89449887 | U40: เที่ยว | X40: 200 | Y40: 1059.87 | Z40: 1.355 | AA40: 782.19188 | AB40: 5200.259399 | AC40: 5982.451279 | AD40: 398.8300853 | AE40: 558.3621194 | AF40: 2.791810597 | AH40: 33 | AI40: 1059.88 | AJ40: 7.66 | AK40: 138.3655352 | AL40: 858.0428009 | AM40: 996.4083361 | AN40: 66.42722241 | AO40: 92.99811137 | AP40: 2.818124587 | AR40: 33 | AS40: 66.42722241 | AT40: 92.99811137 | AV40: 73 | AW40: 146.0586141 | AX40: 204.4820597 | AZ40: 113 | BA40: 225.6902208 | BB40: 315.9663091 | BD40: - การคิดค่าขนส่งใช้ระยะทางขนส่งคูณด้วยอัตราค่าขนส่งต่อตัน หรือต่อลบ.ม. | BP40: 33 | BQ40: 43.7612 | BR40: 61.267 | BS40: -34.12158688 | BT40: 73 | BU40: 96.0172 | BV40: 134.427 | BW40: -34.26118644 | BX40: 113 | BY40: 148.2732 | BZ40: 207.577 | CA40: -34.3023373
M41: 7 | N41: ดังนั้น ค่าใช้จ่ายในการเดินรถทั้งหมด 1 เที่ยว / 1 กม. | S41: เขียนเป็นสูตรๆสำเร็จรูปดังนี้ | X41: 250 | Y41: 1059.87 | Z41: 1.087 | AA41: 975.04139 | AB41: 6500.324249 | AC41: 7475.365639 | AD41: 498.3577093 | AE41: 697.700793 | AF41: 2.790803172 | AH41: 34 | AI41: 1059.88 | AJ41: 7.45 | AK41: 142.2657718 | AL41: 884.0440979 | AM41: 1026.30987 | AN41: 68.42065798 | AO41: 95.78892117 | AP41: 2.817321211 | AR41: 34 | AS41: 68.42065798 | AT41: 95.78892117 | AV41: 74 | AW41: 148.0654088 | AX41: 207.2915723 | AZ41: 114 | BA41: 227.6773749 | BB41: 318.7483249 | BD41: - อัตราน้ำมันเชื้อเพลิงเฉลี่ย | BJ41: =+J14 -> 30.5 | BK41: บาท/ลิตร | BP41: 34 | BQ41: 45.0676 | BR41: 63.096 | BS41: -34.1315893 | BT41: 74 | BU41: 97.3236 | BV41: 136.246 | BW41: -34.26986033 | BX41: 114 | BY41: 149.5796 | BZ41: 209.406 | CA41: -34.30194807
N42: ="2*"&TEXT(O40,"0.00") -> 2*13.00 | O42: =2*O40 -> 26.001297 | P42: บาท/ก.ม. | S42: จำนวนเที่ยวต่อวัน ชั่วโมงทำงานต่อวัน x 60 นาที | X42: 300 | Y42: 1059.87 | Z42: 0.907 | AA42: 1168.54465 | AB42: 7800.389099 | AC42: 8968.933749 | AD42: 597.9289166 | AE42: 837.1004832 | AF42: 2.790334944 | AH42: 35 | AI42: 1059.88 | AJ42: 7.26 | AK42: 145.9889807 | AL42: 910.0453949 | AM42: 1056.034376 | AN42: 70.40229171 | AO42: 98.56320839 | AP42: 2.816091668 | AR42: 35 | AS42: 70.40229171 | AT42: 98.56320839 | AV42: 75 | AW42: 150.0231044 | AX42: 210.0323462 | AZ42: 115 | BA42: 229.668885 | BB42: 321.536439 | BP42: 35 | BQ42: 46.384 | BR42: 64.925 | BS42: -34.11578107 | BT42: 75 | BU42: 98.63 | BV42: 138.075 | BW42: -34.25679306 | BX42: 115 | BY42: 150.886 | BZ42: 211.235 | CA42: -34.30281163
S43: (เวลารอตักและเท) x 5 - (60นาที/ความเร็วเฉลี่ย) x ระยะทางขาเดียว | X43: 350 | Y43: 1059.87 | Z43: 0.779 | AA43: 1360.55198 | AB43: 9100.453949 | AC43: 10461.00593 | AD43: 697.4003952 | AE43: 976.3605533 | AF43: 2.789601581 | AH43: 36 | AI43: 1059.88 | AJ43: 7.07 | AK43: 149.9123055 | AL43: 936.0466919 | AM43: 1085.958997 | AN43: 72.39726649 | AO43: 101.3561731 | AP43: 2.815449252 | AR43: 36 | AS43: 72.39726649 | AT43: 101.3561731 | AV43: 76 | AW43: 152.0441193 | AX43: 212.8617671 | AZ43: 116 | BA43: 231.6648642 | BB43: 324.3308098 | BP43: 36 | BQ43: 47.6804 | BR43: 66.754 | BS43: -34.14060736 | BT43: 76 | BU43: 99.9364 | BV43: 139.914 | BW43: -34.27144671 | BX43: 116 | BY43: 152.1924 | BZ43: 213.074 | CA43: -34.3049277
X44: 400 | Y44: 1059.87 | Z44: 0.682 | AA44: 1554.06158 | AB44: 10400.5188 | AC44: 11954.58038 | AD44: 796.9720252 | AE44: 1115.760835 | AF44: 2.789402088 | AH44: 37 | AI44: 1059.88 | AJ44: 6.89 | AK44: 153.8287373 | AL44: 962.0479889 | AM44: 1115.876726 | AN44: 74.39178174 | AO44: 104.1484944 | AP44: 2.814824174 | AR44: 37 | AS44: 74.39178174 | AT44: 104.1484944 | AV44: 77 | AW44: 154.0136347 | AX44: 215.6190885 | AZ44: 117 | BA44: 233.6654295 | BB44: 327.1316013 | BP44: 37 | BQ44: 48.9868 | BR44: 68.583 | BS44: -34.15025309 | BT44: 77 | BU44: 101.2428 | BV44: 141.743 | BW44: -34.26374215 | BX44: 117 | BY44: 153.4988 | BZ44: 214.903 | CA44: -34.30829699
R45: การคำนวณจำนวนเที่ยวที่วิ่งต่อวัน รถบรรทุก 10 ล้อ | X45: 450 | Y45: 1059.87 | Z45: 0.607 | AA45: 1746.07907 | AB45: 11700.58365 | AC45: 13446.66272 | AD45: 896.4441812 | AE45: 1255.021854 | AF45: 2.788937453 | AH45: 38 | AI45: 1059.88 | AJ45: 6.72 | AK45: 157.7202381 | AL45: 988.0492859 | AM45: 1145.769524 | AN45: 76.38463493 | AO45: 106.9384889 | AP45: 2.814170761 | AR45: 38 | AS45: 76.38463493 | AT45: 106.9384889 | AV45: 78 | AW45: 155.9887052 | AX45: 218.3841872 | AZ45: 118 | BA45: 235.6707023 | BB45: 329.9389832 | BP45: 38 | BQ45: 50.2932 | BR45: 70.412 | BS45: -34.15796247 | BT45: 78 | BU45: 102.5492 | BV45: 143.572 | BW45: -34.25857347 | BX45: 118 | BY45: 154.8052 | BZ45: 216.732 | CA45: -34.31292117
X46: 500 | Y46: 1059.87 | Z46: 0.546 | AA46: 1941.15384 | AB46: 13000.6485 | AC46: 14941.80234 | AD46: 996.1201559 | AE46: 1394.568218 | AF46: 2.789136436 | AH46: 39 | AI46: 1059.88 | AJ46: 6.56 | AK46: 161.5670732 | AL46: 1014.050583 | AM46: 1175.617656 | AN46: 78.3745104 | AO46: 109.7243146 | AP46: 2.813443963 | AR46: 39 | AS46: 78.3745104 | AT46: 109.7243146 | AV46: 79 | AW46: 158.0323035 | AX46: 221.2452249 | AZ46: 119 | BA46: 237.680808 | BB46: 332.7531312 | BP46: 39 | BQ46: 51.5996 | BR46: 72.241 | BS46: -34.16277852 | BT46: 79 | BU46: 103.8556 | BV46: 145.401 | BW46: -34.28204379 | BX46: 119 | BY46: 156.1116 | BZ46: 218.561 | CA46: -34.31880289
R47: ลำดับ | S47: รายการ | T47: ปริมาณ | U47: หน่วย | X47: 600 | Y47: 1059.87 | Z47: 0.456 | AA47: 2324.27631 | AB47: 15600.7782 | AC47: 17925.05451 | AD47: 1195.003634 | AE47: 1673.005087 | AF47: 2.788341812 | AH47: 40 | AI47: 1059.88 | AJ47: 6.41 | AK47: 165.3478939 | AL47: 1040.05188 | AM47: 1205.399774 | AN47: 80.35998492 | AO47: 112.5039789 | AP47: 2.812599472 | AR47: 40 | AS47: 80.35998492 | AT47: 112.5039789 | AV47: 80 | AW47: 160.0206132 | AX47: 224.0288585 | AZ47: 120 | BA47: 239.6958767 | BB47: 335.5742274 | BP47: 40 | BQ47: 52.906 | BR47: 74.07 | BS47: -34.16375071 | BT47: 80 | BU47: 105.162 | BV47: 147.23 | BW47: -34.28221658 | BX47: 120 | BY47: 157.418 | BZ47: 220.39 | CA47: -34.3259458
R48: 4 | S48: กรณีไม่ต้องรอคิวตักและเท | X48: 700 | Y48: 1059.87 | Z48: 0.391 | AA48: 2710.66496 | AB48: 18200.9079 | AC48: 20911.57286 | AD48: 1394.104857 | AE48: 1951.7468 | AF48: 2.788209714 | AH48: 41 | AI48: 1059.88 | AJ48: =ROUNDDOWN(IF(2*AH48>4*4,10*60/(AH48*2/$D$22*60+$T$24),10*60/(+$T$24*5-AH48*60/$D$22)),2) -> 6.26 | AK48: 169.3099042 | AL48: 1066.053177 | AM48: 1235.363081 | AN48: 82.35753873 | AO48: 115.3005542 | AP48: 2.81220864
X49: 800 | Y49: 1059.87 | Z49: 0.342 | AA49: 3099.03508 | AB49: 20801.0376 | AC49: 23900.07268 | AD49: 1593.338178 | AE49: 2230.67345 | AF49: 2.788341812 | AH49: 42 | AI49: 1059.88 | AJ49: 6.12 | AK49: 173.1830065 | AL49: 1092.054474 | AM49: 1265.23748 | AN49: 84.34916536 | AO49: 118.0888315 | AP49: 2.811638845 | BP49: ตารางค่าขนส่งวัสดุก่อสร้าง รถบรรทุก 10 ล้อ(น้ำหนัก 21 ตัน)
X50: 900 | Y50: 1059.87 | Z50: 0.304 | AA50: 3486.41447 | AB50: 23401.1673 | AC50: 26887.58177 | AD50: 1792.505451 | AE50: 2509.507632 | AF50: 2.788341813 | AH50: 43 | AI50: 1059.88 | AJ50: 5.99 | AK50: 176.9415693 | AL50: 1118.055771 | AM50: 1294.99734 | AN50: 86.33315601 | AO50: 120.8664184 | AP50: 2.81084694 | BP50: ภูมิประเทศเป็น ที่ราบ ผิวทางลาดยาง การจราจรปรกติ
X51: 1000 | Y51: 1059.87 | Z51: 0.274 | AA51: 3868.13868 | AB51: 26001.297 | AC51: 29869.43568 | AD51: 1991.295712 | AE51: 2787.813996 | AF51: 2.787813996 | AH51: 44 | AI51: 1059.88 | AJ51: 5.86 | AK51: 180.8668942 | AL51: 1144.057068 | AM51: 1324.923962 | AN51: 88.32826414 | AO51: 123.6595698 | AP51: 2.810444768 | BP51: ราคาน้ำมันเชื้อเพลิงโซล่า ที่ อำเภอเมือง 12.00 - 12.99 บาท / ลิตร
S52: วิ่งขนส่งวัสดุระยะทาง 20 ก.ม.( ขาเดียว) | AH52: 45 | AI52: 1059.88 | AJ52: 5.74 | AK52: 184.6480836 | AL52: 1170.058365 | AM52: 1354.706448 | AN52: 90.31376323 | AO52: 126.4392685 | AP52: 2.809761523 | BP52: ระยะ | BQ52: ค่าบรรทุก | BR52: ค่าบรรทุก | BT52: ระยะ | BU52: ค่าบรรทุก | BV52: ค่าบรรทุก | BX52: ระยะ | BY52: ค่าบรรทุก | BZ52: ค่าบรรทุก
S53: ความเร็วเฉลี่ย | T53: =+D22 -> 55 | U53: ก.ม./ ช.ม. | AH53: 46 | AI53: 1059.88 | AJ53: 5.62 | AK53: 188.5907473 | AL53: 1196.059662 | AM53: 1384.650409 | AN53: 92.31002728 | AO53: 129.2340382 | AP53: 2.809435613 | BP53: ขนส่ง | BT53: ขนส่ง | BX53: ขนส่ง
S54: 20 ก.ม. ใช้เวลาเดินทาง 20 x 60 / 55 | T54: =20*60/T53 -> 21.81818182 | U54: นาที | AH54: 47 | AI54: 1059.88 | AJ54: 5.51 | AK54: 192.3557169 | AL54: 1222.060959 | AM54: 1414.416676 | AN54: 94.29444505 | AO54: 132.0122231 | AP54: 2.808770704 | BP54: กม. | BQ54: บาท / ตัน | BR54: บาท / ลบ.ม. | BT54: กม. | BU54: บาท / ตัน | BV54: บาท / ลบ.ม. | BX54: กม. | BY54: บาท / ตัน | BZ54: บาท / ลบ.ม.
S55: ดังนั้น เวลาวิ่ง 1 เที่ยว มากกว่าเวลารอ จึงไม่ต้องรอ | AH55: 48 | AI55: 1059.88 | AJ55: 5.4 | AK55: 196.2740741 | AL55: 1248.062256 | AM55: 1444.33633 | AN55: 96.28908866 | AO55: 134.8047241 | AP55: 2.808431753 | BP55: 121 | BQ55: 158.7244 | BR55: 222.209 | BS55: =+(BQ55-BE8)/BE8*100 -> -34.2952063 | BT55: 148 | BU55: 193.9972 | BV55: 271.602 | BW55: =+(BU55-BI8)/BI8*100 -> -34.32052 | BX55: 175 | BY55: 229.27 | BZ55: 320.975 | CA55: =+(BY55-BM8)/BM8*100 -> -34.34999
S56: ="วิ่ง 1 รอบ ไป-กลับ รวมเวลาตักและเท "&TEXT(T54,"0.00")&"*2+"&TEXT(T24,"0.00") -> วิ่ง 1 รอบ ไป-กลับ รวมเวลาตักและเท 21.82*2+6.25 | T56: =+T54*2+T24 -> 49.88636364 | U56: นาที | AH56: 49 | AI56: 1059.88 | AJ56: 5.3 | AK56: 199.9773585 | AL56: 1274.063553 | AM56: 1474.040911 | AN56: 98.26939409 | AO56: 137.5771517 | AP56: 2.807696974 | BP56: 122 | BQ56: 160.0308 | BR56: 224.038 | BS56: -34.30450662 | BT56: 149 | BU56: 195.3036 | BV56: 273.431 | BW56: -34.31143199 | BX56: 176 | BY56: 230.5764 | BZ56: 322.814 | CA56: -34.35809335
S57: ="1 วันทำงาน 10 ชั่วโมง ดังนั้น วิ่งได้ =10*60/"&TEXT(T56,"0.00") -> 1 วันทำงาน 10 ชั่วโมง ดังนั้น วิ่งได้ =10*60/49.89 | T57: =10*60/T56 -> 12.02733485 | U57: เที่ยว | AH57: 50 | AI57: 1059.88 | AJ57: 5.2 | AK57: 203.8230769 | AL57: 1300.06485 | AM57: 1503.887927 | AN57: 100.2591951 | AO57: 140.3628732 | AP57: 2.807257463 | BP57: 123 | BQ57: 161.3372 | BR57: 225.867 | BS57: -34.31507357 | BT57: 150 | BU57: 196.61 | BV57: 275.25 | BW57: -34.35109239 | BX57: 177 | BY57: 231.8828 | BZ57: 324.643 | CA57: -34.36683645
S58: เขียนเป็นสูตรๆสำเร็จรูปดังนี้ | AH58: 51 | AI58: 1059.88 | AJ58: 5.1 | AK58: 207.8196078 | AL58: 1326.066147 | AM58: 1533.885755 | AN58: 102.2590503 | AO58: 143.1626704 | AP58: 2.807111185 | BP58: 124 | BQ58: 162.6436 | BR58: 227.696 | BS58: -34.32691445 | BT58: 151 | BU58: 197.9164 | BV58: 277.079 | BW58: -34.34351458 | BX58: 178 | BY58: 233.1892 | BZ58: 326.462 | CA58: -34.31931948
S59: จำนวนเที่ยวต่อวัน ชั่วโมงทำงานต่อวัน x 60 นาที | AH59: 52 | AI59: 1059.88 | AJ59: 5.01 | AK59: 211.5528942 | AL59: 1352.067444 | AM59: 1563.620338 | AN59: 104.2413559 | AO59: 145.9378982 | AP59: 2.806498043 | BP59: 125 | BQ59: 163.95 | BR59: 229.525 | BS59: -34.29962932 | BT59: 152 | BU59: 199.2228 | BV59: 278.908 | BW59: -34.33657676 | BX59: 179 | BY59: 234.4956 | BZ59: 328.291 | CA59: -34.3289316
S60: (เวลาตักและเท)+2(60นาที / ความเร็วเฉลี่ย) x ระยะทางขาเดียว | AH60: 53 | AI60: 1059.88 | AJ60: 4.92 | AK60: 215.4227642 | AL60: 1378.068741 | AM60: 1593.491505 | AN60: 106.232767 | AO60: 148.7258738 | AP60: 2.806148562 | BP60: 126 | BQ60: 165.2564 | BR60: 231.364 | BS60: -34.31362303 | BT60: 153 | BU60: 200.5292 | BV60: 280.737 | BW60: -34.33027598 | BX60: 180 | BY60: 235.802 | BZ60: 330.12 | CA60: -34.33918495
AH61: 54 | AI61: 1059.88 | AJ61: 4.83 | AK61: 219.436853 | AL61: 1404.070038 | AM61: 1623.506891 | AN61: 108.2337927 | AO61: 151.5273098 | AP61: 2.806061293 | BP61: 127 | BQ61: 166.5628 | BR61: 233.193 | BS61: -34.32890613 | BT61: 154 | BU61: 201.8356 | BV61: 282.566 | BW61: -34.32460954 | BX61: 181 | BY61: 237.1084 | BZ61: 331.949 | CA61: -34.35008331
AH62: 55 | AI62: 1059.88 | AJ62: 4.75 | AK62: 223.1326316 | AL62: 1430.071335 | AM62: 1653.203966 | AN62: 110.2135978 | AO62: 154.2990369 | AP62: 2.805437034 | BP62: 128 | BQ62: 167.8692 | BR62: 235.022 | BS62: -34.30412487 | BT62: 155 | BU62: 203.142 | BV62: 284.395 | BW62: -34.319575 | BX62: 182 | BY62: 238.4148 | BZ62: 333.778 | CA62: -34.36163073
R63: หมายเหตุ | AH63: 56 | AI63: 1059.88 | AJ63: 4.67 | AK63: 226.9550321 | AL63: 1456.072632 | AM63: 1683.027664 | AN63: 112.2018443 | AO63: 157.082582 | AP63: 2.805046107 | BP63: 129 | BQ63: 169.1756 | BR63: 236.851 | BS63: -34.321568 | BT63: 156 | BU63: 204.4484 | BV63: 286.234 | BW63: -34.31517018 | BX63: 183 | BY63: 239.7212 | BZ63: 335.607 | CA63: -34.37383151
S64: ช่วงระยะขนส่งที่ต้องใช้เวลาเดินทาง 1 เที่ยว (ไป-กลับ) ใกล้เคียงกับเวลารอตัก | AH64: 57 | AI64: 1059.88 | AJ64: 4.59 | AK64: 230.9106754 | AL64: 1482.073929 | AM64: 1712.984604 | AN64: 114.1989736 | AO64: 159.8785631 | AP64: 2.804887071 | BP64: 130 | BQ64: 170.482 | BR64: 238.68 | BS64: -34.34032343 | BT64: 157 | BU64: 205.7548 | BV64: 288.063 | BW64: -34.31139311 | BX64: 184 | BY64: 241.0276 | BZ64: 337.436 | CA64: -34.32783274
S65: และเท การใช้สูตรหาจำนวนเที่ยวต้องลองทั้งสูตร เพื่อให้ได้ค่าขนส่งที่ต่อเนื่อง | AH65: 58 | AI65: 1059.88 | AJ65: 4.51 | AK65: 235.0066519 | AL65: 1508.075226 | AM65: 1743.081878 | AN65: 116.2054585 | AO65: 162.6876419 | AP65: 2.804959343 | BP65: 131 | BQ65: 171.7884 | BR65: 240.499 | BS65: -34.31800178 | BT65: 158 | BU65: 207.0612 | BV65: 289.892 | BW65: -34.35886054 | BX65: 185 | BY65: 242.334 | BZ65: 339.265 | CA65: -34.34088814
S66: ไม่กระโดดหรือมากขึ้นกว่าระยะขนส่งก่อนหน้าช่วงนั้น | AH66: 59 | AI66: 1059.88 | AJ66: 4.44 | AK66: 238.7117117 | AL66: 1534.076523 | AM66: 1772.788234 | AN66: 118.1858823 | AO66: 165.4602352 | AP66: 2.804410766 | BP66: 132 | BQ66: 173.1048 | BR66: 242.328 | BS66: -34.33514376 | BT66: 159 | BU66: 208.3676 | BV66: 291.711 | BW66: -34.35661577 | BX66: 186 | BY66: 243.6404 | BZ66: 341.104 | CA66: -34.35460163
AH67: 60 | AI67: 1059.88 | AJ67: 4.37 | AK67: 242.5354691 | AL67: 1560.07782 | AM67: 1802.613289 | AN67: 120.1742193 | AO67: 168.243907 | AP67: 2.804065116 | BP67: 133 | BQ67: 174.4012 | BR67: 244.157 | BS67: -34.31819492 | BT67: 160 | BU67: 209.674 | BV67: 293.54 | BW67: -34.35500057 | BX67: 187 | BY67: 244.9468 | BZ67: 342.933 | CA67: -34.36897841
S68: สำหรับรถบรรทุก 6 ล้อ รถบรรทุก 10 ล้อ + รถลากพ่วง ก็ใช้หลักเกณฑ์เดียวกัน | AH68: 61 | AI68: 1059.88 | AJ68: 4.3 | AK68: 246.4837209 | AL68: 1586.079117 | AM68: 1832.562838 | AN68: 122.1708558 | AO68: 171.0391982 | AP68: 2.803921282 | BP68: 134 | BQ68: 175.7076 | BR68: 245.986 | BS68: -34.34132332 | BT68: 161 | BU68: 210.9804 | BV68: 295.369 | BW68: -34.35401407 | BX68: 188 | BY68: 246.2532 | BZ68: 344.752 | CA68: -34.32397555
S69: เพียงแต่ระยะเวลาที่ใช้ตักและเท ต่างกัน ตามความจุของกะบะบรรทุก ดังนี้ | AH69: 62 | AI69: 1059.88 | AJ69: 4.23 | AK69: 250.5626478 | AL69: 1612.080414 | AM69: 1862.643062 | AN69: 124.1762041 | AO69: 173.8466857 | AP69: 2.803978802 | BP69: 135 | BQ69: 177.014 | BR69: 247.815 | BS69: -34.32214363 | BT69: 162 | BU69: 212.2868 | BV69: 297.198 | BW69: -34.35365566 | BX69: 189 | BY69: 247.5596 | BZ69: 346.581 | CA69: -34.33919978
S70: รถบรรทุก 10 ล้อ + รถลากพ่วง เวลาตักใส่บรรทุก | T70: 7 | U70: นาที/ต่อคัน | AH70: 63 | AI70: 1059.88 | AJ70: 4.17 | AK70: 254.1678657 | AL70: 1638.081711 | AM70: 1892.249576 | AN70: 126.1499718 | AO70: 176.6099605 | AP70: 2.803332706 | BP70: 136 | BQ70: 178.3204 | BR70: 249.654 | BS70: -34.30366806 | BT70: 163 | BU70: 213.5932 | BV70: 299.027 | BW70: -34.35392497 | BX70: 190 | BY70: 248.866 | BZ70: 348.41 | CA70: -34.35509408
S71: เวลาเทลงกอง | T71: 5 | U71: นาที/ต่อคัน | AH71: 64 | AI71: 1059.88 | AJ71: 4.11 | AK71: 257.8783455 | AL71: 1664.083008 | AM71: 1921.961353 | AN71: 128.1307569 | AO71: 179.3830596 | AP71: 2.802860307 | BP71: 137 | BQ71: 179.6268 | BR71: 251.483 | BS71: -34.32985287 | BT71: 164 | BU71: 214.8996 | BV71: 300.856 | BW71: -34.35482186 | BX71: 191 | BY71: 250.1724 | BZ71: 350.239 | CA71: -34.37166459
S72: รถบรรทุก 6 ล้อ เวลาตักใส่บรรทุก | T72: 3 | U72: นาที/ต่อคัน | AH72: 65 | AI72: =ROUND($O$29,2) -> 1059.88 | AJ72: 4.05 | AK72: =+AI72/AJ72 -> 261.6987654 | AL72: =+$O$42*AH72 -> 1690.084305 | AM72: =+AK72+AL72 -> 1951.78307 | AN72: =+AM72/$J$20 -> 130.1188713 | AO72: =+AN72*1.4 -> 182.1664199 | AP72: =+AO72/AH72 -> 2.802560306 | BP72: 138 | BQ72: 180.9332 | BR72: 253.312 | BS72: -34.31291534 | BT72: 165 | BU72: 216.206 | BV72: 302.685 | BW72: -34.35634645 | BX72: 192 | BY72: 251.4788 | BZ72: 352.068 | CA72: -34.32758712
S73: เวลาเทลงกอง | T73: 2 | U73: นาที/ต่อคัน | AH73: 66 | AI73: 1059.88 | AJ73: 3.99 | AK73: 265.6340852 | AL73: 1716.085602 | AM73: 1981.719687 | AN73: 132.1146458 | AO73: 184.9605041 | AP73: 2.802431881 | BP73: 139 | BQ73: 182.2396 | BR73: 255.141 | BS73: -34.34133637 | BT73: 166 | BU73: 217.5124 | BV73: 304.524 | BW73: -34.35849909 | BX73: 193 | BY73: 252.7852 | BZ73: 353.897 | CA73: -34.34500199
AH74: 67 | AI74: 1059.88 | AJ74: 3.93 | AK74: 269.6895674 | AL74: 1742.086899 | AM74: 2011.776466 | AN74: 134.1184311 | AO74: 187.7658035 | AP74: 2.802474679 | BP74: 140 | BQ74: 183.546 | BR74: 256.96 | BS74: -34.32592874 | BT74: 167 | BU74: 218.8188 | BV74: 306.353 | BW74: -34.36128039 | BX74: 194 | BY74: 254.0916 | BZ74: 355.726 | CA74: -34.36310195
AH75: 68 | AI75: 1059.88 | AJ75: 3.88 | AK75: 273.1649485 | AL75: 1768.088196 | AM75: 2041.253144 | AN75: 136.0835429 | AO75: 190.5169601 | AP75: 2.801720002 | BP75: 141 | BQ75: 184.8524 | BR75: 258.789 | BS75: -34.31119789 | BT75: 168 | BU75: 220.1252 | BV75: 308.182 | BW75: -34.36469118 | BX75: 195 | BY75: 255.398 | BZ75: 357.555 | CA75: -34.3818941
AH76: 69 | AI76: 1059.88 | AJ76: 3.82 | AK76: 277.4554974 | AL76: 1794.089493 | AM76: 2071.54499 | AN76: 138.1029993 | AO76: 193.3441991 | AP76: 2.802089842 | BP76: 142 | BQ76: 186.1588 | BR76: 260.618 | BS76: -34.34273436 | BT76: 169 | BU76: 221.4316 | BV76: 310.001 | BW76: -34.31465862 | BX76: 196 | BY76: 256.7044 | BZ76: 359.384 | CA76: -34.33867583
AH77: 70 | AI77: 1059.88 | AJ77: 3.77 | AK77: 281.1352785 | AL77: 1820.09079 | AM77: 2101.226068 | AN77: 140.0817379 | AO77: 196.114433 | AP77: 2.801634758 | BP77: 143 | BQ77: 187.4652 | BR77: 262.447 | BS77: -34.32952131 | BT77: 170 | BU77: 222.738 | BV77: 311.83 | BW77: -34.31897606 | BX77: 197 | BY77: 258.0108 | BZ77: 361.213 | CA77: -34.35831329
AH78: 71 | AI78: 1059.88 | AJ78: 3.72 | AK78: 284.9139785 | AL78: 1846.092087 | AM78: 2131.006065 | AN78: 142.067071 | AO78: 198.8938994 | AP78: 2.801322527 | BP78: 144 | BQ78: 188.7716 | BR78: 264.276 | BS78: -34.31697202 | BT78: 171 | BU78: 224.0444 | BV78: 313.659 | BW78: -34.32391947 | BX78: 198 | BY78: 259.3172 | BZ78: 363.042 | CA78: -34.37865401
AH79: 72 | AI79: 1059.88 | AJ79: 3.67 | AK79: 288.7956403 | AL79: 1872.093384 | AM79: 2160.889024 | AN79: 144.0592683 | AO79: 201.6829756 | AP79: 2.801152439 | BP79: 145 | BQ79: 190.078 | BR79: 266.105 | BS79: -34.35167248 | BT79: 172 | BU79: 225.3508 | BV79: 315.488 | BW79: -34.32949052 | BX79: 199 | BY79: 260.6236 | BZ79: 364.871 | CA79: -34.33609814
AH80: 73 | AI80: 1059.88 | AJ80: =ROUNDDOWN(IF(2*AH80>4*4,10*60/(AH80*2/$D$22*60+$T$24),10*60/(+$T$24*5-AH80*60/$D$22)),2) -> 3.62 | AK80: 292.7845304 | AL80: 1898.094681 | AM80: 2190.879211 | AN80: 146.0586141 | AO80: 204.4820597 | AP80: 2.801124106 | BP80: 146 | BQ80: 191.3844 | BR80: 267.944 | BS80: -34.34063603 | BT80: 173 | BU80: 226.6572 | BV80: 317.317 | BW80: -34.33569113 | BX80: 200 | BY80: 261.93 | BZ80: 366.7 | CA80: -34.35728468
AH81: 74 | AI81: 1059.88 | AJ81: 3.57 | AK81: 296.8851541 | AL81: 1924.095978 | AM81: 2220.981132 | AN81: 148.0654088 | AO81: 207.2915723 | AP81: 2.801237463 | BP81: 147 | BQ81: 192.6908 | BR81: 269.773 | BS81: -34.33025332 | BT81: 174 | BU81: 227.9636 | BV81: 319.146 | BW81: -34.34252349 | BX81: 201- | BY81: 1.31 | BZ81: 1.83 | CA81: -34.36083976
AH82: 75 | AI82: 1059.88 | AJ82: 3.53 | AK82: 300.2492918 | AL82: 1950.097275 | AM82: 2250.346566 | AN82: 150.0231044 | AO82: 210.0323462 | AP82: 2.800431283 | BX82: 1000 | BY82: ต่อ กม. | BZ82: ต่อ กม.
AH83: 76 | AI83: 1059.88 | AJ83: 3.48 | AK83: 304.5632184 | AL83: 1976.098572 | AM83: 2280.66179 | AN83: 152.0441193 | AO83: 212.8617671 | AP83: 2.800812725 | BX83: @
AH84: 77 | AI84: 1059.88 | AJ84: 3.44 | AK84: 308.1046512 | AL84: 2002.099869 | AM84: 2310.20452 | AN84: 154.0136347 | AO84: 215.6190885 | AP84: 2.800247903 | BZ84: 1 ต.ค. 2543
AH85: 78 | AI85: 1059.88 | AJ85: 3.4 | AK85: 311.7294118 | AL85: 2028.101166 | AM85: 2339.830577 | AN85: 155.9887052 | AO85: 218.3841872 | AP85: 2.799797272 | BP85: - ระยะขนส่งตั้งแต่ 201 กม.ถึง 1000 กม. ค่าขนส่งคิดเป็นกม.ละ | BV85: 1.31 บาท / ตัน
AH86: 79 | AI86: 1059.88 | AJ86: 3.35 | AK86: 316.3820896 | AL86: 2054.102463 | AM86: 2370.484552 | AN86: 158.0323035 | AO86: 221.2452249 | AP86: 2.800572467 | BV86: 1.83 บาท / ลบ.ม.
AH87: 80 | AI87: 1059.88 | AJ87: 3.31 | AK87: 320.2054381 | AL87: 2080.10376 | AM87: 2400.309198 | AN87: 160.0206132 | AO87: 224.0288585 | AP87: 2.800360731 | BP87: - การคิดค่าขนส่งใช้ระยะทางขนส่งคูณด้วยอัตราค่าขนส่งต่อตัน หรือต่อลบ.ม.
AH88: 81 | AI88: 1059.88 | AJ88: 3.27 | AK88: 324.1223242 | AL88: 2106.105057 | AM88: 2430.227381 | AN88: 162.0151587 | AO88: 226.8212222 | AP88: 2.800262003 | BP88: - อัตราน้ำมันเชื้อเพลิงเฉลี่ย | BV88: 12.50 บาท / ลิตร
AH89: 82 | AI89: 1059.88 | AJ89: 3.24 | AK89: 327.1234568 | AL89: 2132.106354 | AM89: 2459.22981 | AN89: 163.948654 | AO89: 229.5281156 | AP89: 2.799123362
AH90: 83 | AI90: 1059.88 | AJ90: 3.2 | AK90: 331.2125 | AL90: 2158.107651 | AM90: 2489.320151 | AN90: 165.9546767 | AO90: 232.3365474 | AP90: 2.799235511
AH91: 84 | AI91: 1059.88 | AJ91: 3.16 | AK91: 335.4050633 | AL91: 2184.108948 | AM91: 2519.514011 | AN91: 167.9676007 | AO91: 235.154641 | AP91: 2.799460012
AH92: 85 | AI92: 1059.88 | AJ92: 3.12 | AK92: 339.7051282 | AL92: 2210.110245 | AM92: 2549.815373 | AN92: 169.9876915 | AO92: 237.9827681 | AP92: 2.799797272
AH93: 86 | AI93: 1059.88 | AJ93: 3.09 | AK93: 343.0032362 | AL93: 2236.111542 | AM93: 2579.114778 | AN93: 171.9409852 | AO93: 240.7173793 | AP93: 2.799039294
AH94: 87 | AI94: 1059.88 | AJ94: 3.06 | AK94: 346.3660131 | AL94: 2262.112839 | AM94: 2608.478852 | AN94: 173.8985901 | AO94: 243.4580262 | AP94: 2.798368117
AH95: 88 | AI95: 1059.88 | AJ95: 3.02 | AK95: 350.9536424 | AL95: 2288.114136 | AM95: 2639.067778 | AN95: 175.9378519 | AO95: 246.3129926 | AP95: 2.79901128
